Workbook

Sheet Start
B2: Arbeitshilfe für die Beurteilung der Verhältnismässigkeit von hindernisfreien Bushaltestellen
B8: Inhalt und Erläuterung der Tabellenblätter
B10: 1. Start | E10: Wählen Sie in Zelle C21 die gewünschte Linie aus.
B11: 2. Erfassungsmaske | E11: Hier können Frequenzen (bereits integriert) und Kosten (in Tausend CHF) erfasst werden.
B12: 3. Zusätzliche Frequenzen | E12: Hier können zusätzliche Frequenzen anderer Linien erfasst werden
B13: 4. Ergebnis Linie | E13: Ergebnis der Verhältnismässigkeitsprüfung für die gesamte Linie.
B14: 5. Ergebnis Haltestelle | E14: Hier kann ein detailliertes Ergebnis für eine bestimmte Haltestelle der Linie angezeigt werden.
B19: Auswahl der Linie
C21: 12.180 | E21: Nach der Wahl der Linie erscheinen die jeweiligen Haltestellen im nächsten Tabellenblatt.
B27: Erläuterungen zu den Farbcodes
B28: Blätter
E29: Blätter mit Eingabe des Benutzers
E31: Ergebnisblätter
B33: Felder
E34: Eingabe oder Auswahl erforderlich
E36: Positiver Entscheid Verhältnismässigkeitsprüfung: Haltestelle prioritär umbauen (Umbau P1)
E38: Positiver Entscheid Verhältnismässigkeitsprüfung: Haltestelle beim nächsten Ausbau- und
E39: Umgestaltungsprojekt umbauen (Umbau P2)
B40: Metainformationen
B41: Version 2.0
B43: Datenbasis:
B44: Frequenzen aus dem Jahr 2017
B45: Umsteigefunktionen basierend auf Fahrplan 2015/16
B46: Nachfragepotenzial (Einwohner und Arbeitsplätze) basierend auf BFS STATPOP 2017 und BFS STATENT 2016
B47: Zentrale Einrichtungen im Umkreis der Haltestelle basierend auf BFS STATENT 2016
B48: Umkreis der Haltestelle gemäss Geoportal Kanton Bern (August 2015)

Sheet Erfassungsmaske
B2: Erfassung der Frequenzen und Kosten | Q2: Aufpassen beim Zeilen löschen/einfügen!
Q3: Formel Indirekt in Spalte B und C anpassen!
C6: Fahrtrichtung A: | D6: =INDEX($C$10:$C$109,MATCH("",$C$10:$C$109,-1),1) -> Reusch, Talstation | N6: =IF(SUM(O10:O109)>0,"Achtung, inkonsistente Eingabe! Bitte prüfen","") ->  | O6: =IF(SUM(O10:O109)>0,1,"") -> 
C7: Fahrtrichtung B: | D7: =+$C$10 -> Saanenmöser, Bahnhof
B8: ="Erfassung Linie "&Start!$C$21 -> Erfassung Linie 12.180
B9: HST-NR | C9: HST_Name | D9: Frequenzen A (Mittlere Anzahl Ein- und Aussteigende Mo bis So) | E9: Frequenzen B (Mittlere Anzahl Ein- und Aussteigende Mo bis So) | G9: Haltestelle A bereits umgebaut [x eingeben] | H9: Haltestelle B bereits umgebaut [x eingeben] | J9: Haltestelle A Umbau projektiert [x eingeben] | K9: Haltestelle B Umbau projektiert [x eingeben] | M9: Kosten A (in CHF) | N9: Kosten B (in CHF)
B10: =IFERROR(INDIRECT(Rel_Bezug_Linienblatt&"C"&ROW(B10)-2),0) -> 79266 | C10: =IFERROR(INDIRECT(Rel_Bezug_Linienblatt&"b"&ROW(B10)-2),0) -> Saanenmöser, Bahnhof | D10: =IF($B10>0,IFERROR(INDEX(INDIRECT('Relativer Bezug Linienblatt'!$C$19),MATCH($B10,INDIRECT('Relativer Bezug Linienblatt'!$C$21),0),'Relativer Bezug Linienblatt'!C$26),"(n.a.)"),"") -> 9 | E10: =IF($B10>0,IFERROR(INDEX(INDIRECT('Relativer Bezug Linienblatt'!$C$19),MATCH($B10,INDIRECT('Relativer Bezug Linienblatt'!$C$21),0),'Relativer Bezug Linienblatt'!D$26),"(n.a.)"),"") -> (Nur Richtung A) | O10: =IF(AND(OR(G10="x",J10="x"),M10>0),1,0)+IF(AND(OR(H10="x",K10="x"),N10>0),1,0) -> 0 | P10: diese Spalten am Ende ebenfalls noch ausblenden
B11: 81097 | C11: Saanenmöser, Mösching | D11: =IF($B11>0,IFERROR(INDEX(INDIRECT('Relativer Bezug Linienblatt'!$C$19),MATCH($B11,INDIRECT('Relativer Bezug Linienblatt'!$C$21),0),'Relativer Bezug Linienblatt'!C$26),"(n.a.)"),"") -> 0 | E11: =IF($B11>0,IFERROR(INDEX(INDIRECT('Relativer Bezug Linienblatt'!$C$19),MATCH($B11,INDIRECT('Relativer Bezug Linienblatt'!$C$21),0),'Relativer Bezug Linienblatt'!D$26),"(n.a.)"),"") -> 0 | O11: =IF(AND(OR(G11="x",J11="x"),M11>0),1,0)+IF(AND(OR(H11="x",K11="x"),N11>0),1,0) -> 0
B12: 81098 | C12: Saanenmöser, Birkheimweg | D12: =IF($B12>0,IFERROR(INDEX(INDIRECT('Relativer Bezug Linienblatt'!$C$19),MATCH($B12,INDIRECT('Relativer Bezug Linienblatt'!$C$21),0),'Relativer Bezug Linienblatt'!C$26),"(n.a.)"),"") -> 0 | E12: =IF($B12>0,IFERROR(INDEX(INDIRECT('Relativer Bezug Linienblatt'!$C$19),MATCH($B12,INDIRECT('Relativer Bezug Linienblatt'!$C$21),0),'Relativer Bezug Linienblatt'!D$26),"(n.a.)"),"") -> 0 | O12: 0
B13: 79265 | C13: Schönried, Bahnhof | D13: =IF($B13>0,IFERROR(INDEX(INDIRECT('Relativer Bezug Linienblatt'!$C$19),MATCH($B13,INDIRECT('Relativer Bezug Linienblatt'!$C$21),0),'Relativer Bezug Linienblatt'!C$26),"(n.a.)"),"") -> 38.42857143 | E13: =IF($B13>0,IFERROR(INDEX(INDIRECT('Relativer Bezug Linienblatt'!$C$19),MATCH($B13,INDIRECT('Relativer Bezug Linienblatt'!$C$21),0),'Relativer Bezug Linienblatt'!D$26),"(n.a.)"),"") -> 40.28571429 | O13: 0
B14: 81356 | C14: Schönried, Schulhaus | D14: =IF($B14>0,IFERROR(INDEX(INDIRECT('Relativer Bezug Linienblatt'!$C$19),MATCH($B14,INDIRECT('Relativer Bezug Linienblatt'!$C$21),0),'Relativer Bezug Linienblatt'!C$26),"(n.a.)"),"") -> 13.42857143 | E14: =IF($B14>0,IFERROR(INDEX(INDIRECT('Relativer Bezug Linienblatt'!$C$19),MATCH($B14,INDIRECT('Relativer Bezug Linienblatt'!$C$21),0),'Relativer Bezug Linienblatt'!D$26),"(n.a.)"),"") -> 19.28571429 | O14: 0
B15: 81357 | C15: Saanen, Halten | D15: =IF($B15>0,IFERROR(INDEX(INDIRECT('Relativer Bezug Linienblatt'!$C$19),MATCH($B15,INDIRECT('Relativer Bezug Linienblatt'!$C$21),0),'Relativer Bezug Linienblatt'!C$26),"(n.a.)"),"") -> 1.857142857 | E15: =IF($B15>0,IFERROR(INDEX(INDIRECT('Relativer Bezug Linienblatt'!$C$19),MATCH($B15,INDIRECT('Relativer Bezug Linienblatt'!$C$21),0),'Relativer Bezug Linienblatt'!D$26),"(n.a.)"),"") -> 3.714285714 | O15: 0
B16: 79264 | C16: Saanen, Steigenberger | D16: =IF($B16>0,IFERROR(INDEX(INDIRECT('Relativer Bezug Linienblatt'!$C$19),MATCH($B16,INDIRECT('Relativer Bezug Linienblatt'!$C$21),0),'Relativer Bezug Linienblatt'!C$26),"(n.a.)"),"") -> 14 | E16: =IF($B16>0,IFERROR(INDEX(INDIRECT('Relativer Bezug Linienblatt'!$C$19),MATCH($B16,INDIRECT('Relativer Bezug Linienblatt'!$C$21),0),'Relativer Bezug Linienblatt'!D$26),"(n.a.)"),"") -> 20 | O16: 0
B17: 81358 | C17: Saanen, Crestalta | D17: =IF($B17>0,IFERROR(INDEX(INDIRECT('Relativer Bezug Linienblatt'!$C$19),MATCH($B17,INDIRECT('Relativer Bezug Linienblatt'!$C$21),0),'Relativer Bezug Linienblatt'!C$26),"(n.a.)"),"") -> 5.428571429 | E17: =IF($B17>0,IFERROR(INDEX(INDIRECT('Relativer Bezug Linienblatt'!$C$19),MATCH($B17,INDIRECT('Relativer Bezug Linienblatt'!$C$21),0),'Relativer Bezug Linienblatt'!D$26),"(n.a.)"),"") -> (Nur Richtung A) | O17: 0
B18: 81359 | C18: Saanen, Gemeindeverwaltung | D18: =IF($B18>0,IFERROR(INDEX(INDIRECT('Relativer Bezug Linienblatt'!$C$19),MATCH($B18,INDIRECT('Relativer Bezug Linienblatt'!$C$21),0),'Relativer Bezug Linienblatt'!C$26),"(n.a.)"),"") -> 3.428571429 | E18: =IF($B18>0,IFERROR(INDEX(INDIRECT('Relativer Bezug Linienblatt'!$C$19),MATCH($B18,INDIRECT('Relativer Bezug Linienblatt'!$C$21),0),'Relativer Bezug Linienblatt'!D$26),"(n.a.)"),"") -> 4.285714286 | O18: 0
B19: 79267 | C19: Saanen, Oberdorf | D19: =IF($B19>0,IFERROR(INDEX(INDIRECT('Relativer Bezug Linienblatt'!$C$19),MATCH($B19,INDIRECT('Relativer Bezug Linienblatt'!$C$21),0),'Relativer Bezug Linienblatt'!C$26),"(n.a.)"),"") -> 26.71428571 | E19: =IF($B19>0,IFERROR(INDEX(INDIRECT('Relativer Bezug Linienblatt'!$C$19),MATCH($B19,INDIRECT('Relativer Bezug Linienblatt'!$C$21),0),'Relativer Bezug Linienblatt'!D$26),"(n.a.)"),"") -> 41.42857143 | O19: 0
B20: 79261 | C20: Saanen, Bahnhof | D20: =IF($B20>0,IFERROR(INDEX(INDIRECT('Relativer Bezug Linienblatt'!$C$19),MATCH($B20,INDIRECT('Relativer Bezug Linienblatt'!$C$21),0),'Relativer Bezug Linienblatt'!C$26),"(n.a.)"),"") -> 48.28571429 | E20: =IF($B20>0,IFERROR(INDEX(INDIRECT('Relativer Bezug Linienblatt'!$C$19),MATCH($B20,INDIRECT('Relativer Bezug Linienblatt'!$C$21),0),'Relativer Bezug Linienblatt'!D$26),"(n.a.)"),"") -> 35.42857143 | O20: 0
B21: 79268 | C21: Saanen, Schwimmbad | D21: =IF($B21>0,IFERROR(INDEX(INDIRECT('Relativer Bezug Linienblatt'!$C$19),MATCH($B21,INDIRECT('Relativer Bezug Linienblatt'!$C$21),0),'Relativer Bezug Linienblatt'!C$26),"(n.a.)"),"") -> 7.571428571 | E21: =IF($B21>0,IFERROR(INDEX(INDIRECT('Relativer Bezug Linienblatt'!$C$19),MATCH($B21,INDIRECT('Relativer Bezug Linienblatt'!$C$21),0),'Relativer Bezug Linienblatt'!D$26),"(n.a.)"),"") -> 8.285714286 | O21: 0
B22: 79270 | C22: Saanen, Bellerivestrasse | D22: =IF($B22>0,IFERROR(INDEX(INDIRECT('Relativer Bezug Linienblatt'!$C$19),MATCH($B22,INDIRECT('Relativer Bezug Linienblatt'!$C$21),0),'Relativer Bezug Linienblatt'!C$26),"(n.a.)"),"") -> 55 | E22: =IF($B22>0,IFERROR(INDEX(INDIRECT('Relativer Bezug Linienblatt'!$C$19),MATCH($B22,INDIRECT('Relativer Bezug Linienblatt'!$C$21),0),'Relativer Bezug Linienblatt'!D$26),"(n.a.)"),"") -> 28.85714286 | O22: 0
B23: 79269 | C23: Saanen, Wyssmülleri | D23: =IF($B23>0,IFERROR(INDEX(INDIRECT('Relativer Bezug Linienblatt'!$C$19),MATCH($B23,INDIRECT('Relativer Bezug Linienblatt'!$C$21),0),'Relativer Bezug Linienblatt'!C$26),"(n.a.)"),"") -> 10.42857143 | E23: =IF($B23>0,IFERROR(INDEX(INDIRECT('Relativer Bezug Linienblatt'!$C$19),MATCH($B23,INDIRECT('Relativer Bezug Linienblatt'!$C$21),0),'Relativer Bezug Linienblatt'!D$26),"(n.a.)"),"") -> 8.428571429 | O23: 0
B24: 79271 | C24: Gstaad, Grubenstrasse | D24: =IF($B24>0,IFERROR(INDEX(INDIRECT('Relativer Bezug Linienblatt'!$C$19),MATCH($B24,INDIRECT('Relativer Bezug Linienblatt'!$C$21),0),'Relativer Bezug Linienblatt'!C$26),"(n.a.)"),"") -> (Nur Richtung B) | E24: =IF($B24>0,IFERROR(INDEX(INDIRECT('Relativer Bezug Linienblatt'!$C$19),MATCH($B24,INDIRECT('Relativer Bezug Linienblatt'!$C$21),0),'Relativer Bezug Linienblatt'!D$26),"(n.a.)"),"") -> 2.857142857 | O24: 0
B25: 81360 | C25: Gstaad, Unter-Gstaad | D25: =IF($B25>0,IFERROR(INDEX(INDIRECT('Relativer Bezug Linienblatt'!$C$19),MATCH($B25,INDIRECT('Relativer Bezug Linienblatt'!$C$21),0),'Relativer Bezug Linienblatt'!C$26),"(n.a.)"),"") -> 25.71428571 | E25: =IF($B25>0,IFERROR(INDEX(INDIRECT('Relativer Bezug Linienblatt'!$C$19),MATCH($B25,INDIRECT('Relativer Bezug Linienblatt'!$C$21),0),'Relativer Bezug Linienblatt'!D$26),"(n.a.)"),"") -> 25.57142857 | O25: 0
B26: 71264 | C26: Gstaad, Bahnhof | D26: =IF($B26>0,IFERROR(INDEX(INDIRECT('Relativer Bezug Linienblatt'!$C$19),MATCH($B26,INDIRECT('Relativer Bezug Linienblatt'!$C$21),0),'Relativer Bezug Linienblatt'!C$26),"(n.a.)"),"") -> 242.1428571 | E26: =IF($B26>0,IFERROR(INDEX(INDIRECT('Relativer Bezug Linienblatt'!$C$19),MATCH($B26,INDIRECT('Relativer Bezug Linienblatt'!$C$21),0),'Relativer Bezug Linienblatt'!D$26),"(n.a.)"),"") -> 209.2857143 | O26: 0
B27: 81187 | C27: Gstaad, Sportzentrum | D27: =IF($B27>0,IFERROR(INDEX(INDIRECT('Relativer Bezug Linienblatt'!$C$19),MATCH($B27,INDIRECT('Relativer Bezug Linienblatt'!$C$21),0),'Relativer Bezug Linienblatt'!C$26),"(n.a.)"),"") -> 8.714285714 | E27: =IF($B27>0,IFERROR(INDEX(INDIRECT('Relativer Bezug Linienblatt'!$C$19),MATCH($B27,INDIRECT('Relativer Bezug Linienblatt'!$C$21),0),'Relativer Bezug Linienblatt'!D$26),"(n.a.)"),"") -> 8.428571429 | O27: 0
B28: 81952 | C28: Gstaad, Rütti Schulhaus | D28: =IF($B28>0,IFERROR(INDEX(INDIRECT('Relativer Bezug Linienblatt'!$C$19),MATCH($B28,INDIRECT('Relativer Bezug Linienblatt'!$C$21),0),'Relativer Bezug Linienblatt'!C$26),"(n.a.)"),"") -> 3.714285714 | E28: =IF($B28>0,IFERROR(INDEX(INDIRECT('Relativer Bezug Linienblatt'!$C$19),MATCH($B28,INDIRECT('Relativer Bezug Linienblatt'!$C$21),0),'Relativer Bezug Linienblatt'!D$26),"(n.a.)"),"") -> 7.428571429 | O28: 0
B29: 79277 | C29: Gstaad, Eggli | D29: =IF($B29>0,IFERROR(INDEX(INDIRECT('Relativer Bezug Linienblatt'!$C$19),MATCH($B29,INDIRECT('Relativer Bezug Linienblatt'!$C$21),0),'Relativer Bezug Linienblatt'!C$26),"(n.a.)"),"") -> 9 | E29: =IF($B29>0,IFERROR(INDEX(INDIRECT('Relativer Bezug Linienblatt'!$C$19),MATCH($B29,INDIRECT('Relativer Bezug Linienblatt'!$C$21),0),'Relativer Bezug Linienblatt'!D$26),"(n.a.)"),"") -> 11.57142857 | O29: 0
B30: 1329 | C30: Gstaad, Wispile | D30: =IF($B30>0,IFERROR(INDEX(INDIRECT('Relativer Bezug Linienblatt'!$C$19),MATCH($B30,INDIRECT('Relativer Bezug Linienblatt'!$C$21),0),'Relativer Bezug Linienblatt'!C$26),"(n.a.)"),"") -> 10.57142857 | E30: =IF($B30>0,IFERROR(INDEX(INDIRECT('Relativer Bezug Linienblatt'!$C$19),MATCH($B30,INDIRECT('Relativer Bezug Linienblatt'!$C$21),0),'Relativer Bezug Linienblatt'!D$26),"(n.a.)"),"") -> 11.85714286 | O30: 0
B31: 71266 | C31: Grund b. Gstaad, Moosfang | D31: =IF($B31>0,IFERROR(INDEX(INDIRECT('Relativer Bezug Linienblatt'!$C$19),MATCH($B31,INDIRECT('Relativer Bezug Linienblatt'!$C$21),0),'Relativer Bezug Linienblatt'!C$26),"(n.a.)"),"") -> 2.714285714 | E31: =IF($B31>0,IFERROR(INDEX(INDIRECT('Relativer Bezug Linienblatt'!$C$19),MATCH($B31,INDIRECT('Relativer Bezug Linienblatt'!$C$21),0),'Relativer Bezug Linienblatt'!D$26),"(n.a.)"),"") -> 2.857142857 | O31: 0
B32: 71267 | C32: Grund b. Gstaad,Moosfangbrücke | D32: =IF($B32>0,IFERROR(INDEX(INDIRECT('Relativer Bezug Linienblatt'!$C$19),MATCH($B32,INDIRECT('Relativer Bezug Linienblatt'!$C$21),0),'Relativer Bezug Linienblatt'!C$26),"(n.a.)"),"") -> 6.285714286 | E32: =IF($B32>0,IFERROR(INDEX(INDIRECT('Relativer Bezug Linienblatt'!$C$19),MATCH($B32,INDIRECT('Relativer Bezug Linienblatt'!$C$21),0),'Relativer Bezug Linienblatt'!D$26),"(n.a.)"),"") -> 9.428571429 | O32: 0
B33: 71268 | C33: Grund b. Gstaad, Lädeli | D33: =IF($B33>0,IFERROR(INDEX(INDIRECT('Relativer Bezug Linienblatt'!$C$19),MATCH($B33,INDIRECT('Relativer Bezug Linienblatt'!$C$21),0),'Relativer Bezug Linienblatt'!C$26),"(n.a.)"),"") -> 4.285714286 | E33: =IF($B33>0,IFERROR(INDEX(INDIRECT('Relativer Bezug Linienblatt'!$C$19),MATCH($B33,INDIRECT('Relativer Bezug Linienblatt'!$C$21),0),'Relativer Bezug Linienblatt'!D$26),"(n.a.)"),"") -> 5.285714286 | O33: 0
B34: 71269 | C34: Grund b. Gstaad, Post | D34: =IF($B34>0,IFERROR(INDEX(INDIRECT('Relativer Bezug Linienblatt'!$C$19),MATCH($B34,INDIRECT('Relativer Bezug Linienblatt'!$C$21),0),'Relativer Bezug Linienblatt'!C$26),"(n.a.)"),"") -> 6 | E34: =IF($B34>0,IFERROR(INDEX(INDIRECT('Relativer Bezug Linienblatt'!$C$19),MATCH($B34,INDIRECT('Relativer Bezug Linienblatt'!$C$21),0),'Relativer Bezug Linienblatt'!D$26),"(n.a.)"),"") -> 6.714285714 | O34: 0
B35: 71270 | C35: Grund b. Gstaad, Klösterli | D35: =IF($B35>0,IFERROR(INDEX(INDIRECT('Relativer Bezug Linienblatt'!$C$19),MATCH($B35,INDIRECT('Relativer Bezug Linienblatt'!$C$21),0),'Relativer Bezug Linienblatt'!C$26),"(n.a.)"),"") -> 4.571428571 | E35: =IF($B35>0,IFERROR(INDEX(INDIRECT('Relativer Bezug Linienblatt'!$C$19),MATCH($B35,INDIRECT('Relativer Bezug Linienblatt'!$C$21),0),'Relativer Bezug Linienblatt'!D$26),"(n.a.)"),"") -> 5.428571429 | O35: 0
B36: 71271 | C36: Grund b. Gstaad, Grundbrücke | D36: =IF($B36>0,IFERROR(INDEX(INDIRECT('Relativer Bezug Linienblatt'!$C$19),MATCH($B36,INDIRECT('Relativer Bezug Linienblatt'!$C$21),0),'Relativer Bezug Linienblatt'!C$26),"(n.a.)"),"") -> 1.714285714 | E36: =IF($B36>0,IFERROR(INDEX(INDIRECT('Relativer Bezug Linienblatt'!$C$19),MATCH($B36,INDIRECT('Relativer Bezug Linienblatt'!$C$21),0),'Relativer Bezug Linienblatt'!D$26),"(n.a.)"),"") -> 0.1428571429 | O36: 0
B37: 1771 | C37: Feutersoey, Dorf | D37: =IF($B37>0,IFERROR(INDEX(INDIRECT('Relativer Bezug Linienblatt'!$C$19),MATCH($B37,INDIRECT('Relativer Bezug Linienblatt'!$C$21),0),'Relativer Bezug Linienblatt'!C$26),"(n.a.)"),"") -> 32.14285714 | E37: =IF($B37>0,IFERROR(INDEX(INDIRECT('Relativer Bezug Linienblatt'!$C$19),MATCH($B37,INDIRECT('Relativer Bezug Linienblatt'!$C$21),0),'Relativer Bezug Linienblatt'!D$26),"(n.a.)"),"") -> 28.57142857 | O37: 0
B38: 77048 | C38: Feutersoey, Bühl | D38: =IF($B38>0,IFERROR(INDEX(INDIRECT('Relativer Bezug Linienblatt'!$C$19),MATCH($B38,INDIRECT('Relativer Bezug Linienblatt'!$C$21),0),'Relativer Bezug Linienblatt'!C$26),"(n.a.)"),"") -> 4.714285714 | E38: =IF($B38>0,IFERROR(INDEX(INDIRECT('Relativer Bezug Linienblatt'!$C$19),MATCH($B38,INDIRECT('Relativer Bezug Linienblatt'!$C$21),0),'Relativer Bezug Linienblatt'!D$26),"(n.a.)"),"") -> 5.571428571 | O38: 0
B39: 71272 | C39: Gsteig b. Gstaad, Saali | D39: =IF($B39>0,IFERROR(INDEX(INDIRECT('Relativer Bezug Linienblatt'!$C$19),MATCH($B39,INDIRECT('Relativer Bezug Linienblatt'!$C$21),0),'Relativer Bezug Linienblatt'!C$26),"(n.a.)"),"") -> 4.571428571 | E39: =IF($B39>0,IFERROR(INDEX(INDIRECT('Relativer Bezug Linienblatt'!$C$19),MATCH($B39,INDIRECT('Relativer Bezug Linienblatt'!$C$21),0),'Relativer Bezug Linienblatt'!D$26),"(n.a.)"),"") -> 5.571428571 | O39: 0
B40: 1769 | C40: Gsteig b. Gstaad, Post | D40: =IF($B40>0,IFERROR(INDEX(INDIRECT('Relativer Bezug Linienblatt'!$C$19),MATCH($B40,INDIRECT('Relativer Bezug Linienblatt'!$C$21),0),'Relativer Bezug Linienblatt'!C$26),"(n.a.)"),"") -> 60 | E40: =IF($B40>0,IFERROR(INDEX(INDIRECT('Relativer Bezug Linienblatt'!$C$19),MATCH($B40,INDIRECT('Relativer Bezug Linienblatt'!$C$21),0),'Relativer Bezug Linienblatt'!D$26),"(n.a.)"),"") -> 71.14285714 | O40: 0
B41: 71273 | C41: Gsteig b. Gstaad, Heitibrücke | D41: =IF($B41>0,IFERROR(INDEX(INDIRECT('Relativer Bezug Linienblatt'!$C$19),MATCH($B41,INDIRECT('Relativer Bezug Linienblatt'!$C$21),0),'Relativer Bezug Linienblatt'!C$26),"(n.a.)"),"") -> 8 | E41: =IF($B41>0,IFERROR(INDEX(INDIRECT('Relativer Bezug Linienblatt'!$C$19),MATCH($B41,INDIRECT('Relativer Bezug Linienblatt'!$C$21),0),'Relativer Bezug Linienblatt'!D$26),"(n.a.)"),"") -> 4.142857143 | O41: 0
B42: =IFERROR(INDIRECT(Rel_Bezug_Linienblatt&"C"&ROW(B42)-2),0) -> 71274 | C42: =IFERROR(INDIRECT(Rel_Bezug_Linienblatt&"b"&ROW(B42)-2),0) -> Gsteig b. Gstaad, Gründ | D42: =IF($B42>0,IFERROR(INDEX(INDIRECT('Relativer Bezug Linienblatt'!$C$19),MATCH($B42,INDIRECT('Relativer Bezug Linienblatt'!$C$21),0),'Relativer Bezug Linienblatt'!C$26),"(n.a.)"),"") -> 0.8571428571 | E42: =IF($B42>0,IFERROR(INDEX(INDIRECT('Relativer Bezug Linienblatt'!$C$19),MATCH($B42,INDIRECT('Relativer Bezug Linienblatt'!$C$21),0),'Relativer Bezug Linienblatt'!D$26),"(n.a.)"),"") -> 1 | O42: 0
B43: 82705 | C43: Gsteig b. Gstaad, Schönenboden | D43: =IF($B43>0,IFERROR(INDEX(INDIRECT('Relativer Bezug Linienblatt'!$C$19),MATCH($B43,INDIRECT('Relativer Bezug Linienblatt'!$C$21),0),'Relativer Bezug Linienblatt'!C$26),"(n.a.)"),"") -> 0 | E43: =IF($B43>0,IFERROR(INDEX(INDIRECT('Relativer Bezug Linienblatt'!$C$19),MATCH($B43,INDIRECT('Relativer Bezug Linienblatt'!$C$21),0),'Relativer Bezug Linienblatt'!D$26),"(n.a.)"),"") -> 0 | O43: 0
B44: 71275 | C44: Gsteig b. Gstaad, Höhe | D44: =IF($B44>0,IFERROR(INDEX(INDIRECT('Relativer Bezug Linienblatt'!$C$19),MATCH($B44,INDIRECT('Relativer Bezug Linienblatt'!$C$21),0),'Relativer Bezug Linienblatt'!C$26),"(n.a.)"),"") -> 0 | E44: =IF($B44>0,IFERROR(INDEX(INDIRECT('Relativer Bezug Linienblatt'!$C$19),MATCH($B44,INDIRECT('Relativer Bezug Linienblatt'!$C$21),0),'Relativer Bezug Linienblatt'!D$26),"(n.a.)"),"") -> 0.7142857143 | O44: 0
B45: 71276 | C45: Reusch, Talstation | D45: =IF($B45>0,IFERROR(INDEX(INDIRECT('Relativer Bezug Linienblatt'!$C$19),MATCH($B45,INDIRECT('Relativer Bezug Linienblatt'!$C$21),0),'Relativer Bezug Linienblatt'!C$26),"(n.a.)"),"") -> (Nur Richtung B) | E45: =IF($B45>0,IFERROR(INDEX(INDIRECT('Relativer Bezug Linienblatt'!$C$19),MATCH($B45,INDIRECT('Relativer Bezug Linienblatt'!$C$21),0),'Relativer Bezug Linienblatt'!D$26),"(n.a.)"),"") -> 7 | O45: 0
B46: 0 | C46: 0 | D46: =IF($B46>0,IFERROR(INDEX(INDIRECT('Relativer Bezug Linienblatt'!$C$19),MATCH($B46,INDIRECT('Relativer Bezug Linienblatt'!$C$21),0),'Relativer Bezug Linienblatt'!C$26),"(n.a.)"),"") ->  | E46: =IF($B46>0,IFERROR(INDEX(INDIRECT('Relativer Bezug Linienblatt'!$C$19),MATCH($B46,INDIRECT('Relativer Bezug Linienblatt'!$C$21),0),'Relativer Bezug Linienblatt'!D$26),"(n.a.)"),"") ->  | O46: 0
B47: 0 | C47: 0 | D47: =IF($B47>0,IFERROR(INDEX(INDIRECT('Relativer Bezug Linienblatt'!$C$19),MATCH($B47,INDIRECT('Relativer Bezug Linienblatt'!$C$21),0),'Relativer Bezug Linienblatt'!C$26),"(n.a.)"),"") ->  | E47: =IF($B47>0,IFERROR(INDEX(INDIRECT('Relativer Bezug Linienblatt'!$C$19),MATCH($B47,INDIRECT('Relativer Bezug Linienblatt'!$C$21),0),'Relativer Bezug Linienblatt'!D$26),"(n.a.)"),"") ->  | O47: 0
B48: 0 | C48: 0 | D48: =IF($B48>0,IFERROR(INDEX(INDIRECT('Relativer Bezug Linienblatt'!$C$19),MATCH($B48,INDIRECT('Relativer Bezug Linienblatt'!$C$21),0),'Relativer Bezug Linienblatt'!C$26),"(n.a.)"),"") ->  | E48: =IF($B48>0,IFERROR(INDEX(INDIRECT('Relativer Bezug Linienblatt'!$C$19),MATCH($B48,INDIRECT('Relativer Bezug Linienblatt'!$C$21),0),'Relativer Bezug Linienblatt'!D$26),"(n.a.)"),"") ->  | O48: 0
B49: 0 | C49: 0 | D49: =IF($B49>0,IFERROR(INDEX(INDIRECT('Relativer Bezug Linienblatt'!$C$19),MATCH($B49,INDIRECT('Relativer Bezug Linienblatt'!$C$21),0),'Relativer Bezug Linienblatt'!C$26),"(n.a.)"),"") ->  | E49: =IF($B49>0,IFERROR(INDEX(INDIRECT('Relativer Bezug Linienblatt'!$C$19),MATCH($B49,INDIRECT('Relativer Bezug Linienblatt'!$C$21),0),'Relativer Bezug Linienblatt'!D$26),"(n.a.)"),"") ->  | O49: 0
B50: 0 | C50: 0 | D50: =IF($B50>0,IFERROR(INDEX(INDIRECT('Relativer Bezug Linienblatt'!$C$19),MATCH($B50,INDIRECT('Relativer Bezug Linienblatt'!$C$21),0),'Relativer Bezug Linienblatt'!C$26),"(n.a.)"),"") ->  | E50: =IF($B50>0,IFERROR(INDEX(INDIRECT('Relativer Bezug Linienblatt'!$C$19),MATCH($B50,INDIRECT('Relativer Bezug Linienblatt'!$C$21),0),'Relativer Bezug Linienblatt'!D$26),"(n.a.)"),"") ->  | O50: 0
B51: 0 | C51: 0 | D51: =IF($B51>0,IFERROR(INDEX(INDIRECT('Relativer Bezug Linienblatt'!$C$19),MATCH($B51,INDIRECT('Relativer Bezug Linienblatt'!$C$21),0),'Relativer Bezug Linienblatt'!C$26),"(n.a.)"),"") ->  | E51: =IF($B51>0,IFERROR(INDEX(INDIRECT('Relativer Bezug Linienblatt'!$C$19),MATCH($B51,INDIRECT('Relativer Bezug Linienblatt'!$C$21),0),'Relativer Bezug Linienblatt'!D$26),"(n.a.)"),"") ->  | O51: 0
B52: 0 | C52: 0 | D52: =IF($B52>0,IFERROR(INDEX(INDIRECT('Relativer Bezug Linienblatt'!$C$19),MATCH($B52,INDIRECT('Relativer Bezug Linienblatt'!$C$21),0),'Relativer Bezug Linienblatt'!C$26),"(n.a.)"),"") ->  | E52: =IF($B52>0,IFERROR(INDEX(INDIRECT('Relativer Bezug Linienblatt'!$C$19),MATCH($B52,INDIRECT('Relativer Bezug Linienblatt'!$C$21),0),'Relativer Bezug Linienblatt'!D$26),"(n.a.)"),"") ->  | O52: 0
B53: 0 | C53: 0 | D53: =IF($B53>0,IFERROR(INDEX(INDIRECT('Relativer Bezug Linienblatt'!$C$19),MATCH($B53,INDIRECT('Relativer Bezug Linienblatt'!$C$21),0),'Relativer Bezug Linienblatt'!C$26),"(n.a.)"),"") ->  | E53: =IF($B53>0,IFERROR(INDEX(INDIRECT('Relativer Bezug Linienblatt'!$C$19),MATCH($B53,INDIRECT('Relativer Bezug Linienblatt'!$C$21),0),'Relativer Bezug Linienblatt'!D$26),"(n.a.)"),"") ->  | O53: 0
B54: 0 | C54: 0 | D54: =IF($B54>0,IFERROR(INDEX(INDIRECT('Relativer Bezug Linienblatt'!$C$19),MATCH($B54,INDIRECT('Relativer Bezug Linienblatt'!$C$21),0),'Relativer Bezug Linienblatt'!C$26),"(n.a.)"),"") ->  | E54: =IF($B54>0,IFERROR(INDEX(INDIRECT('Relativer Bezug Linienblatt'!$C$19),MATCH($B54,INDIRECT('Relativer Bezug Linienblatt'!$C$21),0),'Relativer Bezug Linienblatt'!D$26),"(n.a.)"),"") ->  | O54: 0
B55: 0 | C55: 0 | D55: =IF($B55>0,IFERROR(INDEX(INDIRECT('Relativer Bezug Linienblatt'!$C$19),MATCH($B55,INDIRECT('Relativer Bezug Linienblatt'!$C$21),0),'Relativer Bezug Linienblatt'!C$26),"(n.a.)"),"") ->  | E55: =IF($B55>0,IFERROR(INDEX(INDIRECT('Relativer Bezug Linienblatt'!$C$19),MATCH($B55,INDIRECT('Relativer Bezug Linienblatt'!$C$21),0),'Relativer Bezug Linienblatt'!D$26),"(n.a.)"),"") ->  | O55: 0
B56: 0 | C56: 0 | D56: =IF($B56>0,IFERROR(INDEX(INDIRECT('Relativer Bezug Linienblatt'!$C$19),MATCH($B56,INDIRECT('Relativer Bezug Linienblatt'!$C$21),0),'Relativer Bezug Linienblatt'!C$26),"(n.a.)"),"") ->  | E56: =IF($B56>0,IFERROR(INDEX(INDIRECT('Relativer Bezug Linienblatt'!$C$19),MATCH($B56,INDIRECT('Relativer Bezug Linienblatt'!$C$21),0),'Relativer Bezug Linienblatt'!D$26),"(n.a.)"),"") ->  | O56: 0
B57: 0 | C57: 0 | D57: =IF($B57>0,IFERROR(INDEX(INDIRECT('Relativer Bezug Linienblatt'!$C$19),MATCH($B57,INDIRECT('Relativer Bezug Linienblatt'!$C$21),0),'Relativer Bezug Linienblatt'!C$26),"(n.a.)"),"") ->  | E57: =IF($B57>0,IFERROR(INDEX(INDIRECT('Relativer Bezug Linienblatt'!$C$19),MATCH($B57,INDIRECT('Relativer Bezug Linienblatt'!$C$21),0),'Relativer Bezug Linienblatt'!D$26),"(n.a.)"),"") ->  | O57: 0
B58: 0 | C58: 0 | D58: =IF($B58>0,IFERROR(INDEX(INDIRECT('Relativer Bezug Linienblatt'!$C$19),MATCH($B58,INDIRECT('Relativer Bezug Linienblatt'!$C$21),0),'Relativer Bezug Linienblatt'!C$26),"(n.a.)"),"") ->  | E58: =IF($B58>0,IFERROR(INDEX(INDIRECT('Relativer Bezug Linienblatt'!$C$19),MATCH($B58,INDIRECT('Relativer Bezug Linienblatt'!$C$21),0),'Relativer Bezug Linienblatt'!D$26),"(n.a.)"),"") ->  | O58: 0
B59: 0 | C59: 0 | D59: =IF($B59>0,IFERROR(INDEX(INDIRECT('Relativer Bezug Linienblatt'!$C$19),MATCH($B59,INDIRECT('Relativer Bezug Linienblatt'!$C$21),0),'Relativer Bezug Linienblatt'!C$26),"(n.a.)"),"") ->  | E59: =IF($B59>0,IFERROR(INDEX(INDIRECT('Relativer Bezug Linienblatt'!$C$19),MATCH($B59,INDIRECT('Relativer Bezug Linienblatt'!$C$21),0),'Relativer Bezug Linienblatt'!D$26),"(n.a.)"),"") ->  | O59: 0
B60: 0 | C60: 0 | D60: =IF($B60>0,IFERROR(INDEX(INDIRECT('Relativer Bezug Linienblatt'!$C$19),MATCH($B60,INDIRECT('Relativer Bezug Linienblatt'!$C$21),0),'Relativer Bezug Linienblatt'!C$26),"(n.a.)"),"") ->  | E60: =IF($B60>0,IFERROR(INDEX(INDIRECT('Relativer Bezug Linienblatt'!$C$19),MATCH($B60,INDIRECT('Relativer Bezug Linienblatt'!$C$21),0),'Relativer Bezug Linienblatt'!D$26),"(n.a.)"),"") ->  | O60: 0
B61: 0 | C61: 0 | D61: =IF($B61>0,IFERROR(INDEX(INDIRECT('Relativer Bezug Linienblatt'!$C$19),MATCH($B61,INDIRECT('Relativer Bezug Linienblatt'!$C$21),0),'Relativer Bezug Linienblatt'!C$26),"(n.a.)"),"") ->  | E61: =IF($B61>0,IFERROR(INDEX(INDIRECT('Relativer Bezug Linienblatt'!$C$19),MATCH($B61,INDIRECT('Relativer Bezug Linienblatt'!$C$21),0),'Relativer Bezug Linienblatt'!D$26),"(n.a.)"),"") ->  | O61: 0
B62: 0 | C62: 0 | D62: =IF($B62>0,IFERROR(INDEX(INDIRECT('Relativer Bezug Linienblatt'!$C$19),MATCH($B62,INDIRECT('Relativer Bezug Linienblatt'!$C$21),0),'Relativer Bezug Linienblatt'!C$26),"(n.a.)"),"") ->  | E62: =IF($B62>0,IFERROR(INDEX(INDIRECT('Relativer Bezug Linienblatt'!$C$19),MATCH($B62,INDIRECT('Relativer Bezug Linienblatt'!$C$21),0),'Relativer Bezug Linienblatt'!D$26),"(n.a.)"),"") ->  | O62: 0
B63: 0 | C63: 0 | D63: =IF($B63>0,IFERROR(INDEX(INDIRECT('Relativer Bezug Linienblatt'!$C$19),MATCH($B63,INDIRECT('Relativer Bezug Linienblatt'!$C$21),0),'Relativer Bezug Linienblatt'!C$26),"(n.a.)"),"") ->  | E63: =IF($B63>0,IFERROR(INDEX(INDIRECT('Relativer Bezug Linienblatt'!$C$19),MATCH($B63,INDIRECT('Relativer Bezug Linienblatt'!$C$21),0),'Relativer Bezug Linienblatt'!D$26),"(n.a.)"),"") ->  | O63: 0
B64: 0 | C64: 0 | D64: =IF($B64>0,IFERROR(INDEX(INDIRECT('Relativer Bezug Linienblatt'!$C$19),MATCH($B64,INDIRECT('Relativer Bezug Linienblatt'!$C$21),0),'Relativer Bezug Linienblatt'!C$26),"(n.a.)"),"") ->  | E64: =IF($B64>0,IFERROR(INDEX(INDIRECT('Relativer Bezug Linienblatt'!$C$19),MATCH($B64,INDIRECT('Relativer Bezug Linienblatt'!$C$21),0),'Relativer Bezug Linienblatt'!D$26),"(n.a.)"),"") ->  | O64: 0
B65: 0 | C65: 0 | D65: =IF($B65>0,IFERROR(INDEX(INDIRECT('Relativer Bezug Linienblatt'!$C$19),MATCH($B65,INDIRECT('Relativer Bezug Linienblatt'!$C$21),0),'Relativer Bezug Linienblatt'!C$26),"(n.a.)"),"") ->  | E65: =IF($B65>0,IFERROR(INDEX(INDIRECT('Relativer Bezug Linienblatt'!$C$19),MATCH($B65,INDIRECT('Relativer Bezug Linienblatt'!$C$21),0),'Relativer Bezug Linienblatt'!D$26),"(n.a.)"),"") ->  | O65: 0
B66: 0 | C66: 0 | D66: =IF($B66>0,IFERROR(INDEX(INDIRECT('Relativer Bezug Linienblatt'!$C$19),MATCH($B66,INDIRECT('Relativer Bezug Linienblatt'!$C$21),0),'Relativer Bezug Linienblatt'!C$26),"(n.a.)"),"") ->  | E66: =IF($B66>0,IFERROR(INDEX(INDIRECT('Relativer Bezug Linienblatt'!$C$19),MATCH($B66,INDIRECT('Relativer Bezug Linienblatt'!$C$21),0),'Relativer Bezug Linienblatt'!D$26),"(n.a.)"),"") ->  | O66: 0
B67: 0 | C67: 0 | D67: =IF($B67>0,IFERROR(INDEX(INDIRECT('Relativer Bezug Linienblatt'!$C$19),MATCH($B67,INDIRECT('Relativer Bezug Linienblatt'!$C$21),0),'Relativer Bezug Linienblatt'!C$26),"(n.a.)"),"") ->  | E67: =IF($B67>0,IFERROR(INDEX(INDIRECT('Relativer Bezug Linienblatt'!$C$19),MATCH($B67,INDIRECT('Relativer Bezug Linienblatt'!$C$21),0),'Relativer Bezug Linienblatt'!D$26),"(n.a.)"),"") ->  | O67: 0
B68: 0 | C68: 0 | D68: =IF($B68>0,IFERROR(INDEX(INDIRECT('Relativer Bezug Linienblatt'!$C$19),MATCH($B68,INDIRECT('Relativer Bezug Linienblatt'!$C$21),0),'Relativer Bezug Linienblatt'!C$26),"(n.a.)"),"") ->  | E68: =IF($B68>0,IFERROR(INDEX(INDIRECT('Relativer Bezug Linienblatt'!$C$19),MATCH($B68,INDIRECT('Relativer Bezug Linienblatt'!$C$21),0),'Relativer Bezug Linienblatt'!D$26),"(n.a.)"),"") ->  | O68: 0
B69: 0 | C69: 0 | D69: =IF($B69>0,IFERROR(INDEX(INDIRECT('Relativer Bezug Linienblatt'!$C$19),MATCH($B69,INDIRECT('Relativer Bezug Linienblatt'!$C$21),0),'Relativer Bezug Linienblatt'!C$26),"(n.a.)"),"") ->  | E69: =IF($B69>0,IFERROR(INDEX(INDIRECT('Relativer Bezug Linienblatt'!$C$19),MATCH($B69,INDIRECT('Relativer Bezug Linienblatt'!$C$21),0),'Relativer Bezug Linienblatt'!D$26),"(n.a.)"),"") ->  | O69: 0
B70: 0 | C70: 0 | D70: =IF($B70>0,IFERROR(INDEX(INDIRECT('Relativer Bezug Linienblatt'!$C$19),MATCH($B70,INDIRECT('Relativer Bezug Linienblatt'!$C$21),0),'Relativer Bezug Linienblatt'!C$26),"(n.a.)"),"") ->  | E70: =IF($B70>0,IFERROR(INDEX(INDIRECT('Relativer Bezug Linienblatt'!$C$19),MATCH($B70,INDIRECT('Relativer Bezug Linienblatt'!$C$21),0),'Relativer Bezug Linienblatt'!D$26),"(n.a.)"),"") ->  | O70: 0
B71: 0 | C71: 0 | D71: =IF($B71>0,IFERROR(INDEX(INDIRECT('Relativer Bezug Linienblatt'!$C$19),MATCH($B71,INDIRECT('Relativer Bezug Linienblatt'!$C$21),0),'Relativer Bezug Linienblatt'!C$26),"(n.a.)"),"") ->  | E71: =IF($B71>0,IFERROR(INDEX(INDIRECT('Relativer Bezug Linienblatt'!$C$19),MATCH($B71,INDIRECT('Relativer Bezug Linienblatt'!$C$21),0),'Relativer Bezug Linienblatt'!D$26),"(n.a.)"),"") ->  | O71: 0
B72: 0 | C72: 0 | D72: =IF($B72>0,IFERROR(INDEX(INDIRECT('Relativer Bezug Linienblatt'!$C$19),MATCH($B72,INDIRECT('Relativer Bezug Linienblatt'!$C$21),0),'Relativer Bezug Linienblatt'!C$26),"(n.a.)"),"") ->  | E72: =IF($B72>0,IFERROR(INDEX(INDIRECT('Relativer Bezug Linienblatt'!$C$19),MATCH($B72,INDIRECT('Relativer Bezug Linienblatt'!$C$21),0),'Relativer Bezug Linienblatt'!D$26),"(n.a.)"),"") ->  | O72: 0
B73: 0 | C73: 0 | D73: =IF($B73>0,IFERROR(INDEX(INDIRECT('Relativer Bezug Linienblatt'!$C$19),MATCH($B73,INDIRECT('Relativer Bezug Linienblatt'!$C$21),0),'Relativer Bezug Linienblatt'!C$26),"(n.a.)"),"") ->  | E73: =IF($B73>0,IFERROR(INDEX(INDIRECT('Relativer Bezug Linienblatt'!$C$19),MATCH($B73,INDIRECT('Relativer Bezug Linienblatt'!$C$21),0),'Relativer Bezug Linienblatt'!D$26),"(n.a.)"),"") ->  | O73: 0
B74: =IFERROR(INDIRECT(Rel_Bezug_Linienblatt&"C"&ROW(B74)-2),0) -> 0 | C74: =IFERROR(INDIRECT(Rel_Bezug_Linienblatt&"b"&ROW(B74)-2),0) -> 0 | D74: =IF($B74>0,IFERROR(INDEX(INDIRECT('Relativer Bezug Linienblatt'!$C$19),MATCH($B74,INDIRECT('Relativer Bezug Linienblatt'!$C$21),0),'Relativer Bezug Linienblatt'!C$26),"(n.a.)"),"") ->  | E74: =IF($B74>0,IFERROR(INDEX(INDIRECT('Relativer Bezug Linienblatt'!$C$19),MATCH($B74,INDIRECT('Relativer Bezug Linienblatt'!$C$21),0),'Relativer Bezug Linienblatt'!D$26),"(n.a.)"),"") ->  | O74: 0
B75: 0 | C75: 0 | D75: =IF($B75>0,IFERROR(INDEX(INDIRECT('Relativer Bezug Linienblatt'!$C$19),MATCH($B75,INDIRECT('Relativer Bezug Linienblatt'!$C$21),0),'Relativer Bezug Linienblatt'!C$26),"(n.a.)"),"") ->  | E75: =IF($B75>0,IFERROR(INDEX(INDIRECT('Relativer Bezug Linienblatt'!$C$19),MATCH($B75,INDIRECT('Relativer Bezug Linienblatt'!$C$21),0),'Relativer Bezug Linienblatt'!D$26),"(n.a.)"),"") ->  | O75: =IF(AND(OR(G75="x",J75="x"),M75>0),1,0)+IF(AND(OR(H75="x",K75="x"),N75>0),1,0) -> 0
B76: 0 | C76: 0 | D76: =IF($B76>0,IFERROR(INDEX(INDIRECT('Relativer Bezug Linienblatt'!$C$19),MATCH($B76,INDIRECT('Relativer Bezug Linienblatt'!$C$21),0),'Relativer Bezug Linienblatt'!C$26),"(n.a.)"),"") ->  | E76: =IF($B76>0,IFERROR(INDEX(INDIRECT('Relativer Bezug Linienblatt'!$C$19),MATCH($B76,INDIRECT('Relativer Bezug Linienblatt'!$C$21),0),'Relativer Bezug Linienblatt'!D$26),"(n.a.)"),"") ->  | O76: 0
B77: 0 | C77: 0 | D77: =IF($B77>0,IFERROR(INDEX(INDIRECT('Relativer Bezug Linienblatt'!$C$19),MATCH($B77,INDIRECT('Relativer Bezug Linienblatt'!$C$21),0),'Relativer Bezug Linienblatt'!C$26),"(n.a.)"),"") ->  | E77: =IF($B77>0,IFERROR(INDEX(INDIRECT('Relativer Bezug Linienblatt'!$C$19),MATCH($B77,INDIRECT('Relativer Bezug Linienblatt'!$C$21),0),'Relativer Bezug Linienblatt'!D$26),"(n.a.)"),"") ->  | O77: 0
B78: 0 | C78: 0 | D78: =IF($B78>0,IFERROR(INDEX(INDIRECT('Relativer Bezug Linienblatt'!$C$19),MATCH($B78,INDIRECT('Relativer Bezug Linienblatt'!$C$21),0),'Relativer Bezug Linienblatt'!C$26),"(n.a.)"),"") ->  | E78: =IF($B78>0,IFERROR(INDEX(INDIRECT('Relativer Bezug Linienblatt'!$C$19),MATCH($B78,INDIRECT('Relativer Bezug Linienblatt'!$C$21),0),'Relativer Bezug Linienblatt'!D$26),"(n.a.)"),"") ->  | O78: 0
B79: 0 | C79: 0 | D79: =IF($B79>0,IFERROR(INDEX(INDIRECT('Relativer Bezug Linienblatt'!$C$19),MATCH($B79,INDIRECT('Relativer Bezug Linienblatt'!$C$21),0),'Relativer Bezug Linienblatt'!C$26),"(n.a.)"),"") ->  | E79: =IF($B79>0,IFERROR(INDEX(INDIRECT('Relativer Bezug Linienblatt'!$C$19),MATCH($B79,INDIRECT('Relativer Bezug Linienblatt'!$C$21),0),'Relativer Bezug Linienblatt'!D$26),"(n.a.)"),"") ->  | O79: 0
B80: 0 | C80: 0 | D80: =IF($B80>0,IFERROR(INDEX(INDIRECT('Relativer Bezug Linienblatt'!$C$19),MATCH($B80,INDIRECT('Relativer Bezug Linienblatt'!$C$21),0),'Relativer Bezug Linienblatt'!C$26),"(n.a.)"),"") ->  | E80: =IF($B80>0,IFERROR(INDEX(INDIRECT('Relativer Bezug Linienblatt'!$C$19),MATCH($B80,INDIRECT('Relativer Bezug Linienblatt'!$C$21),0),'Relativer Bezug Linienblatt'!D$26),"(n.a.)"),"") ->  | O80: 0
B81: 0 | C81: 0 | D81: =IF($B81>0,IFERROR(INDEX(INDIRECT('Relativer Bezug Linienblatt'!$C$19),MATCH($B81,INDIRECT('Relativer Bezug Linienblatt'!$C$21),0),'Relativer Bezug Linienblatt'!C$26),"(n.a.)"),"") ->  | E81: =IF($B81>0,IFERROR(INDEX(INDIRECT('Relativer Bezug Linienblatt'!$C$19),MATCH($B81,INDIRECT('Relativer Bezug Linienblatt'!$C$21),0),'Relativer Bezug Linienblatt'!D$26),"(n.a.)"),"") ->  | O81: 0
B82: 0 | C82: 0 | D82: =IF($B82>0,IFERROR(INDEX(INDIRECT('Relativer Bezug Linienblatt'!$C$19),MATCH($B82,INDIRECT('Relativer Bezug Linienblatt'!$C$21),0),'Relativer Bezug Linienblatt'!C$26),"(n.a.)"),"") ->  | E82: =IF($B82>0,IFERROR(INDEX(INDIRECT('Relativer Bezug Linienblatt'!$C$19),MATCH($B82,INDIRECT('Relativer Bezug Linienblatt'!$C$21),0),'Relativer Bezug Linienblatt'!D$26),"(n.a.)"),"") ->  | O82: 0
B83: 0 | C83: 0 | D83: =IF($B83>0,IFERROR(INDEX(INDIRECT('Relativer Bezug Linienblatt'!$C$19),MATCH($B83,INDIRECT('Relativer Bezug Linienblatt'!$C$21),0),'Relativer Bezug Linienblatt'!C$26),"(n.a.)"),"") ->  | E83: =IF($B83>0,IFERROR(INDEX(INDIRECT('Relativer Bezug Linienblatt'!$C$19),MATCH($B83,INDIRECT('Relativer Bezug Linienblatt'!$C$21),0),'Relativer Bezug Linienblatt'!D$26),"(n.a.)"),"") ->  | O83: 0
B84: 0 | C84: 0 | D84: =IF($B84>0,IFERROR(INDEX(INDIRECT('Relativer Bezug Linienblatt'!$C$19),MATCH($B84,INDIRECT('Relativer Bezug Linienblatt'!$C$21),0),'Relativer Bezug Linienblatt'!C$26),"(n.a.)"),"") ->  | E84: =IF($B84>0,IFERROR(INDEX(INDIRECT('Relativer Bezug Linienblatt'!$C$19),MATCH($B84,INDIRECT('Relativer Bezug Linienblatt'!$C$21),0),'Relativer Bezug Linienblatt'!D$26),"(n.a.)"),"") ->  | O84: 0
B85: 0 | C85: 0 | D85: =IF($B85>0,IFERROR(INDEX(INDIRECT('Relativer Bezug Linienblatt'!$C$19),MATCH($B85,INDIRECT('Relativer Bezug Linienblatt'!$C$21),0),'Relativer Bezug Linienblatt'!C$26),"(n.a.)"),"") ->  | E85: =IF($B85>0,IFERROR(INDEX(INDIRECT('Relativer Bezug Linienblatt'!$C$19),MATCH($B85,INDIRECT('Relativer Bezug Linienblatt'!$C$21),0),'Relativer Bezug Linienblatt'!D$26),"(n.a.)"),"") ->  | O85: 0
B86: 0 | C86: 0 | D86: =IF($B86>0,IFERROR(INDEX(INDIRECT('Relativer Bezug Linienblatt'!$C$19),MATCH($B86,INDIRECT('Relativer Bezug Linienblatt'!$C$21),0),'Relativer Bezug Linienblatt'!C$26),"(n.a.)"),"") ->  | E86: =IF($B86>0,IFERROR(INDEX(INDIRECT('Relativer Bezug Linienblatt'!$C$19),MATCH($B86,INDIRECT('Relativer Bezug Linienblatt'!$C$21),0),'Relativer Bezug Linienblatt'!D$26),"(n.a.)"),"") ->  | O86: 0
B87: 0 | C87: 0 | D87: =IF($B87>0,IFERROR(INDEX(INDIRECT('Relativer Bezug Linienblatt'!$C$19),MATCH($B87,INDIRECT('Relativer Bezug Linienblatt'!$C$21),0),'Relativer Bezug Linienblatt'!C$26),"(n.a.)"),"") ->  | E87: =IF($B87>0,IFERROR(INDEX(INDIRECT('Relativer Bezug Linienblatt'!$C$19),MATCH($B87,INDIRECT('Relativer Bezug Linienblatt'!$C$21),0),'Relativer Bezug Linienblatt'!D$26),"(n.a.)"),"") ->  | O87: 0
B88: 0 | C88: 0 | D88: =IF($B88>0,IFERROR(INDEX(INDIRECT('Relativer Bezug Linienblatt'!$C$19),MATCH($B88,INDIRECT('Relativer Bezug Linienblatt'!$C$21),0),'Relativer Bezug Linienblatt'!C$26),"(n.a.)"),"") ->  | E88: =IF($B88>0,IFERROR(INDEX(INDIRECT('Relativer Bezug Linienblatt'!$C$19),MATCH($B88,INDIRECT('Relativer Bezug Linienblatt'!$C$21),0),'Relativer Bezug Linienblatt'!D$26),"(n.a.)"),"") ->  | O88: 0
B89: 0 | C89: 0 | D89: =IF($B89>0,IFERROR(INDEX(INDIRECT('Relativer Bezug Linienblatt'!$C$19),MATCH($B89,INDIRECT('Relativer Bezug Linienblatt'!$C$21),0),'Relativer Bezug Linienblatt'!C$26),"(n.a.)"),"") ->  | E89: =IF($B89>0,IFERROR(INDEX(INDIRECT('Relativer Bezug Linienblatt'!$C$19),MATCH($B89,INDIRECT('Relativer Bezug Linienblatt'!$C$21),0),'Relativer Bezug Linienblatt'!D$26),"(n.a.)"),"") ->  | O89: 0
B90: 0 | C90: 0 | D90: =IF($B90>0,IFERROR(INDEX(INDIRECT('Relativer Bezug Linienblatt'!$C$19),MATCH($B90,INDIRECT('Relativer Bezug Linienblatt'!$C$21),0),'Relativer Bezug Linienblatt'!C$26),"(n.a.)"),"") ->  | E90: =IF($B90>0,IFERROR(INDEX(INDIRECT('Relativer Bezug Linienblatt'!$C$19),MATCH($B90,INDIRECT('Relativer Bezug Linienblatt'!$C$21),0),'Relativer Bezug Linienblatt'!D$26),"(n.a.)"),"") ->  | O90: 0
B91: 0 | C91: 0 | D91: =IF($B91>0,IFERROR(INDEX(INDIRECT('Relativer Bezug Linienblatt'!$C$19),MATCH($B91,INDIRECT('Relativer Bezug Linienblatt'!$C$21),0),'Relativer Bezug Linienblatt'!C$26),"(n.a.)"),"") ->  | E91: =IF($B91>0,IFERROR(INDEX(INDIRECT('Relativer Bezug Linienblatt'!$C$19),MATCH($B91,INDIRECT('Relativer Bezug Linienblatt'!$C$21),0),'Relativer Bezug Linienblatt'!D$26),"(n.a.)"),"") ->  | O91: 0
B92: 0 | C92: 0 | D92: =IF($B92>0,IFERROR(INDEX(INDIRECT('Relativer Bezug Linienblatt'!$C$19),MATCH($B92,INDIRECT('Relativer Bezug Linienblatt'!$C$21),0),'Relativer Bezug Linienblatt'!C$26),"(n.a.)"),"") ->  | E92: =IF($B92>0,IFERROR(INDEX(INDIRECT('Relativer Bezug Linienblatt'!$C$19),MATCH($B92,INDIRECT('Relativer Bezug Linienblatt'!$C$21),0),'Relativer Bezug Linienblatt'!D$26),"(n.a.)"),"") ->  | O92: 0
B93: 0 | C93: 0 | D93: =IF($B93>0,IFERROR(INDEX(INDIRECT('Relativer Bezug Linienblatt'!$C$19),MATCH($B93,INDIRECT('Relativer Bezug Linienblatt'!$C$21),0),'Relativer Bezug Linienblatt'!C$26),"(n.a.)"),"") ->  | E93: =IF($B93>0,IFERROR(INDEX(INDIRECT('Relativer Bezug Linienblatt'!$C$19),MATCH($B93,INDIRECT('Relativer Bezug Linienblatt'!$C$21),0),'Relativer Bezug Linienblatt'!D$26),"(n.a.)"),"") ->  | O93: 0
B94: 0 | C94: 0 | D94: =IF($B94>0,IFERROR(INDEX(INDIRECT('Relativer Bezug Linienblatt'!$C$19),MATCH($B94,INDIRECT('Relativer Bezug Linienblatt'!$C$21),0),'Relativer Bezug Linienblatt'!C$26),"(n.a.)"),"") ->  | E94: =IF($B94>0,IFERROR(INDEX(INDIRECT('Relativer Bezug Linienblatt'!$C$19),MATCH($B94,INDIRECT('Relativer Bezug Linienblatt'!$C$21),0),'Relativer Bezug Linienblatt'!D$26),"(n.a.)"),"") ->  | O94: 0
B95: 0 | C95: 0 | D95: =IF($B95>0,IFERROR(INDEX(INDIRECT('Relativer Bezug Linienblatt'!$C$19),MATCH($B95,INDIRECT('Relativer Bezug Linienblatt'!$C$21),0),'Relativer Bezug Linienblatt'!C$26),"(n.a.)"),"") ->  | E95: =IF($B95>0,IFERROR(INDEX(INDIRECT('Relativer Bezug Linienblatt'!$C$19),MATCH($B95,INDIRECT('Relativer Bezug Linienblatt'!$C$21),0),'Relativer Bezug Linienblatt'!D$26),"(n.a.)"),"") ->  | O95: 0
B96: 0 | C96: 0 | D96: =IF($B96>0,IFERROR(INDEX(INDIRECT('Relativer Bezug Linienblatt'!$C$19),MATCH($B96,INDIRECT('Relativer Bezug Linienblatt'!$C$21),0),'Relativer Bezug Linienblatt'!C$26),"(n.a.)"),"") ->  | E96: =IF($B96>0,IFERROR(INDEX(INDIRECT('Relativer Bezug Linienblatt'!$C$19),MATCH($B96,INDIRECT('Relativer Bezug Linienblatt'!$C$21),0),'Relativer Bezug Linienblatt'!D$26),"(n.a.)"),"") ->  | O96: 0
B97: 0 | C97: 0 | D97: =IF($B97>0,IFERROR(INDEX(INDIRECT('Relativer Bezug Linienblatt'!$C$19),MATCH($B97,INDIRECT('Relativer Bezug Linienblatt'!$C$21),0),'Relativer Bezug Linienblatt'!C$26),"(n.a.)"),"") ->  | E97: =IF($B97>0,IFERROR(INDEX(INDIRECT('Relativer Bezug Linienblatt'!$C$19),MATCH($B97,INDIRECT('Relativer Bezug Linienblatt'!$C$21),0),'Relativer Bezug Linienblatt'!D$26),"(n.a.)"),"") ->  | O97: 0
B98: 0 | C98: 0 | D98: =IF($B98>0,IFERROR(INDEX(INDIRECT('Relativer Bezug Linienblatt'!$C$19),MATCH($B98,INDIRECT('Relativer Bezug Linienblatt'!$C$21),0),'Relativer Bezug Linienblatt'!C$26),"(n.a.)"),"") ->  | E98: =IF($B98>0,IFERROR(INDEX(INDIRECT('Relativer Bezug Linienblatt'!$C$19),MATCH($B98,INDIRECT('Relativer Bezug Linienblatt'!$C$21),0),'Relativer Bezug Linienblatt'!D$26),"(n.a.)"),"") ->  | O98: 0
B99: 0 | C99: 0 | D99: =IF($B99>0,IFERROR(INDEX(INDIRECT('Relativer Bezug Linienblatt'!$C$19),MATCH($B99,INDIRECT('Relativer Bezug Linienblatt'!$C$21),0),'Relativer Bezug Linienblatt'!C$26),"(n.a.)"),"") ->  | E99: =IF($B99>0,IFERROR(INDEX(INDIRECT('Relativer Bezug Linienblatt'!$C$19),MATCH($B99,INDIRECT('Relativer Bezug Linienblatt'!$C$21),0),'Relativer Bezug Linienblatt'!D$26),"(n.a.)"),"") ->  | O99: 0
B100: 0 | C100: 0 | D100: =IF($B100>0,IFERROR(INDEX(INDIRECT('Relativer Bezug Linienblatt'!$C$19),MATCH($B100,INDIRECT('Relativer Bezug Linienblatt'!$C$21),0),'Relativer Bezug Linienblatt'!C$26),"(n.a.)"),"") ->  | E100: =IF($B100>0,IFERROR(INDEX(INDIRECT('Relativer Bezug Linienblatt'!$C$19),MATCH($B100,INDIRECT('Relativer Bezug Linienblatt'!$C$21),0),'Relativer Bezug Linienblatt'!D$26),"(n.a.)"),"") ->  | O100: 0
B101: 0 | C101: 0 | D101: =IF($B101>0,IFERROR(INDEX(INDIRECT('Relativer Bezug Linienblatt'!$C$19),MATCH($B101,INDIRECT('Relativer Bezug Linienblatt'!$C$21),0),'Relativer Bezug Linienblatt'!C$26),"(n.a.)"),"") ->  | E101: =IF($B101>0,IFERROR(INDEX(INDIRECT('Relativer Bezug Linienblatt'!$C$19),MATCH($B101,INDIRECT('Relativer Bezug Linienblatt'!$C$21),0),'Relativer Bezug Linienblatt'!D$26),"(n.a.)"),"") ->  | O101: 0
B102: 0 | C102: 0 | E102: =IF($B102>0,IFERROR(VLOOKUP($B102,#REF!,COLUMN(#REF!)-COLUMN(#REF!)+1,0),"(n.a.)"),"") ->  | O102: 0
B103: 0 | C103: 0 | E103: =IF($B103>0,IFERROR(VLOOKUP($B103,#REF!,COLUMN(#REF!)-COLUMN(#REF!)+1,0),"(n.a.)"),"") ->  | O103: 0
B104: 0 | C104: 0 | E104: =IF($B104>0,IFERROR(VLOOKUP($B104,#REF!,COLUMN(#REF!)-COLUMN(#REF!)+1,0),"(n.a.)"),"") ->  | O104: 0
B105: 0 | C105: 0 | E105: =IF($B105>0,IFERROR(VLOOKUP($B105,#REF!,COLUMN(#REF!)-COLUMN(#REF!)+1,0),"(n.a.)"),"") ->  | O105: 0
B106: 0 | C106: =IFERROR(INDIRECT(Rel_Bezug_Linienblatt&"b"&ROW(B106)-2),0) -> 0 | E106: =IF($B106>0,IFERROR(VLOOKUP($B106,#REF!,COLUMN(#REF!)-COLUMN(#REF!)+1,0),"(n.a.)"),"") ->  | O106: 0
B107: 0 | C107: 0 | E107: =IF($B107>0,IFERROR(VLOOKUP($B107,#REF!,COLUMN(#REF!)-COLUMN(#REF!)+1,0),"(n.a.)"),"") ->  | O107: 0
B108: 0 | C108: 0 | E108: =IF($B108>0,IFERROR(VLOOKUP($B108,#REF!,COLUMN(#REF!)-COLUMN(#REF!)+1,0),"(n.a.)"),"") ->  | O108: 0
B109: 0 | C109: 0 | E109: =IF($B109>0,IFERROR(VLOOKUP($B109,#REF!,COLUMN(#REF!)-COLUMN(#REF!)+1,0),"(n.a.)"),"") ->  | O109: 0

Sheet Zusätzliche Frequenzen
B2: Erfassung zusätzlicher Frequenzen | G2: Es können Frequenzen von bis zu 6 zusätzlichen Linien erfasst werden. | AA2: Aufpassen beim Zeilen löschen/einfügen!
AA3: Formel Indirekt in Spalte B und C anpassen!
C6: =Erfassungsmaske!$C$6 -> Fahrtrichtung A: | D6: =+Erfassungsmaske!$D$6 -> Reusch, Talstation | G6: Fahrtrichtung A: | J6: Fahrtrichtung A: | M6: Fahrtrichtung A: | P6: Fahrtrichtung A: | S6: Fahrtrichtung A:
C7: =Erfassungsmaske!$C$7 -> Fahrtrichtung B: | D7: =+Erfassungsmaske!$D$7 -> Saanenmöser, Bahnhof | G7: Fahrtrichtung B: | J7: Fahrtrichtung B: | M7: Fahrtrichtung B: | P7: Fahrtrichtung B: | S7: Fahrtrichtung B:
B8: ="Zusätzliche Frequenzen anderer Linien an Haltestellen der Linie "&Start!$C$21 -> Zusätzliche Frequenzen anderer Linien an Haltestellen der Linie 12.180 | G8: Linie 1: | J8: Linie 2: | M8: Linie 3: | P8: Linie 4: | S8: Linie 5: | V8: Linie 6:
B9: HST-NR | C9: HST_Name | D9: Frequenzen A (Mittlere Anzahl Ein- und Aussteigende Mo bis So) | E9: Frequenzen B (Mittlere Anzahl Ein- und Aussteigende Mo bis So) | G9: Frequenzen A (Mittlere Anzahl Ein- und Aussteigende Mo bis So) | H9: Frequenzen B (Mittlere Anzahl Ein- und Aussteigende Mo bis So) | J9: Frequenzen A (Mittlere Anzahl Ein- und Aussteigende Mo bis So) | K9: Frequenzen B (Mittlere Anzahl Ein- und Aussteigende Mo bis So) | M9: Frequenzen A (Mittlere Anzahl Ein- und Aussteigende Mo bis So) | N9: Frequenzen B (Mittlere Anzahl Ein- und Aussteigende Mo bis So) | P9: Frequenzen A (Mittlere Anzahl Ein- und Aussteigende Mo bis So) | Q9: Frequenzen B (Mittlere Anzahl Ein- und Aussteigende Mo bis So) | S9: Frequenzen A (Mittlere Anzahl Ein- und Aussteigende Mo bis So) | T9: Frequenzen B (Mittlere Anzahl Ein- und Aussteigende Mo bis So) | V9: Frequenzen A (Mittlere Anzahl Ein- und Aussteigende Mo bis So) | W9: Frequenzen B (Mittlere Anzahl Ein- und Aussteigende Mo bis So)
B10: =IFERROR(INDIRECT(Rel_Bezug_Linienblatt&"C"&ROW(B10)-2),0) -> 79266 | C10: =IFERROR(INDIRECT(Rel_Bezug_Linienblatt&"b"&ROW(B10)-2),0) -> Saanenmöser, Bahnhof | D10: =IF(SUMIF($G$9:$W$9,D$9,$G10:$W10)=0,0,SUMIF($G$9:$W$9,D$9,$G10:$W10)) -> 0 | E10: =IF(SUMIF($G$9:$W$9,E$9,$G10:$W10)=0,0,SUMIF($G$9:$W$9,E$9,$G10:$W10)) -> 0
B11: 81097 | C11: Saanenmöser, Mösching | D11: =IF(SUMIF($G$9:$W$9,D$9,$G11:$W11)=0,0,SUMIF($G$9:$W$9,D$9,$G11:$W11)) -> 0 | E11: 0
B12: 81098 | C12: Saanenmöser, Birkheimweg | D12: 0 | E12: 0
B13: 79265 | C13: Schönried, Bahnhof | D13: 0 | E13: 0
B14: 81356 | C14: Schönried, Schulhaus | D14: 0 | E14: 0
B15: 81357 | C15: Saanen, Halten | D15: 0 | E15: 0
B16: 79264 | C16: Saanen, Steigenberger | D16: 0 | E16: 0
B17: 81358 | C17: Saanen, Crestalta | D17: 0 | E17: 0
B18: 81359 | C18: Saanen, Gemeindeverwaltung | D18: 0 | E18: 0
B19: 79267 | C19: Saanen, Oberdorf | D19: 0 | E19: 0
B20: 79261 | C20: Saanen, Bahnhof | D20: 0 | E20: 0
B21: 79268 | C21: Saanen, Schwimmbad | D21: 0 | E21: 0
B22: 79270 | C22: Saanen, Bellerivestrasse | D22: 0 | E22: 0
B23: 79269 | C23: Saanen, Wyssmülleri | D23: 0 | E23: 0
B24: 79271 | C24: Gstaad, Grubenstrasse | D24: 0 | E24: 0
B25: 81360 | C25: Gstaad, Unter-Gstaad | D25: 0 | E25: 0
B26: 71264 | C26: Gstaad, Bahnhof | D26: 0 | E26: 0
B27: 81187 | C27: Gstaad, Sportzentrum | D27: 0 | E27: 0
B28: 81952 | C28: Gstaad, Rütti Schulhaus | D28: 0 | E28: 0
B29: 79277 | C29: Gstaad, Eggli | D29: 0 | E29: 0
B30: 1329 | C30: Gstaad, Wispile | D30: 0 | E30: 0
B31: 71266 | C31: Grund b. Gstaad, Moosfang | D31: 0 | E31: 0
B32: 71267 | C32: Grund b. Gstaad,Moosfangbrücke | D32: 0 | E32: 0
B33: 71268 | C33: Grund b. Gstaad, Lädeli | D33: 0 | E33: 0
B34: 71269 | C34: Grund b. Gstaad, Post | D34: 0 | E34: 0
B35: 71270 | C35: Grund b. Gstaad, Klösterli | D35: 0 | E35: 0
B36: 71271 | C36: Grund b. Gstaad, Grundbrücke | D36: 0 | E36: 0
B37: 1771 | C37: Feutersoey, Dorf | D37: 0 | E37: 0
B38: 77048 | C38: Feutersoey, Bühl | D38: 0 | E38: 0
B39: 71272 | C39: Gsteig b. Gstaad, Saali | D39: 0 | E39: 0
B40: 1769 | C40: Gsteig b. Gstaad, Post | D40: 0 | E40: 0
B41: 71273 | C41: Gsteig b. Gstaad, Heitibrücke | D41: 0 | E41: 0
B42: =IFERROR(INDIRECT(Rel_Bezug_Linienblatt&"C"&ROW(B42)-2),0) -> 71274 | C42: =IFERROR(INDIRECT(Rel_Bezug_Linienblatt&"b"&ROW(B42)-2),0) -> Gsteig b. Gstaad, Gründ | D42: 0 | E42: 0
B43: 82705 | C43: Gsteig b. Gstaad, Schönenboden | D43: =IF(SUMIF($G$9:$W$9,D$9,$G43:$W43)=0,0,SUMIF($G$9:$W$9,D$9,$G43:$W43)) -> 0 | E43: 0
B44: 71275 | C44: Gsteig b. Gstaad, Höhe | D44: 0 | E44: 0
B45: 71276 | C45: Reusch, Talstation | D45: 0 | E45: 0
B46: 0 | C46: 0 | D46: 0 | E46: 0
B47: 0 | C47: 0 | D47: 0 | E47: 0
B48: 0 | C48: 0 | D48: 0 | E48: 0
B49: 0 | C49: 0 | D49: 0 | E49: 0
B50: 0 | C50: 0 | D50: 0 | E50: 0
B51: 0 | C51: 0 | D51: 0 | E51: 0
B52: 0 | C52: 0 | D52: 0 | E52: 0
B53: 0 | C53: 0 | D53: 0 | E53: 0
B54: 0 | C54: 0 | D54: 0 | E54: 0
B55: 0 | C55: 0 | D55: 0 | E55: 0
B56: 0 | C56: 0 | D56: 0 | E56: 0
B57: 0 | C57: 0 | D57: 0 | E57: 0
B58: 0 | C58: 0 | D58: 0 | E58: 0
B59: 0 | C59: 0 | D59: 0 | E59: 0
B60: 0 | C60: 0 | D60: 0 | E60: 0
B61: 0 | C61: 0 | D61: 0 | E61: 0
B62: 0 | C62: 0 | D62: 0 | E62: 0
B63: 0 | C63: 0 | D63: 0 | E63: 0
B64: 0 | C64: 0 | D64: 0 | E64: 0
B65: 0 | C65: 0 | D65: 0 | E65: 0
B66: 0 | C66: 0 | D66: 0 | E66: 0
B67: 0 | C67: 0 | D67: 0 | E67: 0
B68: 0 | C68: 0 | D68: 0 | E68: 0
B69: 0 | C69: 0 | D69: 0 | E69: 0
B70: 0 | C70: 0 | D70: 0 | E70: 0
B71: 0 | C71: 0 | D71: 0 | E71: 0
B72: 0 | C72: 0 | D72: 0 | E72: 0
B73: 0 | C73: 0 | D73: 0 | E73: 0
B74: =IFERROR(INDIRECT(Rel_Bezug_Linienblatt&"C"&ROW(B74)-2),0) -> 0 | C74: =IFERROR(INDIRECT(Rel_Bezug_Linienblatt&"b"&ROW(B74)-2),0) -> 0 | D74: 0 | E74: 0
B75: 0 | C75: 0 | D75: =IF(SUMIF($G$9:$W$9,D$9,$G75:$W75)=0,0,SUMIF($G$9:$W$9,D$9,$G75:$W75)) -> 0 | E75: 0
B76: 0 | C76: 0 | D76: 0 | E76: 0
B77: 0 | C77: 0 | D77: 0 | E77: 0
B78: 0 | C78: 0 | D78: 0 | E78: 0
B79: 0 | C79: 0 | D79: 0 | E79: 0
B80: 0 | C80: 0 | D80: 0 | E80: 0
B81: 0 | C81: 0 | D81: 0 | E81: 0
B82: 0 | C82: 0 | D82: 0 | E82: 0
B83: 0 | C83: 0 | D83: 0 | E83: 0
B84: 0 | C84: 0 | D84: 0 | E84: 0
B85: 0 | C85: 0 | D85: 0 | E85: 0
B86: 0 | C86: 0 | D86: 0 | E86: 0
B87: 0 | C87: 0 | D87: 0 | E87: 0
B88: 0 | C88: 0 | D88: 0 | E88: 0
B89: 0 | C89: 0 | D89: 0 | E89: 0
B90: 0 | C90: 0 | D90: 0 | E90: 0
B91: 0 | C91: 0 | D91: 0 | E91: 0
B92: 0 | C92: 0 | D92: 0 | E92: 0
B93: 0 | C93: 0 | D93: 0 | E93: 0
B94: 0 | C94: 0 | D94: 0 | E94: 0
B95: 0 | C95: 0 | D95: 0 | E95: 0
B96: 0 | C96: 0 | D96: 0 | E96: 0
B97: 0 | C97: 0 | D97: 0 | E97: 0
B98: 0 | C98: 0 | D98: 0 | E98: 0
B99: 0 | C99: 0 | D99: 0 | E99: 0
B100: 0 | C100: 0 | D100: 0 | E100: 0
B101: 0 | C101: 0 | D101: 0 | E101: 0
B102: 0 | C102: 0 | D102: 0 | E102: 0
B103: 0 | C103: 0 | D103: 0 | E103: 0
B104: 0 | C104: 0 | D104: 0 | E104: 0
B105: 0 | C105: 0 | D105: 0 | E105: 0
B106: 0 | C106: =IFERROR(INDIRECT(Rel_Bezug_Linienblatt&"b"&ROW(B106)-2),0) -> 0 | D106: 0 | E106: 0
B107: 0 | C107: 0 | D107: 0 | E107: 0
B108: 0 | C108: 0 | D108: 0 | E108: 0
B109: 0 | C109: 0 | D109: 0 | E109: 0

Sheet Annahmen (hidden)
B2: Annahmen
B7: Auswahl des Schwellenwerts
D9: Schwellenwert Arbeitshilfe1 | E9: AlternativerSchwellenwert2 | F9: Verwendeter Schwellenwert3
D10: 40 | E10: 70 | F10: 70
B14: Auswahl der Gewichte
B16: Gewichtung der Kriterien | D16: Gewicht Arbeitshilfe4 | E16: Alternatives Gewicht5 | F16: Verwendetes Gewicht6
B17: Wichtige Institutionen für Menschen mit Behinderung in der Umgebung der Haltestelle | D17: 0.26 | F17: 0.26
B18: Umsteigefunktion der Haltestelle | D18: 0.27 | F18: 0.27
B19: Frequenzen (Anzahl Ein- und Aussteigende pro Tag) | D19: 0.27 | F19: 0.27
B20: Einzugsgebiet | D20: 0.2 | F20: 0.2
B22: Kontrolle | D22: =SUM(D17:D20) -> 1 | F22: =SUM(F17:F20) -> 1
F23: =IF(F22=1,"", IF(F22>1,"Achtung! Summe der Gewichte ist grösser 1. Bitte Auswahl anpassen, sodass die Summe 1 ergibt", "Achtung! Summe der Gewichte ist kleiner 1. Bitte passen Sie die Gewichte so an, dass die Summe 1 ergibt." )) ->  | H23: Kontrollzeile, nicht löschen
B24: Erläuterungen
B26: 1 | C26: Schwellenwert, der in der Arbeitshilfe verwendet wurde.
B27: 2 | C27: Hier kann eine alternativer Schwellenwert eingegeben werden. | H27: Spalten ausblenden
B28: 3 | C28: Hier den Schwellwenwert wählen, der für die Verhältnismässigkeitsprüfung verwendet werden soll.
B30: 4 | C30: In der Arbeitshilfe verwendete Gewichte.
B31: 5 | C31: Alternative Gewichte können in Spalte E eingegeben werden.
B32: 6 | C32: Hier die Gewichte wählen, die für die Verhältnismässigkeitsprüfung verwendet werden soll.

Sheet Ergebnis Linie
B2: Ergebnis Linie | W2: Aufpassen beim Zeilen löschen/einfügen!
W3: Formel Indirekt in Spalte B und C anpassen!
B6: ="Ergebnis für Linie "&Start!$C$21 -> Ergebnis für Linie 12.180
C8: Hinweise zur Fahrtrichtung der Linie: | D8: =Erfassungsmaske!$C$6 -> Fahrtrichtung A: | E8: =+Erfassungsmaske!$D$6 -> Reusch, Talstation
D9: =Erfassungsmaske!$C$7 -> Fahrtrichtung B: | E9: =+Erfassungsmaske!$D$7 -> Saanenmöser, Bahnhof
D11: Grobe Verhältnismässigkeitsprüfung | H11: Vertiefte Verhältnismässigkeitsprüfung | N11: Linien-/Netzbetrachtung | P11: Entscheid | Q11: Hinweis | S11: Bemerkungen | V11: Hilfsspalten
B12: HST_Nr | C12: HST_Name | D12: Nutzenpunkte A | E12: Nutzenpunkte B | F12: =IF(SUM(F13:F111)>0,"Achtung! Eingabe in Erfassungs-maske prüfen","Kontrolle") -> Kontrolle | H12: Verhältnis-mässigkeits-index A | I12: Verhältnis-mässigkeits-index B | J12: Mittelwert Verhältnis-mässigkeits-index | K12: Umsteige-punkt | L12: Nutzenpunkte Zentrale Einrichtungen > 80 | N12: Alternative Haltekante (300m Radius) [x eingeben] | O12: Haltekante nicht Haupter-schliessung [x eingeben] | V12: Prüfsumme für "leer" | W12: Prüfung zu Beginn | X12: bereits umgebaut (A und B) | Y12: A bereits umgebaut, B projektiert | Z12: Umbau A projektiert, B bereits umgebaut | AA12: Umbau projektiert (A und B) | AB12: kein Umbau | AC12: Alternative Haltekannten | AD12: nicht Haupterschliessung | AE12: Prüfsumme Nur A bewerten | AF12: B bereits umgebaut | AG12: Umbau B projektiert | AH12: Nur Richtung A | AI12: Prüfsumme Nur B bewerten | AJ12: A bereits umgebaut | AK12: Umbau A projektiert | AL12: Nur Richtung B
B13: =INDIRECT(Rel_Bezug_Linienblatt&"C"&ROW(B13)-5) -> 79266 | C13: =IFERROR(INDIRECT(Rel_Bezug_Linienblatt&"b"&ROW(B13)-5),0) -> Saanenmöser, Bahnhof | D13: =IFERROR(VLOOKUP($B13,NKI_Datenbank,COLUMN(NKI_Datenbank!$N$1),FALSE),"") -> 65.146535 | E13: =IFERROR(VLOOKUP($B13,NKI_Datenbank,COLUMN(NKI_Datenbank!$O$1),FALSE),"") ->  | F13: =IF(Erfassungsmaske!O10>0,1,0) -> 0 | H13: =IFERROR(VLOOKUP($B13,NKI_Datenbank,COLUMN(NKI_Datenbank!$P$1),FALSE),0) -> 0 | I13: =IFERROR(VLOOKUP($B13,NKI_Datenbank,COLUMN(NKI_Datenbank!$Q$1),FALSE),0) -> 0 | J13: =IFERROR(VLOOKUP($B13,NKI_Datenbank,COLUMN(NKI_Datenbank!$R$1),FALSE),0) -> 0 | K13: =IFERROR(IF(VLOOKUP($B13,NKI_Datenbank,COLUMN(NKI_Datenbank!$E$1),FALSE)>0,1,0),"") -> 1 | L13: =IFERROR(IF(VLOOKUP($B13,NKI_Datenbank,COLUMN(NKI_Datenbank!$D$1),FALSE)>80,1,0),"") -> 1 | P13: =IF(V13>0,"",IF(AB13>0,"kein Umbau",IF(AE13>0,IF(H13>Annahmen!$F$10,"Umbau A P1",IF(H13>Annahmen!$D$10,"Umbau A P2",IF(H13<=Annahmen!$F$10,"kein Umbau A"))),IF(AI13>0,IF(I13>Annahmen!$F$10,"Umbau B P1",IF(I13>Annahmen!$D$10,"Umbau B P2",IF(I13<=Annahmen!$F$10,"kein Umbau B"))),IF(J13=0,"",IF(J13>Annahmen!$F$10,"Umbau P1",IF(J13>Annahmen!$D$10,"Umbau P2","kein Umbau"))))))) ->  | Q13: =IF(AND(Erfassungsmaske!G10="X",Erfassungsmaske!H10="X"),"bereits umgebaut (A und B)",IF(AND(Erfassungsmaske!G10="X",Erfassungsmaske!K10="X"),"A bereits umgebaut, B projektiert",IF(AND(Erfassungsmaske!H10="X",Erfassungsmaske!J10="X"),"B bereits umgebaut, A projektiert",IF(Erfassungsmaske!G10="X","A bereits umgebaut",IF(Erfassungsmaske!H10="X","B bereits umgebaut",IF(AND(Erfassungsmaske!J10="X",Erfassungsmaske!K10="X"),"Umbau projektiert (A und B)",IF(Erfassungsmaske!J10="X","Umbau A projektiert",IF(Erfassungsmaske!K10="X","Umbau B projektiert","")))))))) ->  | V13: =SUM(W13:AA13) -> 1 | W13: =IF(SUM(H13:J13)=0,1,0) -> 1 | X13: =IF($Q13=X$12,1,0) -> 0 | Y13: =IF($Q13=Y$12,1,0) -> 0 | Z13: 0 | AA13: 0 | AB13: =SUM(AC13:AD13) -> 0 | AC13: =IF(N13="x",1,0) -> 0 | AD13: =IF(O13="x",1,0) -> 0 | AE13: =SUM(AF13:AH13) -> 1 | AF13: 0 | AG13: 0 | AH13: =IF(Erfassungsmaske!E10="(Nur Richtung A)",1,0) -> 1 | AI13: =SUM(AJ13:AL13) -> 0 | AJ13: 0 | AK13: 0 | AL13: =IF(Erfassungsmaske!D10="(Nur Richtung B)",1,0) -> 0
B14: 81097 | C14: Saanenmöser, Mösching | D14: =IFERROR(VLOOKUP($B14,NKI_Datenbank,COLUMN(NKI_Datenbank!$N$1),FALSE),"") -> 4.099046 | E14: =IFERROR(VLOOKUP($B14,NKI_Datenbank,COLUMN(NKI_Datenbank!$O$1),FALSE),"") -> 4.099046 | F14: =IF(Erfassungsmaske!O11>0,1,0) -> 0 | H14: =IFERROR(VLOOKUP($B14,NKI_Datenbank,COLUMN(NKI_Datenbank!$P$1),FALSE),0) -> 0 | I14: =IFERROR(VLOOKUP($B14,NKI_Datenbank,COLUMN(NKI_Datenbank!$Q$1),FALSE),0) -> 0 | J14: =IFERROR(VLOOKUP($B14,NKI_Datenbank,COLUMN(NKI_Datenbank!$R$1),FALSE),0) -> 0 | K14: =IFERROR(IF(VLOOKUP($B14,NKI_Datenbank,COLUMN(NKI_Datenbank!$E$1),FALSE)>0,1,0),"") -> 0 | L14: =IFERROR(IF(VLOOKUP($B14,NKI_Datenbank,COLUMN(NKI_Datenbank!$D$1),FALSE)>80,1,0),"") -> 0 | P14: =IF(V14>0,"",IF(AB14>0,"kein Umbau",IF(AE14>0,IF(H14>Annahmen!$F$10,"Umbau A P1",IF(H14>Annahmen!$D$10,"Umbau A P2",IF(H14<=Annahmen!$F$10,"kein Umbau A"))),IF(AI14>0,IF(I14>Annahmen!$F$10,"Umbau B P1",IF(I14>Annahmen!$D$10,"Umbau B P2",IF(I14<=Annahmen!$F$10,"kein Umbau B"))),IF(J14=0,"",IF(J14>Annahmen!$F$10,"Umbau P1",IF(J14>Annahmen!$D$10,"Umbau P2","kein Umbau"))))))) ->  | Q14: =IF(AND(Erfassungsmaske!G11="X",Erfassungsmaske!H11="X"),"bereits umgebaut (A und B)",IF(AND(Erfassungsmaske!G11="X",Erfassungsmaske!K11="X"),"A bereits umgebaut, B projektiert",IF(AND(Erfassungsmaske!H11="X",Erfassungsmaske!J11="X"),"B bereits umgebaut, A projektiert",IF(Erfassungsmaske!G11="X","A bereits umgebaut",IF(Erfassungsmaske!H11="X","B bereits umgebaut",IF(AND(Erfassungsmaske!J11="X",Erfassungsmaske!K11="X"),"Umbau projektiert (A und B)",IF(Erfassungsmaske!J11="X","Umbau A projektiert",IF(Erfassungsmaske!K11="X","Umbau B projektiert","")))))))) ->  | V14: =SUM(W14:AA14) -> 1 | W14: =IF(SUM(H14:J14)=0,1,0) -> 1 | X14: =IF($Q14=X$12,1,0) -> 0 | Y14: 0 | Z14: 0 | AA14: 0 | AB14: =SUM(AC14:AD14) -> 0 | AC14: =IF(N14="x",1,0) -> 0 | AD14: =IF(O14="x",1,0) -> 0 | AE14: =SUM(AF14:AH14) -> 0 | AF14: 0 | AG14: 0 | AH14: =IF(Erfassungsmaske!E11="(Nur Richtung A)",1,0) -> 0 | AI14: =SUM(AJ14:AL14) -> 0 | AJ14: 0 | AK14: 0 | AL14: =IF(Erfassungsmaske!D11="(Nur Richtung B)",1,0) -> 0
B15: 81098 | C15: Saanenmöser, Birkheimweg | D15: =IFERROR(VLOOKUP($B15,NKI_Datenbank,COLUMN(NKI_Datenbank!$N$1),FALSE),"") -> 5.025 | E15: =IFERROR(VLOOKUP($B15,NKI_Datenbank,COLUMN(NKI_Datenbank!$O$1),FALSE),"") -> 5.025 | F15: =IF(Erfassungsmaske!O12>0,1,0) -> 0 | H15: =IFERROR(VLOOKUP($B15,NKI_Datenbank,COLUMN(NKI_Datenbank!$P$1),FALSE),0) -> 0 | I15: =IFERROR(VLOOKUP($B15,NKI_Datenbank,COLUMN(NKI_Datenbank!$Q$1),FALSE),0) -> 0 | J15: =IFERROR(VLOOKUP($B15,NKI_Datenbank,COLUMN(NKI_Datenbank!$R$1),FALSE),0) -> 0 | K15: =IFERROR(IF(VLOOKUP($B15,NKI_Datenbank,COLUMN(NKI_Datenbank!$E$1),FALSE)>0,1,0),"") -> 0 | L15: =IFERROR(IF(VLOOKUP($B15,NKI_Datenbank,COLUMN(NKI_Datenbank!$D$1),FALSE)>80,1,0),"") -> 0 | P15: =IF(V15>0,"",IF(AB15>0,"kein Umbau",IF(AE15>0,IF(H15>Annahmen!$F$10,"Umbau A P1",IF(H15>Annahmen!$D$10,"Umbau A P2",IF(H15<=Annahmen!$F$10,"kein Umbau A"))),IF(AI15>0,IF(I15>Annahmen!$F$10,"Umbau B P1",IF(I15>Annahmen!$D$10,"Umbau B P2",IF(I15<=Annahmen!$F$10,"kein Umbau B"))),IF(J15=0,"",IF(J15>Annahmen!$F$10,"Umbau P1",IF(J15>Annahmen!$D$10,"Umbau P2","kein Umbau"))))))) ->  | Q15: =IF(AND(Erfassungsmaske!G12="X",Erfassungsmaske!H12="X"),"bereits umgebaut (A und B)",IF(AND(Erfassungsmaske!G12="X",Erfassungsmaske!K12="X"),"A bereits umgebaut, B projektiert",IF(AND(Erfassungsmaske!H12="X",Erfassungsmaske!J12="X"),"B bereits umgebaut, A projektiert",IF(Erfassungsmaske!G12="X","A bereits umgebaut",IF(Erfassungsmaske!H12="X","B bereits umgebaut",IF(AND(Erfassungsmaske!J12="X",Erfassungsmaske!K12="X"),"Umbau projektiert (A und B)",IF(Erfassungsmaske!J12="X","Umbau A projektiert",IF(Erfassungsmaske!K12="X","Umbau B projektiert","")))))))) ->  | V15: 1 | W15: 1 | X15: 0 | Y15: 0 | Z15: 0 | AA15: 0 | AB15: 0 | AC15: 0 | AD15: 0 | AE15: 0 | AF15: 0 | AG15: 0 | AH15: =IF(Erfassungsmaske!E12="(Nur Richtung A)",1,0) -> 0 | AI15: 0 | AJ15: 0 | AK15: 0 | AL15: =IF(Erfassungsmaske!D12="(Nur Richtung B)",1,0) -> 0
B16: 79265 | C16: Schönried, Bahnhof | D16: =IFERROR(VLOOKUP($B16,NKI_Datenbank,COLUMN(NKI_Datenbank!$N$1),FALSE),"") -> 76.434597 | E16: =IFERROR(VLOOKUP($B16,NKI_Datenbank,COLUMN(NKI_Datenbank!$O$1),FALSE),"") -> 76.731786 | F16: =IF(Erfassungsmaske!O13>0,1,0) -> 0 | H16: =IFERROR(VLOOKUP($B16,NKI_Datenbank,COLUMN(NKI_Datenbank!$P$1),FALSE),0) -> 0 | I16: =IFERROR(VLOOKUP($B16,NKI_Datenbank,COLUMN(NKI_Datenbank!$Q$1),FALSE),0) -> 0 | J16: =IFERROR(VLOOKUP($B16,NKI_Datenbank,COLUMN(NKI_Datenbank!$R$1),FALSE),0) -> 0 | K16: =IFERROR(IF(VLOOKUP($B16,NKI_Datenbank,COLUMN(NKI_Datenbank!$E$1),FALSE)>0,1,0),"") -> 1 | L16: =IFERROR(IF(VLOOKUP($B16,NKI_Datenbank,COLUMN(NKI_Datenbank!$D$1),FALSE)>80,1,0),"") -> 1 | P16: =IF(V16>0,"",IF(AB16>0,"kein Umbau",IF(AE16>0,IF(H16>Annahmen!$F$10,"Umbau A P1",IF(H16>Annahmen!$D$10,"Umbau A P2",IF(H16<=Annahmen!$F$10,"kein Umbau A"))),IF(AI16>0,IF(I16>Annahmen!$F$10,"Umbau B P1",IF(I16>Annahmen!$D$10,"Umbau B P2",IF(I16<=Annahmen!$F$10,"kein Umbau B"))),IF(J16=0,"",IF(J16>Annahmen!$F$10,"Umbau P1",IF(J16>Annahmen!$D$10,"Umbau P2","kein Umbau"))))))) ->  | Q16: =IF(AND(Erfassungsmaske!G13="X",Erfassungsmaske!H13="X"),"bereits umgebaut (A und B)",IF(AND(Erfassungsmaske!G13="X",Erfassungsmaske!K13="X"),"A bereits umgebaut, B projektiert",IF(AND(Erfassungsmaske!H13="X",Erfassungsmaske!J13="X"),"B bereits umgebaut, A projektiert",IF(Erfassungsmaske!G13="X","A bereits umgebaut",IF(Erfassungsmaske!H13="X","B bereits umgebaut",IF(AND(Erfassungsmaske!J13="X",Erfassungsmaske!K13="X"),"Umbau projektiert (A und B)",IF(Erfassungsmaske!J13="X","Umbau A projektiert",IF(Erfassungsmaske!K13="X","Umbau B projektiert","")))))))) ->  | V16: 1 | W16: 1 | X16: 0 | Y16: 0 | Z16: 0 | AA16: 0 | AB16: 0 | AC16: 0 | AD16: 0 | AE16: 0 | AF16: 0 | AG16: 0 | AH16: =IF(Erfassungsmaske!E13="(Nur Richtung A)",1,0) -> 0 | AI16: 0 | AJ16: 0 | AK16: 0 | AL16: =IF(Erfassungsmaske!D13="(Nur Richtung B)",1,0) -> 0
B17: 81356 | C17: Schönried, Schulhaus | D17: =IFERROR(VLOOKUP($B17,NKI_Datenbank,COLUMN(NKI_Datenbank!$N$1),FALSE),"") -> 44.730957 | E17: =IFERROR(VLOOKUP($B17,NKI_Datenbank,COLUMN(NKI_Datenbank!$O$1),FALSE),"") -> 45.860637 | F17: =IF(Erfassungsmaske!O14>0,1,0) -> 0 | H17: =IFERROR(VLOOKUP($B17,NKI_Datenbank,COLUMN(NKI_Datenbank!$P$1),FALSE),0) -> 0 | I17: =IFERROR(VLOOKUP($B17,NKI_Datenbank,COLUMN(NKI_Datenbank!$Q$1),FALSE),0) -> 0 | J17: =IFERROR(VLOOKUP($B17,NKI_Datenbank,COLUMN(NKI_Datenbank!$R$1),FALSE),0) -> 0 | K17: =IFERROR(IF(VLOOKUP($B17,NKI_Datenbank,COLUMN(NKI_Datenbank!$E$1),FALSE)>0,1,0),"") -> 0 | L17: =IFERROR(IF(VLOOKUP($B17,NKI_Datenbank,COLUMN(NKI_Datenbank!$D$1),FALSE)>80,1,0),"") -> 1 | P17: =IF(V17>0,"",IF(AB17>0,"kein Umbau",IF(AE17>0,IF(H17>Annahmen!$F$10,"Umbau A P1",IF(H17>Annahmen!$D$10,"Umbau A P2",IF(H17<=Annahmen!$F$10,"kein Umbau A"))),IF(AI17>0,IF(I17>Annahmen!$F$10,"Umbau B P1",IF(I17>Annahmen!$D$10,"Umbau B P2",IF(I17<=Annahmen!$F$10,"kein Umbau B"))),IF(J17=0,"",IF(J17>Annahmen!$F$10,"Umbau P1",IF(J17>Annahmen!$D$10,"Umbau P2","kein Umbau"))))))) ->  | Q17: =IF(AND(Erfassungsmaske!G14="X",Erfassungsmaske!H14="X"),"bereits umgebaut (A und B)",IF(AND(Erfassungsmaske!G14="X",Erfassungsmaske!K14="X"),"A bereits umgebaut, B projektiert",IF(AND(Erfassungsmaske!H14="X",Erfassungsmaske!J14="X"),"B bereits umgebaut, A projektiert",IF(Erfassungsmaske!G14="X","A bereits umgebaut",IF(Erfassungsmaske!H14="X","B bereits umgebaut",IF(AND(Erfassungsmaske!J14="X",Erfassungsmaske!K14="X"),"Umbau projektiert (A und B)",IF(Erfassungsmaske!J14="X","Umbau A projektiert",IF(Erfassungsmaske!K14="X","Umbau B projektiert","")))))))) ->  | V17: 1 | W17: 1 | X17: 0 | Y17: 0 | Z17: 0 | AA17: 0 | AB17: 0 | AC17: 0 | AD17: 0 | AE17: 0 | AF17: 0 | AG17: 0 | AH17: =IF(Erfassungsmaske!E14="(Nur Richtung A)",1,0) -> 0 | AI17: 0 | AJ17: 0 | AK17: 0 | AL17: =IF(Erfassungsmaske!D14="(Nur Richtung B)",1,0) -> 0
B18: 81357 | C18: Saanen, Halten | D18: =IFERROR(VLOOKUP($B18,NKI_Datenbank,COLUMN(NKI_Datenbank!$N$1),FALSE),"") -> 1.436395 | E18: =IFERROR(VLOOKUP($B18,NKI_Datenbank,COLUMN(NKI_Datenbank!$O$1),FALSE),"") -> 1.83451 | F18: =IF(Erfassungsmaske!O15>0,1,0) -> 0 | H18: =IFERROR(VLOOKUP($B18,NKI_Datenbank,COLUMN(NKI_Datenbank!$P$1),FALSE),0) -> 0 | I18: =IFERROR(VLOOKUP($B18,NKI_Datenbank,COLUMN(NKI_Datenbank!$Q$1),FALSE),0) -> 0 | J18: =IFERROR(VLOOKUP($B18,NKI_Datenbank,COLUMN(NKI_Datenbank!$R$1),FALSE),0) -> 0 | K18: =IFERROR(IF(VLOOKUP($B18,NKI_Datenbank,COLUMN(NKI_Datenbank!$E$1),FALSE)>0,1,0),"") -> 0 | L18: =IFERROR(IF(VLOOKUP($B18,NKI_Datenbank,COLUMN(NKI_Datenbank!$D$1),FALSE)>80,1,0),"") -> 0 | P18: =IF(V18>0,"",IF(AB18>0,"kein Umbau",IF(AE18>0,IF(H18>Annahmen!$F$10,"Umbau A P1",IF(H18>Annahmen!$D$10,"Umbau A P2",IF(H18<=Annahmen!$F$10,"kein Umbau A"))),IF(AI18>0,IF(I18>Annahmen!$F$10,"Umbau B P1",IF(I18>Annahmen!$D$10,"Umbau B P2",IF(I18<=Annahmen!$F$10,"kein Umbau B"))),IF(J18=0,"",IF(J18>Annahmen!$F$10,"Umbau P1",IF(J18>Annahmen!$D$10,"Umbau P2","kein Umbau"))))))) ->  | Q18: =IF(AND(Erfassungsmaske!G15="X",Erfassungsmaske!H15="X"),"bereits umgebaut (A und B)",IF(AND(Erfassungsmaske!G15="X",Erfassungsmaske!K15="X"),"A bereits umgebaut, B projektiert",IF(AND(Erfassungsmaske!H15="X",Erfassungsmaske!J15="X"),"B bereits umgebaut, A projektiert",IF(Erfassungsmaske!G15="X","A bereits umgebaut",IF(Erfassungsmaske!H15="X","B bereits umgebaut",IF(AND(Erfassungsmaske!J15="X",Erfassungsmaske!K15="X"),"Umbau projektiert (A und B)",IF(Erfassungsmaske!J15="X","Umbau A projektiert",IF(Erfassungsmaske!K15="X","Umbau B projektiert","")))))))) ->  | V18: 1 | W18: 1 | X18: 0 | Y18: 0 | Z18: 0 | AA18: 0 | AB18: 0 | AC18: 0 | AD18: 0 | AE18: 0 | AF18: 0 | AG18: 0 | AH18: =IF(Erfassungsmaske!E15="(Nur Richtung A)",1,0) -> 0 | AI18: 0 | AJ18: 0 | AK18: 0 | AL18: =IF(Erfassungsmaske!D15="(Nur Richtung B)",1,0) -> 0
B19: 79264 | C19: Saanen, Steigenberger | D19: =IFERROR(VLOOKUP($B19,NKI_Datenbank,COLUMN(NKI_Datenbank!$N$1),FALSE),"") -> 33.663837 | E19: =IFERROR(VLOOKUP($B19,NKI_Datenbank,COLUMN(NKI_Datenbank!$O$1),FALSE),"") -> 34.816251 | F19: =IF(Erfassungsmaske!O16>0,1,0) -> 0 | H19: =IFERROR(VLOOKUP($B19,NKI_Datenbank,COLUMN(NKI_Datenbank!$P$1),FALSE),0) -> 0 | I19: =IFERROR(VLOOKUP($B19,NKI_Datenbank,COLUMN(NKI_Datenbank!$Q$1),FALSE),0) -> 0 | J19: =IFERROR(VLOOKUP($B19,NKI_Datenbank,COLUMN(NKI_Datenbank!$R$1),FALSE),0) -> 0 | K19: =IFERROR(IF(VLOOKUP($B19,NKI_Datenbank,COLUMN(NKI_Datenbank!$E$1),FALSE)>0,1,0),"") -> 0 | L19: =IFERROR(IF(VLOOKUP($B19,NKI_Datenbank,COLUMN(NKI_Datenbank!$D$1),FALSE)>80,1,0),"") -> 1 | P19: =IF(V19>0,"",IF(AB19>0,"kein Umbau",IF(AE19>0,IF(H19>Annahmen!$F$10,"Umbau A P1",IF(H19>Annahmen!$D$10,"Umbau A P2",IF(H19<=Annahmen!$F$10,"kein Umbau A"))),IF(AI19>0,IF(I19>Annahmen!$F$10,"Umbau B P1",IF(I19>Annahmen!$D$10,"Umbau B P2",IF(I19<=Annahmen!$F$10,"kein Umbau B"))),IF(J19=0,"",IF(J19>Annahmen!$F$10,"Umbau P1",IF(J19>Annahmen!$D$10,"Umbau P2","kein Umbau"))))))) ->  | Q19: =IF(AND(Erfassungsmaske!G16="X",Erfassungsmaske!H16="X"),"bereits umgebaut (A und B)",IF(AND(Erfassungsmaske!G16="X",Erfassungsmaske!K16="X"),"A bereits umgebaut, B projektiert",IF(AND(Erfassungsmaske!H16="X",Erfassungsmaske!J16="X"),"B bereits umgebaut, A projektiert",IF(Erfassungsmaske!G16="X","A bereits umgebaut",IF(Erfassungsmaske!H16="X","B bereits umgebaut",IF(AND(Erfassungsmaske!J16="X",Erfassungsmaske!K16="X"),"Umbau projektiert (A und B)",IF(Erfassungsmaske!J16="X","Umbau A projektiert",IF(Erfassungsmaske!K16="X","Umbau B projektiert","")))))))) ->  | V19: 1 | W19: 1 | X19: 0 | Y19: 0 | Z19: 0 | AA19: 0 | AB19: 0 | AC19: 0 | AD19: 0 | AE19: 0 | AF19: 0 | AG19: 0 | AH19: =IF(Erfassungsmaske!E16="(Nur Richtung A)",1,0) -> 0 | AI19: 0 | AJ19: 0 | AK19: 0 | AL19: =IF(Erfassungsmaske!D16="(Nur Richtung B)",1,0) -> 0
B20: 81358 | C20: Saanen, Crestalta | D20: =IFERROR(VLOOKUP($B20,NKI_Datenbank,COLUMN(NKI_Datenbank!$N$1),FALSE),"") -> 31.127009 | E20: =IFERROR(VLOOKUP($B20,NKI_Datenbank,COLUMN(NKI_Datenbank!$O$1),FALSE),"") ->  | F20: =IF(Erfassungsmaske!O17>0,1,0) -> 0 | H20: =IFERROR(VLOOKUP($B20,NKI_Datenbank,COLUMN(NKI_Datenbank!$P$1),FALSE),0) -> 0 | I20: =IFERROR(VLOOKUP($B20,NKI_Datenbank,COLUMN(NKI_Datenbank!$Q$1),FALSE),0) -> 0 | J20: =IFERROR(VLOOKUP($B20,NKI_Datenbank,COLUMN(NKI_Datenbank!$R$1),FALSE),0) -> 0 | K20: =IFERROR(IF(VLOOKUP($B20,NKI_Datenbank,COLUMN(NKI_Datenbank!$E$1),FALSE)>0,1,0),"") -> 0 | L20: =IFERROR(IF(VLOOKUP($B20,NKI_Datenbank,COLUMN(NKI_Datenbank!$D$1),FALSE)>80,1,0),"") -> 1 | P20: =IF(V20>0,"",IF(AB20>0,"kein Umbau",IF(AE20>0,IF(H20>Annahmen!$F$10,"Umbau A P1",IF(H20>Annahmen!$D$10,"Umbau A P2",IF(H20<=Annahmen!$F$10,"kein Umbau A"))),IF(AI20>0,IF(I20>Annahmen!$F$10,"Umbau B P1",IF(I20>Annahmen!$D$10,"Umbau B P2",IF(I20<=Annahmen!$F$10,"kein Umbau B"))),IF(J20=0,"",IF(J20>Annahmen!$F$10,"Umbau P1",IF(J20>Annahmen!$D$10,"Umbau P2","kein Umbau"))))))) ->  | Q20: =IF(AND(Erfassungsmaske!G17="X",Erfassungsmaske!H17="X"),"bereits umgebaut (A und B)",IF(AND(Erfassungsmaske!G17="X",Erfassungsmaske!K17="X"),"A bereits umgebaut, B projektiert",IF(AND(Erfassungsmaske!H17="X",Erfassungsmaske!J17="X"),"B bereits umgebaut, A projektiert",IF(Erfassungsmaske!G17="X","A bereits umgebaut",IF(Erfassungsmaske!H17="X","B bereits umgebaut",IF(AND(Erfassungsmaske!J17="X",Erfassungsmaske!K17="X"),"Umbau projektiert (A und B)",IF(Erfassungsmaske!J17="X","Umbau A projektiert",IF(Erfassungsmaske!K17="X","Umbau B projektiert","")))))))) ->  | V20: 1 | W20: 1 | X20: 0 | Y20: 0 | Z20: 0 | AA20: 0 | AB20: 0 | AC20: 0 | AD20: 0 | AE20: 1 | AF20: 0 | AG20: 0 | AH20: =IF(Erfassungsmaske!E17="(Nur Richtung A)",1,0) -> 1 | AI20: 0 | AJ20: 0 | AK20: 0 | AL20: =IF(Erfassungsmaske!D17="(Nur Richtung B)",1,0) -> 0
B21: 81359 | C21: Saanen, Gemeindeverwaltung | D21: =IFERROR(VLOOKUP($B21,NKI_Datenbank,COLUMN(NKI_Datenbank!$N$1),FALSE),"") -> 45.942078 | E21: =IFERROR(VLOOKUP($B21,NKI_Datenbank,COLUMN(NKI_Datenbank!$O$1),FALSE),"") -> 46.123464 | F21: =IF(Erfassungsmaske!O18>0,1,0) -> 0 | H21: =IFERROR(VLOOKUP($B21,NKI_Datenbank,COLUMN(NKI_Datenbank!$P$1),FALSE),0) -> 0 | I21: =IFERROR(VLOOKUP($B21,NKI_Datenbank,COLUMN(NKI_Datenbank!$Q$1),FALSE),0) -> 0 | J21: =IFERROR(VLOOKUP($B21,NKI_Datenbank,COLUMN(NKI_Datenbank!$R$1),FALSE),0) -> 0 | K21: =IFERROR(IF(VLOOKUP($B21,NKI_Datenbank,COLUMN(NKI_Datenbank!$E$1),FALSE)>0,1,0),"") -> 0 | L21: =IFERROR(IF(VLOOKUP($B21,NKI_Datenbank,COLUMN(NKI_Datenbank!$D$1),FALSE)>80,1,0),"") -> 1 | P21: =IF(V21>0,"",IF(AB21>0,"kein Umbau",IF(AE21>0,IF(H21>Annahmen!$F$10,"Umbau A P1",IF(H21>Annahmen!$D$10,"Umbau A P2",IF(H21<=Annahmen!$F$10,"kein Umbau A"))),IF(AI21>0,IF(I21>Annahmen!$F$10,"Umbau B P1",IF(I21>Annahmen!$D$10,"Umbau B P2",IF(I21<=Annahmen!$F$10,"kein Umbau B"))),IF(J21=0,"",IF(J21>Annahmen!$F$10,"Umbau P1",IF(J21>Annahmen!$D$10,"Umbau P2","kein Umbau"))))))) ->  | Q21: =IF(AND(Erfassungsmaske!G18="X",Erfassungsmaske!H18="X"),"bereits umgebaut (A und B)",IF(AND(Erfassungsmaske!G18="X",Erfassungsmaske!K18="X"),"A bereits umgebaut, B projektiert",IF(AND(Erfassungsmaske!H18="X",Erfassungsmaske!J18="X"),"B bereits umgebaut, A projektiert",IF(Erfassungsmaske!G18="X","A bereits umgebaut",IF(Erfassungsmaske!H18="X","B bereits umgebaut",IF(AND(Erfassungsmaske!J18="X",Erfassungsmaske!K18="X"),"Umbau projektiert (A und B)",IF(Erfassungsmaske!J18="X","Umbau A projektiert",IF(Erfassungsmaske!K18="X","Umbau B projektiert","")))))))) ->  | V21: 1 | W21: 1 | X21: 0 | Y21: 0 | Z21: 0 | AA21: 0 | AB21: 0 | AC21: 0 | AD21: 0 | AE21: 0 | AF21: 0 | AG21: 0 | AH21: =IF(Erfassungsmaske!E18="(Nur Richtung A)",1,0) -> 0 | AI21: 0 | AJ21: 0 | AK21: 0 | AL21: =IF(Erfassungsmaske!D18="(Nur Richtung B)",1,0) -> 0
B22: 79267 | C22: Saanen, Oberdorf | D22: =IFERROR(VLOOKUP($B22,NKI_Datenbank,COLUMN(NKI_Datenbank!$N$1),FALSE),"") -> 50.293719 | E22: =IFERROR(VLOOKUP($B22,NKI_Datenbank,COLUMN(NKI_Datenbank!$O$1),FALSE),"") -> 52.758333 | F22: =IF(Erfassungsmaske!O19>0,1,0) -> 0 | H22: =IFERROR(VLOOKUP($B22,NKI_Datenbank,COLUMN(NKI_Datenbank!$P$1),FALSE),0) -> 0 | I22: =IFERROR(VLOOKUP($B22,NKI_Datenbank,COLUMN(NKI_Datenbank!$Q$1),FALSE),0) -> 0 | J22: =IFERROR(VLOOKUP($B22,NKI_Datenbank,COLUMN(NKI_Datenbank!$R$1),FALSE),0) -> 0 | K22: =IFERROR(IF(VLOOKUP($B22,NKI_Datenbank,COLUMN(NKI_Datenbank!$E$1),FALSE)>0,1,0),"") -> 0 | L22: =IFERROR(IF(VLOOKUP($B22,NKI_Datenbank,COLUMN(NKI_Datenbank!$D$1),FALSE)>80,1,0),"") -> 1 | P22: =IF(V22>0,"",IF(AB22>0,"kein Umbau",IF(AE22>0,IF(H22>Annahmen!$F$10,"Umbau A P1",IF(H22>Annahmen!$D$10,"Umbau A P2",IF(H22<=Annahmen!$F$10,"kein Umbau A"))),IF(AI22>0,IF(I22>Annahmen!$F$10,"Umbau B P1",IF(I22>Annahmen!$D$10,"Umbau B P2",IF(I22<=Annahmen!$F$10,"kein Umbau B"))),IF(J22=0,"",IF(J22>Annahmen!$F$10,"Umbau P1",IF(J22>Annahmen!$D$10,"Umbau P2","kein Umbau"))))))) ->  | Q22: =IF(AND(Erfassungsmaske!G19="X",Erfassungsmaske!H19="X"),"bereits umgebaut (A und B)",IF(AND(Erfassungsmaske!G19="X",Erfassungsmaske!K19="X"),"A bereits umgebaut, B projektiert",IF(AND(Erfassungsmaske!H19="X",Erfassungsmaske!J19="X"),"B bereits umgebaut, A projektiert",IF(Erfassungsmaske!G19="X","A bereits umgebaut",IF(Erfassungsmaske!H19="X","B bereits umgebaut",IF(AND(Erfassungsmaske!J19="X",Erfassungsmaske!K19="X"),"Umbau projektiert (A und B)",IF(Erfassungsmaske!J19="X","Umbau A projektiert",IF(Erfassungsmaske!K19="X","Umbau B projektiert","")))))))) ->  | V22: 1 | W22: 1 | X22: 0 | Y22: 0 | Z22: 0 | AA22: 0 | AB22: 0 | AC22: 0 | AD22: 0 | AE22: 0 | AF22: 0 | AG22: 0 | AH22: =IF(Erfassungsmaske!E19="(Nur Richtung A)",1,0) -> 0 | AI22: 0 | AJ22: 0 | AK22: 0 | AL22: =IF(Erfassungsmaske!D19="(Nur Richtung B)",1,0) -> 0
B23: 79261 | C23: Saanen, Bahnhof | D23: =IFERROR(VLOOKUP($B23,NKI_Datenbank,COLUMN(NKI_Datenbank!$N$1),FALSE),"") -> 80.528268 | E23: =IFERROR(VLOOKUP($B23,NKI_Datenbank,COLUMN(NKI_Datenbank!$O$1),FALSE),"") -> 78.504024 | F23: =IF(Erfassungsmaske!O20>0,1,0) -> 0 | H23: =IFERROR(VLOOKUP($B23,NKI_Datenbank,COLUMN(NKI_Datenbank!$P$1),FALSE),0) -> 0 | I23: =IFERROR(VLOOKUP($B23,NKI_Datenbank,COLUMN(NKI_Datenbank!$Q$1),FALSE),0) -> 0 | J23: =IFERROR(VLOOKUP($B23,NKI_Datenbank,COLUMN(NKI_Datenbank!$R$1),FALSE),0) -> 0 | K23: =IFERROR(IF(VLOOKUP($B23,NKI_Datenbank,COLUMN(NKI_Datenbank!$E$1),FALSE)>0,1,0),"") -> 1 | L23: =IFERROR(IF(VLOOKUP($B23,NKI_Datenbank,COLUMN(NKI_Datenbank!$D$1),FALSE)>80,1,0),"") -> 1 | P23: =IF(V23>0,"",IF(AB23>0,"kein Umbau",IF(AE23>0,IF(H23>Annahmen!$F$10,"Umbau A P1",IF(H23>Annahmen!$D$10,"Umbau A P2",IF(H23<=Annahmen!$F$10,"kein Umbau A"))),IF(AI23>0,IF(I23>Annahmen!$F$10,"Umbau B P1",IF(I23>Annahmen!$D$10,"Umbau B P2",IF(I23<=Annahmen!$F$10,"kein Umbau B"))),IF(J23=0,"",IF(J23>Annahmen!$F$10,"Umbau P1",IF(J23>Annahmen!$D$10,"Umbau P2","kein Umbau"))))))) ->  | Q23: =IF(AND(Erfassungsmaske!G20="X",Erfassungsmaske!H20="X"),"bereits umgebaut (A und B)",IF(AND(Erfassungsmaske!G20="X",Erfassungsmaske!K20="X"),"A bereits umgebaut, B projektiert",IF(AND(Erfassungsmaske!H20="X",Erfassungsmaske!J20="X"),"B bereits umgebaut, A projektiert",IF(Erfassungsmaske!G20="X","A bereits umgebaut",IF(Erfassungsmaske!H20="X","B bereits umgebaut",IF(AND(Erfassungsmaske!J20="X",Erfassungsmaske!K20="X"),"Umbau projektiert (A und B)",IF(Erfassungsmaske!J20="X","Umbau A projektiert",IF(Erfassungsmaske!K20="X","Umbau B projektiert","")))))))) ->  | V23: 1 | W23: 1 | X23: 0 | Y23: 0 | Z23: 0 | AA23: 0 | AB23: 0 | AC23: 0 | AD23: 0 | AE23: 0 | AF23: 0 | AG23: 0 | AH23: =IF(Erfassungsmaske!E20="(Nur Richtung A)",1,0) -> 0 | AI23: 0 | AJ23: 0 | AK23: 0 | AL23: =IF(Erfassungsmaske!D20="(Nur Richtung B)",1,0) -> 0
B24: 79268 | C24: Saanen, Schwimmbad | D24: =IFERROR(VLOOKUP($B24,NKI_Datenbank,COLUMN(NKI_Datenbank!$N$1),FALSE),"") -> 31.378074 | E24: =IFERROR(VLOOKUP($B24,NKI_Datenbank,COLUMN(NKI_Datenbank!$O$1),FALSE),"") -> 31.522659 | F24: =IF(Erfassungsmaske!O21>0,1,0) -> 0 | H24: =IFERROR(VLOOKUP($B24,NKI_Datenbank,COLUMN(NKI_Datenbank!$P$1),FALSE),0) -> 0 | I24: =IFERROR(VLOOKUP($B24,NKI_Datenbank,COLUMN(NKI_Datenbank!$Q$1),FALSE),0) -> 0 | J24: =IFERROR(VLOOKUP($B24,NKI_Datenbank,COLUMN(NKI_Datenbank!$R$1),FALSE),0) -> 0 | K24: =IFERROR(IF(VLOOKUP($B24,NKI_Datenbank,COLUMN(NKI_Datenbank!$E$1),FALSE)>0,1,0),"") -> 0 | L24: =IFERROR(IF(VLOOKUP($B24,NKI_Datenbank,COLUMN(NKI_Datenbank!$D$1),FALSE)>80,1,0),"") -> 0 | P24: =IF(V24>0,"",IF(AB24>0,"kein Umbau",IF(AE24>0,IF(H24>Annahmen!$F$10,"Umbau A P1",IF(H24>Annahmen!$D$10,"Umbau A P2",IF(H24<=Annahmen!$F$10,"kein Umbau A"))),IF(AI24>0,IF(I24>Annahmen!$F$10,"Umbau B P1",IF(I24>Annahmen!$D$10,"Umbau B P2",IF(I24<=Annahmen!$F$10,"kein Umbau B"))),IF(J24=0,"",IF(J24>Annahmen!$F$10,"Umbau P1",IF(J24>Annahmen!$D$10,"Umbau P2","kein Umbau"))))))) ->  | Q24: =IF(AND(Erfassungsmaske!G21="X",Erfassungsmaske!H21="X"),"bereits umgebaut (A und B)",IF(AND(Erfassungsmaske!G21="X",Erfassungsmaske!K21="X"),"A bereits umgebaut, B projektiert",IF(AND(Erfassungsmaske!H21="X",Erfassungsmaske!J21="X"),"B bereits umgebaut, A projektiert",IF(Erfassungsmaske!G21="X","A bereits umgebaut",IF(Erfassungsmaske!H21="X","B bereits umgebaut",IF(AND(Erfassungsmaske!J21="X",Erfassungsmaske!K21="X"),"Umbau projektiert (A und B)",IF(Erfassungsmaske!J21="X","Umbau A projektiert",IF(Erfassungsmaske!K21="X","Umbau B projektiert","")))))))) ->  | V24: 1 | W24: 1 | X24: 0 | Y24: 0 | Z24: 0 | AA24: 0 | AB24: 0 | AC24: 0 | AD24: 0 | AE24: 0 | AF24: 0 | AG24: 0 | AH24: =IF(Erfassungsmaske!E21="(Nur Richtung A)",1,0) -> 0 | AI24: 0 | AJ24: 0 | AK24: 0 | AL24: =IF(Erfassungsmaske!D21="(Nur Richtung B)",1,0) -> 0
B25: 79270 | C25: Saanen, Bellerivestrasse | D25: =IFERROR(VLOOKUP($B25,NKI_Datenbank,COLUMN(NKI_Datenbank!$N$1),FALSE),"") -> 32.784235 | E25: =IFERROR(VLOOKUP($B25,NKI_Datenbank,COLUMN(NKI_Datenbank!$O$1),FALSE),"") -> 28.662469 | F25: =IF(Erfassungsmaske!O22>0,1,0) -> 0 | H25: =IFERROR(VLOOKUP($B25,NKI_Datenbank,COLUMN(NKI_Datenbank!$P$1),FALSE),0) -> 0 | I25: =IFERROR(VLOOKUP($B25,NKI_Datenbank,COLUMN(NKI_Datenbank!$Q$1),FALSE),0) -> 0 | J25: =IFERROR(VLOOKUP($B25,NKI_Datenbank,COLUMN(NKI_Datenbank!$R$1),FALSE),0) -> 0 | K25: =IFERROR(IF(VLOOKUP($B25,NKI_Datenbank,COLUMN(NKI_Datenbank!$E$1),FALSE)>0,1,0),"") -> 0 | L25: =IFERROR(IF(VLOOKUP($B25,NKI_Datenbank,COLUMN(NKI_Datenbank!$D$1),FALSE)>80,1,0),"") -> 0 | P25: =IF(V25>0,"",IF(AB25>0,"kein Umbau",IF(AE25>0,IF(H25>Annahmen!$F$10,"Umbau A P1",IF(H25>Annahmen!$D$10,"Umbau A P2",IF(H25<=Annahmen!$F$10,"kein Umbau A"))),IF(AI25>0,IF(I25>Annahmen!$F$10,"Umbau B P1",IF(I25>Annahmen!$D$10,"Umbau B P2",IF(I25<=Annahmen!$F$10,"kein Umbau B"))),IF(J25=0,"",IF(J25>Annahmen!$F$10,"Umbau P1",IF(J25>Annahmen!$D$10,"Umbau P2","kein Umbau"))))))) ->  | Q25: =IF(AND(Erfassungsmaske!G22="X",Erfassungsmaske!H22="X"),"bereits umgebaut (A und B)",IF(AND(Erfassungsmaske!G22="X",Erfassungsmaske!K22="X"),"A bereits umgebaut, B projektiert",IF(AND(Erfassungsmaske!H22="X",Erfassungsmaske!J22="X"),"B bereits umgebaut, A projektiert",IF(Erfassungsmaske!G22="X","A bereits umgebaut",IF(Erfassungsmaske!H22="X","B bereits umgebaut",IF(AND(Erfassungsmaske!J22="X",Erfassungsmaske!K22="X"),"Umbau projektiert (A und B)",IF(Erfassungsmaske!J22="X","Umbau A projektiert",IF(Erfassungsmaske!K22="X","Umbau B projektiert","")))))))) ->  | V25: 1 | W25: 1 | X25: 0 | Y25: 0 | Z25: 0 | AA25: 0 | AB25: 0 | AC25: 0 | AD25: 0 | AE25: 0 | AF25: 0 | AG25: 0 | AH25: =IF(Erfassungsmaske!E22="(Nur Richtung A)",1,0) -> 0 | AI25: 0 | AJ25: 0 | AK25: 0 | AL25: =IF(Erfassungsmaske!D22="(Nur Richtung B)",1,0) -> 0
B26: 79269 | C26: Saanen, Wyssmülleri | D26: =IFERROR(VLOOKUP($B26,NKI_Datenbank,COLUMN(NKI_Datenbank!$N$1),FALSE),"") -> 27.686952 | E26: =IFERROR(VLOOKUP($B26,NKI_Datenbank,COLUMN(NKI_Datenbank!$O$1),FALSE),"") -> 27.278766 | F26: =IF(Erfassungsmaske!O23>0,1,0) -> 0 | H26: =IFERROR(VLOOKUP($B26,NKI_Datenbank,COLUMN(NKI_Datenbank!$P$1),FALSE),0) -> 0 | I26: =IFERROR(VLOOKUP($B26,NKI_Datenbank,COLUMN(NKI_Datenbank!$Q$1),FALSE),0) -> 0 | J26: =IFERROR(VLOOKUP($B26,NKI_Datenbank,COLUMN(NKI_Datenbank!$R$1),FALSE),0) -> 0 | K26: =IFERROR(IF(VLOOKUP($B26,NKI_Datenbank,COLUMN(NKI_Datenbank!$E$1),FALSE)>0,1,0),"") -> 0 | L26: =IFERROR(IF(VLOOKUP($B26,NKI_Datenbank,COLUMN(NKI_Datenbank!$D$1),FALSE)>80,1,0),"") -> 0 | P26: =IF(V26>0,"",IF(AB26>0,"kein Umbau",IF(AE26>0,IF(H26>Annahmen!$F$10,"Umbau A P1",IF(H26>Annahmen!$D$10,"Umbau A P2",IF(H26<=Annahmen!$F$10,"kein Umbau A"))),IF(AI26>0,IF(I26>Annahmen!$F$10,"Umbau B P1",IF(I26>Annahmen!$D$10,"Umbau B P2",IF(I26<=Annahmen!$F$10,"kein Umbau B"))),IF(J26=0,"",IF(J26>Annahmen!$F$10,"Umbau P1",IF(J26>Annahmen!$D$10,"Umbau P2","kein Umbau"))))))) ->  | Q26: =IF(AND(Erfassungsmaske!G23="X",Erfassungsmaske!H23="X"),"bereits umgebaut (A und B)",IF(AND(Erfassungsmaske!G23="X",Erfassungsmaske!K23="X"),"A bereits umgebaut, B projektiert",IF(AND(Erfassungsmaske!H23="X",Erfassungsmaske!J23="X"),"B bereits umgebaut, A projektiert",IF(Erfassungsmaske!G23="X","A bereits umgebaut",IF(Erfassungsmaske!H23="X","B bereits umgebaut",IF(AND(Erfassungsmaske!J23="X",Erfassungsmaske!K23="X"),"Umbau projektiert (A und B)",IF(Erfassungsmaske!J23="X","Umbau A projektiert",IF(Erfassungsmaske!K23="X","Umbau B projektiert","")))))))) ->  | V26: 1 | W26: 1 | X26: 0 | Y26: 0 | Z26: 0 | AA26: 0 | AB26: 0 | AC26: 0 | AD26: 0 | AE26: 0 | AF26: 0 | AG26: 0 | AH26: =IF(Erfassungsmaske!E23="(Nur Richtung A)",1,0) -> 0 | AI26: 0 | AJ26: 0 | AK26: 0 | AL26: =IF(Erfassungsmaske!D23="(Nur Richtung B)",1,0) -> 0
B27: 79271 | C27: Gstaad, Grubenstrasse | D27: =IFERROR(VLOOKUP($B27,NKI_Datenbank,COLUMN(NKI_Datenbank!$N$1),FALSE),"") ->  | E27: =IFERROR(VLOOKUP($B27,NKI_Datenbank,COLUMN(NKI_Datenbank!$O$1),FALSE),"") -> 40.018941 | F27: =IF(Erfassungsmaske!O24>0,1,0) -> 0 | H27: =IFERROR(VLOOKUP($B27,NKI_Datenbank,COLUMN(NKI_Datenbank!$P$1),FALSE),0) -> 0 | I27: =IFERROR(VLOOKUP($B27,NKI_Datenbank,COLUMN(NKI_Datenbank!$Q$1),FALSE),0) -> 0 | J27: =IFERROR(VLOOKUP($B27,NKI_Datenbank,COLUMN(NKI_Datenbank!$R$1),FALSE),0) -> 0 | K27: =IFERROR(IF(VLOOKUP($B27,NKI_Datenbank,COLUMN(NKI_Datenbank!$E$1),FALSE)>0,1,0),"") -> 0 | L27: =IFERROR(IF(VLOOKUP($B27,NKI_Datenbank,COLUMN(NKI_Datenbank!$D$1),FALSE)>80,1,0),"") -> 1 | P27: =IF(V27>0,"",IF(AB27>0,"kein Umbau",IF(AE27>0,IF(H27>Annahmen!$F$10,"Umbau A P1",IF(H27>Annahmen!$D$10,"Umbau A P2",IF(H27<=Annahmen!$F$10,"kein Umbau A"))),IF(AI27>0,IF(I27>Annahmen!$F$10,"Umbau B P1",IF(I27>Annahmen!$D$10,"Umbau B P2",IF(I27<=Annahmen!$F$10,"kein Umbau B"))),IF(J27=0,"",IF(J27>Annahmen!$F$10,"Umbau P1",IF(J27>Annahmen!$D$10,"Umbau P2","kein Umbau"))))))) ->  | Q27: =IF(AND(Erfassungsmaske!G24="X",Erfassungsmaske!H24="X"),"bereits umgebaut (A und B)",IF(AND(Erfassungsmaske!G24="X",Erfassungsmaske!K24="X"),"A bereits umgebaut, B projektiert",IF(AND(Erfassungsmaske!H24="X",Erfassungsmaske!J24="X"),"B bereits umgebaut, A projektiert",IF(Erfassungsmaske!G24="X","A bereits umgebaut",IF(Erfassungsmaske!H24="X","B bereits umgebaut",IF(AND(Erfassungsmaske!J24="X",Erfassungsmaske!K24="X"),"Umbau projektiert (A und B)",IF(Erfassungsmaske!J24="X","Umbau A projektiert",IF(Erfassungsmaske!K24="X","Umbau B projektiert","")))))))) ->  | V27: 1 | W27: 1 | X27: 0 | Y27: 0 | Z27: 0 | AA27: 0 | AB27: 0 | AC27: 0 | AD27: 0 | AE27: 0 | AF27: 0 | AG27: 0 | AH27: =IF(Erfassungsmaske!E24="(Nur Richtung A)",1,0) -> 0 | AI27: 1 | AJ27: 0 | AK27: 0 | AL27: =IF(Erfassungsmaske!D24="(Nur Richtung B)",1,0) -> 1
B28: 81360 | C28: Gstaad, Unter-Gstaad | D28: =IFERROR(VLOOKUP($B28,NKI_Datenbank,COLUMN(NKI_Datenbank!$N$1),FALSE),"") -> 48.449463 | E28: =IFERROR(VLOOKUP($B28,NKI_Datenbank,COLUMN(NKI_Datenbank!$O$1),FALSE),"") -> 48.422571 | F28: =IF(Erfassungsmaske!O25>0,1,0) -> 0 | H28: =IFERROR(VLOOKUP($B28,NKI_Datenbank,COLUMN(NKI_Datenbank!$P$1),FALSE),0) -> 0 | I28: =IFERROR(VLOOKUP($B28,NKI_Datenbank,COLUMN(NKI_Datenbank!$Q$1),FALSE),0) -> 0 | J28: =IFERROR(VLOOKUP($B28,NKI_Datenbank,COLUMN(NKI_Datenbank!$R$1),FALSE),0) -> 0 | K28: =IFERROR(IF(VLOOKUP($B28,NKI_Datenbank,COLUMN(NKI_Datenbank!$E$1),FALSE)>0,1,0),"") -> 0 | L28: =IFERROR(IF(VLOOKUP($B28,NKI_Datenbank,COLUMN(NKI_Datenbank!$D$1),FALSE)>80,1,0),"") -> 1 | P28: =IF(V28>0,"",IF(AB28>0,"kein Umbau",IF(AE28>0,IF(H28>Annahmen!$F$10,"Umbau A P1",IF(H28>Annahmen!$D$10,"Umbau A P2",IF(H28<=Annahmen!$F$10,"kein Umbau A"))),IF(AI28>0,IF(I28>Annahmen!$F$10,"Umbau B P1",IF(I28>Annahmen!$D$10,"Umbau B P2",IF(I28<=Annahmen!$F$10,"kein Umbau B"))),IF(J28=0,"",IF(J28>Annahmen!$F$10,"Umbau P1",IF(J28>Annahmen!$D$10,"Umbau P2","kein Umbau"))))))) ->  | Q28: =IF(AND(Erfassungsmaske!G25="X",Erfassungsmaske!H25="X"),"bereits umgebaut (A und B)",IF(AND(Erfassungsmaske!G25="X",Erfassungsmaske!K25="X"),"A bereits umgebaut, B projektiert",IF(AND(Erfassungsmaske!H25="X",Erfassungsmaske!J25="X"),"B bereits umgebaut, A projektiert",IF(Erfassungsmaske!G25="X","A bereits umgebaut",IF(Erfassungsmaske!H25="X","B bereits umgebaut",IF(AND(Erfassungsmaske!J25="X",Erfassungsmaske!K25="X"),"Umbau projektiert (A und B)",IF(Erfassungsmaske!J25="X","Umbau A projektiert",IF(Erfassungsmaske!K25="X","Umbau B projektiert","")))))))) ->  | V28: 1 | W28: 1 | X28: 0 | Y28: 0 | Z28: 0 | AA28: 0 | AB28: 0 | AC28: 0 | AD28: 0 | AE28: 0 | AF28: 0 | AG28: 0 | AH28: =IF(Erfassungsmaske!E25="(Nur Richtung A)",1,0) -> 0 | AI28: 0 | AJ28: 0 | AK28: 0 | AL28: =IF(Erfassungsmaske!D25="(Nur Richtung B)",1,0) -> 0
B29: 71264 | C29: Gstaad, Bahnhof | D29: =IFERROR(VLOOKUP($B29,NKI_Datenbank,COLUMN(NKI_Datenbank!$N$1),FALSE),"") -> 95.851881 | E29: =IFERROR(VLOOKUP($B29,NKI_Datenbank,COLUMN(NKI_Datenbank!$O$1),FALSE),"") -> 94.660128 | F29: =IF(Erfassungsmaske!O26>0,1,0) -> 0 | H29: =IFERROR(VLOOKUP($B29,NKI_Datenbank,COLUMN(NKI_Datenbank!$P$1),FALSE),0) -> 0 | I29: =IFERROR(VLOOKUP($B29,NKI_Datenbank,COLUMN(NKI_Datenbank!$Q$1),FALSE),0) -> 0 | J29: =IFERROR(VLOOKUP($B29,NKI_Datenbank,COLUMN(NKI_Datenbank!$R$1),FALSE),0) -> 0 | K29: =IFERROR(IF(VLOOKUP($B29,NKI_Datenbank,COLUMN(NKI_Datenbank!$E$1),FALSE)>0,1,0),"") -> 1 | L29: =IFERROR(IF(VLOOKUP($B29,NKI_Datenbank,COLUMN(NKI_Datenbank!$D$1),FALSE)>80,1,0),"") -> 1 | P29: =IF(V29>0,"",IF(AB29>0,"kein Umbau",IF(AE29>0,IF(H29>Annahmen!$F$10,"Umbau A P1",IF(H29>Annahmen!$D$10,"Umbau A P2",IF(H29<=Annahmen!$F$10,"kein Umbau A"))),IF(AI29>0,IF(I29>Annahmen!$F$10,"Umbau B P1",IF(I29>Annahmen!$D$10,"Umbau B P2",IF(I29<=Annahmen!$F$10,"kein Umbau B"))),IF(J29=0,"",IF(J29>Annahmen!$F$10,"Umbau P1",IF(J29>Annahmen!$D$10,"Umbau P2","kein Umbau"))))))) ->  | Q29: =IF(AND(Erfassungsmaske!G26="X",Erfassungsmaske!H26="X"),"bereits umgebaut (A und B)",IF(AND(Erfassungsmaske!G26="X",Erfassungsmaske!K26="X"),"A bereits umgebaut, B projektiert",IF(AND(Erfassungsmaske!H26="X",Erfassungsmaske!J26="X"),"B bereits umgebaut, A projektiert",IF(Erfassungsmaske!G26="X","A bereits umgebaut",IF(Erfassungsmaske!H26="X","B bereits umgebaut",IF(AND(Erfassungsmaske!J26="X",Erfassungsmaske!K26="X"),"Umbau projektiert (A und B)",IF(Erfassungsmaske!J26="X","Umbau A projektiert",IF(Erfassungsmaske!K26="X","Umbau B projektiert","")))))))) ->  | V29: 1 | W29: 1 | X29: 0 | Y29: 0 | Z29: 0 | AA29: 0 | AB29: 0 | AC29: 0 | AD29: 0 | AE29: 0 | AF29: 0 | AG29: 0 | AH29: =IF(Erfassungsmaske!E26="(Nur Richtung A)",1,0) -> 0 | AI29: 0 | AJ29: 0 | AK29: 0 | AL29: =IF(Erfassungsmaske!D26="(Nur Richtung B)",1,0) -> 0
B30: 81187 | C30: Gstaad, Sportzentrum | D30: =IFERROR(VLOOKUP($B30,NKI_Datenbank,COLUMN(NKI_Datenbank!$N$1),FALSE),"") -> 47.046216 | E30: =IFERROR(VLOOKUP($B30,NKI_Datenbank,COLUMN(NKI_Datenbank!$O$1),FALSE),"") -> 46.984548 | F30: =IF(Erfassungsmaske!O27>0,1,0) -> 0 | H30: =IFERROR(VLOOKUP($B30,NKI_Datenbank,COLUMN(NKI_Datenbank!$P$1),FALSE),0) -> 0 | I30: =IFERROR(VLOOKUP($B30,NKI_Datenbank,COLUMN(NKI_Datenbank!$Q$1),FALSE),0) -> 0 | J30: =IFERROR(VLOOKUP($B30,NKI_Datenbank,COLUMN(NKI_Datenbank!$R$1),FALSE),0) -> 0 | K30: =IFERROR(IF(VLOOKUP($B30,NKI_Datenbank,COLUMN(NKI_Datenbank!$E$1),FALSE)>0,1,0),"") -> 0 | L30: =IFERROR(IF(VLOOKUP($B30,NKI_Datenbank,COLUMN(NKI_Datenbank!$D$1),FALSE)>80,1,0),"") -> 1 | P30: =IF(V30>0,"",IF(AB30>0,"kein Umbau",IF(AE30>0,IF(H30>Annahmen!$F$10,"Umbau A P1",IF(H30>Annahmen!$D$10,"Umbau A P2",IF(H30<=Annahmen!$F$10,"kein Umbau A"))),IF(AI30>0,IF(I30>Annahmen!$F$10,"Umbau B P1",IF(I30>Annahmen!$D$10,"Umbau B P2",IF(I30<=Annahmen!$F$10,"kein Umbau B"))),IF(J30=0,"",IF(J30>Annahmen!$F$10,"Umbau P1",IF(J30>Annahmen!$D$10,"Umbau P2","kein Umbau"))))))) ->  | Q30: =IF(AND(Erfassungsmaske!G27="X",Erfassungsmaske!H27="X"),"bereits umgebaut (A und B)",IF(AND(Erfassungsmaske!G27="X",Erfassungsmaske!K27="X"),"A bereits umgebaut, B projektiert",IF(AND(Erfassungsmaske!H27="X",Erfassungsmaske!J27="X"),"B bereits umgebaut, A projektiert",IF(Erfassungsmaske!G27="X","A bereits umgebaut",IF(Erfassungsmaske!H27="X","B bereits umgebaut",IF(AND(Erfassungsmaske!J27="X",Erfassungsmaske!K27="X"),"Umbau projektiert (A und B)",IF(Erfassungsmaske!J27="X","Umbau A projektiert",IF(Erfassungsmaske!K27="X","Umbau B projektiert","")))))))) ->  | V30: 1 | W30: 1 | X30: 0 | Y30: 0 | Z30: 0 | AA30: 0 | AB30: 0 | AC30: 0 | AD30: 0 | AE30: 0 | AF30: 0 | AG30: 0 | AH30: =IF(Erfassungsmaske!E27="(Nur Richtung A)",1,0) -> 0 | AI30: 0 | AJ30: 0 | AK30: 0 | AL30: =IF(Erfassungsmaske!D27="(Nur Richtung B)",1,0) -> 0
B31: 81952 | C31: Gstaad, Rütti Schulhaus | D31: =IFERROR(VLOOKUP($B31,NKI_Datenbank,COLUMN(NKI_Datenbank!$N$1),FALSE),"") -> 45.13681 | E31: =IFERROR(VLOOKUP($B31,NKI_Datenbank,COLUMN(NKI_Datenbank!$O$1),FALSE),"") -> 45.915598 | F31: =IF(Erfassungsmaske!O28>0,1,0) -> 0 | H31: =IFERROR(VLOOKUP($B31,NKI_Datenbank,COLUMN(NKI_Datenbank!$P$1),FALSE),0) -> 0 | I31: =IFERROR(VLOOKUP($B31,NKI_Datenbank,COLUMN(NKI_Datenbank!$Q$1),FALSE),0) -> 0 | J31: =IFERROR(VLOOKUP($B31,NKI_Datenbank,COLUMN(NKI_Datenbank!$R$1),FALSE),0) -> 0 | K31: =IFERROR(IF(VLOOKUP($B31,NKI_Datenbank,COLUMN(NKI_Datenbank!$E$1),FALSE)>0,1,0),"") -> 0 | L31: =IFERROR(IF(VLOOKUP($B31,NKI_Datenbank,COLUMN(NKI_Datenbank!$D$1),FALSE)>80,1,0),"") -> 1 | P31: =IF(V31>0,"",IF(AB31>0,"kein Umbau",IF(AE31>0,IF(H31>Annahmen!$F$10,"Umbau A P1",IF(H31>Annahmen!$D$10,"Umbau A P2",IF(H31<=Annahmen!$F$10,"kein Umbau A"))),IF(AI31>0,IF(I31>Annahmen!$F$10,"Umbau B P1",IF(I31>Annahmen!$D$10,"Umbau B P2",IF(I31<=Annahmen!$F$10,"kein Umbau B"))),IF(J31=0,"",IF(J31>Annahmen!$F$10,"Umbau P1",IF(J31>Annahmen!$D$10,"Umbau P2","kein Umbau"))))))) ->  | Q31: =IF(AND(Erfassungsmaske!G28="X",Erfassungsmaske!H28="X"),"bereits umgebaut (A und B)",IF(AND(Erfassungsmaske!G28="X",Erfassungsmaske!K28="X"),"A bereits umgebaut, B projektiert",IF(AND(Erfassungsmaske!H28="X",Erfassungsmaske!J28="X"),"B bereits umgebaut, A projektiert",IF(Erfassungsmaske!G28="X","A bereits umgebaut",IF(Erfassungsmaske!H28="X","B bereits umgebaut",IF(AND(Erfassungsmaske!J28="X",Erfassungsmaske!K28="X"),"Umbau projektiert (A und B)",IF(Erfassungsmaske!J28="X","Umbau A projektiert",IF(Erfassungsmaske!K28="X","Umbau B projektiert","")))))))) ->  | V31: 1 | W31: 1 | X31: 0 | Y31: 0 | Z31: 0 | AA31: 0 | AB31: 0 | AC31: 0 | AD31: 0 | AE31: 0 | AF31: 0 | AG31: 0 | AH31: =IF(Erfassungsmaske!E28="(Nur Richtung A)",1,0) -> 0 | AI31: 0 | AJ31: 0 | AK31: 0 | AL31: =IF(Erfassungsmaske!D28="(Nur Richtung B)",1,0) -> 0
B32: 79277 | C32: Gstaad, Eggli | D32: =IFERROR(VLOOKUP($B32,NKI_Datenbank,COLUMN(NKI_Datenbank!$N$1),FALSE),"") -> 50.038079 | E32: =IFERROR(VLOOKUP($B32,NKI_Datenbank,COLUMN(NKI_Datenbank!$O$1),FALSE),"") -> 50.554886 | F32: =IF(Erfassungsmaske!O29>0,1,0) -> 0 | H32: =IFERROR(VLOOKUP($B32,NKI_Datenbank,COLUMN(NKI_Datenbank!$P$1),FALSE),0) -> 0 | I32: =IFERROR(VLOOKUP($B32,NKI_Datenbank,COLUMN(NKI_Datenbank!$Q$1),FALSE),0) -> 0 | J32: =IFERROR(VLOOKUP($B32,NKI_Datenbank,COLUMN(NKI_Datenbank!$R$1),FALSE),0) -> 0 | K32: =IFERROR(IF(VLOOKUP($B32,NKI_Datenbank,COLUMN(NKI_Datenbank!$E$1),FALSE)>0,1,0),"") -> 1 | L32: =IFERROR(IF(VLOOKUP($B32,NKI_Datenbank,COLUMN(NKI_Datenbank!$D$1),FALSE)>80,1,0),"") -> 1 | P32: =IF(V32>0,"",IF(AB32>0,"kein Umbau",IF(AE32>0,IF(H32>Annahmen!$F$10,"Umbau A P1",IF(H32>Annahmen!$D$10,"Umbau A P2",IF(H32<=Annahmen!$F$10,"kein Umbau A"))),IF(AI32>0,IF(I32>Annahmen!$F$10,"Umbau B P1",IF(I32>Annahmen!$D$10,"Umbau B P2",IF(I32<=Annahmen!$F$10,"kein Umbau B"))),IF(J32=0,"",IF(J32>Annahmen!$F$10,"Umbau P1",IF(J32>Annahmen!$D$10,"Umbau P2","kein Umbau"))))))) ->  | Q32: =IF(AND(Erfassungsmaske!G29="X",Erfassungsmaske!H29="X"),"bereits umgebaut (A und B)",IF(AND(Erfassungsmaske!G29="X",Erfassungsmaske!K29="X"),"A bereits umgebaut, B projektiert",IF(AND(Erfassungsmaske!H29="X",Erfassungsmaske!J29="X"),"B bereits umgebaut, A projektiert",IF(Erfassungsmaske!G29="X","A bereits umgebaut",IF(Erfassungsmaske!H29="X","B bereits umgebaut",IF(AND(Erfassungsmaske!J29="X",Erfassungsmaske!K29="X"),"Umbau projektiert (A und B)",IF(Erfassungsmaske!J29="X","Umbau A projektiert",IF(Erfassungsmaske!K29="X","Umbau B projektiert","")))))))) ->  | V32: 1 | W32: 1 | X32: 0 | Y32: 0 | Z32: 0 | AA32: 0 | AB32: 0 | AC32: 0 | AD32: 0 | AE32: 0 | AF32: 0 | AG32: 0 | AH32: =IF(Erfassungsmaske!E29="(Nur Richtung A)",1,0) -> 0 | AI32: 0 | AJ32: 0 | AK32: 0 | AL32: =IF(Erfassungsmaske!D29="(Nur Richtung B)",1,0) -> 0
B33: 1329 | C33: Gstaad, Wispile | D33: =IFERROR(VLOOKUP($B33,NKI_Datenbank,COLUMN(NKI_Datenbank!$N$1),FALSE),"") -> 30.817729 | E33: =IFERROR(VLOOKUP($B33,NKI_Datenbank,COLUMN(NKI_Datenbank!$O$1),FALSE),"") -> 31.079251 | F33: =IF(Erfassungsmaske!O30>0,1,0) -> 0 | H33: =IFERROR(VLOOKUP($B33,NKI_Datenbank,COLUMN(NKI_Datenbank!$P$1),FALSE),0) -> 0 | I33: =IFERROR(VLOOKUP($B33,NKI_Datenbank,COLUMN(NKI_Datenbank!$Q$1),FALSE),0) -> 0 | J33: =IFERROR(VLOOKUP($B33,NKI_Datenbank,COLUMN(NKI_Datenbank!$R$1),FALSE),0) -> 0 | K33: =IFERROR(IF(VLOOKUP($B33,NKI_Datenbank,COLUMN(NKI_Datenbank!$E$1),FALSE)>0,1,0),"") -> 1 | L33: =IFERROR(IF(VLOOKUP($B33,NKI_Datenbank,COLUMN(NKI_Datenbank!$D$1),FALSE)>80,1,0),"") -> 0 | P33: =IF(V33>0,"",IF(AB33>0,"kein Umbau",IF(AE33>0,IF(H33>Annahmen!$F$10,"Umbau A P1",IF(H33>Annahmen!$D$10,"Umbau A P2",IF(H33<=Annahmen!$F$10,"kein Umbau A"))),IF(AI33>0,IF(I33>Annahmen!$F$10,"Umbau B P1",IF(I33>Annahmen!$D$10,"Umbau B P2",IF(I33<=Annahmen!$F$10,"kein Umbau B"))),IF(J33=0,"",IF(J33>Annahmen!$F$10,"Umbau P1",IF(J33>Annahmen!$D$10,"Umbau P2","kein Umbau"))))))) ->  | Q33: =IF(AND(Erfassungsmaske!G30="X",Erfassungsmaske!H30="X"),"bereits umgebaut (A und B)",IF(AND(Erfassungsmaske!G30="X",Erfassungsmaske!K30="X"),"A bereits umgebaut, B projektiert",IF(AND(Erfassungsmaske!H30="X",Erfassungsmaske!J30="X"),"B bereits umgebaut, A projektiert",IF(Erfassungsmaske!G30="X","A bereits umgebaut",IF(Erfassungsmaske!H30="X","B bereits umgebaut",IF(AND(Erfassungsmaske!J30="X",Erfassungsmaske!K30="X"),"Umbau projektiert (A und B)",IF(Erfassungsmaske!J30="X","Umbau A projektiert",IF(Erfassungsmaske!K30="X","Umbau B projektiert","")))))))) ->  | V33: 1 | W33: 1 | X33: 0 | Y33: 0 | Z33: 0 | AA33: 0 | AB33: 0 | AC33: 0 | AD33: 0 | AE33: 0 | AF33: 0 | AG33: 0 | AH33: =IF(Erfassungsmaske!E30="(Nur Richtung A)",1,0) -> 0 | AI33: 0 | AJ33: 0 | AK33: 0 | AL33: =IF(Erfassungsmaske!D30="(Nur Richtung B)",1,0) -> 0
B34: 71266 | C34: Grund b. Gstaad, Moosfang | D34: =IFERROR(VLOOKUP($B34,NKI_Datenbank,COLUMN(NKI_Datenbank!$N$1),FALSE),"") -> 3.669309 | E34: =IFERROR(VLOOKUP($B34,NKI_Datenbank,COLUMN(NKI_Datenbank!$O$1),FALSE),"") -> 3.701601 | F34: =IF(Erfassungsmaske!O31>0,1,0) -> 0 | H34: =IFERROR(VLOOKUP($B34,NKI_Datenbank,COLUMN(NKI_Datenbank!$P$1),FALSE),0) -> 0 | I34: =IFERROR(VLOOKUP($B34,NKI_Datenbank,COLUMN(NKI_Datenbank!$Q$1),FALSE),0) -> 0 | J34: =IFERROR(VLOOKUP($B34,NKI_Datenbank,COLUMN(NKI_Datenbank!$R$1),FALSE),0) -> 0 | K34: =IFERROR(IF(VLOOKUP($B34,NKI_Datenbank,COLUMN(NKI_Datenbank!$E$1),FALSE)>0,1,0),"") -> 0 | L34: =IFERROR(IF(VLOOKUP($B34,NKI_Datenbank,COLUMN(NKI_Datenbank!$D$1),FALSE)>80,1,0),"") -> 0 | P34: =IF(V34>0,"",IF(AB34>0,"kein Umbau",IF(AE34>0,IF(H34>Annahmen!$F$10,"Umbau A P1",IF(H34>Annahmen!$D$10,"Umbau A P2",IF(H34<=Annahmen!$F$10,"kein Umbau A"))),IF(AI34>0,IF(I34>Annahmen!$F$10,"Umbau B P1",IF(I34>Annahmen!$D$10,"Umbau B P2",IF(I34<=Annahmen!$F$10,"kein Umbau B"))),IF(J34=0,"",IF(J34>Annahmen!$F$10,"Umbau P1",IF(J34>Annahmen!$D$10,"Umbau P2","kein Umbau"))))))) ->  | Q34: =IF(AND(Erfassungsmaske!G31="X",Erfassungsmaske!H31="X"),"bereits umgebaut (A und B)",IF(AND(Erfassungsmaske!G31="X",Erfassungsmaske!K31="X"),"A bereits umgebaut, B projektiert",IF(AND(Erfassungsmaske!H31="X",Erfassungsmaske!J31="X"),"B bereits umgebaut, A projektiert",IF(Erfassungsmaske!G31="X","A bereits umgebaut",IF(Erfassungsmaske!H31="X","B bereits umgebaut",IF(AND(Erfassungsmaske!J31="X",Erfassungsmaske!K31="X"),"Umbau projektiert (A und B)",IF(Erfassungsmaske!J31="X","Umbau A projektiert",IF(Erfassungsmaske!K31="X","Umbau B projektiert","")))))))) ->  | V34: 1 | W34: 1 | X34: 0 | Y34: 0 | Z34: 0 | AA34: 0 | AB34: 0 | AC34: 0 | AD34: 0 | AE34: 0 | AF34: 0 | AG34: 0 | AH34: =IF(Erfassungsmaske!E31="(Nur Richtung A)",1,0) -> 0 | AI34: 0 | AJ34: 0 | AK34: 0 | AL34: =IF(Erfassungsmaske!D31="(Nur Richtung B)",1,0) -> 0
B35: 71267 | C35: Grund b. Gstaad,Moosfangbrücke | D35: =IFERROR(VLOOKUP($B35,NKI_Datenbank,COLUMN(NKI_Datenbank!$N$1),FALSE),"") -> 5.462507 | E35: =IFERROR(VLOOKUP($B35,NKI_Datenbank,COLUMN(NKI_Datenbank!$O$1),FALSE),"") -> 6.113558 | F35: =IF(Erfassungsmaske!O32>0,1,0) -> 0 | H35: =IFERROR(VLOOKUP($B35,NKI_Datenbank,COLUMN(NKI_Datenbank!$P$1),FALSE),0) -> 0 | I35: =IFERROR(VLOOKUP($B35,NKI_Datenbank,COLUMN(NKI_Datenbank!$Q$1),FALSE),0) -> 0 | J35: =IFERROR(VLOOKUP($B35,NKI_Datenbank,COLUMN(NKI_Datenbank!$R$1),FALSE),0) -> 0 | K35: =IFERROR(IF(VLOOKUP($B35,NKI_Datenbank,COLUMN(NKI_Datenbank!$E$1),FALSE)>0,1,0),"") -> 0 | L35: =IFERROR(IF(VLOOKUP($B35,NKI_Datenbank,COLUMN(NKI_Datenbank!$D$1),FALSE)>80,1,0),"") -> 0 | P35: =IF(V35>0,"",IF(AB35>0,"kein Umbau",IF(AE35>0,IF(H35>Annahmen!$F$10,"Umbau A P1",IF(H35>Annahmen!$D$10,"Umbau A P2",IF(H35<=Annahmen!$F$10,"kein Umbau A"))),IF(AI35>0,IF(I35>Annahmen!$F$10,"Umbau B P1",IF(I35>Annahmen!$D$10,"Umbau B P2",IF(I35<=Annahmen!$F$10,"kein Umbau B"))),IF(J35=0,"",IF(J35>Annahmen!$F$10,"Umbau P1",IF(J35>Annahmen!$D$10,"Umbau P2","kein Umbau"))))))) ->  | Q35: =IF(AND(Erfassungsmaske!G32="X",Erfassungsmaske!H32="X"),"bereits umgebaut (A und B)",IF(AND(Erfassungsmaske!G32="X",Erfassungsmaske!K32="X"),"A bereits umgebaut, B projektiert",IF(AND(Erfassungsmaske!H32="X",Erfassungsmaske!J32="X"),"B bereits umgebaut, A projektiert",IF(Erfassungsmaske!G32="X","A bereits umgebaut",IF(Erfassungsmaske!H32="X","B bereits umgebaut",IF(AND(Erfassungsmaske!J32="X",Erfassungsmaske!K32="X"),"Umbau projektiert (A und B)",IF(Erfassungsmaske!J32="X","Umbau A projektiert",IF(Erfassungsmaske!K32="X","Umbau B projektiert","")))))))) ->  | V35: 1 | W35: 1 | X35: 0 | Y35: 0 | Z35: 0 | AA35: 0 | AB35: 0 | AC35: 0 | AD35: 0 | AE35: 0 | AF35: 0 | AG35: 0 | AH35: =IF(Erfassungsmaske!E32="(Nur Richtung A)",1,0) -> 0 | AI35: 0 | AJ35: 0 | AK35: 0 | AL35: =IF(Erfassungsmaske!D32="(Nur Richtung B)",1,0) -> 0
B36: 71268 | C36: Grund b. Gstaad, Lädeli | D36: =IFERROR(VLOOKUP($B36,NKI_Datenbank,COLUMN(NKI_Datenbank!$N$1),FALSE),"") -> 4.173064 | E36: =IFERROR(VLOOKUP($B36,NKI_Datenbank,COLUMN(NKI_Datenbank!$O$1),FALSE),"") -> 4.384906 | F36: =IF(Erfassungsmaske!O33>0,1,0) -> 0 | H36: =IFERROR(VLOOKUP($B36,NKI_Datenbank,COLUMN(NKI_Datenbank!$P$1),FALSE),0) -> 0 | I36: =IFERROR(VLOOKUP($B36,NKI_Datenbank,COLUMN(NKI_Datenbank!$Q$1),FALSE),0) -> 0 | J36: =IFERROR(VLOOKUP($B36,NKI_Datenbank,COLUMN(NKI_Datenbank!$R$1),FALSE),0) -> 0 | K36: =IFERROR(IF(VLOOKUP($B36,NKI_Datenbank,COLUMN(NKI_Datenbank!$E$1),FALSE)>0,1,0),"") -> 0 | L36: =IFERROR(IF(VLOOKUP($B36,NKI_Datenbank,COLUMN(NKI_Datenbank!$D$1),FALSE)>80,1,0),"") -> 0 | P36: =IF(V36>0,"",IF(AB36>0,"kein Umbau",IF(AE36>0,IF(H36>Annahmen!$F$10,"Umbau A P1",IF(H36>Annahmen!$D$10,"Umbau A P2",IF(H36<=Annahmen!$F$10,"kein Umbau A"))),IF(AI36>0,IF(I36>Annahmen!$F$10,"Umbau B P1",IF(I36>Annahmen!$D$10,"Umbau B P2",IF(I36<=Annahmen!$F$10,"kein Umbau B"))),IF(J36=0,"",IF(J36>Annahmen!$F$10,"Umbau P1",IF(J36>Annahmen!$D$10,"Umbau P2","kein Umbau"))))))) ->  | Q36: =IF(AND(Erfassungsmaske!G33="X",Erfassungsmaske!H33="X"),"bereits umgebaut (A und B)",IF(AND(Erfassungsmaske!G33="X",Erfassungsmaske!K33="X"),"A bereits umgebaut, B projektiert",IF(AND(Erfassungsmaske!H33="X",Erfassungsmaske!J33="X"),"B bereits umgebaut, A projektiert",IF(Erfassungsmaske!G33="X","A bereits umgebaut",IF(Erfassungsmaske!H33="X","B bereits umgebaut",IF(AND(Erfassungsmaske!J33="X",Erfassungsmaske!K33="X"),"Umbau projektiert (A und B)",IF(Erfassungsmaske!J33="X","Umbau A projektiert",IF(Erfassungsmaske!K33="X","Umbau B projektiert","")))))))) ->  | V36: 1 | W36: 1 | X36: 0 | Y36: 0 | Z36: 0 | AA36: 0 | AB36: 0 | AC36: 0 | AD36: 0 | AE36: 0 | AF36: 0 | AG36: 0 | AH36: =IF(Erfassungsmaske!E33="(Nur Richtung A)",1,0) -> 0 | AI36: 0 | AJ36: 0 | AK36: 0 | AL36: =IF(Erfassungsmaske!D33="(Nur Richtung B)",1,0) -> 0
B37: 71269 | C37: Grund b. Gstaad, Post | D37: =IFERROR(VLOOKUP($B37,NKI_Datenbank,COLUMN(NKI_Datenbank!$N$1),FALSE),"") -> 3.338047 | E37: =IFERROR(VLOOKUP($B37,NKI_Datenbank,COLUMN(NKI_Datenbank!$O$1),FALSE),"") -> 3.484441 | F37: =IF(Erfassungsmaske!O34>0,1,0) -> 0 | H37: =IFERROR(VLOOKUP($B37,NKI_Datenbank,COLUMN(NKI_Datenbank!$P$1),FALSE),0) -> 0 | I37: =IFERROR(VLOOKUP($B37,NKI_Datenbank,COLUMN(NKI_Datenbank!$Q$1),FALSE),0) -> 0 | J37: =IFERROR(VLOOKUP($B37,NKI_Datenbank,COLUMN(NKI_Datenbank!$R$1),FALSE),0) -> 0 | K37: =IFERROR(IF(VLOOKUP($B37,NKI_Datenbank,COLUMN(NKI_Datenbank!$E$1),FALSE)>0,1,0),"") -> 0 | L37: =IFERROR(IF(VLOOKUP($B37,NKI_Datenbank,COLUMN(NKI_Datenbank!$D$1),FALSE)>80,1,0),"") -> 0 | P37: =IF(V37>0,"",IF(AB37>0,"kein Umbau",IF(AE37>0,IF(H37>Annahmen!$F$10,"Umbau A P1",IF(H37>Annahmen!$D$10,"Umbau A P2",IF(H37<=Annahmen!$F$10,"kein Umbau A"))),IF(AI37>0,IF(I37>Annahmen!$F$10,"Umbau B P1",IF(I37>Annahmen!$D$10,"Umbau B P2",IF(I37<=Annahmen!$F$10,"kein Umbau B"))),IF(J37=0,"",IF(J37>Annahmen!$F$10,"Umbau P1",IF(J37>Annahmen!$D$10,"Umbau P2","kein Umbau"))))))) ->  | Q37: =IF(AND(Erfassungsmaske!G34="X",Erfassungsmaske!H34="X"),"bereits umgebaut (A und B)",IF(AND(Erfassungsmaske!G34="X",Erfassungsmaske!K34="X"),"A bereits umgebaut, B projektiert",IF(AND(Erfassungsmaske!H34="X",Erfassungsmaske!J34="X"),"B bereits umgebaut, A projektiert",IF(Erfassungsmaske!G34="X","A bereits umgebaut",IF(Erfassungsmaske!H34="X","B bereits umgebaut",IF(AND(Erfassungsmaske!J34="X",Erfassungsmaske!K34="X"),"Umbau projektiert (A und B)",IF(Erfassungsmaske!J34="X","Umbau A projektiert",IF(Erfassungsmaske!K34="X","Umbau B projektiert","")))))))) ->  | V37: 1 | W37: 1 | X37: 0 | Y37: 0 | Z37: 0 | AA37: 0 | AB37: 0 | AC37: 0 | AD37: 0 | AE37: 0 | AF37: 0 | AG37: 0 | AH37: =IF(Erfassungsmaske!E34="(Nur Richtung A)",1,0) -> 0 | AI37: 0 | AJ37: 0 | AK37: 0 | AL37: =IF(Erfassungsmaske!D34="(Nur Richtung B)",1,0) -> 0
B38: 71270 | C38: Grund b. Gstaad, Klösterli | D38: =IFERROR(VLOOKUP($B38,NKI_Datenbank,COLUMN(NKI_Datenbank!$N$1),FALSE),"") -> 2.700192 | E38: =IFERROR(VLOOKUP($B38,NKI_Datenbank,COLUMN(NKI_Datenbank!$O$1),FALSE),"") -> 2.879931 | F38: =IF(Erfassungsmaske!O35>0,1,0) -> 0 | H38: =IFERROR(VLOOKUP($B38,NKI_Datenbank,COLUMN(NKI_Datenbank!$P$1),FALSE),0) -> 0 | I38: =IFERROR(VLOOKUP($B38,NKI_Datenbank,COLUMN(NKI_Datenbank!$Q$1),FALSE),0) -> 0 | J38: =IFERROR(VLOOKUP($B38,NKI_Datenbank,COLUMN(NKI_Datenbank!$R$1),FALSE),0) -> 0 | K38: =IFERROR(IF(VLOOKUP($B38,NKI_Datenbank,COLUMN(NKI_Datenbank!$E$1),FALSE)>0,1,0),"") -> 0 | L38: =IFERROR(IF(VLOOKUP($B38,NKI_Datenbank,COLUMN(NKI_Datenbank!$D$1),FALSE)>80,1,0),"") -> 0 | P38: =IF(V38>0,"",IF(AB38>0,"kein Umbau",IF(AE38>0,IF(H38>Annahmen!$F$10,"Umbau A P1",IF(H38>Annahmen!$D$10,"Umbau A P2",IF(H38<=Annahmen!$F$10,"kein Umbau A"))),IF(AI38>0,IF(I38>Annahmen!$F$10,"Umbau B P1",IF(I38>Annahmen!$D$10,"Umbau B P2",IF(I38<=Annahmen!$F$10,"kein Umbau B"))),IF(J38=0,"",IF(J38>Annahmen!$F$10,"Umbau P1",IF(J38>Annahmen!$D$10,"Umbau P2","kein Umbau"))))))) ->  | Q38: =IF(AND(Erfassungsmaske!G35="X",Erfassungsmaske!H35="X"),"bereits umgebaut (A und B)",IF(AND(Erfassungsmaske!G35="X",Erfassungsmaske!K35="X"),"A bereits umgebaut, B projektiert",IF(AND(Erfassungsmaske!H35="X",Erfassungsmaske!J35="X"),"B bereits umgebaut, A projektiert",IF(Erfassungsmaske!G35="X","A bereits umgebaut",IF(Erfassungsmaske!H35="X","B bereits umgebaut",IF(AND(Erfassungsmaske!J35="X",Erfassungsmaske!K35="X"),"Umbau projektiert (A und B)",IF(Erfassungsmaske!J35="X","Umbau A projektiert",IF(Erfassungsmaske!K35="X","Umbau B projektiert","")))))))) ->  | V38: 1 | W38: 1 | X38: 0 | Y38: 0 | Z38: 0 | AA38: 0 | AB38: 0 | AC38: 0 | AD38: 0 | AE38: 0 | AF38: 0 | AG38: 0 | AH38: =IF(Erfassungsmaske!E35="(Nur Richtung A)",1,0) -> 0 | AI38: 0 | AJ38: 0 | AK38: 0 | AL38: =IF(Erfassungsmaske!D35="(Nur Richtung B)",1,0) -> 0
B39: 71271 | C39: Grund b. Gstaad, Grundbrücke | D39: =IFERROR(VLOOKUP($B39,NKI_Datenbank,COLUMN(NKI_Datenbank!$N$1),FALSE),"") -> 0.41222 | E39: =IFERROR(VLOOKUP($B39,NKI_Datenbank,COLUMN(NKI_Datenbank!$O$1),FALSE),"") -> 0.062705 | F39: =IF(Erfassungsmaske!O36>0,1,0) -> 0 | H39: =IFERROR(VLOOKUP($B39,NKI_Datenbank,COLUMN(NKI_Datenbank!$P$1),FALSE),0) -> 0 | I39: =IFERROR(VLOOKUP($B39,NKI_Datenbank,COLUMN(NKI_Datenbank!$Q$1),FALSE),0) -> 0 | J39: =IFERROR(VLOOKUP($B39,NKI_Datenbank,COLUMN(NKI_Datenbank!$R$1),FALSE),0) -> 0 | K39: =IFERROR(IF(VLOOKUP($B39,NKI_Datenbank,COLUMN(NKI_Datenbank!$E$1),FALSE)>0,1,0),"") -> 0 | L39: =IFERROR(IF(VLOOKUP($B39,NKI_Datenbank,COLUMN(NKI_Datenbank!$D$1),FALSE)>80,1,0),"") -> 0 | P39: =IF(V39>0,"",IF(AB39>0,"kein Umbau",IF(AE39>0,IF(H39>Annahmen!$F$10,"Umbau A P1",IF(H39>Annahmen!$D$10,"Umbau A P2",IF(H39<=Annahmen!$F$10,"kein Umbau A"))),IF(AI39>0,IF(I39>Annahmen!$F$10,"Umbau B P1",IF(I39>Annahmen!$D$10,"Umbau B P2",IF(I39<=Annahmen!$F$10,"kein Umbau B"))),IF(J39=0,"",IF(J39>Annahmen!$F$10,"Umbau P1",IF(J39>Annahmen!$D$10,"Umbau P2","kein Umbau"))))))) ->  | Q39: =IF(AND(Erfassungsmaske!G36="X",Erfassungsmaske!H36="X"),"bereits umgebaut (A und B)",IF(AND(Erfassungsmaske!G36="X",Erfassungsmaske!K36="X"),"A bereits umgebaut, B projektiert",IF(AND(Erfassungsmaske!H36="X",Erfassungsmaske!J36="X"),"B bereits umgebaut, A projektiert",IF(Erfassungsmaske!G36="X","A bereits umgebaut",IF(Erfassungsmaske!H36="X","B bereits umgebaut",IF(AND(Erfassungsmaske!J36="X",Erfassungsmaske!K36="X"),"Umbau projektiert (A und B)",IF(Erfassungsmaske!J36="X","Umbau A projektiert",IF(Erfassungsmaske!K36="X","Umbau B projektiert","")))))))) ->  | V39: 1 | W39: 1 | X39: 0 | Y39: 0 | Z39: 0 | AA39: 0 | AB39: 0 | AC39: 0 | AD39: 0 | AE39: 0 | AF39: 0 | AG39: 0 | AH39: =IF(Erfassungsmaske!E36="(Nur Richtung A)",1,0) -> 0 | AI39: 0 | AJ39: 0 | AK39: 0 | AL39: =IF(Erfassungsmaske!D36="(Nur Richtung B)",1,0) -> 0
B40: 1771 | C40: Feutersoey, Dorf | D40: =IFERROR(VLOOKUP($B40,NKI_Datenbank,COLUMN(NKI_Datenbank!$N$1),FALSE),"") -> 26.047201 | E40: =IFERROR(VLOOKUP($B40,NKI_Datenbank,COLUMN(NKI_Datenbank!$O$1),FALSE),"") -> 25.434328 | F40: =IF(Erfassungsmaske!O37>0,1,0) -> 0 | H40: =IFERROR(VLOOKUP($B40,NKI_Datenbank,COLUMN(NKI_Datenbank!$P$1),FALSE),0) -> 0 | I40: =IFERROR(VLOOKUP($B40,NKI_Datenbank,COLUMN(NKI_Datenbank!$Q$1),FALSE),0) -> 0 | J40: =IFERROR(VLOOKUP($B40,NKI_Datenbank,COLUMN(NKI_Datenbank!$R$1),FALSE),0) -> 0 | K40: =IFERROR(IF(VLOOKUP($B40,NKI_Datenbank,COLUMN(NKI_Datenbank!$E$1),FALSE)>0,1,0),"") -> 0 | L40: =IFERROR(IF(VLOOKUP($B40,NKI_Datenbank,COLUMN(NKI_Datenbank!$D$1),FALSE)>80,1,0),"") -> 0 | P40: =IF(V40>0,"",IF(AB40>0,"kein Umbau",IF(AE40>0,IF(H40>Annahmen!$F$10,"Umbau A P1",IF(H40>Annahmen!$D$10,"Umbau A P2",IF(H40<=Annahmen!$F$10,"kein Umbau A"))),IF(AI40>0,IF(I40>Annahmen!$F$10,"Umbau B P1",IF(I40>Annahmen!$D$10,"Umbau B P2",IF(I40<=Annahmen!$F$10,"kein Umbau B"))),IF(J40=0,"",IF(J40>Annahmen!$F$10,"Umbau P1",IF(J40>Annahmen!$D$10,"Umbau P2","kein Umbau"))))))) ->  | Q40: =IF(AND(Erfassungsmaske!G37="X",Erfassungsmaske!H37="X"),"bereits umgebaut (A und B)",IF(AND(Erfassungsmaske!G37="X",Erfassungsmaske!K37="X"),"A bereits umgebaut, B projektiert",IF(AND(Erfassungsmaske!H37="X",Erfassungsmaske!J37="X"),"B bereits umgebaut, A projektiert",IF(Erfassungsmaske!G37="X","A bereits umgebaut",IF(Erfassungsmaske!H37="X","B bereits umgebaut",IF(AND(Erfassungsmaske!J37="X",Erfassungsmaske!K37="X"),"Umbau projektiert (A und B)",IF(Erfassungsmaske!J37="X","Umbau A projektiert",IF(Erfassungsmaske!K37="X","Umbau B projektiert","")))))))) ->  | V40: 1 | W40: 1 | X40: 0 | Y40: 0 | Z40: 0 | AA40: 0 | AB40: 0 | AC40: 0 | AD40: 0 | AE40: 0 | AF40: 0 | AG40: 0 | AH40: =IF(Erfassungsmaske!E37="(Nur Richtung A)",1,0) -> 0 | AI40: 0 | AJ40: 0 | AK40: 0 | AL40: =IF(Erfassungsmaske!D37="(Nur Richtung B)",1,0) -> 0
B41: 77048 | C41: Feutersoey, Bühl | D41: =IFERROR(VLOOKUP($B41,NKI_Datenbank,COLUMN(NKI_Datenbank!$N$1),FALSE),"") -> 2.50591 | E41: =IFERROR(VLOOKUP($B41,NKI_Datenbank,COLUMN(NKI_Datenbank!$O$1),FALSE),"") -> 2.685433 | F41: =IF(Erfassungsmaske!O38>0,1,0) -> 0 | H41: =IFERROR(VLOOKUP($B41,NKI_Datenbank,COLUMN(NKI_Datenbank!$P$1),FALSE),0) -> 0 | I41: =IFERROR(VLOOKUP($B41,NKI_Datenbank,COLUMN(NKI_Datenbank!$Q$1),FALSE),0) -> 0 | J41: =IFERROR(VLOOKUP($B41,NKI_Datenbank,COLUMN(NKI_Datenbank!$R$1),FALSE),0) -> 0 | K41: =IFERROR(IF(VLOOKUP($B41,NKI_Datenbank,COLUMN(NKI_Datenbank!$E$1),FALSE)>0,1,0),"") -> 0 | L41: =IFERROR(IF(VLOOKUP($B41,NKI_Datenbank,COLUMN(NKI_Datenbank!$D$1),FALSE)>80,1,0),"") -> 0 | P41: =IF(V41>0,"",IF(AB41>0,"kein Umbau",IF(AE41>0,IF(H41>Annahmen!$F$10,"Umbau A P1",IF(H41>Annahmen!$D$10,"Umbau A P2",IF(H41<=Annahmen!$F$10,"kein Umbau A"))),IF(AI41>0,IF(I41>Annahmen!$F$10,"Umbau B P1",IF(I41>Annahmen!$D$10,"Umbau B P2",IF(I41<=Annahmen!$F$10,"kein Umbau B"))),IF(J41=0,"",IF(J41>Annahmen!$F$10,"Umbau P1",IF(J41>Annahmen!$D$10,"Umbau P2","kein Umbau"))))))) ->  | Q41: =IF(AND(Erfassungsmaske!G38="X",Erfassungsmaske!H38="X"),"bereits umgebaut (A und B)",IF(AND(Erfassungsmaske!G38="X",Erfassungsmaske!K38="X"),"A bereits umgebaut, B projektiert",IF(AND(Erfassungsmaske!H38="X",Erfassungsmaske!J38="X"),"B bereits umgebaut, A projektiert",IF(Erfassungsmaske!G38="X","A bereits umgebaut",IF(Erfassungsmaske!H38="X","B bereits umgebaut",IF(AND(Erfassungsmaske!J38="X",Erfassungsmaske!K38="X"),"Umbau projektiert (A und B)",IF(Erfassungsmaske!J38="X","Umbau A projektiert",IF(Erfassungsmaske!K38="X","Umbau B projektiert","")))))))) ->  | V41: 1 | W41: 1 | X41: 0 | Y41: 0 | Z41: 0 | AA41: 0 | AB41: 0 | AC41: 0 | AD41: 0 | AE41: 0 | AF41: 0 | AG41: 0 | AH41: =IF(Erfassungsmaske!E38="(Nur Richtung A)",1,0) -> 0 | AI41: 0 | AJ41: 0 | AK41: 0 | AL41: =IF(Erfassungsmaske!D38="(Nur Richtung B)",1,0) -> 0
B42: 71272 | C42: Gsteig b. Gstaad, Saali | D42: =IFERROR(VLOOKUP($B42,NKI_Datenbank,COLUMN(NKI_Datenbank!$N$1),FALSE),"") -> 3.466704 | E42: =IFERROR(VLOOKUP($B42,NKI_Datenbank,COLUMN(NKI_Datenbank!$O$1),FALSE),"") -> 3.678033 | F42: =IF(Erfassungsmaske!O39>0,1,0) -> 0 | H42: =IFERROR(VLOOKUP($B42,NKI_Datenbank,COLUMN(NKI_Datenbank!$P$1),FALSE),0) -> 0 | I42: =IFERROR(VLOOKUP($B42,NKI_Datenbank,COLUMN(NKI_Datenbank!$Q$1),FALSE),0) -> 0 | J42: =IFERROR(VLOOKUP($B42,NKI_Datenbank,COLUMN(NKI_Datenbank!$R$1),FALSE),0) -> 0 | K42: =IFERROR(IF(VLOOKUP($B42,NKI_Datenbank,COLUMN(NKI_Datenbank!$E$1),FALSE)>0,1,0),"") -> 0 | L42: =IFERROR(IF(VLOOKUP($B42,NKI_Datenbank,COLUMN(NKI_Datenbank!$D$1),FALSE)>80,1,0),"") -> 0 | P42: =IF(V42>0,"",IF(AB42>0,"kein Umbau",IF(AE42>0,IF(H42>Annahmen!$F$10,"Umbau A P1",IF(H42>Annahmen!$D$10,"Umbau A P2",IF(H42<=Annahmen!$F$10,"kein Umbau A"))),IF(AI42>0,IF(I42>Annahmen!$F$10,"Umbau B P1",IF(I42>Annahmen!$D$10,"Umbau B P2",IF(I42<=Annahmen!$F$10,"kein Umbau B"))),IF(J42=0,"",IF(J42>Annahmen!$F$10,"Umbau P1",IF(J42>Annahmen!$D$10,"Umbau P2","kein Umbau"))))))) ->  | Q42: =IF(AND(Erfassungsmaske!G39="X",Erfassungsmaske!H39="X"),"bereits umgebaut (A und B)",IF(AND(Erfassungsmaske!G39="X",Erfassungsmaske!K39="X"),"A bereits umgebaut, B projektiert",IF(AND(Erfassungsmaske!H39="X",Erfassungsmaske!J39="X"),"B bereits umgebaut, A projektiert",IF(Erfassungsmaske!G39="X","A bereits umgebaut",IF(Erfassungsmaske!H39="X","B bereits umgebaut",IF(AND(Erfassungsmaske!J39="X",Erfassungsmaske!K39="X"),"Umbau projektiert (A und B)",IF(Erfassungsmaske!J39="X","Umbau A projektiert",IF(Erfassungsmaske!K39="X","Umbau B projektiert","")))))))) ->  | V42: 1 | W42: 1 | X42: 0 | Y42: 0 | Z42: 0 | AA42: 0 | AB42: 0 | AC42: 0 | AD42: 0 | AE42: 0 | AF42: 0 | AG42: 0 | AH42: =IF(Erfassungsmaske!E39="(Nur Richtung A)",1,0) -> 0 | AI42: 0 | AJ42: 0 | AK42: 0 | AL42: =IF(Erfassungsmaske!D39="(Nur Richtung B)",1,0) -> 0
B43: 1769 | C43: Gsteig b. Gstaad, Post | D43: =IFERROR(VLOOKUP($B43,NKI_Datenbank,COLUMN(NKI_Datenbank!$N$1),FALSE),"") -> 42.038121 | E43: =IFERROR(VLOOKUP($B43,NKI_Datenbank,COLUMN(NKI_Datenbank!$O$1),FALSE),"") -> 43.484241 | F43: =IF(Erfassungsmaske!O40>0,1,0) -> 0 | H43: =IFERROR(VLOOKUP($B43,NKI_Datenbank,COLUMN(NKI_Datenbank!$P$1),FALSE),0) -> 0 | I43: =IFERROR(VLOOKUP($B43,NKI_Datenbank,COLUMN(NKI_Datenbank!$Q$1),FALSE),0) -> 0 | J43: =IFERROR(VLOOKUP($B43,NKI_Datenbank,COLUMN(NKI_Datenbank!$R$1),FALSE),0) -> 0 | K43: =IFERROR(IF(VLOOKUP($B43,NKI_Datenbank,COLUMN(NKI_Datenbank!$E$1),FALSE)>0,1,0),"") -> 1 | L43: =IFERROR(IF(VLOOKUP($B43,NKI_Datenbank,COLUMN(NKI_Datenbank!$D$1),FALSE)>80,1,0),"") -> 0 | P43: =IF(V43>0,"",IF(AB43>0,"kein Umbau",IF(AE43>0,IF(H43>Annahmen!$F$10,"Umbau A P1",IF(H43>Annahmen!$D$10,"Umbau A P2",IF(H43<=Annahmen!$F$10,"kein Umbau A"))),IF(AI43>0,IF(I43>Annahmen!$F$10,"Umbau B P1",IF(I43>Annahmen!$D$10,"Umbau B P2",IF(I43<=Annahmen!$F$10,"kein Umbau B"))),IF(J43=0,"",IF(J43>Annahmen!$F$10,"Umbau P1",IF(J43>Annahmen!$D$10,"Umbau P2","kein Umbau"))))))) ->  | Q43: =IF(AND(Erfassungsmaske!G40="X",Erfassungsmaske!H40="X"),"bereits umgebaut (A und B)",IF(AND(Erfassungsmaske!G40="X",Erfassungsmaske!K40="X"),"A bereits umgebaut, B projektiert",IF(AND(Erfassungsmaske!H40="X",Erfassungsmaske!J40="X"),"B bereits umgebaut, A projektiert",IF(Erfassungsmaske!G40="X","A bereits umgebaut",IF(Erfassungsmaske!H40="X","B bereits umgebaut",IF(AND(Erfassungsmaske!J40="X",Erfassungsmaske!K40="X"),"Umbau projektiert (A und B)",IF(Erfassungsmaske!J40="X","Umbau A projektiert",IF(Erfassungsmaske!K40="X","Umbau B projektiert","")))))))) ->  | V43: 1 | W43: 1 | X43: 0 | Y43: 0 | Z43: 0 | AA43: 0 | AB43: 0 | AC43: 0 | AD43: 0 | AE43: 0 | AF43: 0 | AG43: 0 | AH43: =IF(Erfassungsmaske!E40="(Nur Richtung A)",1,0) -> 0 | AI43: 0 | AJ43: 0 | AK43: 0 | AL43: =IF(Erfassungsmaske!D40="(Nur Richtung B)",1,0) -> 0
B44: 71273 | C44: Gsteig b. Gstaad, Heitibrücke | D44: =IFERROR(VLOOKUP($B44,NKI_Datenbank,COLUMN(NKI_Datenbank!$N$1),FALSE),"") -> 5.871196 | E44: =IFERROR(VLOOKUP($B44,NKI_Datenbank,COLUMN(NKI_Datenbank!$O$1),FALSE),"") -> 5.053582 | F44: =IF(Erfassungsmaske!O41>0,1,0) -> 0 | H44: =IFERROR(VLOOKUP($B44,NKI_Datenbank,COLUMN(NKI_Datenbank!$P$1),FALSE),0) -> 0 | I44: =IFERROR(VLOOKUP($B44,NKI_Datenbank,COLUMN(NKI_Datenbank!$Q$1),FALSE),0) -> 0 | J44: =IFERROR(VLOOKUP($B44,NKI_Datenbank,COLUMN(NKI_Datenbank!$R$1),FALSE),0) -> 0 | K44: =IFERROR(IF(VLOOKUP($B44,NKI_Datenbank,COLUMN(NKI_Datenbank!$E$1),FALSE)>0,1,0),"") -> 0 | L44: =IFERROR(IF(VLOOKUP($B44,NKI_Datenbank,COLUMN(NKI_Datenbank!$D$1),FALSE)>80,1,0),"") -> 0 | P44: =IF(V44>0,"",IF(AB44>0,"kein Umbau",IF(AE44>0,IF(H44>Annahmen!$F$10,"Umbau A P1",IF(H44>Annahmen!$D$10,"Umbau A P2",IF(H44<=Annahmen!$F$10,"kein Umbau A"))),IF(AI44>0,IF(I44>Annahmen!$F$10,"Umbau B P1",IF(I44>Annahmen!$D$10,"Umbau B P2",IF(I44<=Annahmen!$F$10,"kein Umbau B"))),IF(J44=0,"",IF(J44>Annahmen!$F$10,"Umbau P1",IF(J44>Annahmen!$D$10,"Umbau P2","kein Umbau"))))))) ->  | Q44: =IF(AND(Erfassungsmaske!G41="X",Erfassungsmaske!H41="X"),"bereits umgebaut (A und B)",IF(AND(Erfassungsmaske!G41="X",Erfassungsmaske!K41="X"),"A bereits umgebaut, B projektiert",IF(AND(Erfassungsmaske!H41="X",Erfassungsmaske!J41="X"),"B bereits umgebaut, A projektiert",IF(Erfassungsmaske!G41="X","A bereits umgebaut",IF(Erfassungsmaske!H41="X","B bereits umgebaut",IF(AND(Erfassungsmaske!J41="X",Erfassungsmaske!K41="X"),"Umbau projektiert (A und B)",IF(Erfassungsmaske!J41="X","Umbau A projektiert",IF(Erfassungsmaske!K41="X","Umbau B projektiert","")))))))) ->  | V44: 1 | W44: 1 | X44: 0 | Y44: 0 | Z44: 0 | AA44: 0 | AB44: 0 | AC44: 0 | AD44: 0 | AE44: 0 | AF44: 0 | AG44: 0 | AH44: =IF(Erfassungsmaske!E41="(Nur Richtung A)",1,0) -> 0 | AI44: 0 | AJ44: 0 | AK44: 0 | AL44: =IF(Erfassungsmaske!D41="(Nur Richtung B)",1,0) -> 0
B45: =INDIRECT(Rel_Bezug_Linienblatt&"C"&ROW(B45)-5) -> 71274 | C45: =IFERROR(INDIRECT(Rel_Bezug_Linienblatt&"b"&ROW(B45)-5),0) -> Gsteig b. Gstaad, Gründ | D45: =IFERROR(VLOOKUP($B45,NKI_Datenbank,COLUMN(NKI_Datenbank!$N$1),FALSE),"") -> 1.827821 | E45: =IFERROR(VLOOKUP($B45,NKI_Datenbank,COLUMN(NKI_Datenbank!$O$1),FALSE),"") -> 1.860599 | F45: =IF(Erfassungsmaske!O42>0,1,0) -> 0 | H45: =IFERROR(VLOOKUP($B45,NKI_Datenbank,COLUMN(NKI_Datenbank!$P$1),FALSE),0) -> 0 | I45: =IFERROR(VLOOKUP($B45,NKI_Datenbank,COLUMN(NKI_Datenbank!$Q$1),FALSE),0) -> 0 | J45: =IFERROR(VLOOKUP($B45,NKI_Datenbank,COLUMN(NKI_Datenbank!$R$1),FALSE),0) -> 0 | K45: =IFERROR(IF(VLOOKUP($B45,NKI_Datenbank,COLUMN(NKI_Datenbank!$E$1),FALSE)>0,1,0),"") -> 0 | L45: =IFERROR(IF(VLOOKUP($B45,NKI_Datenbank,COLUMN(NKI_Datenbank!$D$1),FALSE)>80,1,0),"") -> 0 | P45: =IF(V45>0,"",IF(AB45>0,"kein Umbau",IF(AE45>0,IF(H45>Annahmen!$F$10,"Umbau A P1",IF(H45>Annahmen!$D$10,"Umbau A P2",IF(H45<=Annahmen!$F$10,"kein Umbau A"))),IF(AI45>0,IF(I45>Annahmen!$F$10,"Umbau B P1",IF(I45>Annahmen!$D$10,"Umbau B P2",IF(I45<=Annahmen!$F$10,"kein Umbau B"))),IF(J45=0,"",IF(J45>Annahmen!$F$10,"Umbau P1",IF(J45>Annahmen!$D$10,"Umbau P2","kein Umbau"))))))) ->  | Q45: =IF(AND(Erfassungsmaske!G42="X",Erfassungsmaske!H42="X"),"bereits umgebaut (A und B)",IF(AND(Erfassungsmaske!G42="X",Erfassungsmaske!K42="X"),"A bereits umgebaut, B projektiert",IF(AND(Erfassungsmaske!H42="X",Erfassungsmaske!J42="X"),"B bereits umgebaut, A projektiert",IF(Erfassungsmaske!G42="X","A bereits umgebaut",IF(Erfassungsmaske!H42="X","B bereits umgebaut",IF(AND(Erfassungsmaske!J42="X",Erfassungsmaske!K42="X"),"Umbau projektiert (A und B)",IF(Erfassungsmaske!J42="X","Umbau A projektiert",IF(Erfassungsmaske!K42="X","Umbau B projektiert","")))))))) ->  | V45: 1 | W45: 1 | X45: 0 | Y45: 0 | Z45: 0 | AA45: 0 | AB45: 0 | AC45: 0 | AD45: 0 | AE45: 0 | AF45: 0 | AG45: 0 | AH45: =IF(Erfassungsmaske!E42="(Nur Richtung A)",1,0) -> 0 | AI45: 0 | AJ45: 0 | AK45: 0 | AL45: =IF(Erfassungsmaske!D42="(Nur Richtung B)",1,0) -> 0
B46: 82705 | C46: Gsteig b. Gstaad, Schönenboden | D46: =IFERROR(VLOOKUP($B46,NKI_Datenbank,COLUMN(NKI_Datenbank!$N$1),FALSE),"") -> 0.60212 | E46: =IFERROR(VLOOKUP($B46,NKI_Datenbank,COLUMN(NKI_Datenbank!$O$1),FALSE),"") -> 0.60212 | F46: =IF(Erfassungsmaske!O43>0,1,0) -> 0 | H46: =IFERROR(VLOOKUP($B46,NKI_Datenbank,COLUMN(NKI_Datenbank!$P$1),FALSE),0) -> 0 | I46: =IFERROR(VLOOKUP($B46,NKI_Datenbank,COLUMN(NKI_Datenbank!$Q$1),FALSE),0) -> 0 | J46: =IFERROR(VLOOKUP($B46,NKI_Datenbank,COLUMN(NKI_Datenbank!$R$1),FALSE),0) -> 0 | K46: =IFERROR(IF(VLOOKUP($B46,NKI_Datenbank,COLUMN(NKI_Datenbank!$E$1),FALSE)>0,1,0),"") -> 0 | L46: =IFERROR(IF(VLOOKUP($B46,NKI_Datenbank,COLUMN(NKI_Datenbank!$D$1),FALSE)>80,1,0),"") -> 0 | P46: =IF(V46>0,"",IF(AB46>0,"kein Umbau",IF(AE46>0,IF(H46>Annahmen!$F$10,"Umbau A P1",IF(H46>Annahmen!$D$10,"Umbau A P2",IF(H46<=Annahmen!$F$10,"kein Umbau A"))),IF(AI46>0,IF(I46>Annahmen!$F$10,"Umbau B P1",IF(I46>Annahmen!$D$10,"Umbau B P2",IF(I46<=Annahmen!$F$10,"kein Umbau B"))),IF(J46=0,"",IF(J46>Annahmen!$F$10,"Umbau P1",IF(J46>Annahmen!$D$10,"Umbau P2","kein Umbau"))))))) ->  | Q46: =IF(AND(Erfassungsmaske!G43="X",Erfassungsmaske!H43="X"),"bereits umgebaut (A und B)",IF(AND(Erfassungsmaske!G43="X",Erfassungsmaske!K43="X"),"A bereits umgebaut, B projektiert",IF(AND(Erfassungsmaske!H43="X",Erfassungsmaske!J43="X"),"B bereits umgebaut, A projektiert",IF(Erfassungsmaske!G43="X","A bereits umgebaut",IF(Erfassungsmaske!H43="X","B bereits umgebaut",IF(AND(Erfassungsmaske!J43="X",Erfassungsmaske!K43="X"),"Umbau projektiert (A und B)",IF(Erfassungsmaske!J43="X","Umbau A projektiert",IF(Erfassungsmaske!K43="X","Umbau B projektiert","")))))))) ->  | V46: 1 | W46: 1 | X46: =IF($Q46=X$12,1,0) -> 0 | Y46: 0 | Z46: 0 | AA46: 0 | AB46: 0 | AC46: 0 | AD46: 0 | AE46: 0 | AF46: 0 | AG46: 0 | AH46: =IF(Erfassungsmaske!E43="(Nur Richtung A)",1,0) -> 0 | AI46: 0 | AJ46: 0 | AK46: 0 | AL46: =IF(Erfassungsmaske!D43="(Nur Richtung B)",1,0) -> 0
B47: 71275 | C47: Gsteig b. Gstaad, Höhe | D47: =IFERROR(VLOOKUP($B47,NKI_Datenbank,COLUMN(NKI_Datenbank!$N$1),FALSE),"") -> 0 | E47: =IFERROR(VLOOKUP($B47,NKI_Datenbank,COLUMN(NKI_Datenbank!$O$1),FALSE),"") -> 0.153603 | F47: =IF(Erfassungsmaske!O44>0,1,0) -> 0 | H47: =IFERROR(VLOOKUP($B47,NKI_Datenbank,COLUMN(NKI_Datenbank!$P$1),FALSE),0) -> 0 | I47: =IFERROR(VLOOKUP($B47,NKI_Datenbank,COLUMN(NKI_Datenbank!$Q$1),FALSE),0) -> 0 | J47: =IFERROR(VLOOKUP($B47,NKI_Datenbank,COLUMN(NKI_Datenbank!$R$1),FALSE),0) -> 0 | K47: =IFERROR(IF(VLOOKUP($B47,NKI_Datenbank,COLUMN(NKI_Datenbank!$E$1),FALSE)>0,1,0),"") -> 0 | L47: =IFERROR(IF(VLOOKUP($B47,NKI_Datenbank,COLUMN(NKI_Datenbank!$D$1),FALSE)>80,1,0),"") -> 0 | P47: =IF(V47>0,"",IF(AB47>0,"kein Umbau",IF(AE47>0,IF(H47>Annahmen!$F$10,"Umbau A P1",IF(H47>Annahmen!$D$10,"Umbau A P2",IF(H47<=Annahmen!$F$10,"kein Umbau A"))),IF(AI47>0,IF(I47>Annahmen!$F$10,"Umbau B P1",IF(I47>Annahmen!$D$10,"Umbau B P2",IF(I47<=Annahmen!$F$10,"kein Umbau B"))),IF(J47=0,"",IF(J47>Annahmen!$F$10,"Umbau P1",IF(J47>Annahmen!$D$10,"Umbau P2","kein Umbau"))))))) ->  | Q47: =IF(AND(Erfassungsmaske!G44="X",Erfassungsmaske!H44="X"),"bereits umgebaut (A und B)",IF(AND(Erfassungsmaske!G44="X",Erfassungsmaske!K44="X"),"A bereits umgebaut, B projektiert",IF(AND(Erfassungsmaske!H44="X",Erfassungsmaske!J44="X"),"B bereits umgebaut, A projektiert",IF(Erfassungsmaske!G44="X","A bereits umgebaut",IF(Erfassungsmaske!H44="X","B bereits umgebaut",IF(AND(Erfassungsmaske!J44="X",Erfassungsmaske!K44="X"),"Umbau projektiert (A und B)",IF(Erfassungsmaske!J44="X","Umbau A projektiert",IF(Erfassungsmaske!K44="X","Umbau B projektiert","")))))))) ->  | V47: 1 | W47: 1 | X47: 0 | Y47: 0 | Z47: 0 | AA47: 0 | AB47: 0 | AC47: 0 | AD47: 0 | AE47: 0 | AF47: 0 | AG47: 0 | AH47: =IF(Erfassungsmaske!E44="(Nur Richtung A)",1,0) -> 0 | AI47: 0 | AJ47: 0 | AK47: 0 | AL47: =IF(Erfassungsmaske!D44="(Nur Richtung B)",1,0) -> 0
B48: 71276 | C48: Reusch, Talstation | D48: =IFERROR(VLOOKUP($B48,NKI_Datenbank,COLUMN(NKI_Datenbank!$N$1),FALSE),"") ->  | E48: =IFERROR(VLOOKUP($B48,NKI_Datenbank,COLUMN(NKI_Datenbank!$O$1),FALSE),"") -> 6.979199 | F48: =IF(Erfassungsmaske!O45>0,1,0) -> 0 | H48: =IFERROR(VLOOKUP($B48,NKI_Datenbank,COLUMN(NKI_Datenbank!$P$1),FALSE),0) -> 0 | I48: =IFERROR(VLOOKUP($B48,NKI_Datenbank,COLUMN(NKI_Datenbank!$Q$1),FALSE),0) -> 0 | J48: =IFERROR(VLOOKUP($B48,NKI_Datenbank,COLUMN(NKI_Datenbank!$R$1),FALSE),0) -> 0 | K48: =IFERROR(IF(VLOOKUP($B48,NKI_Datenbank,COLUMN(NKI_Datenbank!$E$1),FALSE)>0,1,0),"") -> 1 | L48: =IFERROR(IF(VLOOKUP($B48,NKI_Datenbank,COLUMN(NKI_Datenbank!$D$1),FALSE)>80,1,0),"") -> 0 | P48: =IF(V48>0,"",IF(AB48>0,"kein Umbau",IF(AE48>0,IF(H48>Annahmen!$F$10,"Umbau A P1",IF(H48>Annahmen!$D$10,"Umbau A P2",IF(H48<=Annahmen!$F$10,"kein Umbau A"))),IF(AI48>0,IF(I48>Annahmen!$F$10,"Umbau B P1",IF(I48>Annahmen!$D$10,"Umbau B P2",IF(I48<=Annahmen!$F$10,"kein Umbau B"))),IF(J48=0,"",IF(J48>Annahmen!$F$10,"Umbau P1",IF(J48>Annahmen!$D$10,"Umbau P2","kein Umbau"))))))) ->  | Q48: =IF(AND(Erfassungsmaske!G45="X",Erfassungsmaske!H45="X"),"bereits umgebaut (A und B)",IF(AND(Erfassungsmaske!G45="X",Erfassungsmaske!K45="X"),"A bereits umgebaut, B projektiert",IF(AND(Erfassungsmaske!H45="X",Erfassungsmaske!J45="X"),"B bereits umgebaut, A projektiert",IF(Erfassungsmaske!G45="X","A bereits umgebaut",IF(Erfassungsmaske!H45="X","B bereits umgebaut",IF(AND(Erfassungsmaske!J45="X",Erfassungsmaske!K45="X"),"Umbau projektiert (A und B)",IF(Erfassungsmaske!J45="X","Umbau A projektiert",IF(Erfassungsmaske!K45="X","Umbau B projektiert","")))))))) ->  | V48: 1 | W48: 1 | X48: 0 | Y48: 0 | Z48: 0 | AA48: 0 | AB48: 0 | AC48: 0 | AD48: 0 | AE48: 0 | AF48: 0 | AG48: 0 | AH48: =IF(Erfassungsmaske!E45="(Nur Richtung A)",1,0) -> 0 | AI48: 1 | AJ48: 0 | AK48: 0 | AL48: =IF(Erfassungsmaske!D45="(Nur Richtung B)",1,0) -> 1
B49: 0 | C49: 0 | D49: =IFERROR(VLOOKUP($B49,NKI_Datenbank,COLUMN(NKI_Datenbank!$N$1),FALSE),"") ->  | E49: =IFERROR(VLOOKUP($B49,NKI_Datenbank,COLUMN(NKI_Datenbank!$O$1),FALSE),"") ->  | F49: =IF(Erfassungsmaske!O46>0,1,0) -> 0 | H49: =IFERROR(VLOOKUP($B49,NKI_Datenbank,COLUMN(NKI_Datenbank!$P$1),FALSE),0) -> 0 | I49: =IFERROR(VLOOKUP($B49,NKI_Datenbank,COLUMN(NKI_Datenbank!$Q$1),FALSE),0) -> 0 | J49: =IFERROR(VLOOKUP($B49,NKI_Datenbank,COLUMN(NKI_Datenbank!$R$1),FALSE),0) -> 0 | K49: =IFERROR(IF(VLOOKUP($B49,NKI_Datenbank,COLUMN(NKI_Datenbank!$E$1),FALSE)>0,1,0),"") ->  | L49: =IFERROR(IF(VLOOKUP($B49,NKI_Datenbank,COLUMN(NKI_Datenbank!$D$1),FALSE)>80,1,0),"") ->  | P49: =IF(V49>0,"",IF(AB49>0,"kein Umbau",IF(AE49>0,IF(H49>Annahmen!$F$10,"Umbau A P1",IF(H49>Annahmen!$D$10,"Umbau A P2",IF(H49<=Annahmen!$F$10,"kein Umbau A"))),IF(AI49>0,IF(I49>Annahmen!$F$10,"Umbau B P1",IF(I49>Annahmen!$D$10,"Umbau B P2",IF(I49<=Annahmen!$F$10,"kein Umbau B"))),IF(J49=0,"",IF(J49>Annahmen!$F$10,"Umbau P1",IF(J49>Annahmen!$D$10,"Umbau P2","kein Umbau"))))))) ->  | Q49: =IF(AND(Erfassungsmaske!G46="X",Erfassungsmaske!H46="X"),"bereits umgebaut (A und B)",IF(AND(Erfassungsmaske!G46="X",Erfassungsmaske!K46="X"),"A bereits umgebaut, B projektiert",IF(AND(Erfassungsmaske!H46="X",Erfassungsmaske!J46="X"),"B bereits umgebaut, A projektiert",IF(Erfassungsmaske!G46="X","A bereits umgebaut",IF(Erfassungsmaske!H46="X","B bereits umgebaut",IF(AND(Erfassungsmaske!J46="X",Erfassungsmaske!K46="X"),"Umbau projektiert (A und B)",IF(Erfassungsmaske!J46="X","Umbau A projektiert",IF(Erfassungsmaske!K46="X","Umbau B projektiert","")))))))) ->  | V49: 1 | W49: 1 | X49: 0 | Y49: 0 | Z49: 0 | AA49: 0 | AB49: 0 | AC49: 0 | AD49: 0 | AE49: 0 | AF49: 0 | AG49: 0 | AH49: =IF(Erfassungsmaske!E46="(Nur Richtung A)",1,0) -> 0 | AI49: 0 | AJ49: 0 | AK49: 0 | AL49: =IF(Erfassungsmaske!D46="(Nur Richtung B)",1,0) -> 0
B50: 0 | C50: 0 | D50: =IFERROR(VLOOKUP($B50,NKI_Datenbank,COLUMN(NKI_Datenbank!$N$1),FALSE),"") ->  | E50: =IFERROR(VLOOKUP($B50,NKI_Datenbank,COLUMN(NKI_Datenbank!$O$1),FALSE),"") ->  | F50: =IF(Erfassungsmaske!O47>0,1,0) -> 0 | H50: =IFERROR(VLOOKUP($B50,NKI_Datenbank,COLUMN(NKI_Datenbank!$P$1),FALSE),0) -> 0 | I50: =IFERROR(VLOOKUP($B50,NKI_Datenbank,COLUMN(NKI_Datenbank!$Q$1),FALSE),0) -> 0 | J50: =IFERROR(VLOOKUP($B50,NKI_Datenbank,COLUMN(NKI_Datenbank!$R$1),FALSE),0) -> 0 | K50: =IFERROR(IF(VLOOKUP($B50,NKI_Datenbank,COLUMN(NKI_Datenbank!$E$1),FALSE)>0,1,0),"") ->  | L50: =IFERROR(IF(VLOOKUP($B50,NKI_Datenbank,COLUMN(NKI_Datenbank!$D$1),FALSE)>80,1,0),"") ->  | P50: =IF(V50>0,"",IF(AB50>0,"kein Umbau",IF(AE50>0,IF(H50>Annahmen!$F$10,"Umbau A P1",IF(H50>Annahmen!$D$10,"Umbau A P2",IF(H50<=Annahmen!$F$10,"kein Umbau A"))),IF(AI50>0,IF(I50>Annahmen!$F$10,"Umbau B P1",IF(I50>Annahmen!$D$10,"Umbau B P2",IF(I50<=Annahmen!$F$10,"kein Umbau B"))),IF(J50=0,"",IF(J50>Annahmen!$F$10,"Umbau P1",IF(J50>Annahmen!$D$10,"Umbau P2","kein Umbau"))))))) ->  | Q50: =IF(AND(Erfassungsmaske!G47="X",Erfassungsmaske!H47="X"),"bereits umgebaut (A und B)",IF(AND(Erfassungsmaske!G47="X",Erfassungsmaske!K47="X"),"A bereits umgebaut, B projektiert",IF(AND(Erfassungsmaske!H47="X",Erfassungsmaske!J47="X"),"B bereits umgebaut, A projektiert",IF(Erfassungsmaske!G47="X","A bereits umgebaut",IF(Erfassungsmaske!H47="X","B bereits umgebaut",IF(AND(Erfassungsmaske!J47="X",Erfassungsmaske!K47="X"),"Umbau projektiert (A und B)",IF(Erfassungsmaske!J47="X","Umbau A projektiert",IF(Erfassungsmaske!K47="X","Umbau B projektiert","")))))))) ->  | V50: 1 | W50: 1 | X50: 0 | Y50: 0 | Z50: 0 | AA50: 0 | AB50: 0 | AC50: 0 | AD50: 0 | AE50: 0 | AF50: 0 | AG50: 0 | AH50: =IF(Erfassungsmaske!E47="(Nur Richtung A)",1,0) -> 0 | AI50: 0 | AJ50: 0 | AK50: 0 | AL50: =IF(Erfassungsmaske!D47="(Nur Richtung B)",1,0) -> 0
B51: 0 | C51: 0 | D51: =IFERROR(VLOOKUP($B51,NKI_Datenbank,COLUMN(NKI_Datenbank!$N$1),FALSE),"") ->  | E51: =IFERROR(VLOOKUP($B51,NKI_Datenbank,COLUMN(NKI_Datenbank!$O$1),FALSE),"") ->  | F51: =IF(Erfassungsmaske!O48>0,1,0) -> 0 | H51: =IFERROR(VLOOKUP($B51,NKI_Datenbank,COLUMN(NKI_Datenbank!$P$1),FALSE),0) -> 0 | I51: =IFERROR(VLOOKUP($B51,NKI_Datenbank,COLUMN(NKI_Datenbank!$Q$1),FALSE),0) -> 0 | J51: =IFERROR(VLOOKUP($B51,NKI_Datenbank,COLUMN(NKI_Datenbank!$R$1),FALSE),0) -> 0 | K51: =IFERROR(IF(VLOOKUP($B51,NKI_Datenbank,COLUMN(NKI_Datenbank!$E$1),FALSE)>0,1,0),"") ->  | L51: =IFERROR(IF(VLOOKUP($B51,NKI_Datenbank,COLUMN(NKI_Datenbank!$D$1),FALSE)>80,1,0),"") ->  | P51: =IF(V51>0,"",IF(AB51>0,"kein Umbau",IF(AE51>0,IF(H51>Annahmen!$F$10,"Umbau A P1",IF(H51>Annahmen!$D$10,"Umbau A P2",IF(H51<=Annahmen!$F$10,"kein Umbau A"))),IF(AI51>0,IF(I51>Annahmen!$F$10,"Umbau B P1",IF(I51>Annahmen!$D$10,"Umbau B P2",IF(I51<=Annahmen!$F$10,"kein Umbau B"))),IF(J51=0,"",IF(J51>Annahmen!$F$10,"Umbau P1",IF(J51>Annahmen!$D$10,"Umbau P2","kein Umbau"))))))) ->  | Q51: =IF(AND(Erfassungsmaske!G48="X",Erfassungsmaske!H48="X"),"bereits umgebaut (A und B)",IF(AND(Erfassungsmaske!G48="X",Erfassungsmaske!K48="X"),"A bereits umgebaut, B projektiert",IF(AND(Erfassungsmaske!H48="X",Erfassungsmaske!J48="X"),"B bereits umgebaut, A projektiert",IF(Erfassungsmaske!G48="X","A bereits umgebaut",IF(Erfassungsmaske!H48="X","B bereits umgebaut",IF(AND(Erfassungsmaske!J48="X",Erfassungsmaske!K48="X"),"Umbau projektiert (A und B)",IF(Erfassungsmaske!J48="X","Umbau A projektiert",IF(Erfassungsmaske!K48="X","Umbau B projektiert","")))))))) ->  | V51: 1 | W51: 1 | X51: 0 | Y51: 0 | Z51: 0 | AA51: 0 | AB51: 0 | AC51: 0 | AD51: 0 | AE51: 0 | AF51: 0 | AG51: 0 | AH51: =IF(Erfassungsmaske!E48="(Nur Richtung A)",1,0) -> 0 | AI51: 0 | AJ51: 0 | AK51: 0 | AL51: =IF(Erfassungsmaske!D48="(Nur Richtung B)",1,0) -> 0
B52: 0 | C52: 0 | D52: =IFERROR(VLOOKUP($B52,NKI_Datenbank,COLUMN(NKI_Datenbank!$N$1),FALSE),"") ->  | E52: =IFERROR(VLOOKUP($B52,NKI_Datenbank,COLUMN(NKI_Datenbank!$O$1),FALSE),"") ->  | F52: =IF(Erfassungsmaske!O49>0,1,0) -> 0 | H52: =IFERROR(VLOOKUP($B52,NKI_Datenbank,COLUMN(NKI_Datenbank!$P$1),FALSE),0) -> 0 | I52: =IFERROR(VLOOKUP($B52,NKI_Datenbank,COLUMN(NKI_Datenbank!$Q$1),FALSE),0) -> 0 | J52: =IFERROR(VLOOKUP($B52,NKI_Datenbank,COLUMN(NKI_Datenbank!$R$1),FALSE),0) -> 0 | K52: =IFERROR(IF(VLOOKUP($B52,NKI_Datenbank,COLUMN(NKI_Datenbank!$E$1),FALSE)>0,1,0),"") ->  | L52: =IFERROR(IF(VLOOKUP($B52,NKI_Datenbank,COLUMN(NKI_Datenbank!$D$1),FALSE)>80,1,0),"") ->  | P52: =IF(V52>0,"",IF(AB52>0,"kein Umbau",IF(AE52>0,IF(H52>Annahmen!$F$10,"Umbau A P1",IF(H52>Annahmen!$D$10,"Umbau A P2",IF(H52<=Annahmen!$F$10,"kein Umbau A"))),IF(AI52>0,IF(I52>Annahmen!$F$10,"Umbau B P1",IF(I52>Annahmen!$D$10,"Umbau B P2",IF(I52<=Annahmen!$F$10,"kein Umbau B"))),IF(J52=0,"",IF(J52>Annahmen!$F$10,"Umbau P1",IF(J52>Annahmen!$D$10,"Umbau P2","kein Umbau"))))))) ->  | Q52: =IF(AND(Erfassungsmaske!G49="X",Erfassungsmaske!H49="X"),"bereits umgebaut (A und B)",IF(AND(Erfassungsmaske!G49="X",Erfassungsmaske!K49="X"),"A bereits umgebaut, B projektiert",IF(AND(Erfassungsmaske!H49="X",Erfassungsmaske!J49="X"),"B bereits umgebaut, A projektiert",IF(Erfassungsmaske!G49="X","A bereits umgebaut",IF(Erfassungsmaske!H49="X","B bereits umgebaut",IF(AND(Erfassungsmaske!J49="X",Erfassungsmaske!K49="X"),"Umbau projektiert (A und B)",IF(Erfassungsmaske!J49="X","Umbau A projektiert",IF(Erfassungsmaske!K49="X","Umbau B projektiert","")))))))) ->  | V52: 1 | W52: 1 | X52: 0 | Y52: 0 | Z52: 0 | AA52: 0 | AB52: 0 | AC52: 0 | AD52: 0 | AE52: 0 | AF52: 0 | AG52: 0 | AH52: =IF(Erfassungsmaske!E49="(Nur Richtung A)",1,0) -> 0 | AI52: 0 | AJ52: 0 | AK52: 0 | AL52: =IF(Erfassungsmaske!D49="(Nur Richtung B)",1,0) -> 0
B53: 0 | C53: 0 | D53: =IFERROR(VLOOKUP($B53,NKI_Datenbank,COLUMN(NKI_Datenbank!$N$1),FALSE),"") ->  | E53: =IFERROR(VLOOKUP($B53,NKI_Datenbank,COLUMN(NKI_Datenbank!$O$1),FALSE),"") ->  | F53: =IF(Erfassungsmaske!O50>0,1,0) -> 0 | H53: =IFERROR(VLOOKUP($B53,NKI_Datenbank,COLUMN(NKI_Datenbank!$P$1),FALSE),0) -> 0 | I53: =IFERROR(VLOOKUP($B53,NKI_Datenbank,COLUMN(NKI_Datenbank!$Q$1),FALSE),0) -> 0 | J53: =IFERROR(VLOOKUP($B53,NKI_Datenbank,COLUMN(NKI_Datenbank!$R$1),FALSE),0) -> 0 | K53: =IFERROR(IF(VLOOKUP($B53,NKI_Datenbank,COLUMN(NKI_Datenbank!$E$1),FALSE)>0,1,0),"") ->  | L53: =IFERROR(IF(VLOOKUP($B53,NKI_Datenbank,COLUMN(NKI_Datenbank!$D$1),FALSE)>80,1,0),"") ->  | P53: =IF(V53>0,"",IF(AB53>0,"kein Umbau",IF(AE53>0,IF(H53>Annahmen!$F$10,"Umbau A P1",IF(H53>Annahmen!$D$10,"Umbau A P2",IF(H53<=Annahmen!$F$10,"kein Umbau A"))),IF(AI53>0,IF(I53>Annahmen!$F$10,"Umbau B P1",IF(I53>Annahmen!$D$10,"Umbau B P2",IF(I53<=Annahmen!$F$10,"kein Umbau B"))),IF(J53=0,"",IF(J53>Annahmen!$F$10,"Umbau P1",IF(J53>Annahmen!$D$10,"Umbau P2","kein Umbau"))))))) ->  | Q53: =IF(AND(Erfassungsmaske!G50="X",Erfassungsmaske!H50="X"),"bereits umgebaut (A und B)",IF(AND(Erfassungsmaske!G50="X",Erfassungsmaske!K50="X"),"A bereits umgebaut, B projektiert",IF(AND(Erfassungsmaske!H50="X",Erfassungsmaske!J50="X"),"B bereits umgebaut, A projektiert",IF(Erfassungsmaske!G50="X","A bereits umgebaut",IF(Erfassungsmaske!H50="X","B bereits umgebaut",IF(AND(Erfassungsmaske!J50="X",Erfassungsmaske!K50="X"),"Umbau projektiert (A und B)",IF(Erfassungsmaske!J50="X","Umbau A projektiert",IF(Erfassungsmaske!K50="X","Umbau B projektiert","")))))))) ->  | V53: 1 | W53: 1 | X53: 0 | Y53: 0 | Z53: 0 | AA53: 0 | AB53: 0 | AC53: 0 | AD53: 0 | AE53: 0 | AF53: 0 | AG53: 0 | AH53: =IF(Erfassungsmaske!E50="(Nur Richtung A)",1,0) -> 0 | AI53: 0 | AJ53: 0 | AK53: 0 | AL53: =IF(Erfassungsmaske!D50="(Nur Richtung B)",1,0) -> 0
B54: 0 | C54: 0 | D54: =IFERROR(VLOOKUP($B54,NKI_Datenbank,COLUMN(NKI_Datenbank!$N$1),FALSE),"") ->  | E54: =IFERROR(VLOOKUP($B54,NKI_Datenbank,COLUMN(NKI_Datenbank!$O$1),FALSE),"") ->  | F54: =IF(Erfassungsmaske!O51>0,1,0) -> 0 | H54: =IFERROR(VLOOKUP($B54,NKI_Datenbank,COLUMN(NKI_Datenbank!$P$1),FALSE),0) -> 0 | I54: =IFERROR(VLOOKUP($B54,NKI_Datenbank,COLUMN(NKI_Datenbank!$Q$1),FALSE),0) -> 0 | J54: =IFERROR(VLOOKUP($B54,NKI_Datenbank,COLUMN(NKI_Datenbank!$R$1),FALSE),0) -> 0 | K54: =IFERROR(IF(VLOOKUP($B54,NKI_Datenbank,COLUMN(NKI_Datenbank!$E$1),FALSE)>0,1,0),"") ->  | L54: =IFERROR(IF(VLOOKUP($B54,NKI_Datenbank,COLUMN(NKI_Datenbank!$D$1),FALSE)>80,1,0),"") ->  | P54: =IF(V54>0,"",IF(AB54>0,"kein Umbau",IF(AE54>0,IF(H54>Annahmen!$F$10,"Umbau A P1",IF(H54>Annahmen!$D$10,"Umbau A P2",IF(H54<=Annahmen!$F$10,"kein Umbau A"))),IF(AI54>0,IF(I54>Annahmen!$F$10,"Umbau B P1",IF(I54>Annahmen!$D$10,"Umbau B P2",IF(I54<=Annahmen!$F$10,"kein Umbau B"))),IF(J54=0,"",IF(J54>Annahmen!$F$10,"Umbau P1",IF(J54>Annahmen!$D$10,"Umbau P2","kein Umbau"))))))) ->  | Q54: =IF(AND(Erfassungsmaske!G51="X",Erfassungsmaske!H51="X"),"bereits umgebaut (A und B)",IF(AND(Erfassungsmaske!G51="X",Erfassungsmaske!K51="X"),"A bereits umgebaut, B projektiert",IF(AND(Erfassungsmaske!H51="X",Erfassungsmaske!J51="X"),"B bereits umgebaut, A projektiert",IF(Erfassungsmaske!G51="X","A bereits umgebaut",IF(Erfassungsmaske!H51="X","B bereits umgebaut",IF(AND(Erfassungsmaske!J51="X",Erfassungsmaske!K51="X"),"Umbau projektiert (A und B)",IF(Erfassungsmaske!J51="X","Umbau A projektiert",IF(Erfassungsmaske!K51="X","Umbau B projektiert","")))))))) ->  | V54: 1 | W54: 1 | X54: 0 | Y54: 0 | Z54: 0 | AA54: 0 | AB54: 0 | AC54: 0 | AD54: 0 | AE54: 0 | AF54: 0 | AG54: 0 | AH54: =IF(Erfassungsmaske!E51="(Nur Richtung A)",1,0) -> 0 | AI54: 0 | AJ54: 0 | AK54: 0 | AL54: =IF(Erfassungsmaske!D51="(Nur Richtung B)",1,0) -> 0
B55: 0 | C55: 0 | D55: =IFERROR(VLOOKUP($B55,NKI_Datenbank,COLUMN(NKI_Datenbank!$N$1),FALSE),"") ->  | E55: =IFERROR(VLOOKUP($B55,NKI_Datenbank,COLUMN(NKI_Datenbank!$O$1),FALSE),"") ->  | F55: =IF(Erfassungsmaske!O52>0,1,0) -> 0 | H55: =IFERROR(VLOOKUP($B55,NKI_Datenbank,COLUMN(NKI_Datenbank!$P$1),FALSE),0) -> 0 | I55: =IFERROR(VLOOKUP($B55,NKI_Datenbank,COLUMN(NKI_Datenbank!$Q$1),FALSE),0) -> 0 | J55: =IFERROR(VLOOKUP($B55,NKI_Datenbank,COLUMN(NKI_Datenbank!$R$1),FALSE),0) -> 0 | K55: =IFERROR(IF(VLOOKUP($B55,NKI_Datenbank,COLUMN(NKI_Datenbank!$E$1),FALSE)>0,1,0),"") ->  | L55: =IFERROR(IF(VLOOKUP($B55,NKI_Datenbank,COLUMN(NKI_Datenbank!$D$1),FALSE)>80,1,0),"") ->  | P55: =IF(V55>0,"",IF(AB55>0,"kein Umbau",IF(AE55>0,IF(H55>Annahmen!$F$10,"Umbau A P1",IF(H55>Annahmen!$D$10,"Umbau A P2",IF(H55<=Annahmen!$F$10,"kein Umbau A"))),IF(AI55>0,IF(I55>Annahmen!$F$10,"Umbau B P1",IF(I55>Annahmen!$D$10,"Umbau B P2",IF(I55<=Annahmen!$F$10,"kein Umbau B"))),IF(J55=0,"",IF(J55>Annahmen!$F$10,"Umbau P1",IF(J55>Annahmen!$D$10,"Umbau P2","kein Umbau"))))))) ->  | Q55: =IF(AND(Erfassungsmaske!G52="X",Erfassungsmaske!H52="X"),"bereits umgebaut (A und B)",IF(AND(Erfassungsmaske!G52="X",Erfassungsmaske!K52="X"),"A bereits umgebaut, B projektiert",IF(AND(Erfassungsmaske!H52="X",Erfassungsmaske!J52="X"),"B bereits umgebaut, A projektiert",IF(Erfassungsmaske!G52="X","A bereits umgebaut",IF(Erfassungsmaske!H52="X","B bereits umgebaut",IF(AND(Erfassungsmaske!J52="X",Erfassungsmaske!K52="X"),"Umbau projektiert (A und B)",IF(Erfassungsmaske!J52="X","Umbau A projektiert",IF(Erfassungsmaske!K52="X","Umbau B projektiert","")))))))) ->  | V55: 1 | W55: 1 | X55: 0 | Y55: 0 | Z55: 0 | AA55: 0 | AB55: 0 | AC55: 0 | AD55: 0 | AE55: 0 | AF55: 0 | AG55: 0 | AH55: =IF(Erfassungsmaske!E52="(Nur Richtung A)",1,0) -> 0 | AI55: 0 | AJ55: 0 | AK55: 0 | AL55: =IF(Erfassungsmaske!D52="(Nur Richtung B)",1,0) -> 0
B56: 0 | C56: 0 | D56: =IFERROR(VLOOKUP($B56,NKI_Datenbank,COLUMN(NKI_Datenbank!$N$1),FALSE),"") ->  | E56: =IFERROR(VLOOKUP($B56,NKI_Datenbank,COLUMN(NKI_Datenbank!$O$1),FALSE),"") ->  | F56: =IF(Erfassungsmaske!O53>0,1,0) -> 0 | H56: =IFERROR(VLOOKUP($B56,NKI_Datenbank,COLUMN(NKI_Datenbank!$P$1),FALSE),0) -> 0 | I56: =IFERROR(VLOOKUP($B56,NKI_Datenbank,COLUMN(NKI_Datenbank!$Q$1),FALSE),0) -> 0 | J56: =IFERROR(VLOOKUP($B56,NKI_Datenbank,COLUMN(NKI_Datenbank!$R$1),FALSE),0) -> 0 | K56: =IFERROR(IF(VLOOKUP($B56,NKI_Datenbank,COLUMN(NKI_Datenbank!$E$1),FALSE)>0,1,0),"") ->  | L56: =IFERROR(IF(VLOOKUP($B56,NKI_Datenbank,COLUMN(NKI_Datenbank!$D$1),FALSE)>80,1,0),"") ->  | P56: =IF(V56>0,"",IF(AB56>0,"kein Umbau",IF(AE56>0,IF(H56>Annahmen!$F$10,"Umbau A P1",IF(H56>Annahmen!$D$10,"Umbau A P2",IF(H56<=Annahmen!$F$10,"kein Umbau A"))),IF(AI56>0,IF(I56>Annahmen!$F$10,"Umbau B P1",IF(I56>Annahmen!$D$10,"Umbau B P2",IF(I56<=Annahmen!$F$10,"kein Umbau B"))),IF(J56=0,"",IF(J56>Annahmen!$F$10,"Umbau P1",IF(J56>Annahmen!$D$10,"Umbau P2","kein Umbau"))))))) ->  | Q56: =IF(AND(Erfassungsmaske!G53="X",Erfassungsmaske!H53="X"),"bereits umgebaut (A und B)",IF(AND(Erfassungsmaske!G53="X",Erfassungsmaske!K53="X"),"A bereits umgebaut, B projektiert",IF(AND(Erfassungsmaske!H53="X",Erfassungsmaske!J53="X"),"B bereits umgebaut, A projektiert",IF(Erfassungsmaske!G53="X","A bereits umgebaut",IF(Erfassungsmaske!H53="X","B bereits umgebaut",IF(AND(Erfassungsmaske!J53="X",Erfassungsmaske!K53="X"),"Umbau projektiert (A und B)",IF(Erfassungsmaske!J53="X","Umbau A projektiert",IF(Erfassungsmaske!K53="X","Umbau B projektiert","")))))))) ->  | V56: 1 | W56: 1 | X56: 0 | Y56: 0 | Z56: 0 | AA56: 0 | AB56: 0 | AC56: 0 | AD56: 0 | AE56: 0 | AF56: 0 | AG56: 0 | AH56: =IF(Erfassungsmaske!E53="(Nur Richtung A)",1,0) -> 0 | AI56: 0 | AJ56: 0 | AK56: 0 | AL56: =IF(Erfassungsmaske!D53="(Nur Richtung B)",1,0) -> 0
B57: 0 | C57: 0 | D57: =IFERROR(VLOOKUP($B57,NKI_Datenbank,COLUMN(NKI_Datenbank!$N$1),FALSE),"") ->  | E57: =IFERROR(VLOOKUP($B57,NKI_Datenbank,COLUMN(NKI_Datenbank!$O$1),FALSE),"") ->  | F57: =IF(Erfassungsmaske!O54>0,1,0) -> 0 | H57: =IFERROR(VLOOKUP($B57,NKI_Datenbank,COLUMN(NKI_Datenbank!$P$1),FALSE),0) -> 0 | I57: =IFERROR(VLOOKUP($B57,NKI_Datenbank,COLUMN(NKI_Datenbank!$Q$1),FALSE),0) -> 0 | J57: =IFERROR(VLOOKUP($B57,NKI_Datenbank,COLUMN(NKI_Datenbank!$R$1),FALSE),0) -> 0 | K57: =IFERROR(IF(VLOOKUP($B57,NKI_Datenbank,COLUMN(NKI_Datenbank!$E$1),FALSE)>0,1,0),"") ->  | L57: =IFERROR(IF(VLOOKUP($B57,NKI_Datenbank,COLUMN(NKI_Datenbank!$D$1),FALSE)>80,1,0),"") ->  | P57: =IF(V57>0,"",IF(AB57>0,"kein Umbau",IF(AE57>0,IF(H57>Annahmen!$F$10,"Umbau A P1",IF(H57>Annahmen!$D$10,"Umbau A P2",IF(H57<=Annahmen!$F$10,"kein Umbau A"))),IF(AI57>0,IF(I57>Annahmen!$F$10,"Umbau B P1",IF(I57>Annahmen!$D$10,"Umbau B P2",IF(I57<=Annahmen!$F$10,"kein Umbau B"))),IF(J57=0,"",IF(J57>Annahmen!$F$10,"Umbau P1",IF(J57>Annahmen!$D$10,"Umbau P2","kein Umbau"))))))) ->  | Q57: =IF(AND(Erfassungsmaske!G54="X",Erfassungsmaske!H54="X"),"bereits umgebaut (A und B)",IF(AND(Erfassungsmaske!G54="X",Erfassungsmaske!K54="X"),"A bereits umgebaut, B projektiert",IF(AND(Erfassungsmaske!H54="X",Erfassungsmaske!J54="X"),"B bereits umgebaut, A projektiert",IF(Erfassungsmaske!G54="X","A bereits umgebaut",IF(Erfassungsmaske!H54="X","B bereits umgebaut",IF(AND(Erfassungsmaske!J54="X",Erfassungsmaske!K54="X"),"Umbau projektiert (A und B)",IF(Erfassungsmaske!J54="X","Umbau A projektiert",IF(Erfassungsmaske!K54="X","Umbau B projektiert","")))))))) ->  | V57: 1 | W57: 1 | X57: 0 | Y57: 0 | Z57: 0 | AA57: 0 | AB57: 0 | AC57: 0 | AD57: 0 | AE57: 0 | AF57: 0 | AG57: 0 | AH57: =IF(Erfassungsmaske!E54="(Nur Richtung A)",1,0) -> 0 | AI57: 0 | AJ57: 0 | AK57: 0 | AL57: =IF(Erfassungsmaske!D54="(Nur Richtung B)",1,0) -> 0
B58: 0 | C58: 0 | D58: =IFERROR(VLOOKUP($B58,NKI_Datenbank,COLUMN(NKI_Datenbank!$N$1),FALSE),"") ->  | E58: =IFERROR(VLOOKUP($B58,NKI_Datenbank,COLUMN(NKI_Datenbank!$O$1),FALSE),"") ->  | F58: =IF(Erfassungsmaske!O55>0,1,0) -> 0 | H58: =IFERROR(VLOOKUP($B58,NKI_Datenbank,COLUMN(NKI_Datenbank!$P$1),FALSE),0) -> 0 | I58: =IFERROR(VLOOKUP($B58,NKI_Datenbank,COLUMN(NKI_Datenbank!$Q$1),FALSE),0) -> 0 | J58: =IFERROR(VLOOKUP($B58,NKI_Datenbank,COLUMN(NKI_Datenbank!$R$1),FALSE),0) -> 0 | K58: =IFERROR(IF(VLOOKUP($B58,NKI_Datenbank,COLUMN(NKI_Datenbank!$E$1),FALSE)>0,1,0),"") ->  | L58: =IFERROR(IF(VLOOKUP($B58,NKI_Datenbank,COLUMN(NKI_Datenbank!$D$1),FALSE)>80,1,0),"") ->  | P58: =IF(V58>0,"",IF(AB58>0,"kein Umbau",IF(AE58>0,IF(H58>Annahmen!$F$10,"Umbau A P1",IF(H58>Annahmen!$D$10,"Umbau A P2",IF(H58<=Annahmen!$F$10,"kein Umbau A"))),IF(AI58>0,IF(I58>Annahmen!$F$10,"Umbau B P1",IF(I58>Annahmen!$D$10,"Umbau B P2",IF(I58<=Annahmen!$F$10,"kein Umbau B"))),IF(J58=0,"",IF(J58>Annahmen!$F$10,"Umbau P1",IF(J58>Annahmen!$D$10,"Umbau P2","kein Umbau"))))))) ->  | Q58: =IF(AND(Erfassungsmaske!G55="X",Erfassungsmaske!H55="X"),"bereits umgebaut (A und B)",IF(AND(Erfassungsmaske!G55="X",Erfassungsmaske!K55="X"),"A bereits umgebaut, B projektiert",IF(AND(Erfassungsmaske!H55="X",Erfassungsmaske!J55="X"),"B bereits umgebaut, A projektiert",IF(Erfassungsmaske!G55="X","A bereits umgebaut",IF(Erfassungsmaske!H55="X","B bereits umgebaut",IF(AND(Erfassungsmaske!J55="X",Erfassungsmaske!K55="X"),"Umbau projektiert (A und B)",IF(Erfassungsmaske!J55="X","Umbau A projektiert",IF(Erfassungsmaske!K55="X","Umbau B projektiert","")))))))) ->  | V58: 1 | W58: 1 | X58: 0 | Y58: 0 | Z58: 0 | AA58: 0 | AB58: 0 | AC58: 0 | AD58: 0 | AE58: 0 | AF58: 0 | AG58: 0 | AH58: =IF(Erfassungsmaske!E55="(Nur Richtung A)",1,0) -> 0 | AI58: 0 | AJ58: 0 | AK58: 0 | AL58: =IF(Erfassungsmaske!D55="(Nur Richtung B)",1,0) -> 0
B59: 0 | C59: 0 | D59: =IFERROR(VLOOKUP($B59,NKI_Datenbank,COLUMN(NKI_Datenbank!$N$1),FALSE),"") ->  | E59: =IFERROR(VLOOKUP($B59,NKI_Datenbank,COLUMN(NKI_Datenbank!$O$1),FALSE),"") ->  | F59: =IF(Erfassungsmaske!O56>0,1,0) -> 0 | H59: =IFERROR(VLOOKUP($B59,NKI_Datenbank,COLUMN(NKI_Datenbank!$P$1),FALSE),0) -> 0 | I59: =IFERROR(VLOOKUP($B59,NKI_Datenbank,COLUMN(NKI_Datenbank!$Q$1),FALSE),0) -> 0 | J59: =IFERROR(VLOOKUP($B59,NKI_Datenbank,COLUMN(NKI_Datenbank!$R$1),FALSE),0) -> 0 | K59: =IFERROR(IF(VLOOKUP($B59,NKI_Datenbank,COLUMN(NKI_Datenbank!$E$1),FALSE)>0,1,0),"") ->  | L59: =IFERROR(IF(VLOOKUP($B59,NKI_Datenbank,COLUMN(NKI_Datenbank!$D$1),FALSE)>80,1,0),"") ->  | P59: =IF(V59>0,"",IF(AB59>0,"kein Umbau",IF(AE59>0,IF(H59>Annahmen!$F$10,"Umbau A P1",IF(H59>Annahmen!$D$10,"Umbau A P2",IF(H59<=Annahmen!$F$10,"kein Umbau A"))),IF(AI59>0,IF(I59>Annahmen!$F$10,"Umbau B P1",IF(I59>Annahmen!$D$10,"Umbau B P2",IF(I59<=Annahmen!$F$10,"kein Umbau B"))),IF(J59=0,"",IF(J59>Annahmen!$F$10,"Umbau P1",IF(J59>Annahmen!$D$10,"Umbau P2","kein Umbau"))))))) ->  | Q59: =IF(AND(Erfassungsmaske!G56="X",Erfassungsmaske!H56="X"),"bereits umgebaut (A und B)",IF(AND(Erfassungsmaske!G56="X",Erfassungsmaske!K56="X"),"A bereits umgebaut, B projektiert",IF(AND(Erfassungsmaske!H56="X",Erfassungsmaske!J56="X"),"B bereits umgebaut, A projektiert",IF(Erfassungsmaske!G56="X","A bereits umgebaut",IF(Erfassungsmaske!H56="X","B bereits umgebaut",IF(AND(Erfassungsmaske!J56="X",Erfassungsmaske!K56="X"),"Umbau projektiert (A und B)",IF(Erfassungsmaske!J56="X","Umbau A projektiert",IF(Erfassungsmaske!K56="X","Umbau B projektiert","")))))))) ->  | V59: 1 | W59: 1 | X59: 0 | Y59: 0 | Z59: 0 | AA59: 0 | AB59: 0 | AC59: 0 | AD59: 0 | AE59: 0 | AF59: 0 | AG59: 0 | AH59: =IF(Erfassungsmaske!E56="(Nur Richtung A)",1,0) -> 0 | AI59: 0 | AJ59: 0 | AK59: 0 | AL59: =IF(Erfassungsmaske!D56="(Nur Richtung B)",1,0) -> 0
B60: 0 | C60: 0 | D60: =IFERROR(VLOOKUP($B60,NKI_Datenbank,COLUMN(NKI_Datenbank!$N$1),FALSE),"") ->  | E60: =IFERROR(VLOOKUP($B60,NKI_Datenbank,COLUMN(NKI_Datenbank!$O$1),FALSE),"") ->  | F60: =IF(Erfassungsmaske!O57>0,1,0) -> 0 | H60: =IFERROR(VLOOKUP($B60,NKI_Datenbank,COLUMN(NKI_Datenbank!$P$1),FALSE),0) -> 0 | I60: =IFERROR(VLOOKUP($B60,NKI_Datenbank,COLUMN(NKI_Datenbank!$Q$1),FALSE),0) -> 0 | J60: =IFERROR(VLOOKUP($B60,NKI_Datenbank,COLUMN(NKI_Datenbank!$R$1),FALSE),0) -> 0 | K60: =IFERROR(IF(VLOOKUP($B60,NKI_Datenbank,COLUMN(NKI_Datenbank!$E$1),FALSE)>0,1,0),"") ->  | L60: =IFERROR(IF(VLOOKUP($B60,NKI_Datenbank,COLUMN(NKI_Datenbank!$D$1),FALSE)>80,1,0),"") ->  | P60: =IF(V60>0,"",IF(AB60>0,"kein Umbau",IF(AE60>0,IF(H60>Annahmen!$F$10,"Umbau A P1",IF(H60>Annahmen!$D$10,"Umbau A P2",IF(H60<=Annahmen!$F$10,"kein Umbau A"))),IF(AI60>0,IF(I60>Annahmen!$F$10,"Umbau B P1",IF(I60>Annahmen!$D$10,"Umbau B P2",IF(I60<=Annahmen!$F$10,"kein Umbau B"))),IF(J60=0,"",IF(J60>Annahmen!$F$10,"Umbau P1",IF(J60>Annahmen!$D$10,"Umbau P2","kein Umbau"))))))) ->  | Q60: =IF(AND(Erfassungsmaske!G57="X",Erfassungsmaske!H57="X"),"bereits umgebaut (A und B)",IF(AND(Erfassungsmaske!G57="X",Erfassungsmaske!K57="X"),"A bereits umgebaut, B projektiert",IF(AND(Erfassungsmaske!H57="X",Erfassungsmaske!J57="X"),"B bereits umgebaut, A projektiert",IF(Erfassungsmaske!G57="X","A bereits umgebaut",IF(Erfassungsmaske!H57="X","B bereits umgebaut",IF(AND(Erfassungsmaske!J57="X",Erfassungsmaske!K57="X"),"Umbau projektiert (A und B)",IF(Erfassungsmaske!J57="X","Umbau A projektiert",IF(Erfassungsmaske!K57="X","Umbau B projektiert","")))))))) ->  | V60: 1 | W60: 1 | X60: 0 | Y60: 0 | Z60: 0 | AA60: 0 | AB60: 0 | AC60: 0 | AD60: 0 | AE60: 0 | AF60: 0 | AG60: 0 | AH60: =IF(Erfassungsmaske!E57="(Nur Richtung A)",1,0) -> 0 | AI60: 0 | AJ60: 0 | AK60: 0 | AL60: =IF(Erfassungsmaske!D57="(Nur Richtung B)",1,0) -> 0
B61: 0 | C61: 0 | D61: =IFERROR(VLOOKUP($B61,NKI_Datenbank,COLUMN(NKI_Datenbank!$N$1),FALSE),"") ->  | E61: =IFERROR(VLOOKUP($B61,NKI_Datenbank,COLUMN(NKI_Datenbank!$O$1),FALSE),"") ->  | F61: =IF(Erfassungsmaske!O58>0,1,0) -> 0 | H61: =IFERROR(VLOOKUP($B61,NKI_Datenbank,COLUMN(NKI_Datenbank!$P$1),FALSE),0) -> 0 | I61: =IFERROR(VLOOKUP($B61,NKI_Datenbank,COLUMN(NKI_Datenbank!$Q$1),FALSE),0) -> 0 | J61: =IFERROR(VLOOKUP($B61,NKI_Datenbank,COLUMN(NKI_Datenbank!$R$1),FALSE),0) -> 0 | K61: =IFERROR(IF(VLOOKUP($B61,NKI_Datenbank,COLUMN(NKI_Datenbank!$E$1),FALSE)>0,1,0),"") ->  | L61: =IFERROR(IF(VLOOKUP($B61,NKI_Datenbank,COLUMN(NKI_Datenbank!$D$1),FALSE)>80,1,0),"") ->  | P61: =IF(V61>0,"",IF(AB61>0,"kein Umbau",IF(AE61>0,IF(H61>Annahmen!$F$10,"Umbau A P1",IF(H61>Annahmen!$D$10,"Umbau A P2",IF(H61<=Annahmen!$F$10,"kein Umbau A"))),IF(AI61>0,IF(I61>Annahmen!$F$10,"Umbau B P1",IF(I61>Annahmen!$D$10,"Umbau B P2",IF(I61<=Annahmen!$F$10,"kein Umbau B"))),IF(J61=0,"",IF(J61>Annahmen!$F$10,"Umbau P1",IF(J61>Annahmen!$D$10,"Umbau P2","kein Umbau"))))))) ->  | Q61: =IF(AND(Erfassungsmaske!G58="X",Erfassungsmaske!H58="X"),"bereits umgebaut (A und B)",IF(AND(Erfassungsmaske!G58="X",Erfassungsmaske!K58="X"),"A bereits umgebaut, B projektiert",IF(AND(Erfassungsmaske!H58="X",Erfassungsmaske!J58="X"),"B bereits umgebaut, A projektiert",IF(Erfassungsmaske!G58="X","A bereits umgebaut",IF(Erfassungsmaske!H58="X","B bereits umgebaut",IF(AND(Erfassungsmaske!J58="X",Erfassungsmaske!K58="X"),"Umbau projektiert (A und B)",IF(Erfassungsmaske!J58="X","Umbau A projektiert",IF(Erfassungsmaske!K58="X","Umbau B projektiert","")))))))) ->  | V61: 1 | W61: 1 | X61: 0 | Y61: 0 | Z61: 0 | AA61: 0 | AB61: 0 | AC61: 0 | AD61: 0 | AE61: 0 | AF61: 0 | AG61: 0 | AH61: =IF(Erfassungsmaske!E58="(Nur Richtung A)",1,0) -> 0 | AI61: 0 | AJ61: 0 | AK61: 0 | AL61: =IF(Erfassungsmaske!D58="(Nur Richtung B)",1,0) -> 0
B62: 0 | C62: 0 | D62: =IFERROR(VLOOKUP($B62,NKI_Datenbank,COLUMN(NKI_Datenbank!$N$1),FALSE),"") ->  | E62: =IFERROR(VLOOKUP($B62,NKI_Datenbank,COLUMN(NKI_Datenbank!$O$1),FALSE),"") ->  | F62: =IF(Erfassungsmaske!O59>0,1,0) -> 0 | H62: =IFERROR(VLOOKUP($B62,NKI_Datenbank,COLUMN(NKI_Datenbank!$P$1),FALSE),0) -> 0 | I62: =IFERROR(VLOOKUP($B62,NKI_Datenbank,COLUMN(NKI_Datenbank!$Q$1),FALSE),0) -> 0 | J62: =IFERROR(VLOOKUP($B62,NKI_Datenbank,COLUMN(NKI_Datenbank!$R$1),FALSE),0) -> 0 | K62: =IFERROR(IF(VLOOKUP($B62,NKI_Datenbank,COLUMN(NKI_Datenbank!$E$1),FALSE)>0,1,0),"") ->  | L62: =IFERROR(IF(VLOOKUP($B62,NKI_Datenbank,COLUMN(NKI_Datenbank!$D$1),FALSE)>80,1,0),"") ->  | P62: =IF(V62>0,"",IF(AB62>0,"kein Umbau",IF(AE62>0,IF(H62>Annahmen!$F$10,"Umbau A P1",IF(H62>Annahmen!$D$10,"Umbau A P2",IF(H62<=Annahmen!$F$10,"kein Umbau A"))),IF(AI62>0,IF(I62>Annahmen!$F$10,"Umbau B P1",IF(I62>Annahmen!$D$10,"Umbau B P2",IF(I62<=Annahmen!$F$10,"kein Umbau B"))),IF(J62=0,"",IF(J62>Annahmen!$F$10,"Umbau P1",IF(J62>Annahmen!$D$10,"Umbau P2","kein Umbau"))))))) ->  | Q62: =IF(AND(Erfassungsmaske!G59="X",Erfassungsmaske!H59="X"),"bereits umgebaut (A und B)",IF(AND(Erfassungsmaske!G59="X",Erfassungsmaske!K59="X"),"A bereits umgebaut, B projektiert",IF(AND(Erfassungsmaske!H59="X",Erfassungsmaske!J59="X"),"B bereits umgebaut, A projektiert",IF(Erfassungsmaske!G59="X","A bereits umgebaut",IF(Erfassungsmaske!H59="X","B bereits umgebaut",IF(AND(Erfassungsmaske!J59="X",Erfassungsmaske!K59="X"),"Umbau projektiert (A und B)",IF(Erfassungsmaske!J59="X","Umbau A projektiert",IF(Erfassungsmaske!K59="X","Umbau B projektiert","")))))))) ->  | V62: 1 | W62: 1 | X62: 0 | Y62: 0 | Z62: 0 | AA62: 0 | AB62: 0 | AC62: 0 | AD62: 0 | AE62: 0 | AF62: 0 | AG62: 0 | AH62: =IF(Erfassungsmaske!E59="(Nur Richtung A)",1,0) -> 0 | AI62: 0 | AJ62: 0 | AK62: 0 | AL62: =IF(Erfassungsmaske!D59="(Nur Richtung B)",1,0) -> 0
B63: 0 | C63: 0 | D63: =IFERROR(VLOOKUP($B63,NKI_Datenbank,COLUMN(NKI_Datenbank!$N$1),FALSE),"") ->  | E63: =IFERROR(VLOOKUP($B63,NKI_Datenbank,COLUMN(NKI_Datenbank!$O$1),FALSE),"") ->  | F63: =IF(Erfassungsmaske!O60>0,1,0) -> 0 | H63: =IFERROR(VLOOKUP($B63,NKI_Datenbank,COLUMN(NKI_Datenbank!$P$1),FALSE),0) -> 0 | I63: =IFERROR(VLOOKUP($B63,NKI_Datenbank,COLUMN(NKI_Datenbank!$Q$1),FALSE),0) -> 0 | J63: =IFERROR(VLOOKUP($B63,NKI_Datenbank,COLUMN(NKI_Datenbank!$R$1),FALSE),0) -> 0 | K63: =IFERROR(IF(VLOOKUP($B63,NKI_Datenbank,COLUMN(NKI_Datenbank!$E$1),FALSE)>0,1,0),"") ->  | L63: =IFERROR(IF(VLOOKUP($B63,NKI_Datenbank,COLUMN(NKI_Datenbank!$D$1),FALSE)>80,1,0),"") ->  | P63: =IF(V63>0,"",IF(AB63>0,"kein Umbau",IF(AE63>0,IF(H63>Annahmen!$F$10,"Umbau A P1",IF(H63>Annahmen!$D$10,"Umbau A P2",IF(H63<=Annahmen!$F$10,"kein Umbau A"))),IF(AI63>0,IF(I63>Annahmen!$F$10,"Umbau B P1",IF(I63>Annahmen!$D$10,"Umbau B P2",IF(I63<=Annahmen!$F$10,"kein Umbau B"))),IF(J63=0,"",IF(J63>Annahmen!$F$10,"Umbau P1",IF(J63>Annahmen!$D$10,"Umbau P2","kein Umbau"))))))) ->  | Q63: =IF(AND(Erfassungsmaske!G60="X",Erfassungsmaske!H60="X"),"bereits umgebaut (A und B)",IF(AND(Erfassungsmaske!G60="X",Erfassungsmaske!K60="X"),"A bereits umgebaut, B projektiert",IF(AND(Erfassungsmaske!H60="X",Erfassungsmaske!J60="X"),"B bereits umgebaut, A projektiert",IF(Erfassungsmaske!G60="X","A bereits umgebaut",IF(Erfassungsmaske!H60="X","B bereits umgebaut",IF(AND(Erfassungsmaske!J60="X",Erfassungsmaske!K60="X"),"Umbau projektiert (A und B)",IF(Erfassungsmaske!J60="X","Umbau A projektiert",IF(Erfassungsmaske!K60="X","Umbau B projektiert","")))))))) ->  | V63: 1 | W63: 1 | X63: 0 | Y63: 0 | Z63: 0 | AA63: 0 | AB63: 0 | AC63: 0 | AD63: 0 | AE63: 0 | AF63: 0 | AG63: 0 | AH63: =IF(Erfassungsmaske!E60="(Nur Richtung A)",1,0) -> 0 | AI63: 0 | AJ63: 0 | AK63: 0 | AL63: =IF(Erfassungsmaske!D60="(Nur Richtung B)",1,0) -> 0
B64: 0 | C64: 0 | D64: =IFERROR(VLOOKUP($B64,NKI_Datenbank,COLUMN(NKI_Datenbank!$N$1),FALSE),"") ->  | E64: =IFERROR(VLOOKUP($B64,NKI_Datenbank,COLUMN(NKI_Datenbank!$O$1),FALSE),"") ->  | F64: =IF(Erfassungsmaske!O61>0,1,0) -> 0 | H64: =IFERROR(VLOOKUP($B64,NKI_Datenbank,COLUMN(NKI_Datenbank!$P$1),FALSE),0) -> 0 | I64: =IFERROR(VLOOKUP($B64,NKI_Datenbank,COLUMN(NKI_Datenbank!$Q$1),FALSE),0) -> 0 | J64: =IFERROR(VLOOKUP($B64,NKI_Datenbank,COLUMN(NKI_Datenbank!$R$1),FALSE),0) -> 0 | K64: =IFERROR(IF(VLOOKUP($B64,NKI_Datenbank,COLUMN(NKI_Datenbank!$E$1),FALSE)>0,1,0),"") ->  | L64: =IFERROR(IF(VLOOKUP($B64,NKI_Datenbank,COLUMN(NKI_Datenbank!$D$1),FALSE)>80,1,0),"") ->  | P64: =IF(V64>0,"",IF(AB64>0,"kein Umbau",IF(AE64>0,IF(H64>Annahmen!$F$10,"Umbau A P1",IF(H64>Annahmen!$D$10,"Umbau A P2",IF(H64<=Annahmen!$F$10,"kein Umbau A"))),IF(AI64>0,IF(I64>Annahmen!$F$10,"Umbau B P1",IF(I64>Annahmen!$D$10,"Umbau B P2",IF(I64<=Annahmen!$F$10,"kein Umbau B"))),IF(J64=0,"",IF(J64>Annahmen!$F$10,"Umbau P1",IF(J64>Annahmen!$D$10,"Umbau P2","kein Umbau"))))))) ->  | Q64: =IF(AND(Erfassungsmaske!G61="X",Erfassungsmaske!H61="X"),"bereits umgebaut (A und B)",IF(AND(Erfassungsmaske!G61="X",Erfassungsmaske!K61="X"),"A bereits umgebaut, B projektiert",IF(AND(Erfassungsmaske!H61="X",Erfassungsmaske!J61="X"),"B bereits umgebaut, A projektiert",IF(Erfassungsmaske!G61="X","A bereits umgebaut",IF(Erfassungsmaske!H61="X","B bereits umgebaut",IF(AND(Erfassungsmaske!J61="X",Erfassungsmaske!K61="X"),"Umbau projektiert (A und B)",IF(Erfassungsmaske!J61="X","Umbau A projektiert",IF(Erfassungsmaske!K61="X","Umbau B projektiert","")))))))) ->  | V64: 1 | W64: 1 | X64: 0 | Y64: 0 | Z64: 0 | AA64: 0 | AB64: 0 | AC64: 0 | AD64: 0 | AE64: 0 | AF64: 0 | AG64: 0 | AH64: =IF(Erfassungsmaske!E61="(Nur Richtung A)",1,0) -> 0 | AI64: 0 | AJ64: 0 | AK64: 0 | AL64: =IF(Erfassungsmaske!D61="(Nur Richtung B)",1,0) -> 0
B65: 0 | C65: 0 | D65: =IFERROR(VLOOKUP($B65,NKI_Datenbank,COLUMN(NKI_Datenbank!$N$1),FALSE),"") ->  | E65: =IFERROR(VLOOKUP($B65,NKI_Datenbank,COLUMN(NKI_Datenbank!$O$1),FALSE),"") ->  | F65: =IF(Erfassungsmaske!O62>0,1,0) -> 0 | H65: =IFERROR(VLOOKUP($B65,NKI_Datenbank,COLUMN(NKI_Datenbank!$P$1),FALSE),0) -> 0 | I65: =IFERROR(VLOOKUP($B65,NKI_Datenbank,COLUMN(NKI_Datenbank!$Q$1),FALSE),0) -> 0 | J65: =IFERROR(VLOOKUP($B65,NKI_Datenbank,COLUMN(NKI_Datenbank!$R$1),FALSE),0) -> 0 | K65: =IFERROR(IF(VLOOKUP($B65,NKI_Datenbank,COLUMN(NKI_Datenbank!$E$1),FALSE)>0,1,0),"") ->  | L65: =IFERROR(IF(VLOOKUP($B65,NKI_Datenbank,COLUMN(NKI_Datenbank!$D$1),FALSE)>80,1,0),"") ->  | P65: =IF(V65>0,"",IF(AB65>0,"kein Umbau",IF(AE65>0,IF(H65>Annahmen!$F$10,"Umbau A P1",IF(H65>Annahmen!$D$10,"Umbau A P2",IF(H65<=Annahmen!$F$10,"kein Umbau A"))),IF(AI65>0,IF(I65>Annahmen!$F$10,"Umbau B P1",IF(I65>Annahmen!$D$10,"Umbau B P2",IF(I65<=Annahmen!$F$10,"kein Umbau B"))),IF(J65=0,"",IF(J65>Annahmen!$F$10,"Umbau P1",IF(J65>Annahmen!$D$10,"Umbau P2","kein Umbau"))))))) ->  | Q65: =IF(AND(Erfassungsmaske!G62="X",Erfassungsmaske!H62="X"),"bereits umgebaut (A und B)",IF(AND(Erfassungsmaske!G62="X",Erfassungsmaske!K62="X"),"A bereits umgebaut, B projektiert",IF(AND(Erfassungsmaske!H62="X",Erfassungsmaske!J62="X"),"B bereits umgebaut, A projektiert",IF(Erfassungsmaske!G62="X","A bereits umgebaut",IF(Erfassungsmaske!H62="X","B bereits umgebaut",IF(AND(Erfassungsmaske!J62="X",Erfassungsmaske!K62="X"),"Umbau projektiert (A und B)",IF(Erfassungsmaske!J62="X","Umbau A projektiert",IF(Erfassungsmaske!K62="X","Umbau B projektiert","")))))))) ->  | V65: 1 | W65: 1 | X65: 0 | Y65: 0 | Z65: 0 | AA65: 0 | AB65: 0 | AC65: 0 | AD65: 0 | AE65: 0 | AF65: 0 | AG65: 0 | AH65: =IF(Erfassungsmaske!E62="(Nur Richtung A)",1,0) -> 0 | AI65: 0 | AJ65: 0 | AK65: 0 | AL65: =IF(Erfassungsmaske!D62="(Nur Richtung B)",1,0) -> 0
B66: 0 | C66: 0 | D66: =IFERROR(VLOOKUP($B66,NKI_Datenbank,COLUMN(NKI_Datenbank!$N$1),FALSE),"") ->  | E66: =IFERROR(VLOOKUP($B66,NKI_Datenbank,COLUMN(NKI_Datenbank!$O$1),FALSE),"") ->  | F66: =IF(Erfassungsmaske!O63>0,1,0) -> 0 | H66: =IFERROR(VLOOKUP($B66,NKI_Datenbank,COLUMN(NKI_Datenbank!$P$1),FALSE),0) -> 0 | I66: =IFERROR(VLOOKUP($B66,NKI_Datenbank,COLUMN(NKI_Datenbank!$Q$1),FALSE),0) -> 0 | J66: =IFERROR(VLOOKUP($B66,NKI_Datenbank,COLUMN(NKI_Datenbank!$R$1),FALSE),0) -> 0 | K66: =IFERROR(IF(VLOOKUP($B66,NKI_Datenbank,COLUMN(NKI_Datenbank!$E$1),FALSE)>0,1,0),"") ->  | L66: =IFERROR(IF(VLOOKUP($B66,NKI_Datenbank,COLUMN(NKI_Datenbank!$D$1),FALSE)>80,1,0),"") ->  | P66: =IF(V66>0,"",IF(AB66>0,"kein Umbau",IF(AE66>0,IF(H66>Annahmen!$F$10,"Umbau A P1",IF(H66>Annahmen!$D$10,"Umbau A P2",IF(H66<=Annahmen!$F$10,"kein Umbau A"))),IF(AI66>0,IF(I66>Annahmen!$F$10,"Umbau B P1",IF(I66>Annahmen!$D$10,"Umbau B P2",IF(I66<=Annahmen!$F$10,"kein Umbau B"))),IF(J66=0,"",IF(J66>Annahmen!$F$10,"Umbau P1",IF(J66>Annahmen!$D$10,"Umbau P2","kein Umbau"))))))) ->  | Q66: =IF(AND(Erfassungsmaske!G63="X",Erfassungsmaske!H63="X"),"bereits umgebaut (A und B)",IF(AND(Erfassungsmaske!G63="X",Erfassungsmaske!K63="X"),"A bereits umgebaut, B projektiert",IF(AND(Erfassungsmaske!H63="X",Erfassungsmaske!J63="X"),"B bereits umgebaut, A projektiert",IF(Erfassungsmaske!G63="X","A bereits umgebaut",IF(Erfassungsmaske!H63="X","B bereits umgebaut",IF(AND(Erfassungsmaske!J63="X",Erfassungsmaske!K63="X"),"Umbau projektiert (A und B)",IF(Erfassungsmaske!J63="X","Umbau A projektiert",IF(Erfassungsmaske!K63="X","Umbau B projektiert","")))))))) ->  | V66: 1 | W66: 1 | X66: 0 | Y66: 0 | Z66: 0 | AA66: 0 | AB66: 0 | AC66: 0 | AD66: 0 | AE66: 0 | AF66: 0 | AG66: 0 | AH66: =IF(Erfassungsmaske!E63="(Nur Richtung A)",1,0) -> 0 | AI66: 0 | AJ66: 0 | AK66: 0 | AL66: =IF(Erfassungsmaske!D63="(Nur Richtung B)",1,0) -> 0
B67: 0 | C67: 0 | D67: =IFERROR(VLOOKUP($B67,NKI_Datenbank,COLUMN(NKI_Datenbank!$N$1),FALSE),"") ->  | E67: =IFERROR(VLOOKUP($B67,NKI_Datenbank,COLUMN(NKI_Datenbank!$O$1),FALSE),"") ->  | F67: =IF(Erfassungsmaske!O64>0,1,0) -> 0 | H67: =IFERROR(VLOOKUP($B67,NKI_Datenbank,COLUMN(NKI_Datenbank!$P$1),FALSE),0) -> 0 | I67: =IFERROR(VLOOKUP($B67,NKI_Datenbank,COLUMN(NKI_Datenbank!$Q$1),FALSE),0) -> 0 | J67: =IFERROR(VLOOKUP($B67,NKI_Datenbank,COLUMN(NKI_Datenbank!$R$1),FALSE),0) -> 0 | K67: =IFERROR(IF(VLOOKUP($B67,NKI_Datenbank,COLUMN(NKI_Datenbank!$E$1),FALSE)>0,1,0),"") ->  | L67: =IFERROR(IF(VLOOKUP($B67,NKI_Datenbank,COLUMN(NKI_Datenbank!$D$1),FALSE)>80,1,0),"") ->  | P67: =IF(V67>0,"",IF(AB67>0,"kein Umbau",IF(AE67>0,IF(H67>Annahmen!$F$10,"Umbau A P1",IF(H67>Annahmen!$D$10,"Umbau A P2",IF(H67<=Annahmen!$F$10,"kein Umbau A"))),IF(AI67>0,IF(I67>Annahmen!$F$10,"Umbau B P1",IF(I67>Annahmen!$D$10,"Umbau B P2",IF(I67<=Annahmen!$F$10,"kein Umbau B"))),IF(J67=0,"",IF(J67>Annahmen!$F$10,"Umbau P1",IF(J67>Annahmen!$D$10,"Umbau P2","kein Umbau"))))))) ->  | Q67: =IF(AND(Erfassungsmaske!G64="X",Erfassungsmaske!H64="X"),"bereits umgebaut (A und B)",IF(AND(Erfassungsmaske!G64="X",Erfassungsmaske!K64="X"),"A bereits umgebaut, B projektiert",IF(AND(Erfassungsmaske!H64="X",Erfassungsmaske!J64="X"),"B bereits umgebaut, A projektiert",IF(Erfassungsmaske!G64="X","A bereits umgebaut",IF(Erfassungsmaske!H64="X","B bereits umgebaut",IF(AND(Erfassungsmaske!J64="X",Erfassungsmaske!K64="X"),"Umbau projektiert (A und B)",IF(Erfassungsmaske!J64="X","Umbau A projektiert",IF(Erfassungsmaske!K64="X","Umbau B projektiert","")))))))) ->  | V67: 1 | W67: 1 | X67: 0 | Y67: 0 | Z67: 0 | AA67: 0 | AB67: 0 | AC67: 0 | AD67: 0 | AE67: 0 | AF67: 0 | AG67: 0 | AH67: =IF(Erfassungsmaske!E64="(Nur Richtung A)",1,0) -> 0 | AI67: 0 | AJ67: 0 | AK67: 0 | AL67: =IF(Erfassungsmaske!D64="(Nur Richtung B)",1,0) -> 0
B68: 0 | C68: 0 | D68: =IFERROR(VLOOKUP($B68,NKI_Datenbank,COLUMN(NKI_Datenbank!$N$1),FALSE),"") ->  | E68: =IFERROR(VLOOKUP($B68,NKI_Datenbank,COLUMN(NKI_Datenbank!$O$1),FALSE),"") ->  | F68: =IF(Erfassungsmaske!O65>0,1,0) -> 0 | H68: =IFERROR(VLOOKUP($B68,NKI_Datenbank,COLUMN(NKI_Datenbank!$P$1),FALSE),0) -> 0 | I68: =IFERROR(VLOOKUP($B68,NKI_Datenbank,COLUMN(NKI_Datenbank!$Q$1),FALSE),0) -> 0 | J68: =IFERROR(VLOOKUP($B68,NKI_Datenbank,COLUMN(NKI_Datenbank!$R$1),FALSE),0) -> 0 | K68: =IFERROR(IF(VLOOKUP($B68,NKI_Datenbank,COLUMN(NKI_Datenbank!$E$1),FALSE)>0,1,0),"") ->  | L68: =IFERROR(IF(VLOOKUP($B68,NKI_Datenbank,COLUMN(NKI_Datenbank!$D$1),FALSE)>80,1,0),"") ->  | P68: =IF(V68>0,"",IF(AB68>0,"kein Umbau",IF(AE68>0,IF(H68>Annahmen!$F$10,"Umbau A P1",IF(H68>Annahmen!$D$10,"Umbau A P2",IF(H68<=Annahmen!$F$10,"kein Umbau A"))),IF(AI68>0,IF(I68>Annahmen!$F$10,"Umbau B P1",IF(I68>Annahmen!$D$10,"Umbau B P2",IF(I68<=Annahmen!$F$10,"kein Umbau B"))),IF(J68=0,"",IF(J68>Annahmen!$F$10,"Umbau P1",IF(J68>Annahmen!$D$10,"Umbau P2","kein Umbau"))))))) ->  | Q68: =IF(AND(Erfassungsmaske!G65="X",Erfassungsmaske!H65="X"),"bereits umgebaut (A und B)",IF(AND(Erfassungsmaske!G65="X",Erfassungsmaske!K65="X"),"A bereits umgebaut, B projektiert",IF(AND(Erfassungsmaske!H65="X",Erfassungsmaske!J65="X"),"B bereits umgebaut, A projektiert",IF(Erfassungsmaske!G65="X","A bereits umgebaut",IF(Erfassungsmaske!H65="X","B bereits umgebaut",IF(AND(Erfassungsmaske!J65="X",Erfassungsmaske!K65="X"),"Umbau projektiert (A und B)",IF(Erfassungsmaske!J65="X","Umbau A projektiert",IF(Erfassungsmaske!K65="X","Umbau B projektiert","")))))))) ->  | V68: 1 | W68: 1 | X68: 0 | Y68: 0 | Z68: 0 | AA68: 0 | AB68: 0 | AC68: 0 | AD68: 0 | AE68: 0 | AF68: 0 | AG68: 0 | AH68: =IF(Erfassungsmaske!E65="(Nur Richtung A)",1,0) -> 0 | AI68: 0 | AJ68: 0 | AK68: 0 | AL68: =IF(Erfassungsmaske!D65="(Nur Richtung B)",1,0) -> 0
B69: 0 | C69: 0 | D69: =IFERROR(VLOOKUP($B69,NKI_Datenbank,COLUMN(NKI_Datenbank!$N$1),FALSE),"") ->  | E69: =IFERROR(VLOOKUP($B69,NKI_Datenbank,COLUMN(NKI_Datenbank!$O$1),FALSE),"") ->  | F69: =IF(Erfassungsmaske!O66>0,1,0) -> 0 | H69: =IFERROR(VLOOKUP($B69,NKI_Datenbank,COLUMN(NKI_Datenbank!$P$1),FALSE),0) -> 0 | I69: =IFERROR(VLOOKUP($B69,NKI_Datenbank,COLUMN(NKI_Datenbank!$Q$1),FALSE),0) -> 0 | J69: =IFERROR(VLOOKUP($B69,NKI_Datenbank,COLUMN(NKI_Datenbank!$R$1),FALSE),0) -> 0 | K69: =IFERROR(IF(VLOOKUP($B69,NKI_Datenbank,COLUMN(NKI_Datenbank!$E$1),FALSE)>0,1,0),"") ->  | L69: =IFERROR(IF(VLOOKUP($B69,NKI_Datenbank,COLUMN(NKI_Datenbank!$D$1),FALSE)>80,1,0),"") ->  | P69: =IF(V69>0,"",IF(AB69>0,"kein Umbau",IF(AE69>0,IF(H69>Annahmen!$F$10,"Umbau A P1",IF(H69>Annahmen!$D$10,"Umbau A P2",IF(H69<=Annahmen!$F$10,"kein Umbau A"))),IF(AI69>0,IF(I69>Annahmen!$F$10,"Umbau B P1",IF(I69>Annahmen!$D$10,"Umbau B P2",IF(I69<=Annahmen!$F$10,"kein Umbau B"))),IF(J69=0,"",IF(J69>Annahmen!$F$10,"Umbau P1",IF(J69>Annahmen!$D$10,"Umbau P2","kein Umbau"))))))) ->  | Q69: =IF(AND(Erfassungsmaske!G66="X",Erfassungsmaske!H66="X"),"bereits umgebaut (A und B)",IF(AND(Erfassungsmaske!G66="X",Erfassungsmaske!K66="X"),"A bereits umgebaut, B projektiert",IF(AND(Erfassungsmaske!H66="X",Erfassungsmaske!J66="X"),"B bereits umgebaut, A projektiert",IF(Erfassungsmaske!G66="X","A bereits umgebaut",IF(Erfassungsmaske!H66="X","B bereits umgebaut",IF(AND(Erfassungsmaske!J66="X",Erfassungsmaske!K66="X"),"Umbau projektiert (A und B)",IF(Erfassungsmaske!J66="X","Umbau A projektiert",IF(Erfassungsmaske!K66="X","Umbau B projektiert","")))))))) ->  | V69: 1 | W69: 1 | X69: 0 | Y69: 0 | Z69: 0 | AA69: 0 | AB69: 0 | AC69: 0 | AD69: 0 | AE69: 0 | AF69: 0 | AG69: 0 | AH69: =IF(Erfassungsmaske!E66="(Nur Richtung A)",1,0) -> 0 | AI69: 0 | AJ69: 0 | AK69: 0 | AL69: =IF(Erfassungsmaske!D66="(Nur Richtung B)",1,0) -> 0
B70: 0 | C70: 0 | D70: =IFERROR(VLOOKUP($B70,NKI_Datenbank,COLUMN(NKI_Datenbank!$N$1),FALSE),"") ->  | E70: =IFERROR(VLOOKUP($B70,NKI_Datenbank,COLUMN(NKI_Datenbank!$O$1),FALSE),"") ->  | F70: =IF(Erfassungsmaske!O67>0,1,0) -> 0 | H70: =IFERROR(VLOOKUP($B70,NKI_Datenbank,COLUMN(NKI_Datenbank!$P$1),FALSE),0) -> 0 | I70: =IFERROR(VLOOKUP($B70,NKI_Datenbank,COLUMN(NKI_Datenbank!$Q$1),FALSE),0) -> 0 | J70: =IFERROR(VLOOKUP($B70,NKI_Datenbank,COLUMN(NKI_Datenbank!$R$1),FALSE),0) -> 0 | K70: =IFERROR(IF(VLOOKUP($B70,NKI_Datenbank,COLUMN(NKI_Datenbank!$E$1),FALSE)>0,1,0),"") ->  | L70: =IFERROR(IF(VLOOKUP($B70,NKI_Datenbank,COLUMN(NKI_Datenbank!$D$1),FALSE)>80,1,0),"") ->  | P70: =IF(V70>0,"",IF(AB70>0,"kein Umbau",IF(AE70>0,IF(H70>Annahmen!$F$10,"Umbau A P1",IF(H70>Annahmen!$D$10,"Umbau A P2",IF(H70<=Annahmen!$F$10,"kein Umbau A"))),IF(AI70>0,IF(I70>Annahmen!$F$10,"Umbau B P1",IF(I70>Annahmen!$D$10,"Umbau B P2",IF(I70<=Annahmen!$F$10,"kein Umbau B"))),IF(J70=0,"",IF(J70>Annahmen!$F$10,"Umbau P1",IF(J70>Annahmen!$D$10,"Umbau P2","kein Umbau"))))))) ->  | Q70: =IF(AND(Erfassungsmaske!G67="X",Erfassungsmaske!H67="X"),"bereits umgebaut (A und B)",IF(AND(Erfassungsmaske!G67="X",Erfassungsmaske!K67="X"),"A bereits umgebaut, B projektiert",IF(AND(Erfassungsmaske!H67="X",Erfassungsmaske!J67="X"),"B bereits umgebaut, A projektiert",IF(Erfassungsmaske!G67="X","A bereits umgebaut",IF(Erfassungsmaske!H67="X","B bereits umgebaut",IF(AND(Erfassungsmaske!J67="X",Erfassungsmaske!K67="X"),"Umbau projektiert (A und B)",IF(Erfassungsmaske!J67="X","Umbau A projektiert",IF(Erfassungsmaske!K67="X","Umbau B projektiert","")))))))) ->  | V70: 1 | W70: 1 | X70: 0 | Y70: 0 | Z70: 0 | AA70: 0 | AB70: 0 | AC70: 0 | AD70: 0 | AE70: 0 | AF70: 0 | AG70: 0 | AH70: =IF(Erfassungsmaske!E67="(Nur Richtung A)",1,0) -> 0 | AI70: 0 | AJ70: 0 | AK70: 0 | AL70: =IF(Erfassungsmaske!D67="(Nur Richtung B)",1,0) -> 0
B71: 0 | C71: 0 | D71: =IFERROR(VLOOKUP($B71,NKI_Datenbank,COLUMN(NKI_Datenbank!$N$1),FALSE),"") ->  | E71: =IFERROR(VLOOKUP($B71,NKI_Datenbank,COLUMN(NKI_Datenbank!$O$1),FALSE),"") ->  | F71: =IF(Erfassungsmaske!O68>0,1,0) -> 0 | H71: =IFERROR(VLOOKUP($B71,NKI_Datenbank,COLUMN(NKI_Datenbank!$P$1),FALSE),0) -> 0 | I71: =IFERROR(VLOOKUP($B71,NKI_Datenbank,COLUMN(NKI_Datenbank!$Q$1),FALSE),0) -> 0 | J71: =IFERROR(VLOOKUP($B71,NKI_Datenbank,COLUMN(NKI_Datenbank!$R$1),FALSE),0) -> 0 | K71: =IFERROR(IF(VLOOKUP($B71,NKI_Datenbank,COLUMN(NKI_Datenbank!$E$1),FALSE)>0,1,0),"") ->  | L71: =IFERROR(IF(VLOOKUP($B71,NKI_Datenbank,COLUMN(NKI_Datenbank!$D$1),FALSE)>80,1,0),"") ->  | P71: =IF(V71>0,"",IF(AB71>0,"kein Umbau",IF(AE71>0,IF(H71>Annahmen!$F$10,"Umbau A P1",IF(H71>Annahmen!$D$10,"Umbau A P2",IF(H71<=Annahmen!$F$10,"kein Umbau A"))),IF(AI71>0,IF(I71>Annahmen!$F$10,"Umbau B P1",IF(I71>Annahmen!$D$10,"Umbau B P2",IF(I71<=Annahmen!$F$10,"kein Umbau B"))),IF(J71=0,"",IF(J71>Annahmen!$F$10,"Umbau P1",IF(J71>Annahmen!$D$10,"Umbau P2","kein Umbau"))))))) ->  | Q71: =IF(AND(Erfassungsmaske!G68="X",Erfassungsmaske!H68="X"),"bereits umgebaut (A und B)",IF(AND(Erfassungsmaske!G68="X",Erfassungsmaske!K68="X"),"A bereits umgebaut, B projektiert",IF(AND(Erfassungsmaske!H68="X",Erfassungsmaske!J68="X"),"B bereits umgebaut, A projektiert",IF(Erfassungsmaske!G68="X","A bereits umgebaut",IF(Erfassungsmaske!H68="X","B bereits umgebaut",IF(AND(Erfassungsmaske!J68="X",Erfassungsmaske!K68="X"),"Umbau projektiert (A und B)",IF(Erfassungsmaske!J68="X","Umbau A projektiert",IF(Erfassungsmaske!K68="X","Umbau B projektiert","")))))))) ->  | V71: 1 | W71: 1 | X71: 0 | Y71: 0 | Z71: 0 | AA71: 0 | AB71: 0 | AC71: 0 | AD71: 0 | AE71: 0 | AF71: 0 | AG71: 0 | AH71: =IF(Erfassungsmaske!E68="(Nur Richtung A)",1,0) -> 0 | AI71: 0 | AJ71: 0 | AK71: 0 | AL71: =IF(Erfassungsmaske!D68="(Nur Richtung B)",1,0) -> 0
B72: 0 | C72: 0 | D72: =IFERROR(VLOOKUP($B72,NKI_Datenbank,COLUMN(NKI_Datenbank!$N$1),FALSE),"") ->  | E72: =IFERROR(VLOOKUP($B72,NKI_Datenbank,COLUMN(NKI_Datenbank!$O$1),FALSE),"") ->  | F72: =IF(Erfassungsmaske!O69>0,1,0) -> 0 | H72: =IFERROR(VLOOKUP($B72,NKI_Datenbank,COLUMN(NKI_Datenbank!$P$1),FALSE),0) -> 0 | I72: =IFERROR(VLOOKUP($B72,NKI_Datenbank,COLUMN(NKI_Datenbank!$Q$1),FALSE),0) -> 0 | J72: =IFERROR(VLOOKUP($B72,NKI_Datenbank,COLUMN(NKI_Datenbank!$R$1),FALSE),0) -> 0 | K72: =IFERROR(IF(VLOOKUP($B72,NKI_Datenbank,COLUMN(NKI_Datenbank!$E$1),FALSE)>0,1,0),"") ->  | L72: =IFERROR(IF(VLOOKUP($B72,NKI_Datenbank,COLUMN(NKI_Datenbank!$D$1),FALSE)>80,1,0),"") ->  | P72: =IF(V72>0,"",IF(AB72>0,"kein Umbau",IF(AE72>0,IF(H72>Annahmen!$F$10,"Umbau A P1",IF(H72>Annahmen!$D$10,"Umbau A P2",IF(H72<=Annahmen!$F$10,"kein Umbau A"))),IF(AI72>0,IF(I72>Annahmen!$F$10,"Umbau B P1",IF(I72>Annahmen!$D$10,"Umbau B P2",IF(I72<=Annahmen!$F$10,"kein Umbau B"))),IF(J72=0,"",IF(J72>Annahmen!$F$10,"Umbau P1",IF(J72>Annahmen!$D$10,"Umbau P2","kein Umbau"))))))) ->  | Q72: =IF(AND(Erfassungsmaske!G69="X",Erfassungsmaske!H69="X"),"bereits umgebaut (A und B)",IF(AND(Erfassungsmaske!G69="X",Erfassungsmaske!K69="X"),"A bereits umgebaut, B projektiert",IF(AND(Erfassungsmaske!H69="X",Erfassungsmaske!J69="X"),"B bereits umgebaut, A projektiert",IF(Erfassungsmaske!G69="X","A bereits umgebaut",IF(Erfassungsmaske!H69="X","B bereits umgebaut",IF(AND(Erfassungsmaske!J69="X",Erfassungsmaske!K69="X"),"Umbau projektiert (A und B)",IF(Erfassungsmaske!J69="X","Umbau A projektiert",IF(Erfassungsmaske!K69="X","Umbau B projektiert","")))))))) ->  | V72: 1 | W72: 1 | X72: 0 | Y72: 0 | Z72: 0 | AA72: 0 | AB72: 0 | AC72: 0 | AD72: 0 | AE72: 0 | AF72: 0 | AG72: 0 | AH72: =IF(Erfassungsmaske!E69="(Nur Richtung A)",1,0) -> 0 | AI72: 0 | AJ72: 0 | AK72: 0 | AL72: =IF(Erfassungsmaske!D69="(Nur Richtung B)",1,0) -> 0
B73: 0 | C73: 0 | D73: =IFERROR(VLOOKUP($B73,NKI_Datenbank,COLUMN(NKI_Datenbank!$N$1),FALSE),"") ->  | E73: =IFERROR(VLOOKUP($B73,NKI_Datenbank,COLUMN(NKI_Datenbank!$O$1),FALSE),"") ->  | F73: =IF(Erfassungsmaske!O70>0,1,0) -> 0 | H73: =IFERROR(VLOOKUP($B73,NKI_Datenbank,COLUMN(NKI_Datenbank!$P$1),FALSE),0) -> 0 | I73: =IFERROR(VLOOKUP($B73,NKI_Datenbank,COLUMN(NKI_Datenbank!$Q$1),FALSE),0) -> 0 | J73: =IFERROR(VLOOKUP($B73,NKI_Datenbank,COLUMN(NKI_Datenbank!$R$1),FALSE),0) -> 0 | K73: =IFERROR(IF(VLOOKUP($B73,NKI_Datenbank,COLUMN(NKI_Datenbank!$E$1),FALSE)>0,1,0),"") ->  | L73: =IFERROR(IF(VLOOKUP($B73,NKI_Datenbank,COLUMN(NKI_Datenbank!$D$1),FALSE)>80,1,0),"") ->  | P73: =IF(V73>0,"",IF(AB73>0,"kein Umbau",IF(AE73>0,IF(H73>Annahmen!$F$10,"Umbau A P1",IF(H73>Annahmen!$D$10,"Umbau A P2",IF(H73<=Annahmen!$F$10,"kein Umbau A"))),IF(AI73>0,IF(I73>Annahmen!$F$10,"Umbau B P1",IF(I73>Annahmen!$D$10,"Umbau B P2",IF(I73<=Annahmen!$F$10,"kein Umbau B"))),IF(J73=0,"",IF(J73>Annahmen!$F$10,"Umbau P1",IF(J73>Annahmen!$D$10,"Umbau P2","kein Umbau"))))))) ->  | Q73: =IF(AND(Erfassungsmaske!G70="X",Erfassungsmaske!H70="X"),"bereits umgebaut (A und B)",IF(AND(Erfassungsmaske!G70="X",Erfassungsmaske!K70="X"),"A bereits umgebaut, B projektiert",IF(AND(Erfassungsmaske!H70="X",Erfassungsmaske!J70="X"),"B bereits umgebaut, A projektiert",IF(Erfassungsmaske!G70="X","A bereits umgebaut",IF(Erfassungsmaske!H70="X","B bereits umgebaut",IF(AND(Erfassungsmaske!J70="X",Erfassungsmaske!K70="X"),"Umbau projektiert (A und B)",IF(Erfassungsmaske!J70="X","Umbau A projektiert",IF(Erfassungsmaske!K70="X","Umbau B projektiert","")))))))) ->  | V73: 1 | W73: 1 | X73: 0 | Y73: 0 | Z73: 0 | AA73: 0 | AB73: 0 | AC73: 0 | AD73: 0 | AE73: 0 | AF73: 0 | AG73: 0 | AH73: =IF(Erfassungsmaske!E70="(Nur Richtung A)",1,0) -> 0 | AI73: 0 | AJ73: 0 | AK73: 0 | AL73: =IF(Erfassungsmaske!D70="(Nur Richtung B)",1,0) -> 0
B74: 0 | C74: 0 | D74: =IFERROR(VLOOKUP($B74,NKI_Datenbank,COLUMN(NKI_Datenbank!$N$1),FALSE),"") ->  | E74: =IFERROR(VLOOKUP($B74,NKI_Datenbank,COLUMN(NKI_Datenbank!$O$1),FALSE),"") ->  | F74: =IF(Erfassungsmaske!O71>0,1,0) -> 0 | H74: =IFERROR(VLOOKUP($B74,NKI_Datenbank,COLUMN(NKI_Datenbank!$P$1),FALSE),0) -> 0 | I74: =IFERROR(VLOOKUP($B74,NKI_Datenbank,COLUMN(NKI_Datenbank!$Q$1),FALSE),0) -> 0 | J74: =IFERROR(VLOOKUP($B74,NKI_Datenbank,COLUMN(NKI_Datenbank!$R$1),FALSE),0) -> 0 | K74: =IFERROR(IF(VLOOKUP($B74,NKI_Datenbank,COLUMN(NKI_Datenbank!$E$1),FALSE)>0,1,0),"") ->  | L74: =IFERROR(IF(VLOOKUP($B74,NKI_Datenbank,COLUMN(NKI_Datenbank!$D$1),FALSE)>80,1,0),"") ->  | P74: =IF(V74>0,"",IF(AB74>0,"kein Umbau",IF(AE74>0,IF(H74>Annahmen!$F$10,"Umbau A P1",IF(H74>Annahmen!$D$10,"Umbau A P2",IF(H74<=Annahmen!$F$10,"kein Umbau A"))),IF(AI74>0,IF(I74>Annahmen!$F$10,"Umbau B P1",IF(I74>Annahmen!$D$10,"Umbau B P2",IF(I74<=Annahmen!$F$10,"kein Umbau B"))),IF(J74=0,"",IF(J74>Annahmen!$F$10,"Umbau P1",IF(J74>Annahmen!$D$10,"Umbau P2","kein Umbau"))))))) ->  | Q74: =IF(AND(Erfassungsmaske!G71="X",Erfassungsmaske!H71="X"),"bereits umgebaut (A und B)",IF(AND(Erfassungsmaske!G71="X",Erfassungsmaske!K71="X"),"A bereits umgebaut, B projektiert",IF(AND(Erfassungsmaske!H71="X",Erfassungsmaske!J71="X"),"B bereits umgebaut, A projektiert",IF(Erfassungsmaske!G71="X","A bereits umgebaut",IF(Erfassungsmaske!H71="X","B bereits umgebaut",IF(AND(Erfassungsmaske!J71="X",Erfassungsmaske!K71="X"),"Umbau projektiert (A und B)",IF(Erfassungsmaske!J71="X","Umbau A projektiert",IF(Erfassungsmaske!K71="X","Umbau B projektiert","")))))))) ->  | V74: 1 | W74: 1 | X74: 0 | Y74: 0 | Z74: 0 | AA74: 0 | AB74: 0 | AC74: 0 | AD74: 0 | AE74: 0 | AF74: 0 | AG74: 0 | AH74: =IF(Erfassungsmaske!E71="(Nur Richtung A)",1,0) -> 0 | AI74: 0 | AJ74: 0 | AK74: 0 | AL74: =IF(Erfassungsmaske!D71="(Nur Richtung B)",1,0) -> 0
B75: 0 | C75: 0 | D75: =IFERROR(VLOOKUP($B75,NKI_Datenbank,COLUMN(NKI_Datenbank!$N$1),FALSE),"") ->  | E75: =IFERROR(VLOOKUP($B75,NKI_Datenbank,COLUMN(NKI_Datenbank!$O$1),FALSE),"") ->  | F75: =IF(Erfassungsmaske!O72>0,1,0) -> 0 | H75: =IFERROR(VLOOKUP($B75,NKI_Datenbank,COLUMN(NKI_Datenbank!$P$1),FALSE),0) -> 0 | I75: =IFERROR(VLOOKUP($B75,NKI_Datenbank,COLUMN(NKI_Datenbank!$Q$1),FALSE),0) -> 0 | J75: =IFERROR(VLOOKUP($B75,NKI_Datenbank,COLUMN(NKI_Datenbank!$R$1),FALSE),0) -> 0 | K75: =IFERROR(IF(VLOOKUP($B75,NKI_Datenbank,COLUMN(NKI_Datenbank!$E$1),FALSE)>0,1,0),"") ->  | L75: =IFERROR(IF(VLOOKUP($B75,NKI_Datenbank,COLUMN(NKI_Datenbank!$D$1),FALSE)>80,1,0),"") ->  | P75: =IF(V75>0,"",IF(AB75>0,"kein Umbau",IF(AE75>0,IF(H75>Annahmen!$F$10,"Umbau A P1",IF(H75>Annahmen!$D$10,"Umbau A P2",IF(H75<=Annahmen!$F$10,"kein Umbau A"))),IF(AI75>0,IF(I75>Annahmen!$F$10,"Umbau B P1",IF(I75>Annahmen!$D$10,"Umbau B P2",IF(I75<=Annahmen!$F$10,"kein Umbau B"))),IF(J75=0,"",IF(J75>Annahmen!$F$10,"Umbau P1",IF(J75>Annahmen!$D$10,"Umbau P2","kein Umbau"))))))) ->  | Q75: =IF(AND(Erfassungsmaske!G72="X",Erfassungsmaske!H72="X"),"bereits umgebaut (A und B)",IF(AND(Erfassungsmaske!G72="X",Erfassungsmaske!K72="X"),"A bereits umgebaut, B projektiert",IF(AND(Erfassungsmaske!H72="X",Erfassungsmaske!J72="X"),"B bereits umgebaut, A projektiert",IF(Erfassungsmaske!G72="X","A bereits umgebaut",IF(Erfassungsmaske!H72="X","B bereits umgebaut",IF(AND(Erfassungsmaske!J72="X",Erfassungsmaske!K72="X"),"Umbau projektiert (A und B)",IF(Erfassungsmaske!J72="X","Umbau A projektiert",IF(Erfassungsmaske!K72="X","Umbau B projektiert","")))))))) ->  | V75: 1 | W75: 1 | X75: 0 | Y75: 0 | Z75: 0 | AA75: 0 | AB75: 0 | AC75: 0 | AD75: 0 | AE75: 0 | AF75: 0 | AG75: 0 | AH75: =IF(Erfassungsmaske!E72="(Nur Richtung A)",1,0) -> 0 | AI75: 0 | AJ75: 0 | AK75: 0 | AL75: =IF(Erfassungsmaske!D72="(Nur Richtung B)",1,0) -> 0
B76: 0 | C76: 0 | D76: =IFERROR(VLOOKUP($B76,NKI_Datenbank,COLUMN(NKI_Datenbank!$N$1),FALSE),"") ->  | E76: =IFERROR(VLOOKUP($B76,NKI_Datenbank,COLUMN(NKI_Datenbank!$O$1),FALSE),"") ->  | F76: =IF(Erfassungsmaske!O73>0,1,0) -> 0 | H76: =IFERROR(VLOOKUP($B76,NKI_Datenbank,COLUMN(NKI_Datenbank!$P$1),FALSE),0) -> 0 | I76: =IFERROR(VLOOKUP($B76,NKI_Datenbank,COLUMN(NKI_Datenbank!$Q$1),FALSE),0) -> 0 | J76: =IFERROR(VLOOKUP($B76,NKI_Datenbank,COLUMN(NKI_Datenbank!$R$1),FALSE),0) -> 0 | K76: =IFERROR(IF(VLOOKUP($B76,NKI_Datenbank,COLUMN(NKI_Datenbank!$E$1),FALSE)>0,1,0),"") ->  | L76: =IFERROR(IF(VLOOKUP($B76,NKI_Datenbank,COLUMN(NKI_Datenbank!$D$1),FALSE)>80,1,0),"") ->  | P76: =IF(V76>0,"",IF(AB76>0,"kein Umbau",IF(AE76>0,IF(H76>Annahmen!$F$10,"Umbau A P1",IF(H76>Annahmen!$D$10,"Umbau A P2",IF(H76<=Annahmen!$F$10,"kein Umbau A"))),IF(AI76>0,IF(I76>Annahmen!$F$10,"Umbau B P1",IF(I76>Annahmen!$D$10,"Umbau B P2",IF(I76<=Annahmen!$F$10,"kein Umbau B"))),IF(J76=0,"",IF(J76>Annahmen!$F$10,"Umbau P1",IF(J76>Annahmen!$D$10,"Umbau P2","kein Umbau"))))))) ->  | Q76: =IF(AND(Erfassungsmaske!G73="X",Erfassungsmaske!H73="X"),"bereits umgebaut (A und B)",IF(AND(Erfassungsmaske!G73="X",Erfassungsmaske!K73="X"),"A bereits umgebaut, B projektiert",IF(AND(Erfassungsmaske!H73="X",Erfassungsmaske!J73="X"),"B bereits umgebaut, A projektiert",IF(Erfassungsmaske!G73="X","A bereits umgebaut",IF(Erfassungsmaske!H73="X","B bereits umgebaut",IF(AND(Erfassungsmaske!J73="X",Erfassungsmaske!K73="X"),"Umbau projektiert (A und B)",IF(Erfassungsmaske!J73="X","Umbau A projektiert",IF(Erfassungsmaske!K73="X","Umbau B projektiert","")))))))) ->  | V76: 1 | W76: 1 | X76: 0 | Y76: 0 | Z76: 0 | AA76: 0 | AB76: 0 | AC76: 0 | AD76: 0 | AE76: 0 | AF76: 0 | AG76: 0 | AH76: =IF(Erfassungsmaske!E73="(Nur Richtung A)",1,0) -> 0 | AI76: 0 | AJ76: 0 | AK76: 0 | AL76: =IF(Erfassungsmaske!D73="(Nur Richtung B)",1,0) -> 0
B77: =INDIRECT(Rel_Bezug_Linienblatt&"C"&ROW(B77)-5) -> 0 | C77: =IFERROR(INDIRECT(Rel_Bezug_Linienblatt&"b"&ROW(B77)-5),0) -> 0 | D77: =IFERROR(VLOOKUP($B77,NKI_Datenbank,COLUMN(NKI_Datenbank!$N$1),FALSE),"") ->  | E77: =IFERROR(VLOOKUP($B77,NKI_Datenbank,COLUMN(NKI_Datenbank!$O$1),FALSE),"") ->  | F77: =IF(Erfassungsmaske!O74>0,1,0) -> 0 | H77: =IFERROR(VLOOKUP($B77,NKI_Datenbank,COLUMN(NKI_Datenbank!$P$1),FALSE),0) -> 0 | I77: =IFERROR(VLOOKUP($B77,NKI_Datenbank,COLUMN(NKI_Datenbank!$Q$1),FALSE),0) -> 0 | J77: =IFERROR(VLOOKUP($B77,NKI_Datenbank,COLUMN(NKI_Datenbank!$R$1),FALSE),0) -> 0 | K77: =IFERROR(IF(VLOOKUP($B77,NKI_Datenbank,COLUMN(NKI_Datenbank!$E$1),FALSE)>0,1,0),"") ->  | L77: =IFERROR(IF(VLOOKUP($B77,NKI_Datenbank,COLUMN(NKI_Datenbank!$D$1),FALSE)>80,1,0),"") ->  | P77: =IF(V77>0,"",IF(AB77>0,"kein Umbau",IF(AE77>0,IF(H77>Annahmen!$F$10,"Umbau A P1",IF(H77>Annahmen!$D$10,"Umbau A P2",IF(H77<=Annahmen!$F$10,"kein Umbau A"))),IF(AI77>0,IF(I77>Annahmen!$F$10,"Umbau B P1",IF(I77>Annahmen!$D$10,"Umbau B P2",IF(I77<=Annahmen!$F$10,"kein Umbau B"))),IF(J77=0,"",IF(J77>Annahmen!$F$10,"Umbau P1",IF(J77>Annahmen!$D$10,"Umbau P2","kein Umbau"))))))) ->  | Q77: =IF(AND(Erfassungsmaske!G74="X",Erfassungsmaske!H74="X"),"bereits umgebaut (A und B)",IF(AND(Erfassungsmaske!G74="X",Erfassungsmaske!K74="X"),"A bereits umgebaut, B projektiert",IF(AND(Erfassungsmaske!H74="X",Erfassungsmaske!J74="X"),"B bereits umgebaut, A projektiert",IF(Erfassungsmaske!G74="X","A bereits umgebaut",IF(Erfassungsmaske!H74="X","B bereits umgebaut",IF(AND(Erfassungsmaske!J74="X",Erfassungsmaske!K74="X"),"Umbau projektiert (A und B)",IF(Erfassungsmaske!J74="X","Umbau A projektiert",IF(Erfassungsmaske!K74="X","Umbau B projektiert","")))))))) ->  | V77: 1 | W77: 1 | X77: 0 | Y77: 0 | Z77: 0 | AA77: 0 | AB77: 0 | AC77: 0 | AD77: 0 | AE77: 0 | AF77: 0 | AG77: 0 | AH77: =IF(Erfassungsmaske!E74="(Nur Richtung A)",1,0) -> 0 | AI77: 0 | AJ77: 0 | AK77: =IF($Q77=AK$12,1,0) -> 0 | AL77: =IF(Erfassungsmaske!D74="(Nur Richtung B)",1,0) -> 0
B78: 0 | C78: 0 | D78: =IFERROR(VLOOKUP($B78,NKI_Datenbank,COLUMN(NKI_Datenbank!$N$1),FALSE),"") ->  | E78: =IFERROR(VLOOKUP($B78,NKI_Datenbank,COLUMN(NKI_Datenbank!$O$1),FALSE),"") ->  | F78: =IF(Erfassungsmaske!O75>0,1,0) -> 0 | H78: =IFERROR(VLOOKUP($B78,NKI_Datenbank,COLUMN(NKI_Datenbank!$P$1),FALSE),0) -> 0 | I78: =IFERROR(VLOOKUP($B78,NKI_Datenbank,COLUMN(NKI_Datenbank!$Q$1),FALSE),0) -> 0 | J78: =IFERROR(VLOOKUP($B78,NKI_Datenbank,COLUMN(NKI_Datenbank!$R$1),FALSE),0) -> 0 | K78: =IFERROR(IF(VLOOKUP($B78,NKI_Datenbank,COLUMN(NKI_Datenbank!$E$1),FALSE)>0,1,0),"") ->  | L78: =IFERROR(IF(VLOOKUP($B78,NKI_Datenbank,COLUMN(NKI_Datenbank!$D$1),FALSE)>80,1,0),"") ->  | P78: =IF(V78>0,"",IF(AB78>0,"kein Umbau",IF(AE78>0,IF(H78>Annahmen!$F$10,"Umbau A P1",IF(H78>Annahmen!$D$10,"Umbau A P2",IF(H78<=Annahmen!$F$10,"kein Umbau A"))),IF(AI78>0,IF(I78>Annahmen!$F$10,"Umbau B P1",IF(I78>Annahmen!$D$10,"Umbau B P2",IF(I78<=Annahmen!$F$10,"kein Umbau B"))),IF(J78=0,"",IF(J78>Annahmen!$F$10,"Umbau P1",IF(J78>Annahmen!$D$10,"Umbau P2","kein Umbau"))))))) ->  | Q78: =IF(AND(Erfassungsmaske!G75="X",Erfassungsmaske!H75="X"),"bereits umgebaut (A und B)",IF(AND(Erfassungsmaske!G75="X",Erfassungsmaske!K75="X"),"A bereits umgebaut, B projektiert",IF(AND(Erfassungsmaske!H75="X",Erfassungsmaske!J75="X"),"B bereits umgebaut, A projektiert",IF(Erfassungsmaske!G75="X","A bereits umgebaut",IF(Erfassungsmaske!H75="X","B bereits umgebaut",IF(AND(Erfassungsmaske!J75="X",Erfassungsmaske!K75="X"),"Umbau projektiert (A und B)",IF(Erfassungsmaske!J75="X","Umbau A projektiert",IF(Erfassungsmaske!K75="X","Umbau B projektiert","")))))))) ->  | V78: =SUM(W78:AA78) -> 1 | W78: =IF(SUM(H78:J78)=0,1,0) -> 1 | X78: =IF($Q78=X$12,1,0) -> 0 | Y78: 0 | Z78: 0 | AA78: 0 | AB78: =SUM(AC78:AD78) -> 0 | AC78: =IF(N78="x",1,0) -> 0 | AD78: =IF(O78="x",1,0) -> 0 | AE78: =SUM(AF78:AH78) -> 0 | AF78: 0 | AG78: 0 | AH78: =IF(Erfassungsmaske!E75="(Nur Richtung A)",1,0) -> 0 | AI78: =SUM(AJ78:AL78) -> 0 | AJ78: 0 | AK78: 0 | AL78: =IF(Erfassungsmaske!D75="(Nur Richtung B)",1,0) -> 0
B79: 0 | C79: 0 | D79: =IFERROR(VLOOKUP($B79,NKI_Datenbank,COLUMN(NKI_Datenbank!$N$1),FALSE),"") ->  | E79: =IFERROR(VLOOKUP($B79,NKI_Datenbank,COLUMN(NKI_Datenbank!$O$1),FALSE),"") ->  | F79: =IF(Erfassungsmaske!O76>0,1,0) -> 0 | H79: =IFERROR(VLOOKUP($B79,NKI_Datenbank,COLUMN(NKI_Datenbank!$P$1),FALSE),0) -> 0 | I79: =IFERROR(VLOOKUP($B79,NKI_Datenbank,COLUMN(NKI_Datenbank!$Q$1),FALSE),0) -> 0 | J79: =IFERROR(VLOOKUP($B79,NKI_Datenbank,COLUMN(NKI_Datenbank!$R$1),FALSE),0) -> 0 | K79: =IFERROR(IF(VLOOKUP($B79,NKI_Datenbank,COLUMN(NKI_Datenbank!$E$1),FALSE)>0,1,0),"") ->  | L79: =IFERROR(IF(VLOOKUP($B79,NKI_Datenbank,COLUMN(NKI_Datenbank!$D$1),FALSE)>80,1,0),"") ->  | P79: =IF(V79>0,"",IF(AB79>0,"kein Umbau",IF(AE79>0,IF(H79>Annahmen!$F$10,"Umbau A P1",IF(H79>Annahmen!$D$10,"Umbau A P2",IF(H79<=Annahmen!$F$10,"kein Umbau A"))),IF(AI79>0,IF(I79>Annahmen!$F$10,"Umbau B P1",IF(I79>Annahmen!$D$10,"Umbau B P2",IF(I79<=Annahmen!$F$10,"kein Umbau B"))),IF(J79=0,"",IF(J79>Annahmen!$F$10,"Umbau P1",IF(J79>Annahmen!$D$10,"Umbau P2","kein Umbau"))))))) ->  | Q79: =IF(AND(Erfassungsmaske!G76="X",Erfassungsmaske!H76="X"),"bereits umgebaut (A und B)",IF(AND(Erfassungsmaske!G76="X",Erfassungsmaske!K76="X"),"A bereits umgebaut, B projektiert",IF(AND(Erfassungsmaske!H76="X",Erfassungsmaske!J76="X"),"B bereits umgebaut, A projektiert",IF(Erfassungsmaske!G76="X","A bereits umgebaut",IF(Erfassungsmaske!H76="X","B bereits umgebaut",IF(AND(Erfassungsmaske!J76="X",Erfassungsmaske!K76="X"),"Umbau projektiert (A und B)",IF(Erfassungsmaske!J76="X","Umbau A projektiert",IF(Erfassungsmaske!K76="X","Umbau B projektiert","")))))))) ->  | V79: 1 | W79: 1 | X79: 0 | Y79: 0 | Z79: 0 | AA79: 0 | AB79: 0 | AC79: 0 | AD79: 0 | AE79: 0 | AF79: 0 | AG79: 0 | AH79: =IF(Erfassungsmaske!E76="(Nur Richtung A)",1,0) -> 0 | AI79: 0 | AJ79: 0 | AK79: 0 | AL79: =IF(Erfassungsmaske!D76="(Nur Richtung B)",1,0) -> 0
B80: 0 | C80: 0 | D80: =IFERROR(VLOOKUP($B80,NKI_Datenbank,COLUMN(NKI_Datenbank!$N$1),FALSE),"") ->  | E80: =IFERROR(VLOOKUP($B80,NKI_Datenbank,COLUMN(NKI_Datenbank!$O$1),FALSE),"") ->  | F80: =IF(Erfassungsmaske!O77>0,1,0) -> 0 | H80: =IFERROR(VLOOKUP($B80,NKI_Datenbank,COLUMN(NKI_Datenbank!$P$1),FALSE),0) -> 0 | I80: =IFERROR(VLOOKUP($B80,NKI_Datenbank,COLUMN(NKI_Datenbank!$Q$1),FALSE),0) -> 0 | J80: =IFERROR(VLOOKUP($B80,NKI_Datenbank,COLUMN(NKI_Datenbank!$R$1),FALSE),0) -> 0 | K80: =IFERROR(IF(VLOOKUP($B80,NKI_Datenbank,COLUMN(NKI_Datenbank!$E$1),FALSE)>0,1,0),"") ->  | L80: =IFERROR(IF(VLOOKUP($B80,NKI_Datenbank,COLUMN(NKI_Datenbank!$D$1),FALSE)>80,1,0),"") ->  | P80: =IF(V80>0,"",IF(AB80>0,"kein Umbau",IF(AE80>0,IF(H80>Annahmen!$F$10,"Umbau A P1",IF(H80>Annahmen!$D$10,"Umbau A P2",IF(H80<=Annahmen!$F$10,"kein Umbau A"))),IF(AI80>0,IF(I80>Annahmen!$F$10,"Umbau B P1",IF(I80>Annahmen!$D$10,"Umbau B P2",IF(I80<=Annahmen!$F$10,"kein Umbau B"))),IF(J80=0,"",IF(J80>Annahmen!$F$10,"Umbau P1",IF(J80>Annahmen!$D$10,"Umbau P2","kein Umbau"))))))) ->  | Q80: =IF(AND(Erfassungsmaske!G77="X",Erfassungsmaske!H77="X"),"bereits umgebaut (A und B)",IF(AND(Erfassungsmaske!G77="X",Erfassungsmaske!K77="X"),"A bereits umgebaut, B projektiert",IF(AND(Erfassungsmaske!H77="X",Erfassungsmaske!J77="X"),"B bereits umgebaut, A projektiert",IF(Erfassungsmaske!G77="X","A bereits umgebaut",IF(Erfassungsmaske!H77="X","B bereits umgebaut",IF(AND(Erfassungsmaske!J77="X",Erfassungsmaske!K77="X"),"Umbau projektiert (A und B)",IF(Erfassungsmaske!J77="X","Umbau A projektiert",IF(Erfassungsmaske!K77="X","Umbau B projektiert","")))))))) ->  | V80: 1 | W80: 1 | X80: 0 | Y80: 0 | Z80: 0 | AA80: 0 | AB80: 0 | AC80: 0 | AD80: 0 | AE80: 0 | AF80: 0 | AG80: 0 | AH80: =IF(Erfassungsmaske!E77="(Nur Richtung A)",1,0) -> 0 | AI80: 0 | AJ80: 0 | AK80: 0 | AL80: =IF(Erfassungsmaske!D77="(Nur Richtung B)",1,0) -> 0
B81: 0 | C81: 0 | D81: =IFERROR(VLOOKUP($B81,NKI_Datenbank,COLUMN(NKI_Datenbank!$N$1),FALSE),"") ->  | E81: =IFERROR(VLOOKUP($B81,NKI_Datenbank,COLUMN(NKI_Datenbank!$O$1),FALSE),"") ->  | F81: =IF(Erfassungsmaske!O78>0,1,0) -> 0 | H81: =IFERROR(VLOOKUP($B81,NKI_Datenbank,COLUMN(NKI_Datenbank!$P$1),FALSE),0) -> 0 | I81: =IFERROR(VLOOKUP($B81,NKI_Datenbank,COLUMN(NKI_Datenbank!$Q$1),FALSE),0) -> 0 | J81: =IFERROR(VLOOKUP($B81,NKI_Datenbank,COLUMN(NKI_Datenbank!$R$1),FALSE),0) -> 0 | K81: =IFERROR(IF(VLOOKUP($B81,NKI_Datenbank,COLUMN(NKI_Datenbank!$E$1),FALSE)>0,1,0),"") ->  | L81: =IFERROR(IF(VLOOKUP($B81,NKI_Datenbank,COLUMN(NKI_Datenbank!$D$1),FALSE)>80,1,0),"") ->  | P81: =IF(V81>0,"",IF(AB81>0,"kein Umbau",IF(AE81>0,IF(H81>Annahmen!$F$10,"Umbau A P1",IF(H81>Annahmen!$D$10,"Umbau A P2",IF(H81<=Annahmen!$F$10,"kein Umbau A"))),IF(AI81>0,IF(I81>Annahmen!$F$10,"Umbau B P1",IF(I81>Annahmen!$D$10,"Umbau B P2",IF(I81<=Annahmen!$F$10,"kein Umbau B"))),IF(J81=0,"",IF(J81>Annahmen!$F$10,"Umbau P1",IF(J81>Annahmen!$D$10,"Umbau P2","kein Umbau"))))))) ->  | Q81: =IF(AND(Erfassungsmaske!G78="X",Erfassungsmaske!H78="X"),"bereits umgebaut (A und B)",IF(AND(Erfassungsmaske!G78="X",Erfassungsmaske!K78="X"),"A bereits umgebaut, B projektiert",IF(AND(Erfassungsmaske!H78="X",Erfassungsmaske!J78="X"),"B bereits umgebaut, A projektiert",IF(Erfassungsmaske!G78="X","A bereits umgebaut",IF(Erfassungsmaske!H78="X","B bereits umgebaut",IF(AND(Erfassungsmaske!J78="X",Erfassungsmaske!K78="X"),"Umbau projektiert (A und B)",IF(Erfassungsmaske!J78="X","Umbau A projektiert",IF(Erfassungsmaske!K78="X","Umbau B projektiert","")))))))) ->  | V81: 1 | W81: 1 | X81: 0 | Y81: 0 | Z81: 0 | AA81: 0 | AB81: 0 | AC81: 0 | AD81: 0 | AE81: 0 | AF81: 0 | AG81: 0 | AH81: =IF(Erfassungsmaske!E78="(Nur Richtung A)",1,0) -> 0 | AI81: 0 | AJ81: 0 | AK81: 0 | AL81: =IF(Erfassungsmaske!D78="(Nur Richtung B)",1,0) -> 0
B82: 0 | C82: 0 | D82: =IFERROR(VLOOKUP($B82,NKI_Datenbank,COLUMN(NKI_Datenbank!$N$1),FALSE),"") ->  | E82: =IFERROR(VLOOKUP($B82,NKI_Datenbank,COLUMN(NKI_Datenbank!$O$1),FALSE),"") ->  | F82: =IF(Erfassungsmaske!O79>0,1,0) -> 0 | H82: =IFERROR(VLOOKUP($B82,NKI_Datenbank,COLUMN(NKI_Datenbank!$P$1),FALSE),0) -> 0 | I82: =IFERROR(VLOOKUP($B82,NKI_Datenbank,COLUMN(NKI_Datenbank!$Q$1),FALSE),0) -> 0 | J82: =IFERROR(VLOOKUP($B82,NKI_Datenbank,COLUMN(NKI_Datenbank!$R$1),FALSE),0) -> 0 | K82: =IFERROR(IF(VLOOKUP($B82,NKI_Datenbank,COLUMN(NKI_Datenbank!$E$1),FALSE)>0,1,0),"") ->  | L82: =IFERROR(IF(VLOOKUP($B82,NKI_Datenbank,COLUMN(NKI_Datenbank!$D$1),FALSE)>80,1,0),"") ->  | P82: =IF(V82>0,"",IF(AB82>0,"kein Umbau",IF(AE82>0,IF(H82>Annahmen!$F$10,"Umbau A P1",IF(H82>Annahmen!$D$10,"Umbau A P2",IF(H82<=Annahmen!$F$10,"kein Umbau A"))),IF(AI82>0,IF(I82>Annahmen!$F$10,"Umbau B P1",IF(I82>Annahmen!$D$10,"Umbau B P2",IF(I82<=Annahmen!$F$10,"kein Umbau B"))),IF(J82=0,"",IF(J82>Annahmen!$F$10,"Umbau P1",IF(J82>Annahmen!$D$10,"Umbau P2","kein Umbau"))))))) ->  | Q82: =IF(AND(Erfassungsmaske!G79="X",Erfassungsmaske!H79="X"),"bereits umgebaut (A und B)",IF(AND(Erfassungsmaske!G79="X",Erfassungsmaske!K79="X"),"A bereits umgebaut, B projektiert",IF(AND(Erfassungsmaske!H79="X",Erfassungsmaske!J79="X"),"B bereits umgebaut, A projektiert",IF(Erfassungsmaske!G79="X","A bereits umgebaut",IF(Erfassungsmaske!H79="X","B bereits umgebaut",IF(AND(Erfassungsmaske!J79="X",Erfassungsmaske!K79="X"),"Umbau projektiert (A und B)",IF(Erfassungsmaske!J79="X","Umbau A projektiert",IF(Erfassungsmaske!K79="X","Umbau B projektiert","")))))))) ->  | V82: 1 | W82: 1 | X82: 0 | Y82: 0 | Z82: 0 | AA82: 0 | AB82: 0 | AC82: 0 | AD82: 0 | AE82: 0 | AF82: 0 | AG82: 0 | AH82: =IF(Erfassungsmaske!E79="(Nur Richtung A)",1,0) -> 0 | AI82: 0 | AJ82: 0 | AK82: 0 | AL82: =IF(Erfassungsmaske!D79="(Nur Richtung B)",1,0) -> 0
B83: 0 | C83: 0 | D83: =IFERROR(VLOOKUP($B83,NKI_Datenbank,COLUMN(NKI_Datenbank!$N$1),FALSE),"") ->  | E83: =IFERROR(VLOOKUP($B83,NKI_Datenbank,COLUMN(NKI_Datenbank!$O$1),FALSE),"") ->  | F83: =IF(Erfassungsmaske!O80>0,1,0) -> 0 | H83: =IFERROR(VLOOKUP($B83,NKI_Datenbank,COLUMN(NKI_Datenbank!$P$1),FALSE),0) -> 0 | I83: =IFERROR(VLOOKUP($B83,NKI_Datenbank,COLUMN(NKI_Datenbank!$Q$1),FALSE),0) -> 0 | J83: =IFERROR(VLOOKUP($B83,NKI_Datenbank,COLUMN(NKI_Datenbank!$R$1),FALSE),0) -> 0 | K83: =IFERROR(IF(VLOOKUP($B83,NKI_Datenbank,COLUMN(NKI_Datenbank!$E$1),FALSE)>0,1,0),"") ->  | L83: =IFERROR(IF(VLOOKUP($B83,NKI_Datenbank,COLUMN(NKI_Datenbank!$D$1),FALSE)>80,1,0),"") ->  | P83: =IF(V83>0,"",IF(AB83>0,"kein Umbau",IF(AE83>0,IF(H83>Annahmen!$F$10,"Umbau A P1",IF(H83>Annahmen!$D$10,"Umbau A P2",IF(H83<=Annahmen!$F$10,"kein Umbau A"))),IF(AI83>0,IF(I83>Annahmen!$F$10,"Umbau B P1",IF(I83>Annahmen!$D$10,"Umbau B P2",IF(I83<=Annahmen!$F$10,"kein Umbau B"))),IF(J83=0,"",IF(J83>Annahmen!$F$10,"Umbau P1",IF(J83>Annahmen!$D$10,"Umbau P2","kein Umbau"))))))) ->  | Q83: =IF(AND(Erfassungsmaske!G80="X",Erfassungsmaske!H80="X"),"bereits umgebaut (A und B)",IF(AND(Erfassungsmaske!G80="X",Erfassungsmaske!K80="X"),"A bereits umgebaut, B projektiert",IF(AND(Erfassungsmaske!H80="X",Erfassungsmaske!J80="X"),"B bereits umgebaut, A projektiert",IF(Erfassungsmaske!G80="X","A bereits umgebaut",IF(Erfassungsmaske!H80="X","B bereits umgebaut",IF(AND(Erfassungsmaske!J80="X",Erfassungsmaske!K80="X"),"Umbau projektiert (A und B)",IF(Erfassungsmaske!J80="X","Umbau A projektiert",IF(Erfassungsmaske!K80="X","Umbau B projektiert","")))))))) ->  | V83: 1 | W83: 1 | X83: 0 | Y83: 0 | Z83: 0 | AA83: 0 | AB83: 0 | AC83: 0 | AD83: 0 | AE83: 0 | AF83: 0 | AG83: 0 | AH83: =IF(Erfassungsmaske!E80="(Nur Richtung A)",1,0) -> 0 | AI83: 0 | AJ83: 0 | AK83: 0 | AL83: =IF(Erfassungsmaske!D80="(Nur Richtung B)",1,0) -> 0
B84: 0 | C84: 0 | D84: =IFERROR(VLOOKUP($B84,NKI_Datenbank,COLUMN(NKI_Datenbank!$N$1),FALSE),"") ->  | E84: =IFERROR(VLOOKUP($B84,NKI_Datenbank,COLUMN(NKI_Datenbank!$O$1),FALSE),"") ->  | F84: =IF(Erfassungsmaske!O81>0,1,0) -> 0 | H84: =IFERROR(VLOOKUP($B84,NKI_Datenbank,COLUMN(NKI_Datenbank!$P$1),FALSE),0) -> 0 | I84: =IFERROR(VLOOKUP($B84,NKI_Datenbank,COLUMN(NKI_Datenbank!$Q$1),FALSE),0) -> 0 | J84: =IFERROR(VLOOKUP($B84,NKI_Datenbank,COLUMN(NKI_Datenbank!$R$1),FALSE),0) -> 0 | K84: =IFERROR(IF(VLOOKUP($B84,NKI_Datenbank,COLUMN(NKI_Datenbank!$E$1),FALSE)>0,1,0),"") ->  | L84: =IFERROR(IF(VLOOKUP($B84,NKI_Datenbank,COLUMN(NKI_Datenbank!$D$1),FALSE)>80,1,0),"") ->  | P84: =IF(V84>0,"",IF(AB84>0,"kein Umbau",IF(AE84>0,IF(H84>Annahmen!$F$10,"Umbau A P1",IF(H84>Annahmen!$D$10,"Umbau A P2",IF(H84<=Annahmen!$F$10,"kein Umbau A"))),IF(AI84>0,IF(I84>Annahmen!$F$10,"Umbau B P1",IF(I84>Annahmen!$D$10,"Umbau B P2",IF(I84<=Annahmen!$F$10,"kein Umbau B"))),IF(J84=0,"",IF(J84>Annahmen!$F$10,"Umbau P1",IF(J84>Annahmen!$D$10,"Umbau P2","kein Umbau"))))))) ->  | Q84: =IF(AND(Erfassungsmaske!G81="X",Erfassungsmaske!H81="X"),"bereits umgebaut (A und B)",IF(AND(Erfassungsmaske!G81="X",Erfassungsmaske!K81="X"),"A bereits umgebaut, B projektiert",IF(AND(Erfassungsmaske!H81="X",Erfassungsmaske!J81="X"),"B bereits umgebaut, A projektiert",IF(Erfassungsmaske!G81="X","A bereits umgebaut",IF(Erfassungsmaske!H81="X","B bereits umgebaut",IF(AND(Erfassungsmaske!J81="X",Erfassungsmaske!K81="X"),"Umbau projektiert (A und B)",IF(Erfassungsmaske!J81="X","Umbau A projektiert",IF(Erfassungsmaske!K81="X","Umbau B projektiert","")))))))) ->  | V84: 1 | W84: 1 | X84: 0 | Y84: 0 | Z84: 0 | AA84: 0 | AB84: 0 | AC84: 0 | AD84: 0 | AE84: 0 | AF84: 0 | AG84: 0 | AH84: =IF(Erfassungsmaske!E81="(Nur Richtung A)",1,0) -> 0 | AI84: 0 | AJ84: 0 | AK84: 0 | AL84: =IF(Erfassungsmaske!D81="(Nur Richtung B)",1,0) -> 0
B85: 0 | C85: 0 | D85: =IFERROR(VLOOKUP($B85,NKI_Datenbank,COLUMN(NKI_Datenbank!$N$1),FALSE),"") ->  | E85: =IFERROR(VLOOKUP($B85,NKI_Datenbank,COLUMN(NKI_Datenbank!$O$1),FALSE),"") ->  | F85: =IF(Erfassungsmaske!O82>0,1,0) -> 0 | H85: =IFERROR(VLOOKUP($B85,NKI_Datenbank,COLUMN(NKI_Datenbank!$P$1),FALSE),0) -> 0 | I85: =IFERROR(VLOOKUP($B85,NKI_Datenbank,COLUMN(NKI_Datenbank!$Q$1),FALSE),0) -> 0 | J85: =IFERROR(VLOOKUP($B85,NKI_Datenbank,COLUMN(NKI_Datenbank!$R$1),FALSE),0) -> 0 | K85: =IFERROR(IF(VLOOKUP($B85,NKI_Datenbank,COLUMN(NKI_Datenbank!$E$1),FALSE)>0,1,0),"") ->  | L85: =IFERROR(IF(VLOOKUP($B85,NKI_Datenbank,COLUMN(NKI_Datenbank!$D$1),FALSE)>80,1,0),"") ->  | P85: =IF(V85>0,"",IF(AB85>0,"kein Umbau",IF(AE85>0,IF(H85>Annahmen!$F$10,"Umbau A P1",IF(H85>Annahmen!$D$10,"Umbau A P2",IF(H85<=Annahmen!$F$10,"kein Umbau A"))),IF(AI85>0,IF(I85>Annahmen!$F$10,"Umbau B P1",IF(I85>Annahmen!$D$10,"Umbau B P2",IF(I85<=Annahmen!$F$10,"kein Umbau B"))),IF(J85=0,"",IF(J85>Annahmen!$F$10,"Umbau P1",IF(J85>Annahmen!$D$10,"Umbau P2","kein Umbau"))))))) ->  | Q85: =IF(AND(Erfassungsmaske!G82="X",Erfassungsmaske!H82="X"),"bereits umgebaut (A und B)",IF(AND(Erfassungsmaske!G82="X",Erfassungsmaske!K82="X"),"A bereits umgebaut, B projektiert",IF(AND(Erfassungsmaske!H82="X",Erfassungsmaske!J82="X"),"B bereits umgebaut, A projektiert",IF(Erfassungsmaske!G82="X","A bereits umgebaut",IF(Erfassungsmaske!H82="X","B bereits umgebaut",IF(AND(Erfassungsmaske!J82="X",Erfassungsmaske!K82="X"),"Umbau projektiert (A und B)",IF(Erfassungsmaske!J82="X","Umbau A projektiert",IF(Erfassungsmaske!K82="X","Umbau B projektiert","")))))))) ->  | V85: 1 | W85: 1 | X85: 0 | Y85: 0 | Z85: 0 | AA85: 0 | AB85: 0 | AC85: 0 | AD85: 0 | AE85: 0 | AF85: 0 | AG85: 0 | AH85: =IF(Erfassungsmaske!E82="(Nur Richtung A)",1,0) -> 0 | AI85: 0 | AJ85: 0 | AK85: 0 | AL85: =IF(Erfassungsmaske!D82="(Nur Richtung B)",1,0) -> 0
B86: 0 | C86: 0 | D86: =IFERROR(VLOOKUP($B86,NKI_Datenbank,COLUMN(NKI_Datenbank!$N$1),FALSE),"") ->  | E86: =IFERROR(VLOOKUP($B86,NKI_Datenbank,COLUMN(NKI_Datenbank!$O$1),FALSE),"") ->  | F86: =IF(Erfassungsmaske!O83>0,1,0) -> 0 | H86: =IFERROR(VLOOKUP($B86,NKI_Datenbank,COLUMN(NKI_Datenbank!$P$1),FALSE),0) -> 0 | I86: =IFERROR(VLOOKUP($B86,NKI_Datenbank,COLUMN(NKI_Datenbank!$Q$1),FALSE),0) -> 0 | J86: =IFERROR(VLOOKUP($B86,NKI_Datenbank,COLUMN(NKI_Datenbank!$R$1),FALSE),0) -> 0 | K86: =IFERROR(IF(VLOOKUP($B86,NKI_Datenbank,COLUMN(NKI_Datenbank!$E$1),FALSE)>0,1,0),"") ->  | L86: =IFERROR(IF(VLOOKUP($B86,NKI_Datenbank,COLUMN(NKI_Datenbank!$D$1),FALSE)>80,1,0),"") ->  | P86: =IF(V86>0,"",IF(AB86>0,"kein Umbau",IF(AE86>0,IF(H86>Annahmen!$F$10,"Umbau A P1",IF(H86>Annahmen!$D$10,"Umbau A P2",IF(H86<=Annahmen!$F$10,"kein Umbau A"))),IF(AI86>0,IF(I86>Annahmen!$F$10,"Umbau B P1",IF(I86>Annahmen!$D$10,"Umbau B P2",IF(I86<=Annahmen!$F$10,"kein Umbau B"))),IF(J86=0,"",IF(J86>Annahmen!$F$10,"Umbau P1",IF(J86>Annahmen!$D$10,"Umbau P2","kein Umbau"))))))) ->  | Q86: =IF(AND(Erfassungsmaske!G83="X",Erfassungsmaske!H83="X"),"bereits umgebaut (A und B)",IF(AND(Erfassungsmaske!G83="X",Erfassungsmaske!K83="X"),"A bereits umgebaut, B projektiert",IF(AND(Erfassungsmaske!H83="X",Erfassungsmaske!J83="X"),"B bereits umgebaut, A projektiert",IF(Erfassungsmaske!G83="X","A bereits umgebaut",IF(Erfassungsmaske!H83="X","B bereits umgebaut",IF(AND(Erfassungsmaske!J83="X",Erfassungsmaske!K83="X"),"Umbau projektiert (A und B)",IF(Erfassungsmaske!J83="X","Umbau A projektiert",IF(Erfassungsmaske!K83="X","Umbau B projektiert","")))))))) ->  | V86: 1 | W86: 1 | X86: 0 | Y86: 0 | Z86: 0 | AA86: 0 | AB86: 0 | AC86: 0 | AD86: 0 | AE86: 0 | AF86: 0 | AG86: 0 | AH86: =IF(Erfassungsmaske!E83="(Nur Richtung A)",1,0) -> 0 | AI86: 0 | AJ86: 0 | AK86: 0 | AL86: =IF(Erfassungsmaske!D83="(Nur Richtung B)",1,0) -> 0
B87: 0 | C87: 0 | D87: =IFERROR(VLOOKUP($B87,NKI_Datenbank,COLUMN(NKI_Datenbank!$N$1),FALSE),"") ->  | E87: =IFERROR(VLOOKUP($B87,NKI_Datenbank,COLUMN(NKI_Datenbank!$O$1),FALSE),"") ->  | F87: =IF(Erfassungsmaske!O84>0,1,0) -> 0 | H87: =IFERROR(VLOOKUP($B87,NKI_Datenbank,COLUMN(NKI_Datenbank!$P$1),FALSE),0) -> 0 | I87: =IFERROR(VLOOKUP($B87,NKI_Datenbank,COLUMN(NKI_Datenbank!$Q$1),FALSE),0) -> 0 | J87: =IFERROR(VLOOKUP($B87,NKI_Datenbank,COLUMN(NKI_Datenbank!$R$1),FALSE),0) -> 0 | K87: =IFERROR(IF(VLOOKUP($B87,NKI_Datenbank,COLUMN(NKI_Datenbank!$E$1),FALSE)>0,1,0),"") ->  | L87: =IFERROR(IF(VLOOKUP($B87,NKI_Datenbank,COLUMN(NKI_Datenbank!$D$1),FALSE)>80,1,0),"") ->  | P87: =IF(V87>0,"",IF(AB87>0,"kein Umbau",IF(AE87>0,IF(H87>Annahmen!$F$10,"Umbau A P1",IF(H87>Annahmen!$D$10,"Umbau A P2",IF(H87<=Annahmen!$F$10,"kein Umbau A"))),IF(AI87>0,IF(I87>Annahmen!$F$10,"Umbau B P1",IF(I87>Annahmen!$D$10,"Umbau B P2",IF(I87<=Annahmen!$F$10,"kein Umbau B"))),IF(J87=0,"",IF(J87>Annahmen!$F$10,"Umbau P1",IF(J87>Annahmen!$D$10,"Umbau P2","kein Umbau"))))))) ->  | Q87: =IF(AND(Erfassungsmaske!G84="X",Erfassungsmaske!H84="X"),"bereits umgebaut (A und B)",IF(AND(Erfassungsmaske!G84="X",Erfassungsmaske!K84="X"),"A bereits umgebaut, B projektiert",IF(AND(Erfassungsmaske!H84="X",Erfassungsmaske!J84="X"),"B bereits umgebaut, A projektiert",IF(Erfassungsmaske!G84="X","A bereits umgebaut",IF(Erfassungsmaske!H84="X","B bereits umgebaut",IF(AND(Erfassungsmaske!J84="X",Erfassungsmaske!K84="X"),"Umbau projektiert (A und B)",IF(Erfassungsmaske!J84="X","Umbau A projektiert",IF(Erfassungsmaske!K84="X","Umbau B projektiert","")))))))) ->  | V87: 1 | W87: 1 | X87: 0 | Y87: 0 | Z87: 0 | AA87: 0 | AB87: 0 | AC87: 0 | AD87: 0 | AE87: 0 | AF87: 0 | AG87: 0 | AH87: =IF(Erfassungsmaske!E84="(Nur Richtung A)",1,0) -> 0 | AI87: 0 | AJ87: 0 | AK87: 0 | AL87: =IF(Erfassungsmaske!D84="(Nur Richtung B)",1,0) -> 0
B88: 0 | C88: 0 | D88: =IFERROR(VLOOKUP($B88,NKI_Datenbank,COLUMN(NKI_Datenbank!$N$1),FALSE),"") ->  | E88: =IFERROR(VLOOKUP($B88,NKI_Datenbank,COLUMN(NKI_Datenbank!$O$1),FALSE),"") ->  | F88: =IF(Erfassungsmaske!O85>0,1,0) -> 0 | H88: =IFERROR(VLOOKUP($B88,NKI_Datenbank,COLUMN(NKI_Datenbank!$P$1),FALSE),0) -> 0 | I88: =IFERROR(VLOOKUP($B88,NKI_Datenbank,COLUMN(NKI_Datenbank!$Q$1),FALSE),0) -> 0 | J88: =IFERROR(VLOOKUP($B88,NKI_Datenbank,COLUMN(NKI_Datenbank!$R$1),FALSE),0) -> 0 | K88: =IFERROR(IF(VLOOKUP($B88,NKI_Datenbank,COLUMN(NKI_Datenbank!$E$1),FALSE)>0,1,0),"") ->  | L88: =IFERROR(IF(VLOOKUP($B88,NKI_Datenbank,COLUMN(NKI_Datenbank!$D$1),FALSE)>80,1,0),"") ->  | P88: =IF(V88>0,"",IF(AB88>0,"kein Umbau",IF(AE88>0,IF(H88>Annahmen!$F$10,"Umbau A P1",IF(H88>Annahmen!$D$10,"Umbau A P2",IF(H88<=Annahmen!$F$10,"kein Umbau A"))),IF(AI88>0,IF(I88>Annahmen!$F$10,"Umbau B P1",IF(I88>Annahmen!$D$10,"Umbau B P2",IF(I88<=Annahmen!$F$10,"kein Umbau B"))),IF(J88=0,"",IF(J88>Annahmen!$F$10,"Umbau P1",IF(J88>Annahmen!$D$10,"Umbau P2","kein Umbau"))))))) ->  | Q88: =IF(AND(Erfassungsmaske!G85="X",Erfassungsmaske!H85="X"),"bereits umgebaut (A und B)",IF(AND(Erfassungsmaske!G85="X",Erfassungsmaske!K85="X"),"A bereits umgebaut, B projektiert",IF(AND(Erfassungsmaske!H85="X",Erfassungsmaske!J85="X"),"B bereits umgebaut, A projektiert",IF(Erfassungsmaske!G85="X","A bereits umgebaut",IF(Erfassungsmaske!H85="X","B bereits umgebaut",IF(AND(Erfassungsmaske!J85="X",Erfassungsmaske!K85="X"),"Umbau projektiert (A und B)",IF(Erfassungsmaske!J85="X","Umbau A projektiert",IF(Erfassungsmaske!K85="X","Umbau B projektiert","")))))))) ->  | V88: 1 | W88: 1 | X88: 0 | Y88: 0 | Z88: 0 | AA88: 0 | AB88: 0 | AC88: 0 | AD88: 0 | AE88: 0 | AF88: 0 | AG88: 0 | AH88: =IF(Erfassungsmaske!E85="(Nur Richtung A)",1,0) -> 0 | AI88: 0 | AJ88: 0 | AK88: 0 | AL88: =IF(Erfassungsmaske!D85="(Nur Richtung B)",1,0) -> 0
B89: 0 | C89: 0 | D89: =IFERROR(VLOOKUP($B89,NKI_Datenbank,COLUMN(NKI_Datenbank!$N$1),FALSE),"") ->  | E89: =IFERROR(VLOOKUP($B89,NKI_Datenbank,COLUMN(NKI_Datenbank!$O$1),FALSE),"") ->  | F89: =IF(Erfassungsmaske!O86>0,1,0) -> 0 | H89: =IFERROR(VLOOKUP($B89,NKI_Datenbank,COLUMN(NKI_Datenbank!$P$1),FALSE),0) -> 0 | I89: =IFERROR(VLOOKUP($B89,NKI_Datenbank,COLUMN(NKI_Datenbank!$Q$1),FALSE),0) -> 0 | J89: =IFERROR(VLOOKUP($B89,NKI_Datenbank,COLUMN(NKI_Datenbank!$R$1),FALSE),0) -> 0 | K89: =IFERROR(IF(VLOOKUP($B89,NKI_Datenbank,COLUMN(NKI_Datenbank!$E$1),FALSE)>0,1,0),"") ->  | L89: =IFERROR(IF(VLOOKUP($B89,NKI_Datenbank,COLUMN(NKI_Datenbank!$D$1),FALSE)>80,1,0),"") ->  | P89: =IF(V89>0,"",IF(AB89>0,"kein Umbau",IF(AE89>0,IF(H89>Annahmen!$F$10,"Umbau A P1",IF(H89>Annahmen!$D$10,"Umbau A P2",IF(H89<=Annahmen!$F$10,"kein Umbau A"))),IF(AI89>0,IF(I89>Annahmen!$F$10,"Umbau B P1",IF(I89>Annahmen!$D$10,"Umbau B P2",IF(I89<=Annahmen!$F$10,"kein Umbau B"))),IF(J89=0,"",IF(J89>Annahmen!$F$10,"Umbau P1",IF(J89>Annahmen!$D$10,"Umbau P2","kein Umbau"))))))) ->  | Q89: =IF(AND(Erfassungsmaske!G86="X",Erfassungsmaske!H86="X"),"bereits umgebaut (A und B)",IF(AND(Erfassungsmaske!G86="X",Erfassungsmaske!K86="X"),"A bereits umgebaut, B projektiert",IF(AND(Erfassungsmaske!H86="X",Erfassungsmaske!J86="X"),"B bereits umgebaut, A projektiert",IF(Erfassungsmaske!G86="X","A bereits umgebaut",IF(Erfassungsmaske!H86="X","B bereits umgebaut",IF(AND(Erfassungsmaske!J86="X",Erfassungsmaske!K86="X"),"Umbau projektiert (A und B)",IF(Erfassungsmaske!J86="X","Umbau A projektiert",IF(Erfassungsmaske!K86="X","Umbau B projektiert","")))))))) ->  | V89: 1 | W89: 1 | X89: 0 | Y89: 0 | Z89: 0 | AA89: 0 | AB89: 0 | AC89: 0 | AD89: 0 | AE89: 0 | AF89: 0 | AG89: 0 | AH89: =IF(Erfassungsmaske!E86="(Nur Richtung A)",1,0) -> 0 | AI89: 0 | AJ89: 0 | AK89: 0 | AL89: =IF(Erfassungsmaske!D86="(Nur Richtung B)",1,0) -> 0
B90: 0 | C90: 0 | D90: =IFERROR(VLOOKUP($B90,NKI_Datenbank,COLUMN(NKI_Datenbank!$N$1),FALSE),"") ->  | E90: =IFERROR(VLOOKUP($B90,NKI_Datenbank,COLUMN(NKI_Datenbank!$O$1),FALSE),"") ->  | F90: =IF(Erfassungsmaske!O87>0,1,0) -> 0 | H90: =IFERROR(VLOOKUP($B90,NKI_Datenbank,COLUMN(NKI_Datenbank!$P$1),FALSE),0) -> 0 | I90: =IFERROR(VLOOKUP($B90,NKI_Datenbank,COLUMN(NKI_Datenbank!$Q$1),FALSE),0) -> 0 | J90: =IFERROR(VLOOKUP($B90,NKI_Datenbank,COLUMN(NKI_Datenbank!$R$1),FALSE),0) -> 0 | K90: =IFERROR(IF(VLOOKUP($B90,NKI_Datenbank,COLUMN(NKI_Datenbank!$E$1),FALSE)>0,1,0),"") ->  | L90: =IFERROR(IF(VLOOKUP($B90,NKI_Datenbank,COLUMN(NKI_Datenbank!$D$1),FALSE)>80,1,0),"") ->  | P90: =IF(V90>0,"",IF(AB90>0,"kein Umbau",IF(AE90>0,IF(H90>Annahmen!$F$10,"Umbau A P1",IF(H90>Annahmen!$D$10,"Umbau A P2",IF(H90<=Annahmen!$F$10,"kein Umbau A"))),IF(AI90>0,IF(I90>Annahmen!$F$10,"Umbau B P1",IF(I90>Annahmen!$D$10,"Umbau B P2",IF(I90<=Annahmen!$F$10,"kein Umbau B"))),IF(J90=0,"",IF(J90>Annahmen!$F$10,"Umbau P1",IF(J90>Annahmen!$D$10,"Umbau P2","kein Umbau"))))))) ->  | Q90: =IF(AND(Erfassungsmaske!G87="X",Erfassungsmaske!H87="X"),"bereits umgebaut (A und B)",IF(AND(Erfassungsmaske!G87="X",Erfassungsmaske!K87="X"),"A bereits umgebaut, B projektiert",IF(AND(Erfassungsmaske!H87="X",Erfassungsmaske!J87="X"),"B bereits umgebaut, A projektiert",IF(Erfassungsmaske!G87="X","A bereits umgebaut",IF(Erfassungsmaske!H87="X","B bereits umgebaut",IF(AND(Erfassungsmaske!J87="X",Erfassungsmaske!K87="X"),"Umbau projektiert (A und B)",IF(Erfassungsmaske!J87="X","Umbau A projektiert",IF(Erfassungsmaske!K87="X","Umbau B projektiert","")))))))) ->  | V90: 1 | W90: 1 | X90: 0 | Y90: 0 | Z90: 0 | AA90: 0 | AB90: 0 | AC90: 0 | AD90: 0 | AE90: 0 | AF90: 0 | AG90: 0 | AH90: =IF(Erfassungsmaske!E87="(Nur Richtung A)",1,0) -> 0 | AI90: 0 | AJ90: 0 | AK90: 0 | AL90: =IF(Erfassungsmaske!D87="(Nur Richtung B)",1,0) -> 0
B91: 0 | C91: 0 | D91: =IFERROR(VLOOKUP($B91,NKI_Datenbank,COLUMN(NKI_Datenbank!$N$1),FALSE),"") ->  | E91: =IFERROR(VLOOKUP($B91,NKI_Datenbank,COLUMN(NKI_Datenbank!$O$1),FALSE),"") ->  | F91: =IF(Erfassungsmaske!O88>0,1,0) -> 0 | H91: =IFERROR(VLOOKUP($B91,NKI_Datenbank,COLUMN(NKI_Datenbank!$P$1),FALSE),0) -> 0 | I91: =IFERROR(VLOOKUP($B91,NKI_Datenbank,COLUMN(NKI_Datenbank!$Q$1),FALSE),0) -> 0 | J91: =IFERROR(VLOOKUP($B91,NKI_Datenbank,COLUMN(NKI_Datenbank!$R$1),FALSE),0) -> 0 | K91: =IFERROR(IF(VLOOKUP($B91,NKI_Datenbank,COLUMN(NKI_Datenbank!$E$1),FALSE)>0,1,0),"") ->  | L91: =IFERROR(IF(VLOOKUP($B91,NKI_Datenbank,COLUMN(NKI_Datenbank!$D$1),FALSE)>80,1,0),"") ->  | P91: =IF(V91>0,"",IF(AB91>0,"kein Umbau",IF(AE91>0,IF(H91>Annahmen!$F$10,"Umbau A P1",IF(H91>Annahmen!$D$10,"Umbau A P2",IF(H91<=Annahmen!$F$10,"kein Umbau A"))),IF(AI91>0,IF(I91>Annahmen!$F$10,"Umbau B P1",IF(I91>Annahmen!$D$10,"Umbau B P2",IF(I91<=Annahmen!$F$10,"kein Umbau B"))),IF(J91=0,"",IF(J91>Annahmen!$F$10,"Umbau P1",IF(J91>Annahmen!$D$10,"Umbau P2","kein Umbau"))))))) ->  | Q91: =IF(AND(Erfassungsmaske!G88="X",Erfassungsmaske!H88="X"),"bereits umgebaut (A und B)",IF(AND(Erfassungsmaske!G88="X",Erfassungsmaske!K88="X"),"A bereits umgebaut, B projektiert",IF(AND(Erfassungsmaske!H88="X",Erfassungsmaske!J88="X"),"B bereits umgebaut, A projektiert",IF(Erfassungsmaske!G88="X","A bereits umgebaut",IF(Erfassungsmaske!H88="X","B bereits umgebaut",IF(AND(Erfassungsmaske!J88="X",Erfassungsmaske!K88="X"),"Umbau projektiert (A und B)",IF(Erfassungsmaske!J88="X","Umbau A projektiert",IF(Erfassungsmaske!K88="X","Umbau B projektiert","")))))))) ->  | V91: 1 | W91: 1 | X91: 0 | Y91: 0 | Z91: 0 | AA91: 0 | AB91: 0 | AC91: 0 | AD91: 0 | AE91: 0 | AF91: 0 | AG91: 0 | AH91: =IF(Erfassungsmaske!E88="(Nur Richtung A)",1,0) -> 0 | AI91: 0 | AJ91: 0 | AK91: 0 | AL91: =IF(Erfassungsmaske!D88="(Nur Richtung B)",1,0) -> 0
B92: 0 | C92: 0 | D92: =IFERROR(VLOOKUP($B92,NKI_Datenbank,COLUMN(NKI_Datenbank!$N$1),FALSE),"") ->  | E92: =IFERROR(VLOOKUP($B92,NKI_Datenbank,COLUMN(NKI_Datenbank!$O$1),FALSE),"") ->  | F92: =IF(Erfassungsmaske!O89>0,1,0) -> 0 | H92: =IFERROR(VLOOKUP($B92,NKI_Datenbank,COLUMN(NKI_Datenbank!$P$1),FALSE),0) -> 0 | I92: =IFERROR(VLOOKUP($B92,NKI_Datenbank,COLUMN(NKI_Datenbank!$Q$1),FALSE),0) -> 0 | J92: =IFERROR(VLOOKUP($B92,NKI_Datenbank,COLUMN(NKI_Datenbank!$R$1),FALSE),0) -> 0 | K92: =IFERROR(IF(VLOOKUP($B92,NKI_Datenbank,COLUMN(NKI_Datenbank!$E$1),FALSE)>0,1,0),"") ->  | L92: =IFERROR(IF(VLOOKUP($B92,NKI_Datenbank,COLUMN(NKI_Datenbank!$D$1),FALSE)>80,1,0),"") ->  | P92: =IF(V92>0,"",IF(AB92>0,"kein Umbau",IF(AE92>0,IF(H92>Annahmen!$F$10,"Umbau A P1",IF(H92>Annahmen!$D$10,"Umbau A P2",IF(H92<=Annahmen!$F$10,"kein Umbau A"))),IF(AI92>0,IF(I92>Annahmen!$F$10,"Umbau B P1",IF(I92>Annahmen!$D$10,"Umbau B P2",IF(I92<=Annahmen!$F$10,"kein Umbau B"))),IF(J92=0,"",IF(J92>Annahmen!$F$10,"Umbau P1",IF(J92>Annahmen!$D$10,"Umbau P2","kein Umbau"))))))) ->  | Q92: =IF(AND(Erfassungsmaske!G89="X",Erfassungsmaske!H89="X"),"bereits umgebaut (A und B)",IF(AND(Erfassungsmaske!G89="X",Erfassungsmaske!K89="X"),"A bereits umgebaut, B projektiert",IF(AND(Erfassungsmaske!H89="X",Erfassungsmaske!J89="X"),"B bereits umgebaut, A projektiert",IF(Erfassungsmaske!G89="X","A bereits umgebaut",IF(Erfassungsmaske!H89="X","B bereits umgebaut",IF(AND(Erfassungsmaske!J89="X",Erfassungsmaske!K89="X"),"Umbau projektiert (A und B)",IF(Erfassungsmaske!J89="X","Umbau A projektiert",IF(Erfassungsmaske!K89="X","Umbau B projektiert","")))))))) ->  | V92: 1 | W92: 1 | X92: 0 | Y92: 0 | Z92: 0 | AA92: 0 | AB92: 0 | AC92: 0 | AD92: 0 | AE92: 0 | AF92: 0 | AG92: 0 | AH92: =IF(Erfassungsmaske!E89="(Nur Richtung A)",1,0) -> 0 | AI92: 0 | AJ92: 0 | AK92: 0 | AL92: =IF(Erfassungsmaske!D89="(Nur Richtung B)",1,0) -> 0
B93: 0 | C93: 0 | D93: =IFERROR(VLOOKUP($B93,NKI_Datenbank,COLUMN(NKI_Datenbank!$N$1),FALSE),"") ->  | E93: =IFERROR(VLOOKUP($B93,NKI_Datenbank,COLUMN(NKI_Datenbank!$O$1),FALSE),"") ->  | F93: =IF(Erfassungsmaske!O90>0,1,0) -> 0 | H93: =IFERROR(VLOOKUP($B93,NKI_Datenbank,COLUMN(NKI_Datenbank!$P$1),FALSE),0) -> 0 | I93: =IFERROR(VLOOKUP($B93,NKI_Datenbank,COLUMN(NKI_Datenbank!$Q$1),FALSE),0) -> 0 | J93: =IFERROR(VLOOKUP($B93,NKI_Datenbank,COLUMN(NKI_Datenbank!$R$1),FALSE),0) -> 0 | K93: =IFERROR(IF(VLOOKUP($B93,NKI_Datenbank,COLUMN(NKI_Datenbank!$E$1),FALSE)>0,1,0),"") ->  | L93: =IFERROR(IF(VLOOKUP($B93,NKI_Datenbank,COLUMN(NKI_Datenbank!$D$1),FALSE)>80,1,0),"") ->  | P93: =IF(V93>0,"",IF(AB93>0,"kein Umbau",IF(AE93>0,IF(H93>Annahmen!$F$10,"Umbau A P1",IF(H93>Annahmen!$D$10,"Umbau A P2",IF(H93<=Annahmen!$F$10,"kein Umbau A"))),IF(AI93>0,IF(I93>Annahmen!$F$10,"Umbau B P1",IF(I93>Annahmen!$D$10,"Umbau B P2",IF(I93<=Annahmen!$F$10,"kein Umbau B"))),IF(J93=0,"",IF(J93>Annahmen!$F$10,"Umbau P1",IF(J93>Annahmen!$D$10,"Umbau P2","kein Umbau"))))))) ->  | Q93: =IF(AND(Erfassungsmaske!G90="X",Erfassungsmaske!H90="X"),"bereits umgebaut (A und B)",IF(AND(Erfassungsmaske!G90="X",Erfassungsmaske!K90="X"),"A bereits umgebaut, B projektiert",IF(AND(Erfassungsmaske!H90="X",Erfassungsmaske!J90="X"),"B bereits umgebaut, A projektiert",IF(Erfassungsmaske!G90="X","A bereits umgebaut",IF(Erfassungsmaske!H90="X","B bereits umgebaut",IF(AND(Erfassungsmaske!J90="X",Erfassungsmaske!K90="X"),"Umbau projektiert (A und B)",IF(Erfassungsmaske!J90="X","Umbau A projektiert",IF(Erfassungsmaske!K90="X","Umbau B projektiert","")))))))) ->  | V93: 1 | W93: 1 | X93: 0 | Y93: 0 | Z93: 0 | AA93: 0 | AB93: 0 | AC93: 0 | AD93: 0 | AE93: 0 | AF93: 0 | AG93: 0 | AH93: =IF(Erfassungsmaske!E90="(Nur Richtung A)",1,0) -> 0 | AI93: 0 | AJ93: 0 | AK93: 0 | AL93: =IF(Erfassungsmaske!D90="(Nur Richtung B)",1,0) -> 0
B94: 0 | C94: 0 | D94: =IFERROR(VLOOKUP($B94,NKI_Datenbank,COLUMN(NKI_Datenbank!$N$1),FALSE),"") ->  | E94: =IFERROR(VLOOKUP($B94,NKI_Datenbank,COLUMN(NKI_Datenbank!$O$1),FALSE),"") ->  | F94: =IF(Erfassungsmaske!O91>0,1,0) -> 0 | H94: =IFERROR(VLOOKUP($B94,NKI_Datenbank,COLUMN(NKI_Datenbank!$P$1),FALSE),0) -> 0 | I94: =IFERROR(VLOOKUP($B94,NKI_Datenbank,COLUMN(NKI_Datenbank!$Q$1),FALSE),0) -> 0 | J94: =IFERROR(VLOOKUP($B94,NKI_Datenbank,COLUMN(NKI_Datenbank!$R$1),FALSE),0) -> 0 | K94: =IFERROR(IF(VLOOKUP($B94,NKI_Datenbank,COLUMN(NKI_Datenbank!$E$1),FALSE)>0,1,0),"") ->  | L94: =IFERROR(IF(VLOOKUP($B94,NKI_Datenbank,COLUMN(NKI_Datenbank!$D$1),FALSE)>80,1,0),"") ->  | P94: =IF(V94>0,"",IF(AB94>0,"kein Umbau",IF(AE94>0,IF(H94>Annahmen!$F$10,"Umbau A P1",IF(H94>Annahmen!$D$10,"Umbau A P2",IF(H94<=Annahmen!$F$10,"kein Umbau A"))),IF(AI94>0,IF(I94>Annahmen!$F$10,"Umbau B P1",IF(I94>Annahmen!$D$10,"Umbau B P2",IF(I94<=Annahmen!$F$10,"kein Umbau B"))),IF(J94=0,"",IF(J94>Annahmen!$F$10,"Umbau P1",IF(J94>Annahmen!$D$10,"Umbau P2","kein Umbau"))))))) ->  | Q94: =IF(AND(Erfassungsmaske!G91="X",Erfassungsmaske!H91="X"),"bereits umgebaut (A und B)",IF(AND(Erfassungsmaske!G91="X",Erfassungsmaske!K91="X"),"A bereits umgebaut, B projektiert",IF(AND(Erfassungsmaske!H91="X",Erfassungsmaske!J91="X"),"B bereits umgebaut, A projektiert",IF(Erfassungsmaske!G91="X","A bereits umgebaut",IF(Erfassungsmaske!H91="X","B bereits umgebaut",IF(AND(Erfassungsmaske!J91="X",Erfassungsmaske!K91="X"),"Umbau projektiert (A und B)",IF(Erfassungsmaske!J91="X","Umbau A projektiert",IF(Erfassungsmaske!K91="X","Umbau B projektiert","")))))))) ->  | V94: 1 | W94: 1 | X94: 0 | Y94: 0 | Z94: 0 | AA94: 0 | AB94: 0 | AC94: 0 | AD94: 0 | AE94: 0 | AF94: 0 | AG94: 0 | AH94: =IF(Erfassungsmaske!E91="(Nur Richtung A)",1,0) -> 0 | AI94: 0 | AJ94: 0 | AK94: 0 | AL94: =IF(Erfassungsmaske!D91="(Nur Richtung B)",1,0) -> 0
B95: 0 | C95: 0 | D95: =IFERROR(VLOOKUP($B95,NKI_Datenbank,COLUMN(NKI_Datenbank!$N$1),FALSE),"") ->  | E95: =IFERROR(VLOOKUP($B95,NKI_Datenbank,COLUMN(NKI_Datenbank!$O$1),FALSE),"") ->  | F95: =IF(Erfassungsmaske!O92>0,1,0) -> 0 | H95: =IFERROR(VLOOKUP($B95,NKI_Datenbank,COLUMN(NKI_Datenbank!$P$1),FALSE),0) -> 0 | I95: =IFERROR(VLOOKUP($B95,NKI_Datenbank,COLUMN(NKI_Datenbank!$Q$1),FALSE),0) -> 0 | J95: =IFERROR(VLOOKUP($B95,NKI_Datenbank,COLUMN(NKI_Datenbank!$R$1),FALSE),0) -> 0 | K95: =IFERROR(IF(VLOOKUP($B95,NKI_Datenbank,COLUMN(NKI_Datenbank!$E$1),FALSE)>0,1,0),"") ->  | L95: =IFERROR(IF(VLOOKUP($B95,NKI_Datenbank,COLUMN(NKI_Datenbank!$D$1),FALSE)>80,1,0),"") ->  | P95: =IF(V95>0,"",IF(AB95>0,"kein Umbau",IF(AE95>0,IF(H95>Annahmen!$F$10,"Umbau A P1",IF(H95>Annahmen!$D$10,"Umbau A P2",IF(H95<=Annahmen!$F$10,"kein Umbau A"))),IF(AI95>0,IF(I95>Annahmen!$F$10,"Umbau B P1",IF(I95>Annahmen!$D$10,"Umbau B P2",IF(I95<=Annahmen!$F$10,"kein Umbau B"))),IF(J95=0,"",IF(J95>Annahmen!$F$10,"Umbau P1",IF(J95>Annahmen!$D$10,"Umbau P2","kein Umbau"))))))) ->  | Q95: =IF(AND(Erfassungsmaske!G92="X",Erfassungsmaske!H92="X"),"bereits umgebaut (A und B)",IF(AND(Erfassungsmaske!G92="X",Erfassungsmaske!K92="X"),"A bereits umgebaut, B projektiert",IF(AND(Erfassungsmaske!H92="X",Erfassungsmaske!J92="X"),"B bereits umgebaut, A projektiert",IF(Erfassungsmaske!G92="X","A bereits umgebaut",IF(Erfassungsmaske!H92="X","B bereits umgebaut",IF(AND(Erfassungsmaske!J92="X",Erfassungsmaske!K92="X"),"Umbau projektiert (A und B)",IF(Erfassungsmaske!J92="X","Umbau A projektiert",IF(Erfassungsmaske!K92="X","Umbau B projektiert","")))))))) ->  | V95: 1 | W95: 1 | X95: 0 | Y95: 0 | Z95: 0 | AA95: 0 | AB95: 0 | AC95: 0 | AD95: 0 | AE95: 0 | AF95: 0 | AG95: 0 | AH95: =IF(Erfassungsmaske!E92="(Nur Richtung A)",1,0) -> 0 | AI95: 0 | AJ95: 0 | AK95: 0 | AL95: =IF(Erfassungsmaske!D92="(Nur Richtung B)",1,0) -> 0
B96: 0 | C96: 0 | D96: =IFERROR(VLOOKUP($B96,NKI_Datenbank,COLUMN(NKI_Datenbank!$N$1),FALSE),"") ->  | E96: =IFERROR(VLOOKUP($B96,NKI_Datenbank,COLUMN(NKI_Datenbank!$O$1),FALSE),"") ->  | F96: =IF(Erfassungsmaske!O93>0,1,0) -> 0 | H96: =IFERROR(VLOOKUP($B96,NKI_Datenbank,COLUMN(NKI_Datenbank!$P$1),FALSE),0) -> 0 | I96: =IFERROR(VLOOKUP($B96,NKI_Datenbank,COLUMN(NKI_Datenbank!$Q$1),FALSE),0) -> 0 | J96: =IFERROR(VLOOKUP($B96,NKI_Datenbank,COLUMN(NKI_Datenbank!$R$1),FALSE),0) -> 0 | K96: =IFERROR(IF(VLOOKUP($B96,NKI_Datenbank,COLUMN(NKI_Datenbank!$E$1),FALSE)>0,1,0),"") ->  | L96: =IFERROR(IF(VLOOKUP($B96,NKI_Datenbank,COLUMN(NKI_Datenbank!$D$1),FALSE)>80,1,0),"") ->  | P96: =IF(V96>0,"",IF(AB96>0,"kein Umbau",IF(AE96>0,IF(H96>Annahmen!$F$10,"Umbau A P1",IF(H96>Annahmen!$D$10,"Umbau A P2",IF(H96<=Annahmen!$F$10,"kein Umbau A"))),IF(AI96>0,IF(I96>Annahmen!$F$10,"Umbau B P1",IF(I96>Annahmen!$D$10,"Umbau B P2",IF(I96<=Annahmen!$F$10,"kein Umbau B"))),IF(J96=0,"",IF(J96>Annahmen!$F$10,"Umbau P1",IF(J96>Annahmen!$D$10,"Umbau P2","kein Umbau"))))))) ->  | Q96: =IF(AND(Erfassungsmaske!G93="X",Erfassungsmaske!H93="X"),"bereits umgebaut (A und B)",IF(AND(Erfassungsmaske!G93="X",Erfassungsmaske!K93="X"),"A bereits umgebaut, B projektiert",IF(AND(Erfassungsmaske!H93="X",Erfassungsmaske!J93="X"),"B bereits umgebaut, A projektiert",IF(Erfassungsmaske!G93="X","A bereits umgebaut",IF(Erfassungsmaske!H93="X","B bereits umgebaut",IF(AND(Erfassungsmaske!J93="X",Erfassungsmaske!K93="X"),"Umbau projektiert (A und B)",IF(Erfassungsmaske!J93="X","Umbau A projektiert",IF(Erfassungsmaske!K93="X","Umbau B projektiert","")))))))) ->  | V96: 1 | W96: 1 | X96: 0 | Y96: 0 | Z96: 0 | AA96: 0 | AB96: 0 | AC96: 0 | AD96: 0 | AE96: 0 | AF96: 0 | AG96: 0 | AH96: =IF(Erfassungsmaske!E93="(Nur Richtung A)",1,0) -> 0 | AI96: 0 | AJ96: 0 | AK96: 0 | AL96: =IF(Erfassungsmaske!D93="(Nur Richtung B)",1,0) -> 0
B97: 0 | C97: 0 | D97: =IFERROR(VLOOKUP($B97,NKI_Datenbank,COLUMN(NKI_Datenbank!$N$1),FALSE),"") ->  | E97: =IFERROR(VLOOKUP($B97,NKI_Datenbank,COLUMN(NKI_Datenbank!$O$1),FALSE),"") ->  | F97: =IF(Erfassungsmaske!O94>0,1,0) -> 0 | H97: =IFERROR(VLOOKUP($B97,NKI_Datenbank,COLUMN(NKI_Datenbank!$P$1),FALSE),0) -> 0 | I97: =IFERROR(VLOOKUP($B97,NKI_Datenbank,COLUMN(NKI_Datenbank!$Q$1),FALSE),0) -> 0 | J97: =IFERROR(VLOOKUP($B97,NKI_Datenbank,COLUMN(NKI_Datenbank!$R$1),FALSE),0) -> 0 | K97: =IFERROR(IF(VLOOKUP($B97,NKI_Datenbank,COLUMN(NKI_Datenbank!$E$1),FALSE)>0,1,0),"") ->  | L97: =IFERROR(IF(VLOOKUP($B97,NKI_Datenbank,COLUMN(NKI_Datenbank!$D$1),FALSE)>80,1,0),"") ->  | P97: =IF(V97>0,"",IF(AB97>0,"kein Umbau",IF(AE97>0,IF(H97>Annahmen!$F$10,"Umbau A P1",IF(H97>Annahmen!$D$10,"Umbau A P2",IF(H97<=Annahmen!$F$10,"kein Umbau A"))),IF(AI97>0,IF(I97>Annahmen!$F$10,"Umbau B P1",IF(I97>Annahmen!$D$10,"Umbau B P2",IF(I97<=Annahmen!$F$10,"kein Umbau B"))),IF(J97=0,"",IF(J97>Annahmen!$F$10,"Umbau P1",IF(J97>Annahmen!$D$10,"Umbau P2","kein Umbau"))))))) ->  | Q97: =IF(AND(Erfassungsmaske!G94="X",Erfassungsmaske!H94="X"),"bereits umgebaut (A und B)",IF(AND(Erfassungsmaske!G94="X",Erfassungsmaske!K94="X"),"A bereits umgebaut, B projektiert",IF(AND(Erfassungsmaske!H94="X",Erfassungsmaske!J94="X"),"B bereits umgebaut, A projektiert",IF(Erfassungsmaske!G94="X","A bereits umgebaut",IF(Erfassungsmaske!H94="X","B bereits umgebaut",IF(AND(Erfassungsmaske!J94="X",Erfassungsmaske!K94="X"),"Umbau projektiert (A und B)",IF(Erfassungsmaske!J94="X","Umbau A projektiert",IF(Erfassungsmaske!K94="X","Umbau B projektiert","")))))))) ->  | V97: 1 | W97: 1 | X97: 0 | Y97: 0 | Z97: 0 | AA97: 0 | AB97: 0 | AC97: 0 | AD97: 0 | AE97: 0 | AF97: 0 | AG97: 0 | AH97: =IF(Erfassungsmaske!E94="(Nur Richtung A)",1,0) -> 0 | AI97: 0 | AJ97: 0 | AK97: 0 | AL97: =IF(Erfassungsmaske!D94="(Nur Richtung B)",1,0) -> 0
B98: 0 | C98: 0 | D98: =IFERROR(VLOOKUP($B98,NKI_Datenbank,COLUMN(NKI_Datenbank!$N$1),FALSE),"") ->  | E98: =IFERROR(VLOOKUP($B98,NKI_Datenbank,COLUMN(NKI_Datenbank!$O$1),FALSE),"") ->  | F98: =IF(Erfassungsmaske!O95>0,1,0) -> 0 | H98: =IFERROR(VLOOKUP($B98,NKI_Datenbank,COLUMN(NKI_Datenbank!$P$1),FALSE),0) -> 0 | I98: =IFERROR(VLOOKUP($B98,NKI_Datenbank,COLUMN(NKI_Datenbank!$Q$1),FALSE),0) -> 0 | J98: =IFERROR(VLOOKUP($B98,NKI_Datenbank,COLUMN(NKI_Datenbank!$R$1),FALSE),0) -> 0 | K98: =IFERROR(IF(VLOOKUP($B98,NKI_Datenbank,COLUMN(NKI_Datenbank!$E$1),FALSE)>0,1,0),"") ->  | L98: =IFERROR(IF(VLOOKUP($B98,NKI_Datenbank,COLUMN(NKI_Datenbank!$D$1),FALSE)>80,1,0),"") ->  | P98: =IF(V98>0,"",IF(AB98>0,"kein Umbau",IF(AE98>0,IF(H98>Annahmen!$F$10,"Umbau A P1",IF(H98>Annahmen!$D$10,"Umbau A P2",IF(H98<=Annahmen!$F$10,"kein Umbau A"))),IF(AI98>0,IF(I98>Annahmen!$F$10,"Umbau B P1",IF(I98>Annahmen!$D$10,"Umbau B P2",IF(I98<=Annahmen!$F$10,"kein Umbau B"))),IF(J98=0,"",IF(J98>Annahmen!$F$10,"Umbau P1",IF(J98>Annahmen!$D$10,"Umbau P2","kein Umbau"))))))) ->  | Q98: =IF(AND(Erfassungsmaske!G95="X",Erfassungsmaske!H95="X"),"bereits umgebaut (A und B)",IF(AND(Erfassungsmaske!G95="X",Erfassungsmaske!K95="X"),"A bereits umgebaut, B projektiert",IF(AND(Erfassungsmaske!H95="X",Erfassungsmaske!J95="X"),"B bereits umgebaut, A projektiert",IF(Erfassungsmaske!G95="X","A bereits umgebaut",IF(Erfassungsmaske!H95="X","B bereits umgebaut",IF(AND(Erfassungsmaske!J95="X",Erfassungsmaske!K95="X"),"Umbau projektiert (A und B)",IF(Erfassungsmaske!J95="X","Umbau A projektiert",IF(Erfassungsmaske!K95="X","Umbau B projektiert","")))))))) ->  | V98: 1 | W98: 1 | X98: 0 | Y98: 0 | Z98: 0 | AA98: 0 | AB98: 0 | AC98: 0 | AD98: 0 | AE98: 0 | AF98: 0 | AG98: 0 | AH98: =IF(Erfassungsmaske!E95="(Nur Richtung A)",1,0) -> 0 | AI98: 0 | AJ98: 0 | AK98: 0 | AL98: =IF(Erfassungsmaske!D95="(Nur Richtung B)",1,0) -> 0
B99: 0 | C99: 0 | D99: =IFERROR(VLOOKUP($B99,NKI_Datenbank,COLUMN(NKI_Datenbank!$N$1),FALSE),"") ->  | E99: =IFERROR(VLOOKUP($B99,NKI_Datenbank,COLUMN(NKI_Datenbank!$O$1),FALSE),"") ->  | F99: =IF(Erfassungsmaske!O96>0,1,0) -> 0 | H99: =IFERROR(VLOOKUP($B99,NKI_Datenbank,COLUMN(NKI_Datenbank!$P$1),FALSE),0) -> 0 | I99: =IFERROR(VLOOKUP($B99,NKI_Datenbank,COLUMN(NKI_Datenbank!$Q$1),FALSE),0) -> 0 | J99: =IFERROR(VLOOKUP($B99,NKI_Datenbank,COLUMN(NKI_Datenbank!$R$1),FALSE),0) -> 0 | K99: =IFERROR(IF(VLOOKUP($B99,NKI_Datenbank,COLUMN(NKI_Datenbank!$E$1),FALSE)>0,1,0),"") ->  | L99: =IFERROR(IF(VLOOKUP($B99,NKI_Datenbank,COLUMN(NKI_Datenbank!$D$1),FALSE)>80,1,0),"") ->  | P99: =IF(V99>0,"",IF(AB99>0,"kein Umbau",IF(AE99>0,IF(H99>Annahmen!$F$10,"Umbau A P1",IF(H99>Annahmen!$D$10,"Umbau A P2",IF(H99<=Annahmen!$F$10,"kein Umbau A"))),IF(AI99>0,IF(I99>Annahmen!$F$10,"Umbau B P1",IF(I99>Annahmen!$D$10,"Umbau B P2",IF(I99<=Annahmen!$F$10,"kein Umbau B"))),IF(J99=0,"",IF(J99>Annahmen!$F$10,"Umbau P1",IF(J99>Annahmen!$D$10,"Umbau P2","kein Umbau"))))))) ->  | Q99: =IF(AND(Erfassungsmaske!G96="X",Erfassungsmaske!H96="X"),"bereits umgebaut (A und B)",IF(AND(Erfassungsmaske!G96="X",Erfassungsmaske!K96="X"),"A bereits umgebaut, B projektiert",IF(AND(Erfassungsmaske!H96="X",Erfassungsmaske!J96="X"),"B bereits umgebaut, A projektiert",IF(Erfassungsmaske!G96="X","A bereits umgebaut",IF(Erfassungsmaske!H96="X","B bereits umgebaut",IF(AND(Erfassungsmaske!J96="X",Erfassungsmaske!K96="X"),"Umbau projektiert (A und B)",IF(Erfassungsmaske!J96="X","Umbau A projektiert",IF(Erfassungsmaske!K96="X","Umbau B projektiert","")))))))) ->  | V99: 1 | W99: 1 | X99: 0 | Y99: 0 | Z99: 0 | AA99: 0 | AB99: 0 | AC99: 0 | AD99: 0 | AE99: 0 | AF99: 0 | AG99: 0 | AH99: =IF(Erfassungsmaske!E96="(Nur Richtung A)",1,0) -> 0 | AI99: 0 | AJ99: 0 | AK99: 0 | AL99: =IF(Erfassungsmaske!D96="(Nur Richtung B)",1,0) -> 0
B100: 0 | C100: 0 | D100: =IFERROR(VLOOKUP($B100,NKI_Datenbank,COLUMN(NKI_Datenbank!$N$1),FALSE),"") ->  | E100: =IFERROR(VLOOKUP($B100,NKI_Datenbank,COLUMN(NKI_Datenbank!$O$1),FALSE),"") ->  | F100: =IF(Erfassungsmaske!O97>0,1,0) -> 0 | H100: =IFERROR(VLOOKUP($B100,NKI_Datenbank,COLUMN(NKI_Datenbank!$P$1),FALSE),0) -> 0 | I100: =IFERROR(VLOOKUP($B100,NKI_Datenbank,COLUMN(NKI_Datenbank!$Q$1),FALSE),0) -> 0 | J100: =IFERROR(VLOOKUP($B100,NKI_Datenbank,COLUMN(NKI_Datenbank!$R$1),FALSE),0) -> 0 | K100: =IFERROR(IF(VLOOKUP($B100,NKI_Datenbank,COLUMN(NKI_Datenbank!$E$1),FALSE)>0,1,0),"") ->  | L100: =IFERROR(IF(VLOOKUP($B100,NKI_Datenbank,COLUMN(NKI_Datenbank!$D$1),FALSE)>80,1,0),"") ->  | P100: =IF(V100>0,"",IF(AB100>0,"kein Umbau",IF(AE100>0,IF(H100>Annahmen!$F$10,"Umbau A P1",IF(H100>Annahmen!$D$10,"Umbau A P2",IF(H100<=Annahmen!$F$10,"kein Umbau A"))),IF(AI100>0,IF(I100>Annahmen!$F$10,"Umbau B P1",IF(I100>Annahmen!$D$10,"Umbau B P2",IF(I100<=Annahmen!$F$10,"kein Umbau B"))),IF(J100=0,"",IF(J100>Annahmen!$F$10,"Umbau P1",IF(J100>Annahmen!$D$10,"Umbau P2","kein Umbau"))))))) ->  | Q100: =IF(AND(Erfassungsmaske!G97="X",Erfassungsmaske!H97="X"),"bereits umgebaut (A und B)",IF(AND(Erfassungsmaske!G97="X",Erfassungsmaske!K97="X"),"A bereits umgebaut, B projektiert",IF(AND(Erfassungsmaske!H97="X",Erfassungsmaske!J97="X"),"B bereits umgebaut, A projektiert",IF(Erfassungsmaske!G97="X","A bereits umgebaut",IF(Erfassungsmaske!H97="X","B bereits umgebaut",IF(AND(Erfassungsmaske!J97="X",Erfassungsmaske!K97="X"),"Umbau projektiert (A und B)",IF(Erfassungsmaske!J97="X","Umbau A projektiert",IF(Erfassungsmaske!K97="X","Umbau B projektiert","")))))))) ->  | V100: 1 | W100: 1 | X100: 0 | Y100: 0 | Z100: 0 | AA100: 0 | AB100: 0 | AC100: 0 | AD100: 0 | AE100: 0 | AF100: 0 | AG100: 0 | AH100: =IF(Erfassungsmaske!E97="(Nur Richtung A)",1,0) -> 0 | AI100: 0 | AJ100: 0 | AK100: 0 | AL100: =IF(Erfassungsmaske!D97="(Nur Richtung B)",1,0) -> 0
B101: 0 | C101: 0 | D101: =IFERROR(VLOOKUP($B101,NKI_Datenbank,COLUMN(NKI_Datenbank!$N$1),FALSE),"") ->  | E101: =IFERROR(VLOOKUP($B101,NKI_Datenbank,COLUMN(NKI_Datenbank!$O$1),FALSE),"") ->  | F101: =IF(Erfassungsmaske!O98>0,1,0) -> 0 | H101: =IFERROR(VLOOKUP($B101,NKI_Datenbank,COLUMN(NKI_Datenbank!$P$1),FALSE),0) -> 0 | I101: =IFERROR(VLOOKUP($B101,NKI_Datenbank,COLUMN(NKI_Datenbank!$Q$1),FALSE),0) -> 0 | J101: =IFERROR(VLOOKUP($B101,NKI_Datenbank,COLUMN(NKI_Datenbank!$R$1),FALSE),0) -> 0 | K101: =IFERROR(IF(VLOOKUP($B101,NKI_Datenbank,COLUMN(NKI_Datenbank!$E$1),FALSE)>0,1,0),"") ->  | L101: =IFERROR(IF(VLOOKUP($B101,NKI_Datenbank,COLUMN(NKI_Datenbank!$D$1),FALSE)>80,1,0),"") ->  | P101: =IF(V101>0,"",IF(AB101>0,"kein Umbau",IF(AE101>0,IF(H101>Annahmen!$F$10,"Umbau A P1",IF(H101>Annahmen!$D$10,"Umbau A P2",IF(H101<=Annahmen!$F$10,"kein Umbau A"))),IF(AI101>0,IF(I101>Annahmen!$F$10,"Umbau B P1",IF(I101>Annahmen!$D$10,"Umbau B P2",IF(I101<=Annahmen!$F$10,"kein Umbau B"))),IF(J101=0,"",IF(J101>Annahmen!$F$10,"Umbau P1",IF(J101>Annahmen!$D$10,"Umbau P2","kein Umbau"))))))) ->  | Q101: =IF(AND(Erfassungsmaske!G98="X",Erfassungsmaske!H98="X"),"bereits umgebaut (A und B)",IF(AND(Erfassungsmaske!G98="X",Erfassungsmaske!K98="X"),"A bereits umgebaut, B projektiert",IF(AND(Erfassungsmaske!H98="X",Erfassungsmaske!J98="X"),"B bereits umgebaut, A projektiert",IF(Erfassungsmaske!G98="X","A bereits umgebaut",IF(Erfassungsmaske!H98="X","B bereits umgebaut",IF(AND(Erfassungsmaske!J98="X",Erfassungsmaske!K98="X"),"Umbau projektiert (A und B)",IF(Erfassungsmaske!J98="X","Umbau A projektiert",IF(Erfassungsmaske!K98="X","Umbau B projektiert","")))))))) ->  | V101: 1 | W101: 1 | X101: 0 | Y101: 0 | Z101: 0 | AA101: 0 | AB101: 0 | AC101: 0 | AD101: 0 | AE101: 0 | AF101: 0 | AG101: 0 | AH101: =IF(Erfassungsmaske!E98="(Nur Richtung A)",1,0) -> 0 | AI101: 0 | AJ101: 0 | AK101: 0 | AL101: =IF(Erfassungsmaske!D98="(Nur Richtung B)",1,0) -> 0
B102: 0 | C102: 0 | D102: =IFERROR(VLOOKUP($B102,NKI_Datenbank,COLUMN(NKI_Datenbank!$N$1),FALSE),"") ->  | E102: =IFERROR(VLOOKUP($B102,NKI_Datenbank,COLUMN(NKI_Datenbank!$O$1),FALSE),"") ->  | F102: =IF(Erfassungsmaske!O99>0,1,0) -> 0 | H102: =IFERROR(VLOOKUP($B102,NKI_Datenbank,COLUMN(NKI_Datenbank!$P$1),FALSE),0) -> 0 | I102: =IFERROR(VLOOKUP($B102,NKI_Datenbank,COLUMN(NKI_Datenbank!$Q$1),FALSE),0) -> 0 | J102: =IFERROR(VLOOKUP($B102,NKI_Datenbank,COLUMN(NKI_Datenbank!$R$1),FALSE),0) -> 0 | K102: =IFERROR(IF(VLOOKUP($B102,NKI_Datenbank,COLUMN(NKI_Datenbank!$E$1),FALSE)>0,1,0),"") ->  | L102: =IFERROR(IF(VLOOKUP($B102,NKI_Datenbank,COLUMN(NKI_Datenbank!$D$1),FALSE)>80,1,0),"") ->  | P102: =IF(V102>0,"",IF(AB102>0,"kein Umbau",IF(AE102>0,IF(H102>Annahmen!$F$10,"Umbau A P1",IF(H102>Annahmen!$D$10,"Umbau A P2",IF(H102<=Annahmen!$F$10,"kein Umbau A"))),IF(AI102>0,IF(I102>Annahmen!$F$10,"Umbau B P1",IF(I102>Annahmen!$D$10,"Umbau B P2",IF(I102<=Annahmen!$F$10,"kein Umbau B"))),IF(J102=0,"",IF(J102>Annahmen!$F$10,"Umbau P1",IF(J102>Annahmen!$D$10,"Umbau P2","kein Umbau"))))))) ->  | Q102: =IF(AND(Erfassungsmaske!G99="X",Erfassungsmaske!H99="X"),"bereits umgebaut (A und B)",IF(AND(Erfassungsmaske!G99="X",Erfassungsmaske!K99="X"),"A bereits umgebaut, B projektiert",IF(AND(Erfassungsmaske!H99="X",Erfassungsmaske!J99="X"),"B bereits umgebaut, A projektiert",IF(Erfassungsmaske!G99="X","A bereits umgebaut",IF(Erfassungsmaske!H99="X","B bereits umgebaut",IF(AND(Erfassungsmaske!J99="X",Erfassungsmaske!K99="X"),"Umbau projektiert (A und B)",IF(Erfassungsmaske!J99="X","Umbau A projektiert",IF(Erfassungsmaske!K99="X","Umbau B projektiert","")))))))) ->  | V102: 1 | W102: 1 | X102: 0 | Y102: 0 | Z102: 0 | AA102: 0 | AB102: 0 | AC102: 0 | AD102: 0 | AE102: 0 | AF102: 0 | AG102: 0 | AH102: =IF(Erfassungsmaske!E99="(Nur Richtung A)",1,0) -> 0 | AI102: 0 | AJ102: 0 | AK102: 0 | AL102: =IF(Erfassungsmaske!D99="(Nur Richtung B)",1,0) -> 0
B103: 0 | C103: 0 | D103: =IFERROR(VLOOKUP($B103,NKI_Datenbank,COLUMN(NKI_Datenbank!$N$1),FALSE),"") ->  | E103: =IFERROR(VLOOKUP($B103,NKI_Datenbank,COLUMN(NKI_Datenbank!$O$1),FALSE),"") ->  | F103: =IF(Erfassungsmaske!O100>0,1,0) -> 0 | H103: =IFERROR(VLOOKUP($B103,NKI_Datenbank,COLUMN(NKI_Datenbank!$P$1),FALSE),0) -> 0 | I103: =IFERROR(VLOOKUP($B103,NKI_Datenbank,COLUMN(NKI_Datenbank!$Q$1),FALSE),0) -> 0 | J103: =IFERROR(VLOOKUP($B103,NKI_Datenbank,COLUMN(NKI_Datenbank!$R$1),FALSE),0) -> 0 | K103: =IFERROR(IF(VLOOKUP($B103,NKI_Datenbank,COLUMN(NKI_Datenbank!$E$1),FALSE)>0,1,0),"") ->  | L103: =IFERROR(IF(VLOOKUP($B103,NKI_Datenbank,COLUMN(NKI_Datenbank!$D$1),FALSE)>80,1,0),"") ->  | P103: =IF(V103>0,"",IF(AB103>0,"kein Umbau",IF(AE103>0,IF(H103>Annahmen!$F$10,"Umbau A P1",IF(H103>Annahmen!$D$10,"Umbau A P2",IF(H103<=Annahmen!$F$10,"kein Umbau A"))),IF(AI103>0,IF(I103>Annahmen!$F$10,"Umbau B P1",IF(I103>Annahmen!$D$10,"Umbau B P2",IF(I103<=Annahmen!$F$10,"kein Umbau B"))),IF(J103=0,"",IF(J103>Annahmen!$F$10,"Umbau P1",IF(J103>Annahmen!$D$10,"Umbau P2","kein Umbau"))))))) ->  | Q103: =IF(AND(Erfassungsmaske!G100="X",Erfassungsmaske!H100="X"),"bereits umgebaut (A und B)",IF(AND(Erfassungsmaske!G100="X",Erfassungsmaske!K100="X"),"A bereits umgebaut, B projektiert",IF(AND(Erfassungsmaske!H100="X",Erfassungsmaske!J100="X"),"B bereits umgebaut, A projektiert",IF(Erfassungsmaske!G100="X","A bereits umgebaut",IF(Erfassungsmaske!H100="X","B bereits umgebaut",IF(AND(Erfassungsmaske!J100="X",Erfassungsmaske!K100="X"),"Umbau projektiert (A und B)",IF(Erfassungsmaske!J100="X","Umbau A projektiert",IF(Erfassungsmaske!K100="X","Umbau B projektiert","")))))))) ->  | V103: 1 | W103: 1 | X103: 0 | Y103: 0 | Z103: 0 | AA103: 0 | AB103: 0 | AC103: 0 | AD103: 0 | AE103: 0 | AF103: 0 | AG103: 0 | AH103: =IF(Erfassungsmaske!E100="(Nur Richtung A)",1,0) -> 0 | AI103: 0 | AJ103: 0 | AK103: 0 | AL103: =IF(Erfassungsmaske!D100="(Nur Richtung B)",1,0) -> 0
B104: 0 | C104: 0 | D104: =IFERROR(VLOOKUP($B104,NKI_Datenbank,COLUMN(NKI_Datenbank!$N$1),FALSE),"") ->  | E104: =IFERROR(VLOOKUP($B104,NKI_Datenbank,COLUMN(NKI_Datenbank!$O$1),FALSE),"") ->  | F104: =IF(Erfassungsmaske!O101>0,1,0) -> 0 | H104: =IFERROR(VLOOKUP($B104,NKI_Datenbank,COLUMN(NKI_Datenbank!$P$1),FALSE),0) -> 0 | I104: =IFERROR(VLOOKUP($B104,NKI_Datenbank,COLUMN(NKI_Datenbank!$Q$1),FALSE),0) -> 0 | J104: =IFERROR(VLOOKUP($B104,NKI_Datenbank,COLUMN(NKI_Datenbank!$R$1),FALSE),0) -> 0 | K104: =IFERROR(IF(VLOOKUP($B104,NKI_Datenbank,COLUMN(NKI_Datenbank!$E$1),FALSE)>0,1,0),"") ->  | L104: =IFERROR(IF(VLOOKUP($B104,NKI_Datenbank,COLUMN(NKI_Datenbank!$D$1),FALSE)>80,1,0),"") ->  | P104: =IF(V104>0,"",IF(AB104>0,"kein Umbau",IF(AE104>0,IF(H104>Annahmen!$F$10,"Umbau A P1",IF(H104>Annahmen!$D$10,"Umbau A P2",IF(H104<=Annahmen!$F$10,"kein Umbau A"))),IF(AI104>0,IF(I104>Annahmen!$F$10,"Umbau B P1",IF(I104>Annahmen!$D$10,"Umbau B P2",IF(I104<=Annahmen!$F$10,"kein Umbau B"))),IF(J104=0,"",IF(J104>Annahmen!$F$10,"Umbau P1",IF(J104>Annahmen!$D$10,"Umbau P2","kein Umbau"))))))) ->  | Q104: =IF(AND(Erfassungsmaske!G101="X",Erfassungsmaske!H101="X"),"bereits umgebaut (A und B)",IF(AND(Erfassungsmaske!G101="X",Erfassungsmaske!K101="X"),"A bereits umgebaut, B projektiert",IF(AND(Erfassungsmaske!H101="X",Erfassungsmaske!J101="X"),"B bereits umgebaut, A projektiert",IF(Erfassungsmaske!G101="X","A bereits umgebaut",IF(Erfassungsmaske!H101="X","B bereits umgebaut",IF(AND(Erfassungsmaske!J101="X",Erfassungsmaske!K101="X"),"Umbau projektiert (A und B)",IF(Erfassungsmaske!J101="X","Umbau A projektiert",IF(Erfassungsmaske!K101="X","Umbau B projektiert","")))))))) ->  | V104: 1 | W104: 1 | X104: 0 | Y104: 0 | Z104: 0 | AA104: 0 | AB104: 0 | AC104: 0 | AD104: 0 | AE104: 0 | AF104: 0 | AG104: 0 | AH104: =IF(Erfassungsmaske!E101="(Nur Richtung A)",1,0) -> 0 | AI104: 0 | AJ104: 0 | AK104: 0 | AL104: =IF(Erfassungsmaske!D101="(Nur Richtung B)",1,0) -> 0
B105: 0 | C105: 0 | D105: =IFERROR(VLOOKUP($B105,NKI_Datenbank,COLUMN(NKI_Datenbank!$N$1),FALSE),"") ->  | E105: =IFERROR(VLOOKUP($B105,NKI_Datenbank,COLUMN(NKI_Datenbank!$O$1),FALSE),"") ->  | F105: =IF(Erfassungsmaske!O102>0,1,0) -> 0 | H105: =IFERROR(VLOOKUP($B105,NKI_Datenbank,COLUMN(NKI_Datenbank!$P$1),FALSE),0) -> 0 | I105: =IFERROR(VLOOKUP($B105,NKI_Datenbank,COLUMN(NKI_Datenbank!$Q$1),FALSE),0) -> 0 | J105: =IFERROR(VLOOKUP($B105,NKI_Datenbank,COLUMN(NKI_Datenbank!$R$1),FALSE),0) -> 0 | K105: =IFERROR(IF(VLOOKUP($B105,NKI_Datenbank,COLUMN(NKI_Datenbank!$E$1),FALSE)>0,1,0),"") ->  | L105: =IFERROR(IF(VLOOKUP($B105,NKI_Datenbank,COLUMN(NKI_Datenbank!$D$1),FALSE)>80,1,0),"") ->  | P105: =IF(V105>0,"",IF(AB105>0,"kein Umbau",IF(AE105>0,IF(H105>Annahmen!$F$10,"Umbau A P1",IF(H105>Annahmen!$D$10,"Umbau A P2",IF(H105<=Annahmen!$F$10,"kein Umbau A"))),IF(AI105>0,IF(I105>Annahmen!$F$10,"Umbau B P1",IF(I105>Annahmen!$D$10,"Umbau B P2",IF(I105<=Annahmen!$F$10,"kein Umbau B"))),IF(J105=0,"",IF(J105>Annahmen!$F$10,"Umbau P1",IF(J105>Annahmen!$D$10,"Umbau P2","kein Umbau"))))))) ->  | Q105: =IF(AND(Erfassungsmaske!G102="X",Erfassungsmaske!H102="X"),"bereits umgebaut (A und B)",IF(AND(Erfassungsmaske!G102="X",Erfassungsmaske!K102="X"),"A bereits umgebaut, B projektiert",IF(AND(Erfassungsmaske!H102="X",Erfassungsmaske!J102="X"),"B bereits umgebaut, A projektiert",IF(Erfassungsmaske!G102="X","A bereits umgebaut",IF(Erfassungsmaske!H102="X","B bereits umgebaut",IF(AND(Erfassungsmaske!J102="X",Erfassungsmaske!K102="X"),"Umbau projektiert (A und B)",IF(Erfassungsmaske!J102="X","Umbau A projektiert",IF(Erfassungsmaske!K102="X","Umbau B projektiert","")))))))) ->  | V105: 1 | W105: 1 | X105: 0 | Y105: 0 | Z105: 0 | AA105: 0 | AB105: 0 | AC105: 0 | AD105: 0 | AE105: 0 | AF105: 0 | AG105: 0 | AH105: =IF(Erfassungsmaske!E102="(Nur Richtung A)",1,0) -> 0 | AI105: 0 | AJ105: 0 | AK105: 0 | AL105: =IF(Erfassungsmaske!D102="(Nur Richtung B)",1,0) -> 0
B106: 0 | C106: 0 | D106: =IFERROR(VLOOKUP($B106,NKI_Datenbank,COLUMN(NKI_Datenbank!$N$1),FALSE),"") ->  | E106: =IFERROR(VLOOKUP($B106,NKI_Datenbank,COLUMN(NKI_Datenbank!$O$1),FALSE),"") ->  | F106: =IF(Erfassungsmaske!O103>0,1,0) -> 0 | H106: =IFERROR(VLOOKUP($B106,NKI_Datenbank,COLUMN(NKI_Datenbank!$P$1),FALSE),0) -> 0 | I106: =IFERROR(VLOOKUP($B106,NKI_Datenbank,COLUMN(NKI_Datenbank!$Q$1),FALSE),0) -> 0 | J106: =IFERROR(VLOOKUP($B106,NKI_Datenbank,COLUMN(NKI_Datenbank!$R$1),FALSE),0) -> 0 | K106: =IFERROR(IF(VLOOKUP($B106,NKI_Datenbank,COLUMN(NKI_Datenbank!$E$1),FALSE)>0,1,0),"") ->  | L106: =IFERROR(IF(VLOOKUP($B106,NKI_Datenbank,COLUMN(NKI_Datenbank!$D$1),FALSE)>80,1,0),"") ->  | P106: =IF(V106>0,"",IF(AB106>0,"kein Umbau",IF(AE106>0,IF(H106>Annahmen!$F$10,"Umbau A P1",IF(H106>Annahmen!$D$10,"Umbau A P2",IF(H106<=Annahmen!$F$10,"kein Umbau A"))),IF(AI106>0,IF(I106>Annahmen!$F$10,"Umbau B P1",IF(I106>Annahmen!$D$10,"Umbau B P2",IF(I106<=Annahmen!$F$10,"kein Umbau B"))),IF(J106=0,"",IF(J106>Annahmen!$F$10,"Umbau P1",IF(J106>Annahmen!$D$10,"Umbau P2","kein Umbau"))))))) ->  | Q106: =IF(AND(Erfassungsmaske!G103="X",Erfassungsmaske!H103="X"),"bereits umgebaut (A und B)",IF(AND(Erfassungsmaske!G103="X",Erfassungsmaske!K103="X"),"A bereits umgebaut, B projektiert",IF(AND(Erfassungsmaske!H103="X",Erfassungsmaske!J103="X"),"B bereits umgebaut, A projektiert",IF(Erfassungsmaske!G103="X","A bereits umgebaut",IF(Erfassungsmaske!H103="X","B bereits umgebaut",IF(AND(Erfassungsmaske!J103="X",Erfassungsmaske!K103="X"),"Umbau projektiert (A und B)",IF(Erfassungsmaske!J103="X","Umbau A projektiert",IF(Erfassungsmaske!K103="X","Umbau B projektiert","")))))))) ->  | V106: 1 | W106: 1 | X106: 0 | Y106: 0 | Z106: 0 | AA106: 0 | AB106: 0 | AC106: 0 | AD106: 0 | AE106: 0 | AF106: 0 | AG106: 0 | AH106: =IF(Erfassungsmaske!E103="(Nur Richtung A)",1,0) -> 0 | AI106: 0 | AJ106: 0 | AK106: 0 | AL106: =IF(Erfassungsmaske!D103="(Nur Richtung B)",1,0) -> 0
B107: 0 | C107: 0 | D107: =IFERROR(VLOOKUP($B107,NKI_Datenbank,COLUMN(NKI_Datenbank!$N$1),FALSE),"") ->  | E107: =IFERROR(VLOOKUP($B107,NKI_Datenbank,COLUMN(NKI_Datenbank!$O$1),FALSE),"") ->  | F107: =IF(Erfassungsmaske!O104>0,1,0) -> 0 | H107: =IFERROR(VLOOKUP($B107,NKI_Datenbank,COLUMN(NKI_Datenbank!$P$1),FALSE),0) -> 0 | I107: =IFERROR(VLOOKUP($B107,NKI_Datenbank,COLUMN(NKI_Datenbank!$Q$1),FALSE),0) -> 0 | J107: =IFERROR(VLOOKUP($B107,NKI_Datenbank,COLUMN(NKI_Datenbank!$R$1),FALSE),0) -> 0 | K107: =IFERROR(IF(VLOOKUP($B107,NKI_Datenbank,COLUMN(NKI_Datenbank!$E$1),FALSE)>0,1,0),"") ->  | L107: =IFERROR(IF(VLOOKUP($B107,NKI_Datenbank,COLUMN(NKI_Datenbank!$D$1),FALSE)>80,1,0),"") ->  | P107: =IF(V107>0,"",IF(AB107>0,"kein Umbau",IF(AE107>0,IF(H107>Annahmen!$F$10,"Umbau A P1",IF(H107>Annahmen!$D$10,"Umbau A P2",IF(H107<=Annahmen!$F$10,"kein Umbau A"))),IF(AI107>0,IF(I107>Annahmen!$F$10,"Umbau B P1",IF(I107>Annahmen!$D$10,"Umbau B P2",IF(I107<=Annahmen!$F$10,"kein Umbau B"))),IF(J107=0,"",IF(J107>Annahmen!$F$10,"Umbau P1",IF(J107>Annahmen!$D$10,"Umbau P2","kein Umbau"))))))) ->  | Q107: =IF(AND(Erfassungsmaske!G104="X",Erfassungsmaske!H104="X"),"bereits umgebaut (A und B)",IF(AND(Erfassungsmaske!G104="X",Erfassungsmaske!K104="X"),"A bereits umgebaut, B projektiert",IF(AND(Erfassungsmaske!H104="X",Erfassungsmaske!J104="X"),"B bereits umgebaut, A projektiert",IF(Erfassungsmaske!G104="X","A bereits umgebaut",IF(Erfassungsmaske!H104="X","B bereits umgebaut",IF(AND(Erfassungsmaske!J104="X",Erfassungsmaske!K104="X"),"Umbau projektiert (A und B)",IF(Erfassungsmaske!J104="X","Umbau A projektiert",IF(Erfassungsmaske!K104="X","Umbau B projektiert","")))))))) ->  | V107: 1 | W107: 1 | X107: 0 | Y107: 0 | Z107: 0 | AA107: 0 | AB107: 0 | AC107: 0 | AD107: 0 | AE107: 0 | AF107: 0 | AG107: 0 | AH107: =IF(Erfassungsmaske!E104="(Nur Richtung A)",1,0) -> 0 | AI107: 0 | AJ107: 0 | AK107: 0 | AL107: =IF(Erfassungsmaske!D104="(Nur Richtung B)",1,0) -> 0
B108: 0 | C108: 0 | D108: =IFERROR(VLOOKUP($B108,NKI_Datenbank,COLUMN(NKI_Datenbank!$N$1),FALSE),"") ->  | E108: =IFERROR(VLOOKUP($B108,NKI_Datenbank,COLUMN(NKI_Datenbank!$O$1),FALSE),"") ->  | F108: =IF(Erfassungsmaske!O105>0,1,0) -> 0 | H108: =IFERROR(VLOOKUP($B108,NKI_Datenbank,COLUMN(NKI_Datenbank!$P$1),FALSE),0) -> 0 | I108: =IFERROR(VLOOKUP($B108,NKI_Datenbank,COLUMN(NKI_Datenbank!$Q$1),FALSE),0) -> 0 | J108: =IFERROR(VLOOKUP($B108,NKI_Datenbank,COLUMN(NKI_Datenbank!$R$1),FALSE),0) -> 0 | K108: =IFERROR(IF(VLOOKUP($B108,NKI_Datenbank,COLUMN(NKI_Datenbank!$E$1),FALSE)>0,1,0),"") ->  | L108: =IFERROR(IF(VLOOKUP($B108,NKI_Datenbank,COLUMN(NKI_Datenbank!$D$1),FALSE)>80,1,0),"") ->  | P108: =IF(V108>0,"",IF(AB108>0,"kein Umbau",IF(AE108>0,IF(H108>Annahmen!$F$10,"Umbau A P1",IF(H108>Annahmen!$D$10,"Umbau A P2",IF(H108<=Annahmen!$F$10,"kein Umbau A"))),IF(AI108>0,IF(I108>Annahmen!$F$10,"Umbau B P1",IF(I108>Annahmen!$D$10,"Umbau B P2",IF(I108<=Annahmen!$F$10,"kein Umbau B"))),IF(J108=0,"",IF(J108>Annahmen!$F$10,"Umbau P1",IF(J108>Annahmen!$D$10,"Umbau P2","kein Umbau"))))))) ->  | Q108: =IF(AND(Erfassungsmaske!G105="X",Erfassungsmaske!H105="X"),"bereits umgebaut (A und B)",IF(AND(Erfassungsmaske!G105="X",Erfassungsmaske!K105="X"),"A bereits umgebaut, B projektiert",IF(AND(Erfassungsmaske!H105="X",Erfassungsmaske!J105="X"),"B bereits umgebaut, A projektiert",IF(Erfassungsmaske!G105="X","A bereits umgebaut",IF(Erfassungsmaske!H105="X","B bereits umgebaut",IF(AND(Erfassungsmaske!J105="X",Erfassungsmaske!K105="X"),"Umbau projektiert (A und B)",IF(Erfassungsmaske!J105="X","Umbau A projektiert",IF(Erfassungsmaske!K105="X","Umbau B projektiert","")))))))) ->  | V108: 1 | W108: 1 | X108: 0 | Y108: 0 | Z108: 0 | AA108: 0 | AB108: 0 | AC108: 0 | AD108: 0 | AE108: 0 | AF108: 0 | AG108: 0 | AH108: =IF(Erfassungsmaske!E105="(Nur Richtung A)",1,0) -> 0 | AI108: 0 | AJ108: 0 | AK108: 0 | AL108: =IF(Erfassungsmaske!D105="(Nur Richtung B)",1,0) -> 0
B109: 0 | C109: =IFERROR(INDIRECT(Rel_Bezug_Linienblatt&"b"&ROW(B109)-5),0) -> 0 | D109: =IFERROR(VLOOKUP($B109,NKI_Datenbank,COLUMN(NKI_Datenbank!$N$1),FALSE),"") ->  | E109: =IFERROR(VLOOKUP($B109,NKI_Datenbank,COLUMN(NKI_Datenbank!$O$1),FALSE),"") ->  | F109: =IF(Erfassungsmaske!O106>0,1,0) -> 0 | H109: =IFERROR(VLOOKUP($B109,NKI_Datenbank,COLUMN(NKI_Datenbank!$P$1),FALSE),0) -> 0 | I109: =IFERROR(VLOOKUP($B109,NKI_Datenbank,COLUMN(NKI_Datenbank!$Q$1),FALSE),0) -> 0 | J109: =IFERROR(VLOOKUP($B109,NKI_Datenbank,COLUMN(NKI_Datenbank!$R$1),FALSE),0) -> 0 | K109: =IFERROR(IF(VLOOKUP($B109,NKI_Datenbank,COLUMN(NKI_Datenbank!$E$1),FALSE)>0,1,0),"") ->  | L109: =IFERROR(IF(VLOOKUP($B109,NKI_Datenbank,COLUMN(NKI_Datenbank!$D$1),FALSE)>80,1,0),"") ->  | P109: =IF(V109>0,"",IF(AB109>0,"kein Umbau",IF(AE109>0,IF(H109>Annahmen!$F$10,"Umbau A P1",IF(H109>Annahmen!$D$10,"Umbau A P2",IF(H109<=Annahmen!$F$10,"kein Umbau A"))),IF(AI109>0,IF(I109>Annahmen!$F$10,"Umbau B P1",IF(I109>Annahmen!$D$10,"Umbau B P2",IF(I109<=Annahmen!$F$10,"kein Umbau B"))),IF(J109=0,"",IF(J109>Annahmen!$F$10,"Umbau P1",IF(J109>Annahmen!$D$10,"Umbau P2","kein Umbau"))))))) ->  | Q109: =IF(AND(Erfassungsmaske!G106="X",Erfassungsmaske!H106="X"),"bereits umgebaut (A und B)",IF(AND(Erfassungsmaske!G106="X",Erfassungsmaske!K106="X"),"A bereits umgebaut, B projektiert",IF(AND(Erfassungsmaske!H106="X",Erfassungsmaske!J106="X"),"B bereits umgebaut, A projektiert",IF(Erfassungsmaske!G106="X","A bereits umgebaut",IF(Erfassungsmaske!H106="X","B bereits umgebaut",IF(AND(Erfassungsmaske!J106="X",Erfassungsmaske!K106="X"),"Umbau projektiert (A und B)",IF(Erfassungsmaske!J106="X","Umbau A projektiert",IF(Erfassungsmaske!K106="X","Umbau B projektiert","")))))))) ->  | V109: 1 | W109: 1 | X109: 0 | Y109: 0 | Z109: 0 | AA109: 0 | AB109: 0 | AC109: 0 | AD109: 0 | AE109: 0 | AF109: 0 | AG109: 0 | AH109: =IF(Erfassungsmaske!E106="(Nur Richtung A)",1,0) -> 0 | AI109: 0 | AJ109: 0 | AK109: 0 | AL109: =IF(Erfassungsmaske!D106="(Nur Richtung B)",1,0) -> 0
B110: 0 | C110: 0 | D110: =IFERROR(VLOOKUP($B110,NKI_Datenbank,COLUMN(NKI_Datenbank!$N$1),FALSE),"") ->  | E110: =IFERROR(VLOOKUP($B110,NKI_Datenbank,COLUMN(NKI_Datenbank!$O$1),FALSE),"") ->  | F110: =IF(Erfassungsmaske!O107>0,1,0) -> 0 | H110: =IFERROR(VLOOKUP($B110,NKI_Datenbank,COLUMN(NKI_Datenbank!$P$1),FALSE),0) -> 0 | I110: =IFERROR(VLOOKUP($B110,NKI_Datenbank,COLUMN(NKI_Datenbank!$Q$1),FALSE),0) -> 0 | J110: =IFERROR(VLOOKUP($B110,NKI_Datenbank,COLUMN(NKI_Datenbank!$R$1),FALSE),0) -> 0 | K110: =IFERROR(IF(VLOOKUP($B110,NKI_Datenbank,COLUMN(NKI_Datenbank!$E$1),FALSE)>0,1,0),"") ->  | L110: =IFERROR(IF(VLOOKUP($B110,NKI_Datenbank,COLUMN(NKI_Datenbank!$D$1),FALSE)>80,1,0),"") ->  | P110: =IF(V110>0,"",IF(AB110>0,"kein Umbau",IF(AE110>0,IF(H110>Annahmen!$F$10,"Umbau A P1",IF(H110>Annahmen!$D$10,"Umbau A P2",IF(H110<=Annahmen!$F$10,"kein Umbau A"))),IF(AI110>0,IF(I110>Annahmen!$F$10,"Umbau B P1",IF(I110>Annahmen!$D$10,"Umbau B P2",IF(I110<=Annahmen!$F$10,"kein Umbau B"))),IF(J110=0,"",IF(J110>Annahmen!$F$10,"Umbau P1",IF(J110>Annahmen!$D$10,"Umbau P2","kein Umbau"))))))) ->  | Q110: =IF(AND(Erfassungsmaske!G107="X",Erfassungsmaske!H107="X"),"bereits umgebaut (A und B)",IF(AND(Erfassungsmaske!G107="X",Erfassungsmaske!K107="X"),"A bereits umgebaut, B projektiert",IF(AND(Erfassungsmaske!H107="X",Erfassungsmaske!J107="X"),"B bereits umgebaut, A projektiert",IF(Erfassungsmaske!G107="X","A bereits umgebaut",IF(Erfassungsmaske!H107="X","B bereits umgebaut",IF(AND(Erfassungsmaske!J107="X",Erfassungsmaske!K107="X"),"Umbau projektiert (A und B)",IF(Erfassungsmaske!J107="X","Umbau A projektiert",IF(Erfassungsmaske!K107="X","Umbau B projektiert","")))))))) ->  | V110: 1 | W110: 1 | X110: 0 | Y110: 0 | Z110: 0 | AA110: 0 | AB110: 0 | AC110: 0 | AD110: 0 | AE110: 0 | AF110: 0 | AG110: 0 | AH110: =IF(Erfassungsmaske!E107="(Nur Richtung A)",1,0) -> 0 | AI110: 0 | AJ110: 0 | AK110: 0 | AL110: =IF(Erfassungsmaske!D107="(Nur Richtung B)",1,0) -> 0
B111: 0 | C111: 0 | D111: =IFERROR(VLOOKUP($B111,NKI_Datenbank,COLUMN(NKI_Datenbank!$N$1),FALSE),"") ->  | E111: =IFERROR(VLOOKUP($B111,NKI_Datenbank,COLUMN(NKI_Datenbank!$O$1),FALSE),"") ->  | F111: =IF(Erfassungsmaske!O108>0,1,0) -> 0 | H111: =IFERROR(VLOOKUP($B111,NKI_Datenbank,COLUMN(NKI_Datenbank!$P$1),FALSE),0) -> 0 | I111: =IFERROR(VLOOKUP($B111,NKI_Datenbank,COLUMN(NKI_Datenbank!$Q$1),FALSE),0) -> 0 | J111: =IFERROR(VLOOKUP($B111,NKI_Datenbank,COLUMN(NKI_Datenbank!$R$1),FALSE),0) -> 0 | K111: =IFERROR(IF(VLOOKUP($B111,NKI_Datenbank,COLUMN(NKI_Datenbank!$E$1),FALSE)>0,1,0),"") ->  | L111: =IFERROR(IF(VLOOKUP($B111,NKI_Datenbank,COLUMN(NKI_Datenbank!$D$1),FALSE)>80,1,0),"") ->  | P111: =IF(V111>0,"",IF(AB111>0,"kein Umbau",IF(AE111>0,IF(H111>Annahmen!$F$10,"Umbau A P1",IF(H111>Annahmen!$D$10,"Umbau A P2",IF(H111<=Annahmen!$F$10,"kein Umbau A"))),IF(AI111>0,IF(I111>Annahmen!$F$10,"Umbau B P1",IF(I111>Annahmen!$D$10,"Umbau B P2",IF(I111<=Annahmen!$F$10,"kein Umbau B"))),IF(J111=0,"",IF(J111>Annahmen!$F$10,"Umbau P1",IF(J111>Annahmen!$D$10,"Umbau P2","kein Umbau"))))))) ->  | Q111: =IF(AND(Erfassungsmaske!G108="X",Erfassungsmaske!H108="X"),"bereits umgebaut (A und B)",IF(AND(Erfassungsmaske!G108="X",Erfassungsmaske!K108="X"),"A bereits umgebaut, B projektiert",IF(AND(Erfassungsmaske!H108="X",Erfassungsmaske!J108="X"),"B bereits umgebaut, A projektiert",IF(Erfassungsmaske!G108="X","A bereits umgebaut",IF(Erfassungsmaske!H108="X","B bereits umgebaut",IF(AND(Erfassungsmaske!J108="X",Erfassungsmaske!K108="X"),"Umbau projektiert (A und B)",IF(Erfassungsmaske!J108="X","Umbau A projektiert",IF(Erfassungsmaske!K108="X","Umbau B projektiert","")))))))) ->  | V111: 1 | W111: 1 | X111: 0 | Y111: 0 | Z111: 0 | AA111: 0 | AB111: 0 | AC111: 0 | AD111: 0 | AE111: 0 | AF111: 0 | AG111: 0 | AH111: =IF(Erfassungsmaske!E108="(Nur Richtung A)",1,0) -> 0 | AI111: 0 | AJ111: 0 | AK111: 0 | AL111: =IF(Erfassungsmaske!D108="(Nur Richtung B)",1,0) -> 0

Sheet Ergebnis Haltestelle
B2: Detailergebnis Haltestelle
B6: Auswahl der Haltestelle
D8: Bitte Haltestelle aus Liste wählen.
B12: Beurteilung der Verhältnismässigkeit des hindernisfreien Umbaus der Haltestelle:
B13: =+VLOOKUP($C$8,Erfassungsmaske!$B$10:$C$109,2,FALSE) -> 0
B14: ="Haltestelle Nr."&C8 -> Haltestelle Nr.
B16: Fahrtrichtung A: | D16: =+Erfassungsmaske!$D$6 -> Reusch, Talstation
B17: Fahrtrichtung B: | D17: =+Erfassungsmaske!$D$7 -> Saanenmöser, Bahnhof
B19: Nutzenkriterium | E19: Anzahl Punkte
B20: Nachfragepotenzial | E20: =IFERROR(VLOOKUP($C$8,NKI_Datenbank,COLUMN(NKI_Datenbank!$C$1),FALSE),"") -> 
B21: Zentrale Einrichtungen im Umfeld der Haltestelle | E21: =IFERROR(VLOOKUP($C$8,NKI_Datenbank,COLUMN(NKI_Datenbank!$D$1),FALSE),"") -> 
B22: Umsteigefunktion | E22: =IFERROR(VLOOKUP($C$8,NKI_Datenbank,COLUMN(NKI_Datenbank!$E$1),FALSE),"") -> 
B23: Frequenzen Fahrtrichtung A (Mittlere Anzahl Ein- und Aussteigende Mo bis So) | E23: =IFERROR(VLOOKUP($C$8,NKI_Datenbank,COLUMN(NKI_Datenbank!$J$1),FALSE),"") -> 
B24: Frequenzen Fahrtrichtung B (Mittlere Anzahl Ein- und Aussteigende Mo bis So) | E24: =IFERROR(VLOOKUP($C$8,NKI_Datenbank,COLUMN(NKI_Datenbank!$K$1),FALSE),"") -> 
B26: Total Nutzenpunkte Fahrtrichtung A | E26: =IFERROR(VLOOKUP($C$8,NKI_Datenbank,COLUMN(NKI_Datenbank!$N$1),FALSE),"") -> 
B27: Total Nutzenpunkte Fahrtrichtung B | E27: =IFERROR(VLOOKUP($C$8,NKI_Datenbank,COLUMN(NKI_Datenbank!$O$1),FALSE),"") -> 
B29: Kosten Fahrtrichtung A (in CHF) | E29: =IFERROR(VLOOKUP($C$8,NKI_Datenbank,COLUMN(NKI_Datenbank!$L$1),FALSE),"") -> 
B30: Kosten Fahrtrichtung B (in CHF) | E30: =IFERROR(VLOOKUP($C$8,NKI_Datenbank,COLUMN(NKI_Datenbank!$M$1),FALSE),"") -> 
B32: Verhältnismässigkeitsindex A (in Punkten) | E32: =IFERROR(VLOOKUP($C$8,NKI_Datenbank,COLUMN(NKI_Datenbank!$P$1),FALSE),"") -> 
B33: Verhältnismässigkeitsindex B (in Punkten) | E33: =IFERROR(VLOOKUP($C$8,NKI_Datenbank,COLUMN(NKI_Datenbank!$Q$1),FALSE),"") -> 
B35: Mittelwert Verhältnismässigkeitsindex | E35: =IFERROR(VLOOKUP($C$8,NKI_Datenbank,COLUMN(NKI_Datenbank!$R$1),FALSE),"") -> 
B37: Entscheid: | D37: =+IFERROR(VLOOKUP($C$8,'Ergebnis Linie'!$B$13:$Q$111,15,FALSE),"") -> 
B38: Hinweis: | D38: =VLOOKUP($C$8,'Ergebnis Linie'!$B$13:$Q$111,16,FALSE) -> 
B41: Erläuterungen zu Schwellenwert und Handlungsbedarf
B42: Verhältnismässig- keitsindex | D42: Was ist zu tun?
B43: ≤ 40 | D43: Kein unmittelbarer Handlungsbedarf. Erneute Überprüfung der Verhältnismässigkeit im Rahmen des nächsten Ausbau- und Umgestaltungsprojekts des betroffenen Strassenabschnitts
B45: > 40 ≤ 70 | D45: Hindernisfreie Anpassung im Rahmen des nächsten Ausbau- und Umgestaltungsprojekts des betroffenen Strassenabschnitts
B47: > 70 | D47: Auslösung eines separaten Sanierungsprojekts für die Bushaltestelle

Sheet NKI_Datenbank (hidden)
A1: HST_Nr | B1: HST_Name | C1: Einzugsgebiet_skaliert | D1: Wichtige Institutionen für Menschen mit einer Behinderung_skaliert | E1: Umsteigefunktion_skaliert | F1: Frequenzen A | G1: Frequenzen B | H1: Frequenzen A_linear skaliert | I1: Frequenzen B_linear skaliert | J1: Frequenzen A_skaliert | K1: Frequenzen B_skaliert | L1: Kosten A | M1: Kosten B | N1: Nutzenpunkte A | O1: Nutzenpunkte B | P1: NKI A | Q1: NKI B | R1: NKI MW
A2: 57051 | B2: Moutier, Château | C2: 100 | D2: 100 | E2: 0 | F2: =VLOOKUP($A2,Erfassungsmaske!$B$10:$N$502,COLUMN(Erfassungsmaske!$D$9)-COLUMN(Erfassungsmaske!$B$9)+1,FALSE)+VLOOKUP($A2,'Zusätzliche Frequenzen'!$B$10:$E$502,COLUMN('Zusätzliche Frequenzen'!$D$9)-COLUMN('Zusätzliche Frequenzen'!$B$9)+1,FALSE) ->  | G2: =VLOOKUP($A2,Erfassungsmaske!$B$10:$N$502,COLUMN(Erfassungsmaske!$E$9)-COLUMN(Erfassungsmaske!$B$9)+1,FALSE)+VLOOKUP($A2,'Zusätzliche Frequenzen'!$B$10:$E$502,COLUMN('Zusätzliche Frequenzen'!$E$9)-COLUMN('Zusätzliche Frequenzen'!$B$9)+1,FALSE) ->  | H2: =MROUND(IF(F2>H_Skalierungsfunktion!$O$7,100,IF(F2>=H_Skalierungsfunktion!$O$6,(F2-H_Skalierungsfunktion!$O$6)/(H_Skalierungsfunktion!$O$7-H_Skalierungsfunktion!$O$6)*100,0)),0.0001) ->  | I2: =MROUND(IF(G2>H_Skalierungsfunktion!$O$7,100,IF(G2>=H_Skalierungsfunktion!$O$6,(G2-H_Skalierungsfunktion!$O$6)/(H_Skalierungsfunktion!$O$7-H_Skalierungsfunktion!$O$6)*100,0)),0.0001) ->  | J2: =VLOOKUP(H2,Skalierung,H_Skalierungsfunktion!$O$5) ->  | K2: =VLOOKUP(I2,Skalierung,H_Skalierungsfunktion!$O$5) ->  | L2: =VLOOKUP($A2,Erfassungsmaske!$B$10:$N$502,COLUMN(Erfassungsmaske!$M$9)-COLUMN(Erfassungsmaske!$B$9)+1,FALSE) ->  | M2: =VLOOKUP($A2,Erfassungsmaske!$B$10:$N$502,COLUMN(Erfassungsmaske!$N$9)-COLUMN(Erfassungsmaske!$B$9)+1,FALSE) ->  | N2: =$C2*Annahmen!$F$20+$D2*Annahmen!$F$17+$E2*Annahmen!$F$18+$J2*Annahmen!$F$19 ->  | O2: =$C2*Annahmen!$F$20+$D2*Annahmen!$F$17+$E2*Annahmen!$F$18+$K2*Annahmen!$F$19 ->  | P2: =N2/L2*100000 ->  | Q2: =O2/M2*100000 ->  | R2: =AVERAGE(P2:Q2) -> 
A3: 96001 | B3: Sägefeldweg | C3: 100 | D3: 95.0499 | E3: 0 | F3: =VLOOKUP($A3,Erfassungsmaske!$B$10:$N$502,COLUMN(Erfassungsmaske!$D$9)-COLUMN(Erfassungsmaske!$B$9)+1,FALSE)+VLOOKUP($A3,'Zusätzliche Frequenzen'!$B$10:$E$502,COLUMN('Zusätzliche Frequenzen'!$D$9)-COLUMN('Zusätzliche Frequenzen'!$B$9)+1,FALSE) ->  | G3: =VLOOKUP($A3,Erfassungsmaske!$B$10:$N$502,COLUMN(Erfassungsmaske!$E$9)-COLUMN(Erfassungsmaske!$B$9)+1,FALSE)+VLOOKUP($A3,'Zusätzliche Frequenzen'!$B$10:$E$502,COLUMN('Zusätzliche Frequenzen'!$E$9)-COLUMN('Zusätzliche Frequenzen'!$B$9)+1,FALSE) ->  | H3: =MROUND(IF(F3>H_Skalierungsfunktion!$O$7,100,IF(F3>=H_Skalierungsfunktion!$O$6,(F3-H_Skalierungsfunktion!$O$6)/(H_Skalierungsfunktion!$O$7-H_Skalierungsfunktion!$O$6)*100,0)),0.0001) ->  | I3: =MROUND(IF(G3>H_Skalierungsfunktion!$O$7,100,IF(G3>=H_Skalierungsfunktion!$O$6,(G3-H_Skalierungsfunktion!$O$6)/(H_Skalierungsfunktion!$O$7-H_Skalierungsfunktion!$O$6)*100,0)),0.0001) ->  | J3: =VLOOKUP(H3,Skalierung,H_Skalierungsfunktion!$O$5) ->  | K3: =VLOOKUP(I3,Skalierung,H_Skalierungsfunktion!$O$5) ->  | L3: =VLOOKUP($A3,Erfassungsmaske!$B$10:$N$502,COLUMN(Erfassungsmaske!$M$9)-COLUMN(Erfassungsmaske!$B$9)+1,FALSE) ->  | M3: =VLOOKUP($A3,Erfassungsmaske!$B$10:$N$502,COLUMN(Erfassungsmaske!$N$9)-COLUMN(Erfassungsmaske!$B$9)+1,FALSE) ->  | N3: =$C3*Annahmen!$F$20+$D3*Annahmen!$F$17+$E3*Annahmen!$F$18+$J3*Annahmen!$F$19 ->  | O3: =$C3*Annahmen!$F$20+$D3*Annahmen!$F$17+$E3*Annahmen!$F$18+$K3*Annahmen!$F$19 ->  | P3: =N3/L3*100000 ->  | Q3: =O3/M3*100000 ->  | R3: =AVERAGE(P3:Q3) -> 
A4: 95964 | B4: Port, Bellevue | C4: 78.7236 | D4: 2.3361 | E4: 0 | F4: =VLOOKUP($A4,Erfassungsmaske!$B$10:$N$502,COLUMN(Erfassungsmaske!$D$9)-COLUMN(Erfassungsmaske!$B$9)+1,FALSE)+VLOOKUP($A4,'Zusätzliche Frequenzen'!$B$10:$E$502,COLUMN('Zusätzliche Frequenzen'!$D$9)-COLUMN('Zusätzliche Frequenzen'!$B$9)+1,FALSE) ->  | G4: =VLOOKUP($A4,Erfassungsmaske!$B$10:$N$502,COLUMN(Erfassungsmaske!$E$9)-COLUMN(Erfassungsmaske!$B$9)+1,FALSE)+VLOOKUP($A4,'Zusätzliche Frequenzen'!$B$10:$E$502,COLUMN('Zusätzliche Frequenzen'!$E$9)-COLUMN('Zusätzliche Frequenzen'!$B$9)+1,FALSE) ->  | H4: =MROUND(IF(F4>H_Skalierungsfunktion!$O$7,100,IF(F4>=H_Skalierungsfunktion!$O$6,(F4-H_Skalierungsfunktion!$O$6)/(H_Skalierungsfunktion!$O$7-H_Skalierungsfunktion!$O$6)*100,0)),0.0001) ->  | I4: =MROUND(IF(G4>H_Skalierungsfunktion!$O$7,100,IF(G4>=H_Skalierungsfunktion!$O$6,(G4-H_Skalierungsfunktion!$O$6)/(H_Skalierungsfunktion!$O$7-H_Skalierungsfunktion!$O$6)*100,0)),0.0001) ->  | J4: =VLOOKUP(H4,Skalierung,H_Skalierungsfunktion!$O$5) ->  | K4: =VLOOKUP(I4,Skalierung,H_Skalierungsfunktion!$O$5) ->  | L4: =VLOOKUP($A4,Erfassungsmaske!$B$10:$N$502,COLUMN(Erfassungsmaske!$M$9)-COLUMN(Erfassungsmaske!$B$9)+1,FALSE) ->  | M4: =VLOOKUP($A4,Erfassungsmaske!$B$10:$N$502,COLUMN(Erfassungsmaske!$N$9)-COLUMN(Erfassungsmaske!$B$9)+1,FALSE) ->  | N4: =$C4*Annahmen!$F$20+$D4*Annahmen!$F$17+$E4*Annahmen!$F$18+$J4*Annahmen!$F$19 ->  | O4: =$C4*Annahmen!$F$20+$D4*Annahmen!$F$17+$E4*Annahmen!$F$18+$K4*Annahmen!$F$19 -> 
A5: 95965 | B5: Port, Lindenweg | C5: 88.1073 | D5: 47.3954 | E5: 0 | F5: =VLOOKUP($A5,Erfassungsmaske!$B$10:$N$502,COLUMN(Erfassungsmaske!$D$9)-COLUMN(Erfassungsmaske!$B$9)+1,FALSE)+VLOOKUP($A5,'Zusätzliche Frequenzen'!$B$10:$E$502,COLUMN('Zusätzliche Frequenzen'!$D$9)-COLUMN('Zusätzliche Frequenzen'!$B$9)+1,FALSE) ->  | G5: =VLOOKUP($A5,Erfassungsmaske!$B$10:$N$502,COLUMN(Erfassungsmaske!$E$9)-COLUMN(Erfassungsmaske!$B$9)+1,FALSE)+VLOOKUP($A5,'Zusätzliche Frequenzen'!$B$10:$E$502,COLUMN('Zusätzliche Frequenzen'!$E$9)-COLUMN('Zusätzliche Frequenzen'!$B$9)+1,FALSE) ->  | H5: =MROUND(IF(F5>H_Skalierungsfunktion!$O$7,100,IF(F5>=H_Skalierungsfunktion!$O$6,(F5-H_Skalierungsfunktion!$O$6)/(H_Skalierungsfunktion!$O$7-H_Skalierungsfunktion!$O$6)*100,0)),0.0001) ->  | I5: =MROUND(IF(G5>H_Skalierungsfunktion!$O$7,100,IF(G5>=H_Skalierungsfunktion!$O$6,(G5-H_Skalierungsfunktion!$O$6)/(H_Skalierungsfunktion!$O$7-H_Skalierungsfunktion!$O$6)*100,0)),0.0001) ->  | J5: =VLOOKUP(H5,Skalierung,H_Skalierungsfunktion!$O$5) ->  | K5: =VLOOKUP(I5,Skalierung,H_Skalierungsfunktion!$O$5) ->  | L5: =VLOOKUP($A5,Erfassungsmaske!$B$10:$N$502,COLUMN(Erfassungsmaske!$M$9)-COLUMN(Erfassungsmaske!$B$9)+1,FALSE) ->  | M5: =VLOOKUP($A5,Erfassungsmaske!$B$10:$N$502,COLUMN(Erfassungsmaske!$N$9)-COLUMN(Erfassungsmaske!$B$9)+1,FALSE) ->  | N5: =$C5*Annahmen!$F$20+$D5*Annahmen!$F$17+$E5*Annahmen!$F$18+$J5*Annahmen!$F$19 ->  | O5: =$C5*Annahmen!$F$20+$D5*Annahmen!$F$17+$E5*Annahmen!$F$18+$K5*Annahmen!$F$19 -> 
A6: 95966 | B6: Port, Schulweg | C6: 92.4944 | D6: 77.6923 | E6: 0 | F6: =VLOOKUP($A6,Erfassungsmaske!$B$10:$N$502,COLUMN(Erfassungsmaske!$D$9)-COLUMN(Erfassungsmaske!$B$9)+1,FALSE)+VLOOKUP($A6,'Zusätzliche Frequenzen'!$B$10:$E$502,COLUMN('Zusätzliche Frequenzen'!$D$9)-COLUMN('Zusätzliche Frequenzen'!$B$9)+1,FALSE) ->  | G6: =VLOOKUP($A6,Erfassungsmaske!$B$10:$N$502,COLUMN(Erfassungsmaske!$E$9)-COLUMN(Erfassungsmaske!$B$9)+1,FALSE)+VLOOKUP($A6,'Zusätzliche Frequenzen'!$B$10:$E$502,COLUMN('Zusätzliche Frequenzen'!$E$9)-COLUMN('Zusätzliche Frequenzen'!$B$9)+1,FALSE) ->  | H6: =MROUND(IF(F6>H_Skalierungsfunktion!$O$7,100,IF(F6>=H_Skalierungsfunktion!$O$6,(F6-H_Skalierungsfunktion!$O$6)/(H_Skalierungsfunktion!$O$7-H_Skalierungsfunktion!$O$6)*100,0)),0.0001) ->  | I6: =MROUND(IF(G6>H_Skalierungsfunktion!$O$7,100,IF(G6>=H_Skalierungsfunktion!$O$6,(G6-H_Skalierungsfunktion!$O$6)/(H_Skalierungsfunktion!$O$7-H_Skalierungsfunktion!$O$6)*100,0)),0.0001) ->  | J6: =VLOOKUP(H6,Skalierung,H_Skalierungsfunktion!$O$5) ->  | K6: =VLOOKUP(I6,Skalierung,H_Skalierungsfunktion!$O$5) ->  | L6: =VLOOKUP($A6,Erfassungsmaske!$B$10:$N$502,COLUMN(Erfassungsmaske!$M$9)-COLUMN(Erfassungsmaske!$B$9)+1,FALSE) ->  | M6: =VLOOKUP($A6,Erfassungsmaske!$B$10:$N$502,COLUMN(Erfassungsmaske!$N$9)-COLUMN(Erfassungsmaske!$B$9)+1,FALSE) ->  | N6: =$C6*Annahmen!$F$20+$D6*Annahmen!$F$17+$E6*Annahmen!$F$18+$J6*Annahmen!$F$19 ->  | O6: =$C6*Annahmen!$F$20+$D6*Annahmen!$F$17+$E6*Annahmen!$F$18+$K6*Annahmen!$F$19 -> 
A7: 94201 | B7: Bern, Holligen | C7: 100 | D7: 100 | E7: 0 | F7: =VLOOKUP($A7,Erfassungsmaske!$B$10:$N$502,COLUMN(Erfassungsmaske!$D$9)-COLUMN(Erfassungsmaske!$B$9)+1,FALSE)+VLOOKUP($A7,'Zusätzliche Frequenzen'!$B$10:$E$502,COLUMN('Zusätzliche Frequenzen'!$D$9)-COLUMN('Zusätzliche Frequenzen'!$B$9)+1,FALSE) ->  | G7: =VLOOKUP($A7,Erfassungsmaske!$B$10:$N$502,COLUMN(Erfassungsmaske!$E$9)-COLUMN(Erfassungsmaske!$B$9)+1,FALSE)+VLOOKUP($A7,'Zusätzliche Frequenzen'!$B$10:$E$502,COLUMN('Zusätzliche Frequenzen'!$E$9)-COLUMN('Zusätzliche Frequenzen'!$B$9)+1,FALSE) ->  | H7: =MROUND(IF(F7>H_Skalierungsfunktion!$O$7,100,IF(F7>=H_Skalierungsfunktion!$O$6,(F7-H_Skalierungsfunktion!$O$6)/(H_Skalierungsfunktion!$O$7-H_Skalierungsfunktion!$O$6)*100,0)),0.0001) ->  | I7: =MROUND(IF(G7>H_Skalierungsfunktion!$O$7,100,IF(G7>=H_Skalierungsfunktion!$O$6,(G7-H_Skalierungsfunktion!$O$6)/(H_Skalierungsfunktion!$O$7-H_Skalierungsfunktion!$O$6)*100,0)),0.0001) ->  | J7: =VLOOKUP(H7,Skalierung,H_Skalierungsfunktion!$O$5) ->  | K7: =VLOOKUP(I7,Skalierung,H_Skalierungsfunktion!$O$5) ->  | L7: =VLOOKUP($A7,Erfassungsmaske!$B$10:$N$502,COLUMN(Erfassungsmaske!$M$9)-COLUMN(Erfassungsmaske!$B$9)+1,FALSE) ->  | M7: =VLOOKUP($A7,Erfassungsmaske!$B$10:$N$502,COLUMN(Erfassungsmaske!$N$9)-COLUMN(Erfassungsmaske!$B$9)+1,FALSE) ->  | N7: =$C7*Annahmen!$F$20+$D7*Annahmen!$F$17+$E7*Annahmen!$F$18+$J7*Annahmen!$F$19 ->  | O7: =$C7*Annahmen!$F$20+$D7*Annahmen!$F$17+$E7*Annahmen!$F$18+$K7*Annahmen!$F$19 -> 
A8: 94200 | B8: Bern, Inselspital | C8: 100 | D8: 100 | E8: 50 | F8: =VLOOKUP($A8,Erfassungsmaske!$B$10:$N$502,COLUMN(Erfassungsmaske!$D$9)-COLUMN(Erfassungsmaske!$B$9)+1,FALSE)+VLOOKUP($A8,'Zusätzliche Frequenzen'!$B$10:$E$502,COLUMN('Zusätzliche Frequenzen'!$D$9)-COLUMN('Zusätzliche Frequenzen'!$B$9)+1,FALSE) ->  | G8: =VLOOKUP($A8,Erfassungsmaske!$B$10:$N$502,COLUMN(Erfassungsmaske!$E$9)-COLUMN(Erfassungsmaske!$B$9)+1,FALSE)+VLOOKUP($A8,'Zusätzliche Frequenzen'!$B$10:$E$502,COLUMN('Zusätzliche Frequenzen'!$E$9)-COLUMN('Zusätzliche Frequenzen'!$B$9)+1,FALSE) ->  | H8: =MROUND(IF(F8>H_Skalierungsfunktion!$O$7,100,IF(F8>=H_Skalierungsfunktion!$O$6,(F8-H_Skalierungsfunktion!$O$6)/(H_Skalierungsfunktion!$O$7-H_Skalierungsfunktion!$O$6)*100,0)),0.0001) ->  | I8: =MROUND(IF(G8>H_Skalierungsfunktion!$O$7,100,IF(G8>=H_Skalierungsfunktion!$O$6,(G8-H_Skalierungsfunktion!$O$6)/(H_Skalierungsfunktion!$O$7-H_Skalierungsfunktion!$O$6)*100,0)),0.0001) ->  | J8: =VLOOKUP(H8,Skalierung,H_Skalierungsfunktion!$O$5) ->  | K8: =VLOOKUP(I8,Skalierung,H_Skalierungsfunktion!$O$5) ->  | L8: =VLOOKUP($A8,Erfassungsmaske!$B$10:$N$502,COLUMN(Erfassungsmaske!$M$9)-COLUMN(Erfassungsmaske!$B$9)+1,FALSE) ->  | M8: =VLOOKUP($A8,Erfassungsmaske!$B$10:$N$502,COLUMN(Erfassungsmaske!$N$9)-COLUMN(Erfassungsmaske!$B$9)+1,FALSE) ->  | N8: =$C8*Annahmen!$F$20+$D8*Annahmen!$F$17+$E8*Annahmen!$F$18+$J8*Annahmen!$F$19 ->  | O8: =$C8*Annahmen!$F$20+$D8*Annahmen!$F$17+$E8*Annahmen!$F$18+$K8*Annahmen!$F$19 -> 
A9: 95931 | B9: Bern Weissenbühl, Bahnhof | C9: 100 | D9: 100 | E9: 100 | F9: =VLOOKUP($A9,Erfassungsmaske!$B$10:$N$502,COLUMN(Erfassungsmaske!$D$9)-COLUMN(Erfassungsmaske!$B$9)+1,FALSE)+VLOOKUP($A9,'Zusätzliche Frequenzen'!$B$10:$E$502,COLUMN('Zusätzliche Frequenzen'!$D$9)-COLUMN('Zusätzliche Frequenzen'!$B$9)+1,FALSE) ->  | G9: =VLOOKUP($A9,Erfassungsmaske!$B$10:$N$502,COLUMN(Erfassungsmaske!$E$9)-COLUMN(Erfassungsmaske!$B$9)+1,FALSE)+VLOOKUP($A9,'Zusätzliche Frequenzen'!$B$10:$E$502,COLUMN('Zusätzliche Frequenzen'!$E$9)-COLUMN('Zusätzliche Frequenzen'!$B$9)+1,FALSE) ->  | H9: =MROUND(IF(F9>H_Skalierungsfunktion!$O$7,100,IF(F9>=H_Skalierungsfunktion!$O$6,(F9-H_Skalierungsfunktion!$O$6)/(H_Skalierungsfunktion!$O$7-H_Skalierungsfunktion!$O$6)*100,0)),0.0001) ->  | I9: =MROUND(IF(G9>H_Skalierungsfunktion!$O$7,100,IF(G9>=H_Skalierungsfunktion!$O$6,(G9-H_Skalierungsfunktion!$O$6)/(H_Skalierungsfunktion!$O$7-H_Skalierungsfunktion!$O$6)*100,0)),0.0001) ->  | J9: =VLOOKUP(H9,Skalierung,H_Skalierungsfunktion!$O$5) ->  | K9: =VLOOKUP(I9,Skalierung,H_Skalierungsfunktion!$O$5) ->  | L9: =VLOOKUP($A9,Erfassungsmaske!$B$10:$N$502,COLUMN(Erfassungsmaske!$M$9)-COLUMN(Erfassungsmaske!$B$9)+1,FALSE) ->  | M9: =VLOOKUP($A9,Erfassungsmaske!$B$10:$N$502,COLUMN(Erfassungsmaske!$N$9)-COLUMN(Erfassungsmaske!$B$9)+1,FALSE) ->  | N9: =$C9*Annahmen!$F$20+$D9*Annahmen!$F$17+$E9*Annahmen!$F$18+$J9*Annahmen!$F$19 ->  | O9: =$C9*Annahmen!$F$20+$D9*Annahmen!$F$17+$E9*Annahmen!$F$18+$K9*Annahmen!$F$19 -> 
A10: 90016 | B10: Bern, Beaumont | C10: 100 | D10: 100 | E10: 0 | F10: =VLOOKUP($A10,Erfassungsmaske!$B$10:$N$502,COLUMN(Erfassungsmaske!$D$9)-COLUMN(Erfassungsmaske!$B$9)+1,FALSE)+VLOOKUP($A10,'Zusätzliche Frequenzen'!$B$10:$E$502,COLUMN('Zusätzliche Frequenzen'!$D$9)-COLUMN('Zusätzliche Frequenzen'!$B$9)+1,FALSE) ->  | G10: =VLOOKUP($A10,Erfassungsmaske!$B$10:$N$502,COLUMN(Erfassungsmaske!$E$9)-COLUMN(Erfassungsmaske!$B$9)+1,FALSE)+VLOOKUP($A10,'Zusätzliche Frequenzen'!$B$10:$E$502,COLUMN('Zusätzliche Frequenzen'!$E$9)-COLUMN('Zusätzliche Frequenzen'!$B$9)+1,FALSE) ->  | H10: =MROUND(IF(F10>H_Skalierungsfunktion!$O$7,100,IF(F10>=H_Skalierungsfunktion!$O$6,(F10-H_Skalierungsfunktion!$O$6)/(H_Skalierungsfunktion!$O$7-H_Skalierungsfunktion!$O$6)*100,0)),0.0001) ->  | I10: =MROUND(IF(G10>H_Skalierungsfunktion!$O$7,100,IF(G10>=H_Skalierungsfunktion!$O$6,(G10-H_Skalierungsfunktion!$O$6)/(H_Skalierungsfunktion!$O$7-H_Skalierungsfunktion!$O$6)*100,0)),0.0001) ->  | J10: =VLOOKUP(H10,Skalierung,H_Skalierungsfunktion!$O$5) ->  | K10: =VLOOKUP(I10,Skalierung,H_Skalierungsfunktion!$O$5) ->  | L10: =VLOOKUP($A10,Erfassungsmaske!$B$10:$N$502,COLUMN(Erfassungsmaske!$M$9)-COLUMN(Erfassungsmaske!$B$9)+1,FALSE) ->  | M10: =VLOOKUP($A10,Erfassungsmaske!$B$10:$N$502,COLUMN(Erfassungsmaske!$N$9)-COLUMN(Erfassungsmaske!$B$9)+1,FALSE) ->  | N10: =$C10*Annahmen!$F$20+$D10*Annahmen!$F$17+$E10*Annahmen!$F$18+$J10*Annahmen!$F$19 ->  | O10: =$C10*Annahmen!$F$20+$D10*Annahmen!$F$17+$E10*Annahmen!$F$18+$K10*Annahmen!$F$19 -> 
A11: 95989 | B11: Langnau i.E., Sonnenarena | C11: 86.3531 | D11: 36.5485 | E11: 0 | F11: =VLOOKUP($A11,Erfassungsmaske!$B$10:$N$502,COLUMN(Erfassungsmaske!$D$9)-COLUMN(Erfassungsmaske!$B$9)+1,FALSE)+VLOOKUP($A11,'Zusätzliche Frequenzen'!$B$10:$E$502,COLUMN('Zusätzliche Frequenzen'!$D$9)-COLUMN('Zusätzliche Frequenzen'!$B$9)+1,FALSE) ->  | G11: =VLOOKUP($A11,Erfassungsmaske!$B$10:$N$502,COLUMN(Erfassungsmaske!$E$9)-COLUMN(Erfassungsmaske!$B$9)+1,FALSE)+VLOOKUP($A11,'Zusätzliche Frequenzen'!$B$10:$E$502,COLUMN('Zusätzliche Frequenzen'!$E$9)-COLUMN('Zusätzliche Frequenzen'!$B$9)+1,FALSE) ->  | H11: =MROUND(IF(F11>H_Skalierungsfunktion!$O$7,100,IF(F11>=H_Skalierungsfunktion!$O$6,(F11-H_Skalierungsfunktion!$O$6)/(H_Skalierungsfunktion!$O$7-H_Skalierungsfunktion!$O$6)*100,0)),0.0001) ->  | I11: =MROUND(IF(G11>H_Skalierungsfunktion!$O$7,100,IF(G11>=H_Skalierungsfunktion!$O$6,(G11-H_Skalierungsfunktion!$O$6)/(H_Skalierungsfunktion!$O$7-H_Skalierungsfunktion!$O$6)*100,0)),0.0001) ->  | J11: =VLOOKUP(H11,Skalierung,H_Skalierungsfunktion!$O$5) ->  | K11: =VLOOKUP(I11,Skalierung,H_Skalierungsfunktion!$O$5) ->  | L11: =VLOOKUP($A11,Erfassungsmaske!$B$10:$N$502,COLUMN(Erfassungsmaske!$M$9)-COLUMN(Erfassungsmaske!$B$9)+1,FALSE) ->  | M11: =VLOOKUP($A11,Erfassungsmaske!$B$10:$N$502,COLUMN(Erfassungsmaske!$N$9)-COLUMN(Erfassungsmaske!$B$9)+1,FALSE) ->  | N11: =$C11*Annahmen!$F$20+$D11*Annahmen!$F$17+$E11*Annahmen!$F$18+$J11*Annahmen!$F$19 ->  | O11: =$C11*Annahmen!$F$20+$D11*Annahmen!$F$17+$E11*Annahmen!$F$18+$K11*Annahmen!$F$19 -> 
A12: 85807 | B12: Uetendorf, Kirche | C12: 82.3024 | D12: 97.5336 | E12: 0 | F12: =VLOOKUP($A12,Erfassungsmaske!$B$10:$N$502,COLUMN(Erfassungsmaske!$D$9)-COLUMN(Erfassungsmaske!$B$9)+1,FALSE)+VLOOKUP($A12,'Zusätzliche Frequenzen'!$B$10:$E$502,COLUMN('Zusätzliche Frequenzen'!$D$9)-COLUMN('Zusätzliche Frequenzen'!$B$9)+1,FALSE) ->  | G12: =VLOOKUP($A12,Erfassungsmaske!$B$10:$N$502,COLUMN(Erfassungsmaske!$E$9)-COLUMN(Erfassungsmaske!$B$9)+1,FALSE)+VLOOKUP($A12,'Zusätzliche Frequenzen'!$B$10:$E$502,COLUMN('Zusätzliche Frequenzen'!$E$9)-COLUMN('Zusätzliche Frequenzen'!$B$9)+1,FALSE) ->  | H12: =MROUND(IF(F12>H_Skalierungsfunktion!$O$7,100,IF(F12>=H_Skalierungsfunktion!$O$6,(F12-H_Skalierungsfunktion!$O$6)/(H_Skalierungsfunktion!$O$7-H_Skalierungsfunktion!$O$6)*100,0)),0.0001) ->  | I12: =MROUND(IF(G12>H_Skalierungsfunktion!$O$7,100,IF(G12>=H_Skalierungsfunktion!$O$6,(G12-H_Skalierungsfunktion!$O$6)/(H_Skalierungsfunktion!$O$7-H_Skalierungsfunktion!$O$6)*100,0)),0.0001) ->  | J12: =VLOOKUP(H12,Skalierung,H_Skalierungsfunktion!$O$5) ->  | K12: =VLOOKUP(I12,Skalierung,H_Skalierungsfunktion!$O$5) ->  | L12: =VLOOKUP($A12,Erfassungsmaske!$B$10:$N$502,COLUMN(Erfassungsmaske!$M$9)-COLUMN(Erfassungsmaske!$B$9)+1,FALSE) ->  | M12: =VLOOKUP($A12,Erfassungsmaske!$B$10:$N$502,COLUMN(Erfassungsmaske!$N$9)-COLUMN(Erfassungsmaske!$B$9)+1,FALSE) ->  | N12: =$C12*Annahmen!$F$20+$D12*Annahmen!$F$17+$E12*Annahmen!$F$18+$J12*Annahmen!$F$19 ->  | O12: =$C12*Annahmen!$F$20+$D12*Annahmen!$F$17+$E12*Annahmen!$F$18+$K12*Annahmen!$F$19 -> 
A13: 85808 | B13: Uetendorf, Berg | C13: 13.1306 | D13: 2.3361 | E13: 0 | F13: =VLOOKUP($A13,Erfassungsmaske!$B$10:$N$502,COLUMN(Erfassungsmaske!$D$9)-COLUMN(Erfassungsmaske!$B$9)+1,FALSE)+VLOOKUP($A13,'Zusätzliche Frequenzen'!$B$10:$E$502,COLUMN('Zusätzliche Frequenzen'!$D$9)-COLUMN('Zusätzliche Frequenzen'!$B$9)+1,FALSE) ->  | G13: =VLOOKUP($A13,Erfassungsmaske!$B$10:$N$502,COLUMN(Erfassungsmaske!$E$9)-COLUMN(Erfassungsmaske!$B$9)+1,FALSE)+VLOOKUP($A13,'Zusätzliche Frequenzen'!$B$10:$E$502,COLUMN('Zusätzliche Frequenzen'!$E$9)-COLUMN('Zusätzliche Frequenzen'!$B$9)+1,FALSE) ->  | H13: =MROUND(IF(F13>H_Skalierungsfunktion!$O$7,100,IF(F13>=H_Skalierungsfunktion!$O$6,(F13-H_Skalierungsfunktion!$O$6)/(H_Skalierungsfunktion!$O$7-H_Skalierungsfunktion!$O$6)*100,0)),0.0001) ->  | I13: =MROUND(IF(G13>H_Skalierungsfunktion!$O$7,100,IF(G13>=H_Skalierungsfunktion!$O$6,(G13-H_Skalierungsfunktion!$O$6)/(H_Skalierungsfunktion!$O$7-H_Skalierungsfunktion!$O$6)*100,0)),0.0001) ->  | J13: =VLOOKUP(H13,Skalierung,H_Skalierungsfunktion!$O$5) ->  | K13: =VLOOKUP(I13,Skalierung,H_Skalierungsfunktion!$O$5) ->  | L13: =VLOOKUP($A13,Erfassungsmaske!$B$10:$N$502,COLUMN(Erfassungsmaske!$M$9)-COLUMN(Erfassungsmaske!$B$9)+1,FALSE) ->  | M13: =VLOOKUP($A13,Erfassungsmaske!$B$10:$N$502,COLUMN(Erfassungsmaske!$N$9)-COLUMN(Erfassungsmaske!$B$9)+1,FALSE) ->  | N13: =$C13*Annahmen!$F$20+$D13*Annahmen!$F$17+$E13*Annahmen!$F$18+$J13*Annahmen!$F$19 ->  | O13: =$C13*Annahmen!$F$20+$D13*Annahmen!$F$17+$E13*Annahmen!$F$18+$K13*Annahmen!$F$19 -> 
A14: 83852 | B14: Aeschi b. Spiez, Adelmatt | C14: 43.2117 | D14: 78.0283 | E14: 0 | F14: =VLOOKUP($A14,Erfassungsmaske!$B$10:$N$502,COLUMN(Erfassungsmaske!$D$9)-COLUMN(Erfassungsmaske!$B$9)+1,FALSE)+VLOOKUP($A14,'Zusätzliche Frequenzen'!$B$10:$E$502,COLUMN('Zusätzliche Frequenzen'!$D$9)-COLUMN('Zusätzliche Frequenzen'!$B$9)+1,FALSE) ->  | G14: =VLOOKUP($A14,Erfassungsmaske!$B$10:$N$502,COLUMN(Erfassungsmaske!$E$9)-COLUMN(Erfassungsmaske!$B$9)+1,FALSE)+VLOOKUP($A14,'Zusätzliche Frequenzen'!$B$10:$E$502,COLUMN('Zusätzliche Frequenzen'!$E$9)-COLUMN('Zusätzliche Frequenzen'!$B$9)+1,FALSE) ->  | H14: =MROUND(IF(F14>H_Skalierungsfunktion!$O$7,100,IF(F14>=H_Skalierungsfunktion!$O$6,(F14-H_Skalierungsfunktion!$O$6)/(H_Skalierungsfunktion!$O$7-H_Skalierungsfunktion!$O$6)*100,0)),0.0001) ->  | I14: =MROUND(IF(G14>H_Skalierungsfunktion!$O$7,100,IF(G14>=H_Skalierungsfunktion!$O$6,(G14-H_Skalierungsfunktion!$O$6)/(H_Skalierungsfunktion!$O$7-H_Skalierungsfunktion!$O$6)*100,0)),0.0001) ->  | J14: =VLOOKUP(H14,Skalierung,H_Skalierungsfunktion!$O$5) ->  | K14: =VLOOKUP(I14,Skalierung,H_Skalierungsfunktion!$O$5) ->  | L14: =VLOOKUP($A14,Erfassungsmaske!$B$10:$N$502,COLUMN(Erfassungsmaske!$M$9)-COLUMN(Erfassungsmaske!$B$9)+1,FALSE) ->  | M14: =VLOOKUP($A14,Erfassungsmaske!$B$10:$N$502,COLUMN(Erfassungsmaske!$N$9)-COLUMN(Erfassungsmaske!$B$9)+1,FALSE) ->  | N14: =$C14*Annahmen!$F$20+$D14*Annahmen!$F$17+$E14*Annahmen!$F$18+$J14*Annahmen!$F$19 ->  | O14: =$C14*Annahmen!$F$20+$D14*Annahmen!$F$17+$E14*Annahmen!$F$18+$K14*Annahmen!$F$19 -> 
A15: 83853 | B15: Aeschi b. Spiez, Hundbüel | C15: 11.3381 | D15: 0 | E15: 0 | F15: =VLOOKUP($A15,Erfassungsmaske!$B$10:$N$502,COLUMN(Erfassungsmaske!$D$9)-COLUMN(Erfassungsmaske!$B$9)+1,FALSE)+VLOOKUP($A15,'Zusätzliche Frequenzen'!$B$10:$E$502,COLUMN('Zusätzliche Frequenzen'!$D$9)-COLUMN('Zusätzliche Frequenzen'!$B$9)+1,FALSE) ->  | G15: =VLOOKUP($A15,Erfassungsmaske!$B$10:$N$502,COLUMN(Erfassungsmaske!$E$9)-COLUMN(Erfassungsmaske!$B$9)+1,FALSE)+VLOOKUP($A15,'Zusätzliche Frequenzen'!$B$10:$E$502,COLUMN('Zusätzliche Frequenzen'!$E$9)-COLUMN('Zusätzliche Frequenzen'!$B$9)+1,FALSE) ->  | H15: =MROUND(IF(F15>H_Skalierungsfunktion!$O$7,100,IF(F15>=H_Skalierungsfunktion!$O$6,(F15-H_Skalierungsfunktion!$O$6)/(H_Skalierungsfunktion!$O$7-H_Skalierungsfunktion!$O$6)*100,0)),0.0001) ->  | I15: =MROUND(IF(G15>H_Skalierungsfunktion!$O$7,100,IF(G15>=H_Skalierungsfunktion!$O$6,(G15-H_Skalierungsfunktion!$O$6)/(H_Skalierungsfunktion!$O$7-H_Skalierungsfunktion!$O$6)*100,0)),0.0001) ->  | J15: =VLOOKUP(H15,Skalierung,H_Skalierungsfunktion!$O$5) ->  | K15: =VLOOKUP(I15,Skalierung,H_Skalierungsfunktion!$O$5) ->  | L15: =VLOOKUP($A15,Erfassungsmaske!$B$10:$N$502,COLUMN(Erfassungsmaske!$M$9)-COLUMN(Erfassungsmaske!$B$9)+1,FALSE) ->  | M15: =VLOOKUP($A15,Erfassungsmaske!$B$10:$N$502,COLUMN(Erfassungsmaske!$N$9)-COLUMN(Erfassungsmaske!$B$9)+1,FALSE) ->  | N15: =$C15*Annahmen!$F$20+$D15*Annahmen!$F$17+$E15*Annahmen!$F$18+$J15*Annahmen!$F$19 ->  | O15: =$C15*Annahmen!$F$20+$D15*Annahmen!$F$17+$E15*Annahmen!$F$18+$K15*Annahmen!$F$19 -> 
A16: 71329 | B16: Saxeten, Skipintli | C16: 1.6169 | D16: 0 | E16: 0 | F16: =VLOOKUP($A16,Erfassungsmaske!$B$10:$N$502,COLUMN(Erfassungsmaske!$D$9)-COLUMN(Erfassungsmaske!$B$9)+1,FALSE)+VLOOKUP($A16,'Zusätzliche Frequenzen'!$B$10:$E$502,COLUMN('Zusätzliche Frequenzen'!$D$9)-COLUMN('Zusätzliche Frequenzen'!$B$9)+1,FALSE) ->  | G16: =VLOOKUP($A16,Erfassungsmaske!$B$10:$N$502,COLUMN(Erfassungsmaske!$E$9)-COLUMN(Erfassungsmaske!$B$9)+1,FALSE)+VLOOKUP($A16,'Zusätzliche Frequenzen'!$B$10:$E$502,COLUMN('Zusätzliche Frequenzen'!$E$9)-COLUMN('Zusätzliche Frequenzen'!$B$9)+1,FALSE) ->  | H16: =MROUND(IF(F16>H_Skalierungsfunktion!$O$7,100,IF(F16>=H_Skalierungsfunktion!$O$6,(F16-H_Skalierungsfunktion!$O$6)/(H_Skalierungsfunktion!$O$7-H_Skalierungsfunktion!$O$6)*100,0)),0.0001) ->  | I16: =MROUND(IF(G16>H_Skalierungsfunktion!$O$7,100,IF(G16>=H_Skalierungsfunktion!$O$6,(G16-H_Skalierungsfunktion!$O$6)/(H_Skalierungsfunktion!$O$7-H_Skalierungsfunktion!$O$6)*100,0)),0.0001) ->  | J16: =VLOOKUP(H16,Skalierung,H_Skalierungsfunktion!$O$5) ->  | K16: =VLOOKUP(I16,Skalierung,H_Skalierungsfunktion!$O$5) ->  | L16: =VLOOKUP($A16,Erfassungsmaske!$B$10:$N$502,COLUMN(Erfassungsmaske!$M$9)-COLUMN(Erfassungsmaske!$B$9)+1,FALSE) ->  | M16: =VLOOKUP($A16,Erfassungsmaske!$B$10:$N$502,COLUMN(Erfassungsmaske!$N$9)-COLUMN(Erfassungsmaske!$B$9)+1,FALSE) ->  | N16: =$C16*Annahmen!$F$20+$D16*Annahmen!$F$17+$E16*Annahmen!$F$18+$J16*Annahmen!$F$19 ->  | O16: =$C16*Annahmen!$F$20+$D16*Annahmen!$F$17+$E16*Annahmen!$F$18+$K16*Annahmen!$F$19 -> 
A17: 57100 | B17: Brienzwiler, Schulhaus | C17: 57.8892 | D17: 33.1172 | E17: 0 | F17: =VLOOKUP($A17,Erfassungsmaske!$B$10:$N$502,COLUMN(Erfassungsmaske!$D$9)-COLUMN(Erfassungsmaske!$B$9)+1,FALSE)+VLOOKUP($A17,'Zusätzliche Frequenzen'!$B$10:$E$502,COLUMN('Zusätzliche Frequenzen'!$D$9)-COLUMN('Zusätzliche Frequenzen'!$B$9)+1,FALSE) ->  | G17: =VLOOKUP($A17,Erfassungsmaske!$B$10:$N$502,COLUMN(Erfassungsmaske!$E$9)-COLUMN(Erfassungsmaske!$B$9)+1,FALSE)+VLOOKUP($A17,'Zusätzliche Frequenzen'!$B$10:$E$502,COLUMN('Zusätzliche Frequenzen'!$E$9)-COLUMN('Zusätzliche Frequenzen'!$B$9)+1,FALSE) ->  | H17: =MROUND(IF(F17>H_Skalierungsfunktion!$O$7,100,IF(F17>=H_Skalierungsfunktion!$O$6,(F17-H_Skalierungsfunktion!$O$6)/(H_Skalierungsfunktion!$O$7-H_Skalierungsfunktion!$O$6)*100,0)),0.0001) ->  | I17: =MROUND(IF(G17>H_Skalierungsfunktion!$O$7,100,IF(G17>=H_Skalierungsfunktion!$O$6,(G17-H_Skalierungsfunktion!$O$6)/(H_Skalierungsfunktion!$O$7-H_Skalierungsfunktion!$O$6)*100,0)),0.0001) ->  | J17: =VLOOKUP(H17,Skalierung,H_Skalierungsfunktion!$O$5) ->  | K17: =VLOOKUP(I17,Skalierung,H_Skalierungsfunktion!$O$5) ->  | L17: =VLOOKUP($A17,Erfassungsmaske!$B$10:$N$502,COLUMN(Erfassungsmaske!$M$9)-COLUMN(Erfassungsmaske!$B$9)+1,FALSE) ->  | M17: =VLOOKUP($A17,Erfassungsmaske!$B$10:$N$502,COLUMN(Erfassungsmaske!$N$9)-COLUMN(Erfassungsmaske!$B$9)+1,FALSE) ->  | N17: =$C17*Annahmen!$F$20+$D17*Annahmen!$F$17+$E17*Annahmen!$F$18+$J17*Annahmen!$F$19 ->  | O17: =$C17*Annahmen!$F$20+$D17*Annahmen!$F$17+$E17*Annahmen!$F$18+$K17*Annahmen!$F$19 -> 
A18: 57129 | B18: Brienz BE, Chilchgasse | C18: 72.0315 | D18: 67.0226 | E18: 0 | F18: =VLOOKUP($A18,Erfassungsmaske!$B$10:$N$502,COLUMN(Erfassungsmaske!$D$9)-COLUMN(Erfassungsmaske!$B$9)+1,FALSE)+VLOOKUP($A18,'Zusätzliche Frequenzen'!$B$10:$E$502,COLUMN('Zusätzliche Frequenzen'!$D$9)-COLUMN('Zusätzliche Frequenzen'!$B$9)+1,FALSE) ->  | G18: =VLOOKUP($A18,Erfassungsmaske!$B$10:$N$502,COLUMN(Erfassungsmaske!$E$9)-COLUMN(Erfassungsmaske!$B$9)+1,FALSE)+VLOOKUP($A18,'Zusätzliche Frequenzen'!$B$10:$E$502,COLUMN('Zusätzliche Frequenzen'!$E$9)-COLUMN('Zusätzliche Frequenzen'!$B$9)+1,FALSE) ->  | H18: =MROUND(IF(F18>H_Skalierungsfunktion!$O$7,100,IF(F18>=H_Skalierungsfunktion!$O$6,(F18-H_Skalierungsfunktion!$O$6)/(H_Skalierungsfunktion!$O$7-H_Skalierungsfunktion!$O$6)*100,0)),0.0001) ->  | I18: =MROUND(IF(G18>H_Skalierungsfunktion!$O$7,100,IF(G18>=H_Skalierungsfunktion!$O$6,(G18-H_Skalierungsfunktion!$O$6)/(H_Skalierungsfunktion!$O$7-H_Skalierungsfunktion!$O$6)*100,0)),0.0001) ->  | J18: =VLOOKUP(H18,Skalierung,H_Skalierungsfunktion!$O$5) ->  | K18: =VLOOKUP(I18,Skalierung,H_Skalierungsfunktion!$O$5) ->  | L18: =VLOOKUP($A18,Erfassungsmaske!$B$10:$N$502,COLUMN(Erfassungsmaske!$M$9)-COLUMN(Erfassungsmaske!$B$9)+1,FALSE) ->  | M18: =VLOOKUP($A18,Erfassungsmaske!$B$10:$N$502,COLUMN(Erfassungsmaske!$N$9)-COLUMN(Erfassungsmaske!$B$9)+1,FALSE) ->  | N18: =$C18*Annahmen!$F$20+$D18*Annahmen!$F$17+$E18*Annahmen!$F$18+$J18*Annahmen!$F$19 ->  | O18: =$C18*Annahmen!$F$20+$D18*Annahmen!$F$17+$E18*Annahmen!$F$18+$K18*Annahmen!$F$19 -> 
A19: 57127 | B19: Brienz BE, Wisplatz | C19: 83.8426 | D19: 70.3005 | E19: 0 | F19: =VLOOKUP($A19,Erfassungsmaske!$B$10:$N$502,COLUMN(Erfassungsmaske!$D$9)-COLUMN(Erfassungsmaske!$B$9)+1,FALSE)+VLOOKUP($A19,'Zusätzliche Frequenzen'!$B$10:$E$502,COLUMN('Zusätzliche Frequenzen'!$D$9)-COLUMN('Zusätzliche Frequenzen'!$B$9)+1,FALSE) ->  | G19: =VLOOKUP($A19,Erfassungsmaske!$B$10:$N$502,COLUMN(Erfassungsmaske!$E$9)-COLUMN(Erfassungsmaske!$B$9)+1,FALSE)+VLOOKUP($A19,'Zusätzliche Frequenzen'!$B$10:$E$502,COLUMN('Zusätzliche Frequenzen'!$E$9)-COLUMN('Zusätzliche Frequenzen'!$B$9)+1,FALSE) ->  | H19: =MROUND(IF(F19>H_Skalierungsfunktion!$O$7,100,IF(F19>=H_Skalierungsfunktion!$O$6,(F19-H_Skalierungsfunktion!$O$6)/(H_Skalierungsfunktion!$O$7-H_Skalierungsfunktion!$O$6)*100,0)),0.0001) ->  | I19: =MROUND(IF(G19>H_Skalierungsfunktion!$O$7,100,IF(G19>=H_Skalierungsfunktion!$O$6,(G19-H_Skalierungsfunktion!$O$6)/(H_Skalierungsfunktion!$O$7-H_Skalierungsfunktion!$O$6)*100,0)),0.0001) ->  | J19: =VLOOKUP(H19,Skalierung,H_Skalierungsfunktion!$O$5) ->  | K19: =VLOOKUP(I19,Skalierung,H_Skalierungsfunktion!$O$5) ->  | L19: =VLOOKUP($A19,Erfassungsmaske!$B$10:$N$502,COLUMN(Erfassungsmaske!$M$9)-COLUMN(Erfassungsmaske!$B$9)+1,FALSE) ->  | M19: =VLOOKUP($A19,Erfassungsmaske!$B$10:$N$502,COLUMN(Erfassungsmaske!$N$9)-COLUMN(Erfassungsmaske!$B$9)+1,FALSE) ->  | N19: =$C19*Annahmen!$F$20+$D19*Annahmen!$F$17+$E19*Annahmen!$F$18+$J19*Annahmen!$F$19 ->  | O19: =$C19*Annahmen!$F$20+$D19*Annahmen!$F$17+$E19*Annahmen!$F$18+$K19*Annahmen!$F$19 -> 
A20: 57126 | B20: Brienz BE, Lehriweg | C20: 91.2784 | D20: 99.2923 | E20: 0 | F20: =VLOOKUP($A20,Erfassungsmaske!$B$10:$N$502,COLUMN(Erfassungsmaske!$D$9)-COLUMN(Erfassungsmaske!$B$9)+1,FALSE)+VLOOKUP($A20,'Zusätzliche Frequenzen'!$B$10:$E$502,COLUMN('Zusätzliche Frequenzen'!$D$9)-COLUMN('Zusätzliche Frequenzen'!$B$9)+1,FALSE) ->  | G20: =VLOOKUP($A20,Erfassungsmaske!$B$10:$N$502,COLUMN(Erfassungsmaske!$E$9)-COLUMN(Erfassungsmaske!$B$9)+1,FALSE)+VLOOKUP($A20,'Zusätzliche Frequenzen'!$B$10:$E$502,COLUMN('Zusätzliche Frequenzen'!$E$9)-COLUMN('Zusätzliche Frequenzen'!$B$9)+1,FALSE) ->  | H20: =MROUND(IF(F20>H_Skalierungsfunktion!$O$7,100,IF(F20>=H_Skalierungsfunktion!$O$6,(F20-H_Skalierungsfunktion!$O$6)/(H_Skalierungsfunktion!$O$7-H_Skalierungsfunktion!$O$6)*100,0)),0.0001) ->  | I20: =MROUND(IF(G20>H_Skalierungsfunktion!$O$7,100,IF(G20>=H_Skalierungsfunktion!$O$6,(G20-H_Skalierungsfunktion!$O$6)/(H_Skalierungsfunktion!$O$7-H_Skalierungsfunktion!$O$6)*100,0)),0.0001) ->  | J20: =VLOOKUP(H20,Skalierung,H_Skalierungsfunktion!$O$5) ->  | K20: =VLOOKUP(I20,Skalierung,H_Skalierungsfunktion!$O$5) ->  | L20: =VLOOKUP($A20,Erfassungsmaske!$B$10:$N$502,COLUMN(Erfassungsmaske!$M$9)-COLUMN(Erfassungsmaske!$B$9)+1,FALSE) ->  | M20: =VLOOKUP($A20,Erfassungsmaske!$B$10:$N$502,COLUMN(Erfassungsmaske!$N$9)-COLUMN(Erfassungsmaske!$B$9)+1,FALSE) ->  | N20: =$C20*Annahmen!$F$20+$D20*Annahmen!$F$17+$E20*Annahmen!$F$18+$J20*Annahmen!$F$19 ->  | O20: =$C20*Annahmen!$F$20+$D20*Annahmen!$F$17+$E20*Annahmen!$F$18+$K20*Annahmen!$F$19 -> 
A21: 57128 | B21: Brienz BE, Dindlen | C21: 83.6978 | D21: 100 | E21: 0 | F21: =VLOOKUP($A21,Erfassungsmaske!$B$10:$N$502,COLUMN(Erfassungsmaske!$D$9)-COLUMN(Erfassungsmaske!$B$9)+1,FALSE)+VLOOKUP($A21,'Zusätzliche Frequenzen'!$B$10:$E$502,COLUMN('Zusätzliche Frequenzen'!$D$9)-COLUMN('Zusätzliche Frequenzen'!$B$9)+1,FALSE) ->  | G21: =VLOOKUP($A21,Erfassungsmaske!$B$10:$N$502,COLUMN(Erfassungsmaske!$E$9)-COLUMN(Erfassungsmaske!$B$9)+1,FALSE)+VLOOKUP($A21,'Zusätzliche Frequenzen'!$B$10:$E$502,COLUMN('Zusätzliche Frequenzen'!$E$9)-COLUMN('Zusätzliche Frequenzen'!$B$9)+1,FALSE) ->  | H21: =MROUND(IF(F21>H_Skalierungsfunktion!$O$7,100,IF(F21>=H_Skalierungsfunktion!$O$6,(F21-H_Skalierungsfunktion!$O$6)/(H_Skalierungsfunktion!$O$7-H_Skalierungsfunktion!$O$6)*100,0)),0.0001) ->  | I21: =MROUND(IF(G21>H_Skalierungsfunktion!$O$7,100,IF(G21>=H_Skalierungsfunktion!$O$6,(G21-H_Skalierungsfunktion!$O$6)/(H_Skalierungsfunktion!$O$7-H_Skalierungsfunktion!$O$6)*100,0)),0.0001) ->  | J21: =VLOOKUP(H21,Skalierung,H_Skalierungsfunktion!$O$5) ->  | K21: =VLOOKUP(I21,Skalierung,H_Skalierungsfunktion!$O$5) ->  | L21: =VLOOKUP($A21,Erfassungsmaske!$B$10:$N$502,COLUMN(Erfassungsmaske!$M$9)-COLUMN(Erfassungsmaske!$B$9)+1,FALSE) ->  | M21: =VLOOKUP($A21,Erfassungsmaske!$B$10:$N$502,COLUMN(Erfassungsmaske!$N$9)-COLUMN(Erfassungsmaske!$B$9)+1,FALSE) ->  | N21: =$C21*Annahmen!$F$20+$D21*Annahmen!$F$17+$E21*Annahmen!$F$18+$J21*Annahmen!$F$19 ->  | O21: =$C21*Annahmen!$F$20+$D21*Annahmen!$F$17+$E21*Annahmen!$F$18+$K21*Annahmen!$F$19 -> 
A22: 57054 | B22: Reichenbach i. K., Müli | C22: 56.7308 | D22: 83.2937 | E22: 0 | F22: =VLOOKUP($A22,Erfassungsmaske!$B$10:$N$502,COLUMN(Erfassungsmaske!$D$9)-COLUMN(Erfassungsmaske!$B$9)+1,FALSE)+VLOOKUP($A22,'Zusätzliche Frequenzen'!$B$10:$E$502,COLUMN('Zusätzliche Frequenzen'!$D$9)-COLUMN('Zusätzliche Frequenzen'!$B$9)+1,FALSE) ->  | G22: =VLOOKUP($A22,Erfassungsmaske!$B$10:$N$502,COLUMN(Erfassungsmaske!$E$9)-COLUMN(Erfassungsmaske!$B$9)+1,FALSE)+VLOOKUP($A22,'Zusätzliche Frequenzen'!$B$10:$E$502,COLUMN('Zusätzliche Frequenzen'!$E$9)-COLUMN('Zusätzliche Frequenzen'!$B$9)+1,FALSE) ->  | H22: =MROUND(IF(F22>H_Skalierungsfunktion!$O$7,100,IF(F22>=H_Skalierungsfunktion!$O$6,(F22-H_Skalierungsfunktion!$O$6)/(H_Skalierungsfunktion!$O$7-H_Skalierungsfunktion!$O$6)*100,0)),0.0001) ->  | I22: =MROUND(IF(G22>H_Skalierungsfunktion!$O$7,100,IF(G22>=H_Skalierungsfunktion!$O$6,(G22-H_Skalierungsfunktion!$O$6)/(H_Skalierungsfunktion!$O$7-H_Skalierungsfunktion!$O$6)*100,0)),0.0001) ->  | J22: =VLOOKUP(H22,Skalierung,H_Skalierungsfunktion!$O$5) ->  | K22: =VLOOKUP(I22,Skalierung,H_Skalierungsfunktion!$O$5) ->  | L22: =VLOOKUP($A22,Erfassungsmaske!$B$10:$N$502,COLUMN(Erfassungsmaske!$M$9)-COLUMN(Erfassungsmaske!$B$9)+1,FALSE) ->  | M22: =VLOOKUP($A22,Erfassungsmaske!$B$10:$N$502,COLUMN(Erfassungsmaske!$N$9)-COLUMN(Erfassungsmaske!$B$9)+1,FALSE) ->  | N22: =$C22*Annahmen!$F$20+$D22*Annahmen!$F$17+$E22*Annahmen!$F$18+$J22*Annahmen!$F$19 ->  | O22: =$C22*Annahmen!$F$20+$D22*Annahmen!$F$17+$E22*Annahmen!$F$18+$K22*Annahmen!$F$19 -> 
A23: 96103 | B23: Frutigen, Widigasse | C23: 64.3914 | D23: 1.1748 | E23: 0 | F23: =VLOOKUP($A23,Erfassungsmaske!$B$10:$N$502,COLUMN(Erfassungsmaske!$D$9)-COLUMN(Erfassungsmaske!$B$9)+1,FALSE)+VLOOKUP($A23,'Zusätzliche Frequenzen'!$B$10:$E$502,COLUMN('Zusätzliche Frequenzen'!$D$9)-COLUMN('Zusätzliche Frequenzen'!$B$9)+1,FALSE) ->  | G23: =VLOOKUP($A23,Erfassungsmaske!$B$10:$N$502,COLUMN(Erfassungsmaske!$E$9)-COLUMN(Erfassungsmaske!$B$9)+1,FALSE)+VLOOKUP($A23,'Zusätzliche Frequenzen'!$B$10:$E$502,COLUMN('Zusätzliche Frequenzen'!$E$9)-COLUMN('Zusätzliche Frequenzen'!$B$9)+1,FALSE) ->  | H23: =MROUND(IF(F23>H_Skalierungsfunktion!$O$7,100,IF(F23>=H_Skalierungsfunktion!$O$6,(F23-H_Skalierungsfunktion!$O$6)/(H_Skalierungsfunktion!$O$7-H_Skalierungsfunktion!$O$6)*100,0)),0.0001) ->  | I23: =MROUND(IF(G23>H_Skalierungsfunktion!$O$7,100,IF(G23>=H_Skalierungsfunktion!$O$6,(G23-H_Skalierungsfunktion!$O$6)/(H_Skalierungsfunktion!$O$7-H_Skalierungsfunktion!$O$6)*100,0)),0.0001) ->  | J23: =VLOOKUP(H23,Skalierung,H_Skalierungsfunktion!$O$5) ->  | K23: =VLOOKUP(I23,Skalierung,H_Skalierungsfunktion!$O$5) ->  | L23: =VLOOKUP($A23,Erfassungsmaske!$B$10:$N$502,COLUMN(Erfassungsmaske!$M$9)-COLUMN(Erfassungsmaske!$B$9)+1,FALSE) ->  | M23: =VLOOKUP($A23,Erfassungsmaske!$B$10:$N$502,COLUMN(Erfassungsmaske!$N$9)-COLUMN(Erfassungsmaske!$B$9)+1,FALSE) ->  | N23: =$C23*Annahmen!$F$20+$D23*Annahmen!$F$17+$E23*Annahmen!$F$18+$J23*Annahmen!$F$19 ->  | O23: =$C23*Annahmen!$F$20+$D23*Annahmen!$F$17+$E23*Annahmen!$F$18+$K23*Annahmen!$F$19 -> 
A24: 92308 | B24: Adelboden, Chäli | C24: 0.8117 | D24: 0 | E24: 0 | F24: =VLOOKUP($A24,Erfassungsmaske!$B$10:$N$502,COLUMN(Erfassungsmaske!$D$9)-COLUMN(Erfassungsmaske!$B$9)+1,FALSE)+VLOOKUP($A24,'Zusätzliche Frequenzen'!$B$10:$E$502,COLUMN('Zusätzliche Frequenzen'!$D$9)-COLUMN('Zusätzliche Frequenzen'!$B$9)+1,FALSE) ->  | G24: =VLOOKUP($A24,Erfassungsmaske!$B$10:$N$502,COLUMN(Erfassungsmaske!$E$9)-COLUMN(Erfassungsmaske!$B$9)+1,FALSE)+VLOOKUP($A24,'Zusätzliche Frequenzen'!$B$10:$E$502,COLUMN('Zusätzliche Frequenzen'!$E$9)-COLUMN('Zusätzliche Frequenzen'!$B$9)+1,FALSE) ->  | H24: =MROUND(IF(F24>H_Skalierungsfunktion!$O$7,100,IF(F24>=H_Skalierungsfunktion!$O$6,(F24-H_Skalierungsfunktion!$O$6)/(H_Skalierungsfunktion!$O$7-H_Skalierungsfunktion!$O$6)*100,0)),0.0001) ->  | I24: =MROUND(IF(G24>H_Skalierungsfunktion!$O$7,100,IF(G24>=H_Skalierungsfunktion!$O$6,(G24-H_Skalierungsfunktion!$O$6)/(H_Skalierungsfunktion!$O$7-H_Skalierungsfunktion!$O$6)*100,0)),0.0001) ->  | J24: =VLOOKUP(H24,Skalierung,H_Skalierungsfunktion!$O$5) ->  | K24: =VLOOKUP(I24,Skalierung,H_Skalierungsfunktion!$O$5) ->  | L24: =VLOOKUP($A24,Erfassungsmaske!$B$10:$N$502,COLUMN(Erfassungsmaske!$M$9)-COLUMN(Erfassungsmaske!$B$9)+1,FALSE) ->  | M24: =VLOOKUP($A24,Erfassungsmaske!$B$10:$N$502,COLUMN(Erfassungsmaske!$N$9)-COLUMN(Erfassungsmaske!$B$9)+1,FALSE) ->  | N24: =$C24*Annahmen!$F$20+$D24*Annahmen!$F$17+$E24*Annahmen!$F$18+$J24*Annahmen!$F$19 ->  | O24: =$C24*Annahmen!$F$20+$D24*Annahmen!$F$17+$E24*Annahmen!$F$18+$K24*Annahmen!$F$19 -> 
A25: 77929 | B25: Rüti b. Büren, Archfeld | C25: 2.4157 | D25: 0 | E25: 0 | F25: =VLOOKUP($A25,Erfassungsmaske!$B$10:$N$502,COLUMN(Erfassungsmaske!$D$9)-COLUMN(Erfassungsmaske!$B$9)+1,FALSE)+VLOOKUP($A25,'Zusätzliche Frequenzen'!$B$10:$E$502,COLUMN('Zusätzliche Frequenzen'!$D$9)-COLUMN('Zusätzliche Frequenzen'!$B$9)+1,FALSE) ->  | G25: =VLOOKUP($A25,Erfassungsmaske!$B$10:$N$502,COLUMN(Erfassungsmaske!$E$9)-COLUMN(Erfassungsmaske!$B$9)+1,FALSE)+VLOOKUP($A25,'Zusätzliche Frequenzen'!$B$10:$E$502,COLUMN('Zusätzliche Frequenzen'!$E$9)-COLUMN('Zusätzliche Frequenzen'!$B$9)+1,FALSE) ->  | H25: =MROUND(IF(F25>H_Skalierungsfunktion!$O$7,100,IF(F25>=H_Skalierungsfunktion!$O$6,(F25-H_Skalierungsfunktion!$O$6)/(H_Skalierungsfunktion!$O$7-H_Skalierungsfunktion!$O$6)*100,0)),0.0001) ->  | I25: =MROUND(IF(G25>H_Skalierungsfunktion!$O$7,100,IF(G25>=H_Skalierungsfunktion!$O$6,(G25-H_Skalierungsfunktion!$O$6)/(H_Skalierungsfunktion!$O$7-H_Skalierungsfunktion!$O$6)*100,0)),0.0001) ->  | J25: =VLOOKUP(H25,Skalierung,H_Skalierungsfunktion!$O$5) ->  | K25: =VLOOKUP(I25,Skalierung,H_Skalierungsfunktion!$O$5) ->  | L25: =VLOOKUP($A25,Erfassungsmaske!$B$10:$N$502,COLUMN(Erfassungsmaske!$M$9)-COLUMN(Erfassungsmaske!$B$9)+1,FALSE) ->  | M25: =VLOOKUP($A25,Erfassungsmaske!$B$10:$N$502,COLUMN(Erfassungsmaske!$N$9)-COLUMN(Erfassungsmaske!$B$9)+1,FALSE) ->  | N25: =$C25*Annahmen!$F$20+$D25*Annahmen!$F$17+$E25*Annahmen!$F$18+$J25*Annahmen!$F$19 ->  | O25: =$C25*Annahmen!$F$20+$D25*Annahmen!$F$17+$E25*Annahmen!$F$18+$K25*Annahmen!$F$19 -> 
A26: 96122 | B26: Lengnau BE, Industrie | C26: 62.3912 | D26: 0 | E26: 0 | F26: =VLOOKUP($A26,Erfassungsmaske!$B$10:$N$502,COLUMN(Erfassungsmaske!$D$9)-COLUMN(Erfassungsmaske!$B$9)+1,FALSE)+VLOOKUP($A26,'Zusätzliche Frequenzen'!$B$10:$E$502,COLUMN('Zusätzliche Frequenzen'!$D$9)-COLUMN('Zusätzliche Frequenzen'!$B$9)+1,FALSE) ->  | G26: =VLOOKUP($A26,Erfassungsmaske!$B$10:$N$502,COLUMN(Erfassungsmaske!$E$9)-COLUMN(Erfassungsmaske!$B$9)+1,FALSE)+VLOOKUP($A26,'Zusätzliche Frequenzen'!$B$10:$E$502,COLUMN('Zusätzliche Frequenzen'!$E$9)-COLUMN('Zusätzliche Frequenzen'!$B$9)+1,FALSE) ->  | H26: =MROUND(IF(F26>H_Skalierungsfunktion!$O$7,100,IF(F26>=H_Skalierungsfunktion!$O$6,(F26-H_Skalierungsfunktion!$O$6)/(H_Skalierungsfunktion!$O$7-H_Skalierungsfunktion!$O$6)*100,0)),0.0001) ->  | I26: =MROUND(IF(G26>H_Skalierungsfunktion!$O$7,100,IF(G26>=H_Skalierungsfunktion!$O$6,(G26-H_Skalierungsfunktion!$O$6)/(H_Skalierungsfunktion!$O$7-H_Skalierungsfunktion!$O$6)*100,0)),0.0001) ->  | J26: =VLOOKUP(H26,Skalierung,H_Skalierungsfunktion!$O$5) ->  | K26: =VLOOKUP(I26,Skalierung,H_Skalierungsfunktion!$O$5) ->  | L26: =VLOOKUP($A26,Erfassungsmaske!$B$10:$N$502,COLUMN(Erfassungsmaske!$M$9)-COLUMN(Erfassungsmaske!$B$9)+1,FALSE) ->  | M26: =VLOOKUP($A26,Erfassungsmaske!$B$10:$N$502,COLUMN(Erfassungsmaske!$N$9)-COLUMN(Erfassungsmaske!$B$9)+1,FALSE) ->  | N26: =$C26*Annahmen!$F$20+$D26*Annahmen!$F$17+$E26*Annahmen!$F$18+$J26*Annahmen!$F$19 ->  | O26: =$C26*Annahmen!$F$20+$D26*Annahmen!$F$17+$E26*Annahmen!$F$18+$K26*Annahmen!$F$19 -> 
A27: 96000 | B27: Schüsspark | C27: 100 | D27: 100 | E27: 0 | F27: =VLOOKUP($A27,Erfassungsmaske!$B$10:$N$502,COLUMN(Erfassungsmaske!$D$9)-COLUMN(Erfassungsmaske!$B$9)+1,FALSE)+VLOOKUP($A27,'Zusätzliche Frequenzen'!$B$10:$E$502,COLUMN('Zusätzliche Frequenzen'!$D$9)-COLUMN('Zusätzliche Frequenzen'!$B$9)+1,FALSE) ->  | G27: =VLOOKUP($A27,Erfassungsmaske!$B$10:$N$502,COLUMN(Erfassungsmaske!$E$9)-COLUMN(Erfassungsmaske!$B$9)+1,FALSE)+VLOOKUP($A27,'Zusätzliche Frequenzen'!$B$10:$E$502,COLUMN('Zusätzliche Frequenzen'!$E$9)-COLUMN('Zusätzliche Frequenzen'!$B$9)+1,FALSE) ->  | H27: =MROUND(IF(F27>H_Skalierungsfunktion!$O$7,100,IF(F27>=H_Skalierungsfunktion!$O$6,(F27-H_Skalierungsfunktion!$O$6)/(H_Skalierungsfunktion!$O$7-H_Skalierungsfunktion!$O$6)*100,0)),0.0001) ->  | I27: =MROUND(IF(G27>H_Skalierungsfunktion!$O$7,100,IF(G27>=H_Skalierungsfunktion!$O$6,(G27-H_Skalierungsfunktion!$O$6)/(H_Skalierungsfunktion!$O$7-H_Skalierungsfunktion!$O$6)*100,0)),0.0001) ->  | J27: =VLOOKUP(H27,Skalierung,H_Skalierungsfunktion!$O$5) ->  | K27: =VLOOKUP(I27,Skalierung,H_Skalierungsfunktion!$O$5) ->  | L27: =VLOOKUP($A27,Erfassungsmaske!$B$10:$N$502,COLUMN(Erfassungsmaske!$M$9)-COLUMN(Erfassungsmaske!$B$9)+1,FALSE) ->  | M27: =VLOOKUP($A27,Erfassungsmaske!$B$10:$N$502,COLUMN(Erfassungsmaske!$N$9)-COLUMN(Erfassungsmaske!$B$9)+1,FALSE) ->  | N27: =$C27*Annahmen!$F$20+$D27*Annahmen!$F$17+$E27*Annahmen!$F$18+$J27*Annahmen!$F$19 ->  | O27: =$C27*Annahmen!$F$20+$D27*Annahmen!$F$17+$E27*Annahmen!$F$18+$K27*Annahmen!$F$19 -> 
A28: 57050 | B28: Uetendorf, Ischlag | C28: 81.4142 | D28: 65.9902 | E28: 0 | F28: =VLOOKUP($A28,Erfassungsmaske!$B$10:$N$502,COLUMN(Erfassungsmaske!$D$9)-COLUMN(Erfassungsmaske!$B$9)+1,FALSE)+VLOOKUP($A28,'Zusätzliche Frequenzen'!$B$10:$E$502,COLUMN('Zusätzliche Frequenzen'!$D$9)-COLUMN('Zusätzliche Frequenzen'!$B$9)+1,FALSE) ->  | G28: =VLOOKUP($A28,Erfassungsmaske!$B$10:$N$502,COLUMN(Erfassungsmaske!$E$9)-COLUMN(Erfassungsmaske!$B$9)+1,FALSE)+VLOOKUP($A28,'Zusätzliche Frequenzen'!$B$10:$E$502,COLUMN('Zusätzliche Frequenzen'!$E$9)-COLUMN('Zusätzliche Frequenzen'!$B$9)+1,FALSE) ->  | H28: =MROUND(IF(F28>H_Skalierungsfunktion!$O$7,100,IF(F28>=H_Skalierungsfunktion!$O$6,(F28-H_Skalierungsfunktion!$O$6)/(H_Skalierungsfunktion!$O$7-H_Skalierungsfunktion!$O$6)*100,0)),0.0001) ->  | I28: =MROUND(IF(G28>H_Skalierungsfunktion!$O$7,100,IF(G28>=H_Skalierungsfunktion!$O$6,(G28-H_Skalierungsfunktion!$O$6)/(H_Skalierungsfunktion!$O$7-H_Skalierungsfunktion!$O$6)*100,0)),0.0001) ->  | J28: =VLOOKUP(H28,Skalierung,H_Skalierungsfunktion!$O$5) ->  | K28: =VLOOKUP(I28,Skalierung,H_Skalierungsfunktion!$O$5) ->  | L28: =VLOOKUP($A28,Erfassungsmaske!$B$10:$N$502,COLUMN(Erfassungsmaske!$M$9)-COLUMN(Erfassungsmaske!$B$9)+1,FALSE) ->  | M28: =VLOOKUP($A28,Erfassungsmaske!$B$10:$N$502,COLUMN(Erfassungsmaske!$N$9)-COLUMN(Erfassungsmaske!$B$9)+1,FALSE) ->  | N28: =$C28*Annahmen!$F$20+$D28*Annahmen!$F$17+$E28*Annahmen!$F$18+$J28*Annahmen!$F$19 ->  | O28: =$C28*Annahmen!$F$20+$D28*Annahmen!$F$17+$E28*Annahmen!$F$18+$K28*Annahmen!$F$19 -> 
A29: 57053 | B29: Ins, Witzwil | C29: 1.8172 | D29: 0 | E29: 0 | F29: =VLOOKUP($A29,Erfassungsmaske!$B$10:$N$502,COLUMN(Erfassungsmaske!$D$9)-COLUMN(Erfassungsmaske!$B$9)+1,FALSE)+VLOOKUP($A29,'Zusätzliche Frequenzen'!$B$10:$E$502,COLUMN('Zusätzliche Frequenzen'!$D$9)-COLUMN('Zusätzliche Frequenzen'!$B$9)+1,FALSE) ->  | G29: =VLOOKUP($A29,Erfassungsmaske!$B$10:$N$502,COLUMN(Erfassungsmaske!$E$9)-COLUMN(Erfassungsmaske!$B$9)+1,FALSE)+VLOOKUP($A29,'Zusätzliche Frequenzen'!$B$10:$E$502,COLUMN('Zusätzliche Frequenzen'!$E$9)-COLUMN('Zusätzliche Frequenzen'!$B$9)+1,FALSE) ->  | H29: =MROUND(IF(F29>H_Skalierungsfunktion!$O$7,100,IF(F29>=H_Skalierungsfunktion!$O$6,(F29-H_Skalierungsfunktion!$O$6)/(H_Skalierungsfunktion!$O$7-H_Skalierungsfunktion!$O$6)*100,0)),0.0001) ->  | I29: =MROUND(IF(G29>H_Skalierungsfunktion!$O$7,100,IF(G29>=H_Skalierungsfunktion!$O$6,(G29-H_Skalierungsfunktion!$O$6)/(H_Skalierungsfunktion!$O$7-H_Skalierungsfunktion!$O$6)*100,0)),0.0001) ->  | J29: =VLOOKUP(H29,Skalierung,H_Skalierungsfunktion!$O$5) ->  | K29: =VLOOKUP(I29,Skalierung,H_Skalierungsfunktion!$O$5) ->  | L29: =VLOOKUP($A29,Erfassungsmaske!$B$10:$N$502,COLUMN(Erfassungsmaske!$M$9)-COLUMN(Erfassungsmaske!$B$9)+1,FALSE) ->  | M29: =VLOOKUP($A29,Erfassungsmaske!$B$10:$N$502,COLUMN(Erfassungsmaske!$N$9)-COLUMN(Erfassungsmaske!$B$9)+1,FALSE) ->  | N29: =$C29*Annahmen!$F$20+$D29*Annahmen!$F$17+$E29*Annahmen!$F$18+$J29*Annahmen!$F$19 ->  | O29: =$C29*Annahmen!$F$20+$D29*Annahmen!$F$17+$E29*Annahmen!$F$18+$K29*Annahmen!$F$19 -> 
A30: 81357 | B30: Saanen, Halten | C30: 5.1617 | D30: 0 | E30: 0 | F30: =VLOOKUP($A30,Erfassungsmaske!$B$10:$N$502,COLUMN(Erfassungsmaske!$D$9)-COLUMN(Erfassungsmaske!$B$9)+1,FALSE)+VLOOKUP($A30,'Zusätzliche Frequenzen'!$B$10:$E$502,COLUMN('Zusätzliche Frequenzen'!$D$9)-COLUMN('Zusätzliche Frequenzen'!$B$9)+1,FALSE) -> 1.857142857 | G30: =VLOOKUP($A30,Erfassungsmaske!$B$10:$N$502,COLUMN(Erfassungsmaske!$E$9)-COLUMN(Erfassungsmaske!$B$9)+1,FALSE)+VLOOKUP($A30,'Zusätzliche Frequenzen'!$B$10:$E$502,COLUMN('Zusätzliche Frequenzen'!$E$9)-COLUMN('Zusätzliche Frequenzen'!$B$9)+1,FALSE) -> 3.714285714 | H30: =MROUND(IF(F30>H_Skalierungsfunktion!$O$7,100,IF(F30>=H_Skalierungsfunktion!$O$6,(F30-H_Skalierungsfunktion!$O$6)/(H_Skalierungsfunktion!$O$7-H_Skalierungsfunktion!$O$6)*100,0)),0.0001) -> 0.3714 | I30: =MROUND(IF(G30>H_Skalierungsfunktion!$O$7,100,IF(G30>=H_Skalierungsfunktion!$O$6,(G30-H_Skalierungsfunktion!$O$6)/(H_Skalierungsfunktion!$O$7-H_Skalierungsfunktion!$O$6)*100,0)),0.0001) -> 0.7429 | J30: =VLOOKUP(H30,Skalierung,H_Skalierungsfunktion!$O$5) -> 1.4965 | K30: =VLOOKUP(I30,Skalierung,H_Skalierungsfunktion!$O$5) -> 2.971 | L30: =VLOOKUP($A30,Erfassungsmaske!$B$10:$N$502,COLUMN(Erfassungsmaske!$M$9)-COLUMN(Erfassungsmaske!$B$9)+1,FALSE) -> 0 | M30: =VLOOKUP($A30,Erfassungsmaske!$B$10:$N$502,COLUMN(Erfassungsmaske!$N$9)-COLUMN(Erfassungsmaske!$B$9)+1,FALSE) -> 0 | N30: =$C30*Annahmen!$F$20+$D30*Annahmen!$F$17+$E30*Annahmen!$F$18+$J30*Annahmen!$F$19 -> 1.436395 | O30: =$C30*Annahmen!$F$20+$D30*Annahmen!$F$17+$E30*Annahmen!$F$18+$K30*Annahmen!$F$19 -> 1.83451 | P30: =N30/L30*100000 ->  | Q30: =O30/M30*100000 ->  | R30: =AVERAGE(P30:Q30) -> 
A31: 79266 | B31: Saanenmöser, Bahnhof | C31: 51.1794 | D31: 100 | E31: 100 | F31: =VLOOKUP($A31,Erfassungsmaske!$B$10:$N$502,COLUMN(Erfassungsmaske!$D$9)-COLUMN(Erfassungsmaske!$B$9)+1,FALSE)+VLOOKUP($A31,'Zusätzliche Frequenzen'!$B$10:$E$502,COLUMN('Zusätzliche Frequenzen'!$D$9)-COLUMN('Zusätzliche Frequenzen'!$B$9)+1,FALSE) -> 9 | G31: =VLOOKUP($A31,Erfassungsmaske!$B$10:$N$502,COLUMN(Erfassungsmaske!$E$9)-COLUMN(Erfassungsmaske!$B$9)+1,FALSE)+VLOOKUP($A31,'Zusätzliche Frequenzen'!$B$10:$E$502,COLUMN('Zusätzliche Frequenzen'!$E$9)-COLUMN('Zusätzliche Frequenzen'!$B$9)+1,FALSE) ->  | H31: =MROUND(IF(F31>H_Skalierungsfunktion!$O$7,100,IF(F31>=H_Skalierungsfunktion!$O$6,(F31-H_Skalierungsfunktion!$O$6)/(H_Skalierungsfunktion!$O$7-H_Skalierungsfunktion!$O$6)*100,0)),0.0001) -> 1.8 | I31: =MROUND(IF(G31>H_Skalierungsfunktion!$O$7,100,IF(G31>=H_Skalierungsfunktion!$O$6,(G31-H_Skalierungsfunktion!$O$6)/(H_Skalierungsfunktion!$O$7-H_Skalierungsfunktion!$O$6)*100,0)),0.0001) ->  | J31: =VLOOKUP(H31,Skalierung,H_Skalierungsfunktion!$O$5) -> 7.0765 | K31: =VLOOKUP(I31,Skalierung,H_Skalierungsfunktion!$O$5) ->  | L31: =VLOOKUP($A31,Erfassungsmaske!$B$10:$N$502,COLUMN(Erfassungsmaske!$M$9)-COLUMN(Erfassungsmaske!$B$9)+1,FALSE) -> 0 | M31: =VLOOKUP($A31,Erfassungsmaske!$B$10:$N$502,COLUMN(Erfassungsmaske!$N$9)-COLUMN(Erfassungsmaske!$B$9)+1,FALSE) -> 0 | N31: =$C31*Annahmen!$F$20+$D31*Annahmen!$F$17+$E31*Annahmen!$F$18+$J31*Annahmen!$F$19 -> 65.146535 | O31: =$C31*Annahmen!$F$20+$D31*Annahmen!$F$17+$E31*Annahmen!$F$18+$K31*Annahmen!$F$19 -> 
A32: 81098 | B32: Saanenmöser, Birkheimweg | C32: 18.4651 | D32: 5.123 | E32: 0 | F32: =VLOOKUP($A32,Erfassungsmaske!$B$10:$N$502,COLUMN(Erfassungsmaske!$D$9)-COLUMN(Erfassungsmaske!$B$9)+1,FALSE)+VLOOKUP($A32,'Zusätzliche Frequenzen'!$B$10:$E$502,COLUMN('Zusätzliche Frequenzen'!$D$9)-COLUMN('Zusätzliche Frequenzen'!$B$9)+1,FALSE) -> 0 | G32: =VLOOKUP($A32,Erfassungsmaske!$B$10:$N$502,COLUMN(Erfassungsmaske!$E$9)-COLUMN(Erfassungsmaske!$B$9)+1,FALSE)+VLOOKUP($A32,'Zusätzliche Frequenzen'!$B$10:$E$502,COLUMN('Zusätzliche Frequenzen'!$E$9)-COLUMN('Zusätzliche Frequenzen'!$B$9)+1,FALSE) -> 0 | H32: =MROUND(IF(F32>H_Skalierungsfunktion!$O$7,100,IF(F32>=H_Skalierungsfunktion!$O$6,(F32-H_Skalierungsfunktion!$O$6)/(H_Skalierungsfunktion!$O$7-H_Skalierungsfunktion!$O$6)*100,0)),0.0001) -> 0 | I32: =MROUND(IF(G32>H_Skalierungsfunktion!$O$7,100,IF(G32>=H_Skalierungsfunktion!$O$6,(G32-H_Skalierungsfunktion!$O$6)/(H_Skalierungsfunktion!$O$7-H_Skalierungsfunktion!$O$6)*100,0)),0.0001) -> 0 | J32: =VLOOKUP(H32,Skalierung,H_Skalierungsfunktion!$O$5) -> 0 | K32: =VLOOKUP(I32,Skalierung,H_Skalierungsfunktion!$O$5) -> 0 | L32: =VLOOKUP($A32,Erfassungsmaske!$B$10:$N$502,COLUMN(Erfassungsmaske!$M$9)-COLUMN(Erfassungsmaske!$B$9)+1,FALSE) -> 0 | M32: =VLOOKUP($A32,Erfassungsmaske!$B$10:$N$502,COLUMN(Erfassungsmaske!$N$9)-COLUMN(Erfassungsmaske!$B$9)+1,FALSE) -> 0 | N32: =$C32*Annahmen!$F$20+$D32*Annahmen!$F$17+$E32*Annahmen!$F$18+$J32*Annahmen!$F$19 -> 5.025 | O32: =$C32*Annahmen!$F$20+$D32*Annahmen!$F$17+$E32*Annahmen!$F$18+$K32*Annahmen!$F$19 -> 5.025
A33: 81097 | B33: Saanenmöser, Mösching | C33: 17.4583 | D33: 2.3361 | E33: 0 | F33: =VLOOKUP($A33,Erfassungsmaske!$B$10:$N$502,COLUMN(Erfassungsmaske!$D$9)-COLUMN(Erfassungsmaske!$B$9)+1,FALSE)+VLOOKUP($A33,'Zusätzliche Frequenzen'!$B$10:$E$502,COLUMN('Zusätzliche Frequenzen'!$D$9)-COLUMN('Zusätzliche Frequenzen'!$B$9)+1,FALSE) -> 0 | G33: =VLOOKUP($A33,Erfassungsmaske!$B$10:$N$502,COLUMN(Erfassungsmaske!$E$9)-COLUMN(Erfassungsmaske!$B$9)+1,FALSE)+VLOOKUP($A33,'Zusätzliche Frequenzen'!$B$10:$E$502,COLUMN('Zusätzliche Frequenzen'!$E$9)-COLUMN('Zusätzliche Frequenzen'!$B$9)+1,FALSE) -> 0 | H33: =MROUND(IF(F33>H_Skalierungsfunktion!$O$7,100,IF(F33>=H_Skalierungsfunktion!$O$6,(F33-H_Skalierungsfunktion!$O$6)/(H_Skalierungsfunktion!$O$7-H_Skalierungsfunktion!$O$6)*100,0)),0.0001) -> 0 | I33: =MROUND(IF(G33>H_Skalierungsfunktion!$O$7,100,IF(G33>=H_Skalierungsfunktion!$O$6,(G33-H_Skalierungsfunktion!$O$6)/(H_Skalierungsfunktion!$O$7-H_Skalierungsfunktion!$O$6)*100,0)),0.0001) -> 0 | J33: =VLOOKUP(H33,Skalierung,H_Skalierungsfunktion!$O$5) -> 0 | K33: =VLOOKUP(I33,Skalierung,H_Skalierungsfunktion!$O$5) -> 0 | L33: =VLOOKUP($A33,Erfassungsmaske!$B$10:$N$502,COLUMN(Erfassungsmaske!$M$9)-COLUMN(Erfassungsmaske!$B$9)+1,FALSE) -> 0 | M33: =VLOOKUP($A33,Erfassungsmaske!$B$10:$N$502,COLUMN(Erfassungsmaske!$N$9)-COLUMN(Erfassungsmaske!$B$9)+1,FALSE) -> 0 | N33: =$C33*Annahmen!$F$20+$D33*Annahmen!$F$17+$E33*Annahmen!$F$18+$J33*Annahmen!$F$19 -> 4.099046 | O33: =$C33*Annahmen!$F$20+$D33*Annahmen!$F$17+$E33*Annahmen!$F$18+$K33*Annahmen!$F$19 -> 4.099046
A34: 79265 | B34: Schönried, Bahnhof | C34: 80.7998 | D34: 100 | E34: 100 | F34: =VLOOKUP($A34,Erfassungsmaske!$B$10:$N$502,COLUMN(Erfassungsmaske!$D$9)-COLUMN(Erfassungsmaske!$B$9)+1,FALSE)+VLOOKUP($A34,'Zusätzliche Frequenzen'!$B$10:$E$502,COLUMN('Zusätzliche Frequenzen'!$D$9)-COLUMN('Zusätzliche Frequenzen'!$B$9)+1,FALSE) -> 38.42857143 | G34: =VLOOKUP($A34,Erfassungsmaske!$B$10:$N$502,COLUMN(Erfassungsmaske!$E$9)-COLUMN(Erfassungsmaske!$B$9)+1,FALSE)+VLOOKUP($A34,'Zusätzliche Frequenzen'!$B$10:$E$502,COLUMN('Zusätzliche Frequenzen'!$E$9)-COLUMN('Zusätzliche Frequenzen'!$B$9)+1,FALSE) -> 40.28571429 | H34: =MROUND(IF(F34>H_Skalierungsfunktion!$O$7,100,IF(F34>=H_Skalierungsfunktion!$O$6,(F34-H_Skalierungsfunktion!$O$6)/(H_Skalierungsfunktion!$O$7-H_Skalierungsfunktion!$O$6)*100,0)),0.0001) -> 7.6857 | I34: =MROUND(IF(G34>H_Skalierungsfunktion!$O$7,100,IF(G34>=H_Skalierungsfunktion!$O$6,(G34-H_Skalierungsfunktion!$O$6)/(H_Skalierungsfunktion!$O$7-H_Skalierungsfunktion!$O$6)*100,0)),0.0001) -> 8.0571 | J34: =VLOOKUP(H34,Skalierung,H_Skalierungsfunktion!$O$5) -> 26.9431 | K34: =VLOOKUP(I34,Skalierung,H_Skalierungsfunktion!$O$5) -> 28.0438 | L34: =VLOOKUP($A34,Erfassungsmaske!$B$10:$N$502,COLUMN(Erfassungsmaske!$M$9)-COLUMN(Erfassungsmaske!$B$9)+1,FALSE) -> 0 | M34: =VLOOKUP($A34,Erfassungsmaske!$B$10:$N$502,COLUMN(Erfassungsmaske!$N$9)-COLUMN(Erfassungsmaske!$B$9)+1,FALSE) -> 0 | N34: =$C34*Annahmen!$F$20+$D34*Annahmen!$F$17+$E34*Annahmen!$F$18+$J34*Annahmen!$F$19 -> 76.434597 | O34: =$C34*Annahmen!$F$20+$D34*Annahmen!$F$17+$E34*Annahmen!$F$18+$K34*Annahmen!$F$19 -> 76.731786
